Workbook

Sheet INTRO
B2: Formulaire de Rapport Commun v.3.1
B4: Le but de ce formulaire de rapport commun - disponible sous forme de fichier Excel - est de mettre à disposition des autorités sanitaires nationales et des gestionnaires de données un outil standardisé qui réponde aux défis, facilite l'intégration et par conséquent contribue à améliorer la gestion de programme. Ce formulaire tend à standardiser le rapport de résultats des programmes nationaux, améliore la disponibilité et la coordination des données de chimioprévention à travers les Bureaux des Régions de l'Organisation mondiale de la Santé. Les autorités nationales sont priées de compléter ce formulaire et de le soumettre à l'Organisation mondiale de la Santé avant le 15 août de l'année en cours pour rapporter les données des activités de chimioprévention mises en oeuvre l'année précédente.
B6: Structure de l'application (feuilles de travail) :
B8: INTRO | C8: Cette feuille contient des instructions pour compléter le formulaire de rapport commun et des informations sur le statut de la chimioprévention pour les maladies d'endémie du pays.
B9: COUNTRY_INFO | C9: Cette feuille contient des informations sur la structure administrative du pays, la population par groupe d'âge, le statut d'endémicité pour chaque maladie, la population devant être traitée par chimioprévention, les interventions prévues et les interventions mises en oeuvre.
B10: MDA1, MDA2, MDA3, T1, T2 et T3 | C10: Ces feuilles contiennent des informations sur l'endémicité des districts ciblés pour le traitement aux médicaments spécifiques pour la chimioprévention, les plans de traitement, et le nombre de personnes traitées par groupe d'âge.
B11: DISTRICT | C11: Cette feuille contient un résumé sur les personnes traitées, par maladie, au niveau de mise en oeuvre. Si les données par genre (sexe) sont disponibles, merci de les saisir.
B12: SUMMARY | C12: Cette feuille contient un résumé sur les personnes traitées, par maladie et par type d'intervention de chimioprévention. Avant de générer le rapport (exécuter macro), veuillez sélectionner la maladie pour laquelle vous souhaitez un rapport. Veuillez suivre le même processus pour générer les divers rapports. Cette feuille doit être imprimée et soumise comme formulaire de rapport commun (voir les instructions pour la soumission du formulaire sous la feuille SUMMARY).
B14: Instructions pour la saisie des données
B16: La plupart des cellules des feuilles de travail mentionnées ci-dessus contiennent des formules calculées automatiquement en fonction du protocole de traitement recommandé par l'OMS pour chaque maladie. Voir : http://www.who.int/neglected_diseases/preventive_chemotherapy/pct_manual/en/index.html
B18: Veuillez entrer vos données dans les cellules en fonction de leur code de couleur :
C20: Blanc - la cellule n'est pas protégée. Veuillez entrer la valeur de l'indicateur demandé.
C22: Jaune - la cellule est protégée et inclut le nom de l'indicateur. Aucune entrée de données requise.
C24: Orange - la cellule n'est pas protégée et contient un menu déroulant. Veuillez sélectionner la valeur dans le menu déroulant.
C27: Vert - la cellule n'est pas protégée et contient des formules. Veuillez changer la valeur indiquée uniquement si vos données sont différentes de celles calculées automatiquement.
C30: Bleu - la cellule est protégée et contient des formules. Aucune entrée de données requise.
B32: Données pays
B34: PAYS | E34: Benin
B36: Année de rapport des données | E36: 2020
B38: Le pays est-il endémique à la filariose lymphatique (FL) ? | E38: Endémique
B40: Le pays est-il endémique à l'onchocercose (ONCHO) ? | E40: Endémique
B42: Le pays est-il endémique aux géohelminthiases (STH) ? | E42: Endémique
B44: Le pays est-il endémique à la schistosomiase (SCH) ? | E44: Endémique
B46: Combien d'unités administratives compte le pays ? | E46: 77
B47: Si les données démographiques par groupe d'âge ne sont pas disponibles au second niveau administratif, veuillez entrer la proportion (%) de population, par groupe d'âge, du pays. Si les données sont disponibles, veuillez laisser les cellules vierges.
B48: 1-4 ans | C48: Enfants d'âge pré-scolaire (EAPréS) | E48: 0.1364
B49: 5-14 ans | C49: Enfants d'âge scolaire (EAS) | E49: 0.297
B50: 15 ans et plus | C50: Adultes | E50: 0.5266

Sheet COUNTRY_INFO
A1: INFORMATIONS PAYS
A2: Structure administrative, population par groupe d'âge, statut d'endémicité, interventions planifiées et interventions mises en oeuvre
A4: TOTAL | D4: =SUM(D$9:D$1000) -> 9954657 | E4: =SUM(E$9:E$1000) -> 1357815 | F4: =SUM(F$9:F$1000) -> 2956533 | G4: =SUM(G$9:G$1000) -> 5242124 | L4: =SUM(L$9:L$1000) -> 315128 | M4: =SUM(M$9:M$1000) -> 5599018 | N4: =SUM(N$9:N$1000) -> 2105464 | O4: =SUM(O$9:O$1000) -> 2300011.06
A6: Structure administrative du pays | D6: Population | H6: Endémicité | L6: Population nécessitant la CP | P6: Nombre de tournées de traitement prévues pour l'année | T6: Mise en oeuvre de la chimioprévention | V6: Cliquer ci-dessous pour voir la stratégie recommandée
A7: Pays | B7: Région/Département | C7: District | D7: Total | E7: EAPréS | F7: EAS | G7: Adultes | H7: FL | I7: Oncho | J7: STH | K7: SCH | L7: FL | M7: Oncho | N7: STH | O7: SCH | P7: FL | Q7: Oncho | R7: STH | S7: SCH | T7: TOURNEE 1 | U7: TOURNEE 2 | X7: IU_ID | Y7: IU_Name | Z7: x | AA7: x | AB7: x | AC7: x | AD7: x | AE7: x | AF7: x | AG7: x | AH7: x | AI7: x | AJ7: x | AK7: x | AL7: x | AM7: x | AN7: x | AO7: x | AP7: x | AQ7: x | AR7: x | AS7: x | AT7: x | AU7: x | AV7: x | AW7: x | AX7: x | AY7: x
A9: =IF(INTRO!$E$34<>0,INTRO!$E$34,"") -> Benin | B9: Alibori | C9: Banikoara | D9: 301522 | E9: =IF(INTRO!$E$48="","",ROUND($D9*INTRO!$E$48,0)) -> 41128 | F9: =IF(INTRO!$E$49="","",ROUND($D9*INTRO!$E$49,0)) -> 89552 | G9: =IF(INTRO!$E$50="","",ROUND($D9*INTRO!$E$50,0)) -> 158781 | H9: 0 | I9: 1 | J9: 1 | K9: 2 | L9: =IF(INTRO!$E$38="Endémique", IF($H9>0, IF($H9=4,"Inconnu", IF($H9=99,"Interrompu", $D9)), 0),"Non requis") -> 0 | M9: =IF(INTRO!$E$40="Endémique", IF($I9>0, IF($I9=4,"Inconnu",IF($I9=99,"Interrompu", $D9)), 0),"Non requis") -> 301522 | N9: =IF(INTRO!$E$42="Endémique", IF(AND($J9>1,$J9<5), IF($J9=4, "Inconnu", E9+F9), 0),"Non requis") -> 0 | O9: =IF(INTRO!$E$44="Endémique", IF(AND($K9>0,$K9<5), IF($K9=4,"Inconnu", IF($K9=1, $F9*0.33, IF($K9=2, $F9*0.5+$G9*0.2, SUM(F9:G9)))), 0),"Non requis") -> 76532.2 | P9: 0 | Q9: 1 | R9: 0 | S9: 0 | T9: MDA3 (IVM) | X9: 3212 | Y9: Banikoara | AB9: 0 | AC9: 1 | AD9: 1 | AE9: 2 | AF9: =AB9=H9 -> TRUE | AG9: =AC9=I9 -> TRUE | AH9: TRUE | AI9: TRUE
A10: =IF(INTRO!$E$34<>0,INTRO!$E$34,"") -> Benin | B10: Alibori | C10: Gogounou | D10: 121428 | E10: =IF(INTRO!$E$48="","",ROUND($D10*INTRO!$E$48,0)) -> 16563 | F10: =IF(INTRO!$E$49="","",ROUND($D10*INTRO!$E$49,0)) -> 36064 | G10: =IF(INTRO!$E$50="","",ROUND($D10*INTRO!$E$50,0)) -> 63944 | H10: 0 | I10: 1 | J10: 2 | K10: 1 | L10: =IF(INTRO!$E$38="Endémique", IF($H10>0, IF($H10=4,"Inconnu", IF($H10=99,"Interrompu", $D10)), 0),"Non requis") -> 0 | M10: =IF(INTRO!$E$40="Endémique", IF($I10>0, IF($I10=4,"Inconnu",IF($I10=99,"Interrompu", $D10)), 0),"Non requis") -> 121428 | N10: =IF(INTRO!$E$42="Endémique", IF(AND($J10>1,$J10<5), IF($J10=4, "Inconnu", E10+F10), 0),"Non requis") -> 52627 | O10: =IF(INTRO!$E$44="Endémique", IF(AND($K10>0,$K10<5), IF($K10=4,"Inconnu", IF($K10=1, $F10*0.33, IF($K10=2, $F10*0.5+$G10*0.2, SUM(F10:G10)))), 0),"Non requis") -> 11901.12 | P10: 0 | Q10: 1 | R10: 1 | S10: 0 | T10: MDA3 (IVM) | U10: T3 (ALB/MBD) | X10: 3236 | Y10: Gogounou | AB10: 0 | AC10: 1 | AD10: 2 | AE10: 1 | AF10: =AB10=H10 -> TRUE | AG10: =AC10=I10 -> TRUE | AH10: =AD10=J10 -> TRUE | AI10: =AE10=K10 -> TRUE
A11: =IF(INTRO!$E$34<>0,INTRO!$E$34,"") -> Benin | B11: Alibori | C11: Kandi | D11: 136830 | E11: =IF(INTRO!$E$48="","",ROUND($D11*INTRO!$E$48,0)) -> 18664 | F11: =IF(INTRO!$E$49="","",ROUND($D11*INTRO!$E$49,0)) -> 40639 | G11: =IF(INTRO!$E$50="","",ROUND($D11*INTRO!$E$50,0)) -> 72055 | H11: 0 | I11: 1 | J11: 2 | K11: 2 | L11: =IF(INTRO!$E$38="Endémique", IF($H11>0, IF($H11=4,"Inconnu", IF($H11=99,"Interrompu", $D11)), 0),"Non requis") -> 0 | M11: =IF(INTRO!$E$40="Endémique", IF($I11>0, IF($I11=4,"Inconnu",IF($I11=99,"Interrompu", $D11)), 0),"Non requis") -> 136830 | N11: =IF(INTRO!$E$42="Endémique", IF(AND($J11>1,$J11<5), IF($J11=4, "Inconnu", E11+F11), 0),"Non requis") -> 59303 | O11: =IF(INTRO!$E$44="Endémique", IF(AND($K11>0,$K11<5), IF($K11=4,"Inconnu", IF($K11=1, $F11*0.33, IF($K11=2, $F11*0.5+$G11*0.2, SUM(F11:G11)))), 0),"Non requis") -> 34730.5 | P11: 0 | Q11: 1 | R11: 1 | S11: 0 | T11: MDA3 (IVM) | U11: T3 (ALB/MBD) | X11: 3213 | Y11: Kandi | AB11: 0 | AC11: 1 | AD11: 2 | AE11: 2 | AF11: TRUE | AG11: TRUE | AH11: TRUE | AI11: TRUE
A12: =IF(INTRO!$E$34<>0,INTRO!$E$34,"") -> Benin | B12: Alibori | C12: Karimama | D12: 73244 | E12: =IF(INTRO!$E$48="","",ROUND($D12*INTRO!$E$48,0)) -> 9990 | F12: =IF(INTRO!$E$49="","",ROUND($D12*INTRO!$E$49,0)) -> 21753 | G12: =IF(INTRO!$E$50="","",ROUND($D12*INTRO!$E$50,0)) -> 38570 | H12: 99 | I12: 1 | J12: 1 | K12: 1 | L12: =IF(INTRO!$E$38="Endémique", IF($H12>0, IF($H12=4,"Inconnu", IF($H12=99,"Interrompu", $D12)), 0),"Non requis") -> Interrompu | M12: =IF(INTRO!$E$40="Endémique", IF($I12>0, IF($I12=4,"Inconnu",IF($I12=99,"Interrompu", $D12)), 0),"Non requis") -> 73244 | N12: =IF(INTRO!$E$42="Endémique", IF(AND($J12>1,$J12<5), IF($J12=4, "Inconnu", E12+F12), 0),"Non requis") -> 0 | O12: =IF(INTRO!$E$44="Endémique", IF(AND($K12>0,$K12<5), IF($K12=4,"Inconnu", IF($K12=1, $F12*0.33, IF($K12=2, $F12*0.5+$G12*0.2, SUM(F12:G12)))), 0),"Non requis") -> 7178.49 | P12: 0 | Q12: 1 | R12: 0 | S12: 0 | T12: MDA3 (IVM) | X12: 3214 | Y12: Karimama | AB12: 99 | AC12: 1 | AD12: 1 | AE12: 1 | AF12: TRUE | AG12: TRUE | AH12: TRUE | AI12: TRUE
A13: =IF(INTRO!$E$34<>0,INTRO!$E$34,"") -> Benin | B13: Alibori | C13: Malanville | D13: 129185 | E13: =IF(INTRO!$E$48="","",ROUND($D13*INTRO!$E$48,0)) -> 17621 | F13: =IF(INTRO!$E$49="","",ROUND($D13*INTRO!$E$49,0)) -> 38368 | G13: =IF(INTRO!$E$50="","",ROUND($D13*INTRO!$E$50,0)) -> 68029 | H13: 99 | I13: 1 | J13: 1 | K13: 2 | L13: =IF(INTRO!$E$38="Endémique", IF($H13>0, IF($H13=4,"Inconnu", IF($H13=99,"Interrompu", $D13)), 0),"Non requis") -> Interrompu | M13: =IF(INTRO!$E$40="Endémique", IF($I13>0, IF($I13=4,"Inconnu",IF($I13=99,"Interrompu", $D13)), 0),"Non requis") -> 129185 | N13: =IF(INTRO!$E$42="Endémique", IF(AND($J13>1,$J13<5), IF($J13=4, "Inconnu", E13+F13), 0),"Non requis") -> 0 | O13: =IF(INTRO!$E$44="Endémique", IF(AND($K13>0,$K13<5), IF($K13=4,"Inconnu", IF($K13=1, $F13*0.33, IF($K13=2, $F13*0.5+$G13*0.2, SUM(F13:G13)))), 0),"Non requis") -> 32789.8 | P13: 0 | Q13: 1 | R13: 0 | S13: 0 | T13: MDA3 (IVM) | X13: 3215 | Y13: Malanville | AB13: 99 | AC13: 1 | AD13: 1 | AE13: 2 | AF13: TRUE | AG13: TRUE | AH13: TRUE | AI13: TRUE
A14: =IF(INTRO!$E$34<>0,INTRO!$E$34,"") -> Benin | B14: Alibori | C14: Ségbana | D14: 71199 | E14: =IF(INTRO!$E$48="","",ROUND($D14*INTRO!$E$48,0)) -> 9712 | F14: =IF(INTRO!$E$49="","",ROUND($D14*INTRO!$E$49,0)) -> 21146 | G14: =IF(INTRO!$E$50="","",ROUND($D14*INTRO!$E$50,0)) -> 37493 | H14: 0 | I14: 1 | J14: 2 | K14: 1 | L14: =IF(INTRO!$E$38="Endémique", IF($H14>0, IF($H14=4,"Inconnu", IF($H14=99,"Interrompu", $D14)), 0),"Non requis") -> 0 | M14: =IF(INTRO!$E$40="Endémique", IF($I14>0, IF($I14=4,"Inconnu",IF($I14=99,"Interrompu", $D14)), 0),"Non requis") -> 71199 | N14: =IF(INTRO!$E$42="Endémique", IF(AND($J14>1,$J14<5), IF($J14=4, "Inconnu", E14+F14), 0),"Non requis") -> 30858 | O14: =IF(INTRO!$E$44="Endémique", IF(AND($K14>0,$K14<5), IF($K14=4,"Inconnu", IF($K14=1, $F14*0.33, IF($K14=2, $F14*0.5+$G14*0.2, SUM(F14:G14)))), 0),"Non requis") -> 6978.18 | P14: 0 | Q14: 1 | R14: 1 | S14: 0 | T14: MDA3 (IVM) | U14: T3 (ALB/MBD) | X14: 3216 | Y14: Ségbana | AB14: 0 | AC14: 1 | AD14: 2 | AE14: 1 | AF14: TRUE | AG14: TRUE | AH14: TRUE | AI14: TRUE
A15: =IF(INTRO!$E$34<>0,INTRO!$E$34,"") -> Benin | B15: Atacora | C15: Boukoumbé | D15: 96211 | E15: =IF(INTRO!$E$48="","",ROUND($D15*INTRO!$E$48,0)) -> 13123 | F15: =IF(INTRO!$E$49="","",ROUND($D15*INTRO!$E$49,0)) -> 28575 | G15: =IF(INTRO!$E$50="","",ROUND($D15*INTRO!$E$50,0)) -> 50665 | H15: 99 | I15: 1 | J15: 2 | K15: 2 | L15: =IF(INTRO!$E$38="Endémique", IF($H15>0, IF($H15=4,"Inconnu", IF($H15=99,"Interrompu", $D15)), 0),"Non requis") -> Interrompu | M15: =IF(INTRO!$E$40="Endémique", IF($I15>0, IF($I15=4,"Inconnu",IF($I15=99,"Interrompu", $D15)), 0),"Non requis") -> 96211 | N15: =IF(INTRO!$E$42="Endémique", IF(AND($J15>1,$J15<5), IF($J15=4, "Inconnu", E15+F15), 0),"Non requis") -> 41698 | O15: =IF(INTRO!$E$44="Endémique", IF(AND($K15>0,$K15<5), IF($K15=4,"Inconnu", IF($K15=1, $F15*0.33, IF($K15=2, $F15*0.5+$G15*0.2, SUM(F15:G15)))), 0),"Non requis") -> 24420.5 | P15: 0 | Q15: 1 | R15: 1 | S15: 1 | T15: MDA3 (IVM) | U15: T1 (PZQ+ALB/MBD) | X15: 3217 | Y15: Boukoumbé | AB15: 99 | AC15: 1 | AD15: 2 | AE15: 2 | AF15: TRUE | AG15: TRUE | AH15: TRUE | AI15: TRUE
A16: =IF(INTRO!$E$34<>0,INTRO!$E$34,"") -> Benin | B16: Atacora | C16: Cobly | D16: 79632 | E16: =IF(INTRO!$E$48="","",ROUND($D16*INTRO!$E$48,0)) -> 10862 | F16: =IF(INTRO!$E$49="","",ROUND($D16*INTRO!$E$49,0)) -> 23651 | G16: =IF(INTRO!$E$50="","",ROUND($D16*INTRO!$E$50,0)) -> 41934 | H16: 0 | I16: 1 | J16: 2 | K16: 2 | L16: =IF(INTRO!$E$38="Endémique", IF($H16>0, IF($H16=4,"Inconnu", IF($H16=99,"Interrompu", $D16)), 0),"Non requis") -> 0 | M16: =IF(INTRO!$E$40="Endémique", IF($I16>0, IF($I16=4,"Inconnu",IF($I16=99,"Interrompu", $D16)), 0),"Non requis") -> 79632 | N16: =IF(INTRO!$E$42="Endémique", IF(AND($J16>1,$J16<5), IF($J16=4, "Inconnu", E16+F16), 0),"Non requis") -> 34513 | O16: =IF(INTRO!$E$44="Endémique", IF(AND($K16>0,$K16<5), IF($K16=4,"Inconnu", IF($K16=1, $F16*0.33, IF($K16=2, $F16*0.5+$G16*0.2, SUM(F16:G16)))), 0),"Non requis") -> 20212.3 | P16: 0 | Q16: 1 | R16: 1 | S16: 1 | T16: MDA3 (IVM) | U16: T1 (PZQ+ALB/MBD) | X16: 3218 | Y16: Cobly | AB16: 0 | AC16: 1 | AD16: 2 | AE16: 2 | AF16: TRUE | AG16: TRUE | AH16: TRUE | AI16: TRUE
A17: =IF(INTRO!$E$34<>0,INTRO!$E$34,"") -> Benin | B17: Atacora | C17: Kérou | D17: 106777 | E17: =IF(INTRO!$E$48="","",ROUND($D17*INTRO!$E$48,0)) -> 14564 | F17: =IF(INTRO!$E$49="","",ROUND($D17*INTRO!$E$49,0)) -> 31713 | G17: =IF(INTRO!$E$50="","",ROUND($D17*INTRO!$E$50,0)) -> 56229 | H17: 99 | I17: 1 | J17: 1 | K17: 1 | L17: =IF(INTRO!$E$38="Endémique", IF($H17>0, IF($H17=4,"Inconnu", IF($H17=99,"Interrompu", $D17)), 0),"Non requis") -> Interrompu | M17: =IF(INTRO!$E$40="Endémique", IF($I17>0, IF($I17=4,"Inconnu",IF($I17=99,"Interrompu", $D17)), 0),"Non requis") -> 106777 | N17: =IF(INTRO!$E$42="Endémique", IF(AND($J17>1,$J17<5), IF($J17=4, "Inconnu", E17+F17), 0),"Non requis") -> 0 | O17: =IF(INTRO!$E$44="Endémique", IF(AND($K17>0,$K17<5), IF($K17=4,"Inconnu", IF($K17=1, $F17*0.33, IF($K17=2, $F17*0.5+$G17*0.2, SUM(F17:G17)))), 0),"Non requis") -> 10465.29 | P17: 0 | Q17: 1 | R17: 0 | S17: 0 | T17: MDA3 (IVM) | X17: 3220 | Y17: Kérou | AB17: 99 | AC17: 1 | AD17: 1 | AE17: 1 | AF17: TRUE | AG17: TRUE | AH17: TRUE | AI17: TRUE
A18: =IF(INTRO!$E$34<>0,INTRO!$E$34,"") -> Benin | B18: Atacora | C18: Kouandé | D18: 135407 | E18: =IF(INTRO!$E$48="","",ROUND($D18*INTRO!$E$48,0)) -> 18470 | F18: =IF(INTRO!$E$49="","",ROUND($D18*INTRO!$E$49,0)) -> 40216 | G18: =IF(INTRO!$E$50="","",ROUND($D18*INTRO!$E$50,0)) -> 71305 | H18: 0 | I18: 1 | J18: 2 | K18: 2 | L18: =IF(INTRO!$E$38="Endémique", IF($H18>0, IF($H18=4,"Inconnu", IF($H18=99,"Interrompu", $D18)), 0),"Non requis") -> 0 | M18: =IF(INTRO!$E$40="Endémique", IF($I18>0, IF($I18=4,"Inconnu",IF($I18=99,"Interrompu", $D18)), 0),"Non requis") -> 135407 | N18: =IF(INTRO!$E$42="Endémique", IF(AND($J18>1,$J18<5), IF($J18=4, "Inconnu", E18+F18), 0),"Non requis") -> 58686 | O18: =IF(INTRO!$E$44="Endémique", IF(AND($K18>0,$K18<5), IF($K18=4,"Inconnu", IF($K18=1, $F18*0.33, IF($K18=2, $F18*0.5+$G18*0.2, SUM(F18:G18)))), 0),"Non requis") -> 34369 | P18: 0 | Q18: 1 | R18: 1 | S18: 1 | T18: MDA3 (IVM) | U18: T1 (PZQ+ALB/MBD) | X18: 3219 | Y18: Kouandé | AB18: 0 | AC18: 1 | AD18: 2 | AE18: 2 | AF18: TRUE | AG18: TRUE | AH18: TRUE | AI18: TRUE
A19: =IF(INTRO!$E$34<>0,INTRO!$E$34,"") -> Benin | B19: Atacora | C19: Matéri | D19: 135016 | E19: =IF(INTRO!$E$48="","",ROUND($D19*INTRO!$E$48,0)) -> 18416 | F19: =IF(INTRO!$E$49="","",ROUND($D19*INTRO!$E$49,0)) -> 40100 | G19: =IF(INTRO!$E$50="","",ROUND($D19*INTRO!$E$50,0)) -> 71099 | H19: 99 | I19: 1 | J19: 2 | K19: 1 | L19: =IF(INTRO!$E$38="Endémique", IF($H19>0, IF($H19=4,"Inconnu", IF($H19=99,"Interrompu", $D19)), 0),"Non requis") -> Interrompu | M19: =IF(INTRO!$E$40="Endémique", IF($I19>0, IF($I19=4,"Inconnu",IF($I19=99,"Interrompu", $D19)), 0),"Non requis") -> 135016 | N19: =IF(INTRO!$E$42="Endémique", IF(AND($J19>1,$J19<5), IF($J19=4, "Inconnu", E19+F19), 0),"Non requis") -> 58516 | O19: =IF(INTRO!$E$44="Endémique", IF(AND($K19>0,$K19<5), IF($K19=4,"Inconnu", IF($K19=1, $F19*0.33, IF($K19=2, $F19*0.5+$G19*0.2, SUM(F19:G19)))), 0),"Non requis") -> 13233 | P19: 0 | Q19: 1 | R19: 1 | S19: 0 | T19: MDA3 (IVM) | U19: T3 (ALB/MBD) | X19: 3221 | Y19: Matéri | AB19: 99 | AC19: 1 | AD19: 2 | AE19: 1 | AF19: TRUE | AG19: TRUE | AH19: TRUE | AI19: TRUE
A20: =IF(INTRO!$E$34<>0,INTRO!$E$34,"") -> Benin | B20: Atacora | C20: Natitingou | D20: 80961 | E20: =IF(INTRO!$E$48="","",ROUND($D20*INTRO!$E$48,0)) -> 11043 | F20: =IF(INTRO!$E$49="","",ROUND($D20*INTRO!$E$49,0)) -> 24045 | G20: =IF(INTRO!$E$50="","",ROUND($D20*INTRO!$E$50,0)) -> 42634 | H20: 0 | I20: 1 | J20: 1 | K20: 1 | L20: =IF(INTRO!$E$38="Endémique", IF($H20>0, IF($H20=4,"Inconnu", IF($H20=99,"Interrompu", $D20)), 0),"Non requis") -> 0 | M20: =IF(INTRO!$E$40="Endémique", IF($I20>0, IF($I20=4,"Inconnu",IF($I20=99,"Interrompu", $D20)), 0),"Non requis") -> 80961 | N20: =IF(INTRO!$E$42="Endémique", IF(AND($J20>1,$J20<5), IF($J20=4, "Inconnu", E20+F20), 0),"Non requis") -> 0 | O20: =IF(INTRO!$E$44="Endémique", IF(AND($K20>0,$K20<5), IF($K20=4,"Inconnu", IF($K20=1, $F20*0.33, IF($K20=2, $F20*0.5+$G20*0.2, SUM(F20:G20)))), 0),"Non requis") -> 7934.85 | P20: 0 | Q20: 1 | R20: 0 | S20: 0 | T20: MDA3 (IVM) | X20: 3222 | Y20: Natitingou | AB20: 0 | AC20: 1 | AD20: 1 | AE20: 1 | AF20: TRUE | AG20: TRUE | AH20: TRUE | AI20: TRUE
A21: =IF(INTRO!$E$34<>0,INTRO!$E$34,"") -> Benin | B21: Atacora | C21: Péhunco | D21: 81573 | E21: =IF(INTRO!$E$48="","",ROUND($D21*INTRO!$E$48,0)) -> 11127 | F21: =IF(INTRO!$E$49="","",ROUND($D21*INTRO!$E$49,0)) -> 24227 | G21: =IF(INTRO!$E$50="","",ROUND($D21*INTRO!$E$50,0)) -> 42956 | H21: 0 | I21: 0 | J21: 1 | K21: 2 | L21: =IF(INTRO!$E$38="Endémique", IF($H21>0, IF($H21=4,"Inconnu", IF($H21=99,"Interrompu", $D21)), 0),"Non requis") -> 0 | M21: =IF(INTRO!$E$40="Endémique", IF($I21>0, IF($I21=4,"Inconnu",IF($I21=99,"Interrompu", $D21)), 0),"Non requis") -> 0 | N21: =IF(INTRO!$E$42="Endémique", IF(AND($J21>1,$J21<5), IF($J21=4, "Inconnu", E21+F21), 0),"Non requis") -> 0 | O21: =IF(INTRO!$E$44="Endémique", IF(AND($K21>0,$K21<5), IF($K21=4,"Inconnu", IF($K21=1, $F21*0.33, IF($K21=2, $F21*0.5+$G21*0.2, SUM(F21:G21)))), 0),"Non requis") -> 20704.7 | P21: 0 | Q21: 0 | R21: 0 | S21: 1 | U21: T2 (PZQ) | X21: 3224 | Y21: Péhunco | AB21: 0 | AC21: 0 | AD21: 1 | AE21: 2 | AF21: TRUE | AG21: TRUE | AH21: TRUE | AI21: TRUE
A22: =IF(INTRO!$E$34<>0,INTRO!$E$34,"") -> Benin | B22: Atacora | C22: Tanguiéta | D22: 47567 | E22: =IF(INTRO!$E$48="","",ROUND($D22*INTRO!$E$48,0)) -> 6488 | F22: =IF(INTRO!$E$49="","",ROUND($D22*INTRO!$E$49,0)) -> 14127 | G22: =IF(INTRO!$E$50="","",ROUND($D22*INTRO!$E$50,0)) -> 25049 | H22: 99 | I22: 1 | J22: 2 | K22: 2 | L22: =IF(INTRO!$E$38="Endémique", IF($H22>0, IF($H22=4,"Inconnu", IF($H22=99,"Interrompu", $D22)), 0),"Non requis") -> Interrompu | M22: =IF(INTRO!$E$40="Endémique", IF($I22>0, IF($I22=4,"Inconnu",IF($I22=99,"Interrompu", $D22)), 0),"Non requis") -> 47567 | N22: =IF(INTRO!$E$42="Endémique", IF(AND($J22>1,$J22<5), IF($J22=4, "Inconnu", E22+F22), 0),"Non requis") -> 20615 | O22: =IF(INTRO!$E$44="Endémique", IF(AND($K22>0,$K22<5), IF($K22=4,"Inconnu", IF($K22=1, $F22*0.33, IF($K22=2, $F22*0.5+$G22*0.2, SUM(F22:G22)))), 0),"Non requis") -> 12073.3 | P22: 0 | Q22: 1 | R22: 1 | S22: 1 | T22: MDA3 (IVM) | U22: T1 (PZQ+ALB/MBD) | X22: 3225 | Y22: Tanguiéta | AB22: 99 | AC22: 1 | AD22: 2 | AE22: 2 | AF22: TRUE | AG22: TRUE | AH22: TRUE | AI22: TRUE
A23: =IF(INTRO!$E$34<>0,INTRO!$E$34,"") -> Benin | B23: Atacora | C23: Toukountouna | D23: 49607 | E23: =IF(INTRO!$E$48="","",ROUND($D23*INTRO!$E$48,0)) -> 6766 | F23: =IF(INTRO!$E$49="","",ROUND($D23*INTRO!$E$49,0)) -> 14733 | G23: =IF(INTRO!$E$50="","",ROUND($D23*INTRO!$E$50,0)) -> 26123 | H23: 99 | I23: 1 | J23: 1 | K23: 1 | L23: =IF(INTRO!$E$38="Endémique", IF($H23>0, IF($H23=4,"Inconnu", IF($H23=99,"Interrompu", $D23)), 0),"Non requis") -> Interrompu | M23: =IF(INTRO!$E$40="Endémique", IF($I23>0, IF($I23=4,"Inconnu",IF($I23=99,"Interrompu", $D23)), 0),"Non requis") -> 49607 | N23: =IF(INTRO!$E$42="Endémique", IF(AND($J23>1,$J23<5), IF($J23=4, "Inconnu", E23+F23), 0),"Non requis") -> 0 | O23: =IF(INTRO!$E$44="Endémique", IF(AND($K23>0,$K23<5), IF($K23=4,"Inconnu", IF($K23=1, $F23*0.33, IF($K23=2, $F23*0.5+$G23*0.2, SUM(F23:G23)))), 0),"Non requis") -> 4861.89 | P23: 0 | Q23: 1 | R23: 0 | S23: 0 | T23: MDA3 (IVM) | X23: 3226 | Y23: Toukountouna | AB23: 99 | AC23: 1 | AD23: 1 | AE23: 1 | AF23: TRUE | AG23: TRUE | AH23: TRUE | AI23: TRUE
A24: =IF(INTRO!$E$34<>0,INTRO!$E$34,"") -> Benin | B24: Atlantique | C24: Abomey-Calavi | D24: 819065 | E24: =IF(INTRO!$E$48="","",ROUND($D24*INTRO!$E$48,0)) -> 111720 | F24: =IF(INTRO!$E$49="","",ROUND($D24*INTRO!$E$49,0)) -> 243262 | G24: =IF(INTRO!$E$50="","",ROUND($D24*INTRO!$E$50,0)) -> 431320 | H24: 0 | I24: 0 | J24: 1 | K24: 1 | L24: =IF(INTRO!$E$38="Endémique", IF($H24>0, IF($H24=4,"Inconnu", IF($H24=99,"Interrompu", $D24)), 0),"Non requis") -> 0 | M24: =IF(INTRO!$E$40="Endémique", IF($I24>0, IF($I24=4,"Inconnu",IF($I24=99,"Interrompu", $D24)), 0),"Non requis") -> 0 | N24: =IF(INTRO!$E$42="Endémique", IF(AND($J24>1,$J24<5), IF($J24=4, "Inconnu", E24+F24), 0),"Non requis") -> 0 | O24: =IF(INTRO!$E$44="Endémique", IF(AND($K24>0,$K24<5), IF($K24=4,"Inconnu", IF($K24=1, $F24*0.33, IF($K24=2, $F24*0.5+$G24*0.2, SUM(F24:G24)))), 0),"Non requis") -> 80276.46 | P24: 0 | Q24: 0 | R24: 0 | S24: 0 | X24: 3227 | Y24: Abomey-Calavi | AB24: 0 | AC24: 0 | AD24: 1 | AE24: 1 | AF24: TRUE | AG24: TRUE | AH24: TRUE | AI24: TRUE
A25: =IF(INTRO!$E$34<>0,INTRO!$E$34,"") -> Benin | B25: Atlantique | C25: Allada | D25: 119188 | E25: =IF(INTRO!$E$48="","",ROUND($D25*INTRO!$E$48,0)) -> 16257 | F25: =IF(INTRO!$E$49="","",ROUND($D25*INTRO!$E$49,0)) -> 35399 | G25: =IF(INTRO!$E$50="","",ROUND($D25*INTRO!$E$50,0)) -> 62764 | H25: 99 | I25: 0 | J25: 2 | K25: 1 | L25: =IF(INTRO!$E$38="Endémique", IF($H25>0, IF($H25=4,"Inconnu", IF($H25=99,"Interrompu", $D25)), 0),"Non requis") -> Interrompu | M25: =IF(INTRO!$E$40="Endémique", IF($I25>0, IF($I25=4,"Inconnu",IF($I25=99,"Interrompu", $D25)), 0),"Non requis") -> 0 | N25: =IF(INTRO!$E$42="Endémique", IF(AND($J25>1,$J25<5), IF($J25=4, "Inconnu", E25+F25), 0),"Non requis") -> 51656 | O25: =IF(INTRO!$E$44="Endémique", IF(AND($K25>0,$K25<5), IF($K25=4,"Inconnu", IF($K25=1, $F25*0.33, IF($K25=2, $F25*0.5+$G25*0.2, SUM(F25:G25)))), 0),"Non requis") -> 11681.67 | P25: 0 | Q25: 0 | R25: 1 | S25: 0 | U25: T3 (ALB/MBD) | X25: 3228 | Y25: Allada | AB25: 99 | AC25: 0 | AD25: 2 | AE25: 1 | AF25: TRUE | AG25: TRUE | AH25: TRUE | AI25: TRUE
A26: =IF(INTRO!$E$34<>0,INTRO!$E$34,"") -> Benin | B26: Atlantique | C26: Kpomassè | D26: 66812 | E26: =IF(INTRO!$E$48="","",ROUND($D26*INTRO!$E$48,0)) -> 9113 | F26: =IF(INTRO!$E$49="","",ROUND($D26*INTRO!$E$49,0)) -> 19843 | G26: =IF(INTRO!$E$50="","",ROUND($D26*INTRO!$E$50,0)) -> 35183 | H26: 99 | I26: 0 | J26: 1 | K26: 0 | L26: =IF(INTRO!$E$38="Endémique", IF($H26>0, IF($H26=4,"Inconnu", IF($H26=99,"Interrompu", $D26)), 0),"Non requis") -> Interrompu | M26: =IF(INTRO!$E$40="Endémique", IF($I26>0, IF($I26=4,"Inconnu",IF($I26=99,"Interrompu", $D26)), 0),"Non requis") -> 0 | N26: =IF(INTRO!$E$42="Endémique", IF(AND($J26>1,$J26<5), IF($J26=4, "Inconnu", E26+F26), 0),"Non requis") -> 0 | O26: =IF(INTRO!$E$44="Endémique", IF(AND($K26>0,$K26<5), IF($K26=4,"Inconnu", IF($K26=1, $F26*0.33, IF($K26=2, $F26*0.5+$G26*0.2, SUM(F26:G26)))), 0),"Non requis") -> 0 | P26: 0 | Q26: 0 | R26: 0 | S26: 0 | X26: 3229 | Y26: Kpomassè | AB26: 99 | AC26: 0 | AD26: 1 | AE26: 0 | AF26: TRUE | AG26: TRUE | AH26: TRUE | AI26: TRUE
A27: =IF(INTRO!$E$34<>0,INTRO!$E$34,"") -> Benin | B27: Atlantique | C27: Ouidah | D27: 160859 | E27: =IF(INTRO!$E$48="","",ROUND($D27*INTRO!$E$48,0)) -> 21941 | F27: =IF(INTRO!$E$49="","",ROUND($D27*INTRO!$E$49,0)) -> 47775 | G27: =IF(INTRO!$E$50="","",ROUND($D27*INTRO!$E$50,0)) -> 84708 | H27: 99 | I27: 0 | J27: 1 | K27: 2 | L27: =IF(INTRO!$E$38="Endémique", IF($H27>0, IF($H27=4,"Inconnu", IF($H27=99,"Interrompu", $D27)), 0),"Non requis") -> Interrompu | M27: =IF(INTRO!$E$40="Endémique", IF($I27>0, IF($I27=4,"Inconnu",IF($I27=99,"Interrompu", $D27)), 0),"Non requis") -> 0 | N27: =IF(INTRO!$E$42="Endémique", IF(AND($J27>1,$J27<5), IF($J27=4, "Inconnu", E27+F27), 0),"Non requis") -> 0 | O27: =IF(INTRO!$E$44="Endémique", IF(AND($K27>0,$K27<5), IF($K27=4,"Inconnu", IF($K27=1, $F27*0.33, IF($K27=2, $F27*0.5+$G27*0.2, SUM(F27:G27)))), 0),"Non requis") -> 40829.1 | P27: 0 | Q27: 0 | R27: 0 | S27: 1 | U27: T2 (PZQ) | X27: 3230 | Y27: Ouidah | AB27: 99 | AC27: 0 | AD27: 1 | AE27: 2 | AF27: TRUE | AG27: TRUE | AH27: TRUE | AI27: TRUE
A28: =IF(INTRO!$E$34<>0,INTRO!$E$34,"") -> Benin | B28: Atlantique | C28: So-Ava | D28: 147938 | E28: =IF(INTRO!$E$48="","",ROUND($D28*INTRO!$E$48,0)) -> 20179 | F28: =IF(INTRO!$E$49="","",ROUND($D28*INTRO!$E$49,0)) -> 43938 | G28: =IF(INTRO!$E$50="","",ROUND($D28*INTRO!$E$50,0)) -> 77904 | H28: 0 | I28: 0 | J28: 1 | K28: 3 | L28: =IF(INTRO!$E$38="Endémique", IF($H28>0, IF($H28=4,"Inconnu", IF($H28=99,"Interrompu", $D28)), 0),"Non requis") -> 0 | M28: =IF(INTRO!$E$40="Endémique", IF($I28>0, IF($I28=4,"Inconnu",IF($I28=99,"Interrompu", $D28)), 0),"Non requis") -> 0 | N28: =IF(INTRO!$E$42="Endémique", IF(AND($J28>1,$J28<5), IF($J28=4, "Inconnu", E28+F28), 0),"Non requis") -> 0 | O28: =IF(INTRO!$E$44="Endémique", IF(AND($K28>0,$K28<5), IF($K28=4,"Inconnu", IF($K28=1, $F28*0.33, IF($K28=2, $F28*0.5+$G28*0.2, SUM(F28:G28)))), 0),"Non requis") -> 121842 | P28: 0 | Q28: 0 | R28: 0 | S28: 1 | U28: T2 (PZQ) | X28: 3231 | Y28: So-Ava | AB28: 0 | AC28: 0 | AD28: 1 | AE28: 3 | AF28: TRUE | AG28: TRUE | AH28: TRUE | AI28: TRUE
A29: =IF(INTRO!$E$34<>0,INTRO!$E$34,"") -> Benin | B29: Atlantique | C29: Toffo | D29: 31718 | E29: =IF(INTRO!$E$48="","",ROUND($D29*INTRO!$E$48,0)) -> 4326 | F29: =IF(INTRO!$E$49="","",ROUND($D29*INTRO!$E$49,0)) -> 9420 | G29: =IF(INTRO!$E$50="","",ROUND($D29*INTRO!$E$50,0)) -> 16703 | H29: 0 | I29: 1 | J29: 3 | K29: 2 | L29: =IF(INTRO!$E$38="Endémique", IF($H29>0, IF($H29=4,"Inconnu", IF($H29=99,"Interrompu", $D29)), 0),"Non requis") -> 0 | M29: =IF(INTRO!$E$40="Endémique", IF($I29>0, IF($I29=4,"Inconnu",IF($I29=99,"Interrompu", $D29)), 0),"Non requis") -> 31718 | N29: =IF(INTRO!$E$42="Endémique", IF(AND($J29>1,$J29<5), IF($J29=4, "Inconnu", E29+F29), 0),"Non requis") -> 13746 | O29: =IF(INTRO!$E$44="Endémique", IF(AND($K29>0,$K29<5), IF($K29=4,"Inconnu", IF($K29=1, $F29*0.33, IF($K29=2, $F29*0.5+$G29*0.2, SUM(F29:G29)))), 0),"Non requis") -> 8050.6 | P29: 0 | Q29: 1 | R29: 1 | S29: 1 | T29: MDA3 (IVM) | U29: T1 (PZQ+ALB/MBD) | X29: 3232 | Y29: Toffo | AB29: 0 | AC29: 1 | AD29: 3 | AE29: 2 | AF29: TRUE | AG29: TRUE | AH29: TRUE | AI29: TRUE
A30: =IF(INTRO!$E$34<>0,INTRO!$E$34,"") -> Benin | B30: Atlantique | C30: Torri-Bossito | D30: 58821 | E30: =IF(INTRO!$E$48="","",ROUND($D30*INTRO!$E$48,0)) -> 8023 | F30: =IF(INTRO!$E$49="","",ROUND($D30*INTRO!$E$49,0)) -> 17470 | G30: =IF(INTRO!$E$50="","",ROUND($D30*INTRO!$E$50,0)) -> 30975 | H30: 99 | I30: 0 | J30: 2 | K30: 2 | L30: =IF(INTRO!$E$38="Endémique", IF($H30>0, IF($H30=4,"Inconnu", IF($H30=99,"Interrompu", $D30)), 0),"Non requis") -> Interrompu | M30: =IF(INTRO!$E$40="Endémique", IF($I30>0, IF($I30=4,"Inconnu",IF($I30=99,"Interrompu", $D30)), 0),"Non requis") -> 0 | N30: =IF(INTRO!$E$42="Endémique", IF(AND($J30>1,$J30<5), IF($J30=4, "Inconnu", E30+F30), 0),"Non requis") -> 25493 | O30: =IF(INTRO!$E$44="Endémique", IF(AND($K30>0,$K30<5), IF($K30=4,"Inconnu", IF($K30=1, $F30*0.33, IF($K30=2, $F30*0.5+$G30*0.2, SUM(F30:G30)))), 0),"Non requis") -> 14930 | P30: 0 | Q30: 0 | R30: 1 | S30: 1 | U30: T1 (PZQ+ALB/MBD) | X30: 3233 | Y30: Torri-Bossito | AB30: 99 | AC30: 0 | AD30: 2 | AE30: 2 | AF30: TRUE | AG30: TRUE | AH30: TRUE | AI30: TRUE
A31: =IF(INTRO!$E$34<>0,INTRO!$E$34,"") -> Benin | B31: Atlantique | C31: Zè | D31: 4687 | E31: =IF(INTRO!$E$48="","",ROUND($D31*INTRO!$E$48,0)) -> 639 | F31: =IF(INTRO!$E$49="","",ROUND($D31*INTRO!$E$49,0)) -> 1392 | G31: =IF(INTRO!$E$50="","",ROUND($D31*INTRO!$E$50,0)) -> 2468 | H31: 0 | I31: 1 | J31: 2 | K31: 2 | L31: =IF(INTRO!$E$38="Endémique", IF($H31>0, IF($H31=4,"Inconnu", IF($H31=99,"Interrompu", $D31)), 0),"Non requis") -> 0 | M31: =IF(INTRO!$E$40="Endémique", IF($I31>0, IF($I31=4,"Inconnu",IF($I31=99,"Interrompu", $D31)), 0),"Non requis") -> 4687 | N31: =IF(INTRO!$E$42="Endémique", IF(AND($J31>1,$J31<5), IF($J31=4, "Inconnu", E31+F31), 0),"Non requis") -> 2031 | O31: =IF(INTRO!$E$44="Endémique", IF(AND($K31>0,$K31<5), IF($K31=4,"Inconnu", IF($K31=1, $F31*0.33, IF($K31=2, $F31*0.5+$G31*0.2, SUM(F31:G31)))), 0),"Non requis") -> 1189.6 | P31: 0 | Q31: 1 | R31: 1 | S31: 1 | T31: MDA3 (IVM) | U31: T1 (PZQ+ALB/MBD) | X31: 3234 | Y31: Zè | AB31: 0 | AC31: 1 | AD31: 2 | AE31: 2 | AF31: TRUE | AG31: TRUE | AH31: TRUE | AI31: TRUE
A32: =IF(INTRO!$E$34<>0,INTRO!$E$34,"") -> Benin | B32: Borgou | C32: Bembèrèkè | D32: 100139 | E32: =IF(INTRO!$E$48="","",ROUND($D32*INTRO!$E$48,0)) -> 13659 | F32: =IF(INTRO!$E$49="","",ROUND($D32*INTRO!$E$49,0)) -> 29741 | G32: =IF(INTRO!$E$50="","",ROUND($D32*INTRO!$E$50,0)) -> 52733 | H32: 0 | I32: 1 | J32: 1 | K32: 3 | L32: =IF(INTRO!$E$38="Endémique", IF($H32>0, IF($H32=4,"Inconnu", IF($H32=99,"Interrompu", $D32)), 0),"Non requis") -> 0 | M32: =IF(INTRO!$E$40="Endémique", IF($I32>0, IF($I32=4,"Inconnu",IF($I32=99,"Interrompu", $D32)), 0),"Non requis") -> 100139 | N32: =IF(INTRO!$E$42="Endémique", IF(AND($J32>1,$J32<5), IF($J32=4, "Inconnu", E32+F32), 0),"Non requis") -> 0 | O32: =IF(INTRO!$E$44="Endémique", IF(AND($K32>0,$K32<5), IF($K32=4,"Inconnu", IF($K32=1, $F32*0.33, IF($K32=2, $F32*0.5+$G32*0.2, SUM(F32:G32)))), 0),"Non requis") -> 82474 | P32: 0 | Q32: 1 | R32: 0 | S32: 1 | T32: MDA3 (IVM) | U32: T2 (PZQ) | X32: 3235 | Y32: Bembèrèkè | AB32: 0 | AC32: 1 | AD32: 1 | AE32: 3 | AF32: TRUE | AG32: TRUE | AH32: TRUE | AI32: TRUE
A33: =IF(INTRO!$E$34<>0,INTRO!$E$34,"") -> Benin | B33: Borgou | C33: Kalalé | D33: 203902 | E33: =IF(INTRO!$E$48="","",ROUND($D33*INTRO!$E$48,0)) -> 27812 | F33: =IF(INTRO!$E$49="","",ROUND($D33*INTRO!$E$49,0)) -> 60559 | G33: =IF(INTRO!$E$50="","",ROUND($D33*INTRO!$E$50,0)) -> 107375 | H33: 0 | I33: 1 | J33: 2 | K33: 2 | L33: =IF(INTRO!$E$38="Endémique", IF($H33>0, IF($H33=4,"Inconnu", IF($H33=99,"Interrompu", $D33)), 0),"Non requis") -> 0 | M33: =IF(INTRO!$E$40="Endémique", IF($I33>0, IF($I33=4,"Inconnu",IF($I33=99,"Interrompu", $D33)), 0),"Non requis") -> 203902 | N33: =IF(INTRO!$E$42="Endémique", IF(AND($J33>1,$J33<5), IF($J33=4, "Inconnu", E33+F33), 0),"Non requis") -> 88371 | O33: =IF(INTRO!$E$44="Endémique", IF(AND($K33>0,$K33<5), IF($K33=4,"Inconnu", IF($K33=1, $F33*0.33, IF($K33=2, $F33*0.5+$G33*0.2, SUM(F33:G33)))), 0),"Non requis") -> 51754.5 | P33: 0 | Q33: 1 | R33: 1 | S33: 1 | T33: MDA3 (IVM) | U33: T1 (PZQ+ALB/MBD) | X33: 3237 | Y33: Kalalé | AB33: 0 | AC33: 1 | AD33: 2 | AE33: 2 | AF33: TRUE | AG33: TRUE | AH33: TRUE | AI33: TRUE
A34: =IF(INTRO!$E$34<>0,INTRO!$E$34,"") -> Benin | B34: Borgou | C34: N'Dali | D34: 98402 | E34: =IF(INTRO!$E$48="","",ROUND($D34*INTRO!$E$48,0)) -> 13422 | F34: =IF(INTRO!$E$49="","",ROUND($D34*INTRO!$E$49,0)) -> 29225 | G34: =IF(INTRO!$E$50="","",ROUND($D34*INTRO!$E$50,0)) -> 51818 | H34: 0 | I34: 1 | J34: 2 | K34: 3 | L34: =IF(INTRO!$E$38="Endémique", IF($H34>0, IF($H34=4,"Inconnu", IF($H34=99,"Interrompu", $D34)), 0),"Non requis") -> 0 | M34: =IF(INTRO!$E$40="Endémique", IF($I34>0, IF($I34=4,"Inconnu",IF($I34=99,"Interrompu", $D34)), 0),"Non requis") -> 98402 | N34: =IF(INTRO!$E$42="Endémique", IF(AND($J34>1,$J34<5), IF($J34=4, "Inconnu", E34+F34), 0),"Non requis") -> 42647 | O34: =IF(INTRO!$E$44="Endémique", IF(AND($K34>0,$K34<5), IF($K34=4,"Inconnu", IF($K34=1, $F34*0.33, IF($K34=2, $F34*0.5+$G34*0.2, SUM(F34:G34)))), 0),"Non requis") -> 81043 | P34: 0 | Q34: 1 | R34: 1 | S34: 1 | T34: MDA3 (IVM) | U34: T1 (PZQ+ALB/MBD) | X34: 3238 | Y34: N'Dali | AB34: 0 | AC34: 1 | AD34: 2 | AE34: 3 | AF34: TRUE | AG34: TRUE | AH34: TRUE | AI34: TRUE
A35: =IF(INTRO!$E$34<>0,INTRO!$E$34,"") -> Benin | B35: Borgou | C35: Nikki | D35: 183938 | E35: =IF(INTRO!$E$48="","",ROUND($D35*INTRO!$E$48,0)) -> 25089 | F35: =IF(INTRO!$E$49="","",ROUND($D35*INTRO!$E$49,0)) -> 54630 | G35: =IF(INTRO!$E$50="","",ROUND($D35*INTRO!$E$50,0)) -> 96862 | H35: 0 | I35: 1 | J35: 1 | K35: 2 | L35: =IF(INTRO!$E$38="Endémique", IF($H35>0, IF($H35=4,"Inconnu", IF($H35=99,"Interrompu", $D35)), 0),"Non requis") -> 0 | M35: =IF(INTRO!$E$40="Endémique", IF($I35>0, IF($I35=4,"Inconnu",IF($I35=99,"Interrompu", $D35)), 0),"Non requis") -> 183938 | N35: =IF(INTRO!$E$42="Endémique", IF(AND($J35>1,$J35<5), IF($J35=4, "Inconnu", E35+F35), 0),"Non requis") -> 0 | O35: =IF(INTRO!$E$44="Endémique", IF(AND($K35>0,$K35<5), IF($K35=4,"Inconnu", IF($K35=1, $F35*0.33, IF($K35=2, $F35*0.5+$G35*0.2, SUM(F35:G35)))), 0),"Non requis") -> 46687.4 | P35: 0 | Q35: 1 | R35: 0 | S35: 1 | T35: MDA3 (IVM) | U35: T2 (PZQ) | X35: 3239 | Y35: Nikki | AB35: 0 | AC35: 1 | AD35: 1 | AE35: 2 | AF35: TRUE | AG35: TRUE | AH35: TRUE | AI35: TRUE
A36: =IF(INTRO!$E$34<>0,INTRO!$E$34,"") -> Benin | B36: Borgou | C36: Parakou | D36: 202942 | E36: =IF(INTRO!$E$48="","",ROUND($D36*INTRO!$E$48,0)) -> 27681 | F36: =IF(INTRO!$E$49="","",ROUND($D36*INTRO!$E$49,0)) -> 60274 | G36: =IF(INTRO!$E$50="","",ROUND($D36*INTRO!$E$50,0)) -> 106869 | H36: 99 | I36: 1 | J36: 2 | K36: 2 | L36: =IF(INTRO!$E$38="Endémique", IF($H36>0, IF($H36=4,"Inconnu", IF($H36=99,"Interrompu", $D36)), 0),"Non requis") -> Interrompu | M36: =IF(INTRO!$E$40="Endémique", IF($I36>0, IF($I36=4,"Inconnu",IF($I36=99,"Interrompu", $D36)), 0),"Non requis") -> 202942 | N36: =IF(INTRO!$E$42="Endémique", IF(AND($J36>1,$J36<5), IF($J36=4, "Inconnu", E36+F36), 0),"Non requis") -> 87955 | O36: =IF(INTRO!$E$44="Endémique", IF(AND($K36>0,$K36<5), IF($K36=4,"Inconnu", IF($K36=1, $F36*0.33, IF($K36=2, $F36*0.5+$G36*0.2, SUM(F36:G36)))), 0),"Non requis") -> 51510.8 | P36: 0 | Q36: 1 | R36: 1 | S36: 1 | T36: MDA3 (IVM) | U36: T1 (PZQ+ALB/MBD) | X36: 3240 | Y36: Parakou | AB36: 99 | AC36: 1 | AD36: 2 | AE36: 2 | AF36: TRUE | AG36: TRUE | AH36: TRUE | AI36: TRUE
A37: =IF(INTRO!$E$34<>0,INTRO!$E$34,"") -> Benin | B37: Borgou | C37: Pèrèrè | D37: 82963 | E37: =IF(INTRO!$E$48="","",ROUND($D37*INTRO!$E$48,0)) -> 11316 | F37: =IF(INTRO!$E$49="","",ROUND($D37*INTRO!$E$49,0)) -> 24640 | G37: =IF(INTRO!$E$50="","",ROUND($D37*INTRO!$E$50,0)) -> 43688 | H37: 0 | I37: 1 | J37: 2 | K37: 2 | L37: =IF(INTRO!$E$38="Endémique", IF($H37>0, IF($H37=4,"Inconnu", IF($H37=99,"Interrompu", $D37)), 0),"Non requis") -> 0 | M37: =IF(INTRO!$E$40="Endémique", IF($I37>0, IF($I37=4,"Inconnu",IF($I37=99,"Interrompu", $D37)), 0),"Non requis") -> 82963 | N37: =IF(INTRO!$E$42="Endémique", IF(AND($J37>1,$J37<5), IF($J37=4, "Inconnu", E37+F37), 0),"Non requis") -> 35956 | O37: =IF(INTRO!$E$44="Endémique", IF(AND($K37>0,$K37<5), IF($K37=4,"Inconnu", IF($K37=1, $F37*0.33, IF($K37=2, $F37*0.5+$G37*0.2, SUM(F37:G37)))), 0),"Non requis") -> 21057.6 | P37: 0 | Q37: 1 | R37: 1 | S37: 1 | T37: MDA3 (IVM) | U37: T1 (PZQ+ALB/MBD) | X37: 3241 | Y37: Pèrèrè | AB37: 0 | AC37: 1 | AD37: 2 | AE37: 2 | AF37: TRUE | AG37: TRUE | AH37: TRUE | AI37: TRUE
A38: =IF(INTRO!$E$34<>0,INTRO!$E$34,"") -> Benin | B38: Borgou | C38: Sinendé | D38: 80054 | E38: =IF(INTRO!$E$48="","",ROUND($D38*INTRO!$E$48,0)) -> 10919 | F38: =IF(INTRO!$E$49="","",ROUND($D38*INTRO!$E$49,0)) -> 23776 | G38: =IF(INTRO!$E$50="","",ROUND($D38*INTRO!$E$50,0)) -> 42156 | H38: 0 | I38: 1 | J38: 2 | K38: 2 | L38: =IF(INTRO!$E$38="Endémique", IF($H38>0, IF($H38=4,"Inconnu", IF($H38=99,"Interrompu", $D38)), 0),"Non requis") -> 0 | M38: =IF(INTRO!$E$40="Endémique", IF($I38>0, IF($I38=4,"Inconnu",IF($I38=99,"Interrompu", $D38)), 0),"Non requis") -> 80054 | N38: =IF(INTRO!$E$42="Endémique", IF(AND($J38>1,$J38<5), IF($J38=4, "Inconnu", E38+F38), 0),"Non requis") -> 34695 | O38: =IF(INTRO!$E$44="Endémique", IF(AND($K38>0,$K38<5), IF($K38=4,"Inconnu", IF($K38=1, $F38*0.33, IF($K38=2, $F38*0.5+$G38*0.2, SUM(F38:G38)))), 0),"Non requis") -> 20319.2 | P38: 0 | Q38: 1 | R38: 1 | S38: 1 | T38: MDA3 (IVM) | U38: T1 (PZQ+ALB/MBD) | X38: 3242 | Y38: Sinendé | AB38: 0 | AC38: 1 | AD38: 2 | AE38: 2 | AF38: TRUE | AG38: TRUE | AH38: TRUE | AI38: TRUE
A39: =IF(INTRO!$E$34<>0,INTRO!$E$34,"") -> Benin | B39: Borgou | C39: Tchaourou | D39: 269897 | E39: =IF(INTRO!$E$48="","",ROUND($D39*INTRO!$E$48,0)) -> 36814 | F39: =IF(INTRO!$E$49="","",ROUND($D39*INTRO!$E$49,0)) -> 80159 | G39: =IF(INTRO!$E$50="","",ROUND($D39*INTRO!$E$50,0)) -> 142128 | H39: 99 | I39: 1 | J39: 2 | K39: 3 | L39: =IF(INTRO!$E$38="Endémique", IF($H39>0, IF($H39=4,"Inconnu", IF($H39=99,"Interrompu", $D39)), 0),"Non requis") -> Interrompu | M39: =IF(INTRO!$E$40="Endémique", IF($I39>0, IF($I39=4,"Inconnu",IF($I39=99,"Interrompu", $D39)), 0),"Non requis") -> 269897 | N39: =IF(INTRO!$E$42="Endémique", IF(AND($J39>1,$J39<5), IF($J39=4, "Inconnu", E39+F39), 0),"Non requis") -> 116973 | O39: =IF(INTRO!$E$44="Endémique", IF(AND($K39>0,$K39<5), IF($K39=4,"Inconnu", IF($K39=1, $F39*0.33, IF($K39=2, $F39*0.5+$G39*0.2, SUM(F39:G39)))), 0),"Non requis") -> 222287 | P39: 0 | Q39: 1 | R39: 1 | S39: 1 | T39: MDA3 (IVM) | U39: T1 (PZQ+ALB/MBD) | X39: 3243 | Y39: Tchaourou | AB39: 99 | AC39: 1 | AD39: 2 | AE39: 3 | AF39: TRUE | AG39: TRUE | AH39: TRUE | AI39: TRUE
A40: =IF(INTRO!$E$34<>0,INTRO!$E$34,"") -> Benin | B40: Collines | C40: Bantè | D40: 95260 | E40: =IF(INTRO!$E$48="","",ROUND($D40*INTRO!$E$48,0)) -> 12993 | F40: =IF(INTRO!$E$49="","",ROUND($D40*INTRO!$E$49,0)) -> 28292 | G40: =IF(INTRO!$E$50="","",ROUND($D40*INTRO!$E$50,0)) -> 50164 | H40: 99 | I40: 1 | J40: 2 | K40: 2 | L40: =IF(INTRO!$E$38="Endémique", IF($H40>0, IF($H40=4,"Inconnu", IF($H40=99,"Interrompu", $D40)), 0),"Non requis") -> Interrompu | M40: =IF(INTRO!$E$40="Endémique", IF($I40>0, IF($I40=4,"Inconnu",IF($I40=99,"Interrompu", $D40)), 0),"Non requis") -> 95260 | N40: =IF(INTRO!$E$42="Endémique", IF(AND($J40>1,$J40<5), IF($J40=4, "Inconnu", E40+F40), 0),"Non requis") -> 41285 | O40: =IF(INTRO!$E$44="Endémique", IF(AND($K40>0,$K40<5), IF($K40=4,"Inconnu", IF($K40=1, $F40*0.33, IF($K40=2, $F40*0.5+$G40*0.2, SUM(F40:G40)))), 0),"Non requis") -> 24178.8 | P40: 0 | Q40: 1 | R40: 1 | S40: 0 | T40: MDA3 (IVM) | X40: 3244 | Y40: Bantè | AB40: 99 | AC40: 1 | AD40: 2 | AE40: 2 | AF40: TRUE | AG40: TRUE | AH40: TRUE | AI40: TRUE
A41: =IF(INTRO!$E$34<>0,INTRO!$E$34,"") -> Benin | B41: Collines | C41: Dassa-Zoumè | D41: 120830 | E41: =IF(INTRO!$E$48="","",ROUND($D41*INTRO!$E$48,0)) -> 16481 | F41: =IF(INTRO!$E$49="","",ROUND($D41*INTRO!$E$49,0)) -> 35887 | G41: =IF(INTRO!$E$50="","",ROUND($D41*INTRO!$E$50,0)) -> 63629 | H41: 0 | I41: 1 | J41: 2 | K41: 2 | L41: =IF(INTRO!$E$38="Endémique", IF($H41>0, IF($H41=4,"Inconnu", IF($H41=99,"Interrompu", $D41)), 0),"Non requis") -> 0 | M41: =IF(INTRO!$E$40="Endémique", IF($I41>0, IF($I41=4,"Inconnu",IF($I41=99,"Interrompu", $D41)), 0),"Non requis") -> 120830 | N41: =IF(INTRO!$E$42="Endémique", IF(AND($J41>1,$J41<5), IF($J41=4, "Inconnu", E41+F41), 0),"Non requis") -> 52368 | O41: =IF(INTRO!$E$44="Endémique", IF(AND($K41>0,$K41<5), IF($K41=4,"Inconnu", IF($K41=1, $F41*0.33, IF($K41=2, $F41*0.5+$G41*0.2, SUM(F41:G41)))), 0),"Non requis") -> 30669.3 | P41: 0 | Q41: 1 | R41: 1 | S41: 1 | T41: MDA3 (IVM) | U41: T1 (PZQ+ALB/MBD) | X41: 3245 | Y41: Dassa-Zoumè | AB41: 0 | AC41: 1 | AD41: 2 | AE41: 2 | AF41: TRUE | AG41: TRUE | AH41: TRUE | AI41: TRUE
A42: =IF(INTRO!$E$34<>0,INTRO!$E$34,"") -> Benin | B42: Collines | C42: Glazoué | D42: 113768 | E42: =IF(INTRO!$E$48="","",ROUND($D42*INTRO!$E$48,0)) -> 15518 | F42: =IF(INTRO!$E$49="","",ROUND($D42*INTRO!$E$49,0)) -> 33789 | G42: =IF(INTRO!$E$50="","",ROUND($D42*INTRO!$E$50,0)) -> 59910 | H42: 99 | I42: 1 | J42: 2 | K42: 1 | L42: =IF(INTRO!$E$38="Endémique", IF($H42>0, IF($H42=4,"Inconnu", IF($H42=99,"Interrompu", $D42)), 0),"Non requis") -> Interrompu | M42: =IF(INTRO!$E$40="Endémique", IF($I42>0, IF($I42=4,"Inconnu",IF($I42=99,"Interrompu", $D42)), 0),"Non requis") -> 113768 | N42: =IF(INTRO!$E$42="Endémique", IF(AND($J42>1,$J42<5), IF($J42=4, "Inconnu", E42+F42), 0),"Non requis") -> 49307 | O42: =IF(INTRO!$E$44="Endémique", IF(AND($K42>0,$K42<5), IF($K42=4,"Inconnu", IF($K42=1, $F42*0.33, IF($K42=2, $F42*0.5+$G42*0.2, SUM(F42:G42)))), 0),"Non requis") -> 11150.37 | P42: 0 | Q42: 1 | R42: 1 | S42: 0 | T42: MDA3 (IVM) | U42: T3 (ALB/MBD) | X42: 3246 | Y42: Glazoué | AB42: 99 | AC42: 1 | AD42: 2 | AE42: 1 | AF42: TRUE | AG42: TRUE | AH42: TRUE | AI42: TRUE
A43: =IF(INTRO!$E$34<>0,INTRO!$E$34,"") -> Benin | B43: Collines | C43: Ouèssè | D43: 88541 | E43: =IF(INTRO!$E$48="","",ROUND($D43*INTRO!$E$48,0)) -> 12077 | F43: =IF(INTRO!$E$49="","",ROUND($D43*INTRO!$E$49,0)) -> 26297 | G43: =IF(INTRO!$E$50="","",ROUND($D43*INTRO!$E$50,0)) -> 46626 | H43: 0 | I43: 1 | J43: 2 | K43: 2 | L43: =IF(INTRO!$E$38="Endémique", IF($H43>0, IF($H43=4,"Inconnu", IF($H43=99,"Interrompu", $D43)), 0),"Non requis") -> 0 | M43: =IF(INTRO!$E$40="Endémique", IF($I43>0, IF($I43=4,"Inconnu",IF($I43=99,"Interrompu", $D43)), 0),"Non requis") -> 88541 | N43: =IF(INTRO!$E$42="Endémique", IF(AND($J43>1,$J43<5), IF($J43=4, "Inconnu", E43+F43), 0),"Non requis") -> 38374 | O43: =IF(INTRO!$E$44="Endémique", IF(AND($K43>0,$K43<5), IF($K43=4,"Inconnu", IF($K43=1, $F43*0.33, IF($K43=2, $F43*0.5+$G43*0.2, SUM(F43:G43)))), 0),"Non requis") -> 22473.7 | P43: 0 | Q43: 1 | R43: 1 | S43: 1 | T43: MDA3 (IVM) | U43: T1 (PZQ+ALB/MBD) | X43: 3247 | Y43: Ouèssè | AB43: 0 | AC43: 1 | AD43: 2 | AE43: 2 | AF43: TRUE | AG43: TRUE | AH43: TRUE | AI43: TRUE
A44: =IF(INTRO!$E$34<>0,INTRO!$E$34,"") -> Benin | B44: Collines | C44: Savalou | D44: 154671 | E44: =IF(INTRO!$E$48="","",ROUND($D44*INTRO!$E$48,0)) -> 21097 | F44: =IF(INTRO!$E$49="","",ROUND($D44*INTRO!$E$49,0)) -> 45937 | G44: =IF(INTRO!$E$50="","",ROUND($D44*INTRO!$E$50,0)) -> 81450 | H44: 99 | I44: 1 | J44: 2 | K44: 2 | L44: =IF(INTRO!$E$38="Endémique", IF($H44>0, IF($H44=4,"Inconnu", IF($H44=99,"Interrompu", $D44)), 0),"Non requis") -> Interrompu | M44: =IF(INTRO!$E$40="Endémique", IF($I44>0, IF($I44=4,"Inconnu",IF($I44=99,"Interrompu", $D44)), 0),"Non requis") -> 154671 | N44: =IF(INTRO!$E$42="Endémique", IF(AND($J44>1,$J44<5), IF($J44=4, "Inconnu", E44+F44), 0),"Non requis") -> 67034 | O44: =IF(INTRO!$E$44="Endémique", IF(AND($K44>0,$K44<5), IF($K44=4,"Inconnu", IF($K44=1, $F44*0.33, IF($K44=2, $F44*0.5+$G44*0.2, SUM(F44:G44)))), 0),"Non requis") -> 39258.5 | P44: 0 | Q44: 1 | R44: 1 | S44: 0 | T44: MDA3 (IVM) | U44: T3 (ALB/MBD) | X44: 3248 | Y44: Savalou | AB44: 99 | AC44: 1 | AD44: 2 | AE44: 2 | AF44: TRUE | AG44: TRUE | AH44: TRUE | AI44: TRUE
A45: =IF(INTRO!$E$34<>0,INTRO!$E$34,"") -> Benin | B45: Collines | C45: Savè | D45: 80283 | E45: =IF(INTRO!$E$48="","",ROUND($D45*INTRO!$E$48,0)) -> 10951 | F45: =IF(INTRO!$E$49="","",ROUND($D45*INTRO!$E$49,0)) -> 23844 | G45: =IF(INTRO!$E$50="","",ROUND($D45*INTRO!$E$50,0)) -> 42277 | H45: 0 | I45: 1 | J45: 2 | K45: 2 | L45: =IF(INTRO!$E$38="Endémique", IF($H45>0, IF($H45=4,"Inconnu", IF($H45=99,"Interrompu", $D45)), 0),"Non requis") -> 0 | M45: =IF(INTRO!$E$40="Endémique", IF($I45>0, IF($I45=4,"Inconnu",IF($I45=99,"Interrompu", $D45)), 0),"Non requis") -> 80283 | N45: =IF(INTRO!$E$42="Endémique", IF(AND($J45>1,$J45<5), IF($J45=4, "Inconnu", E45+F45), 0),"Non requis") -> 34795 | O45: =IF(INTRO!$E$44="Endémique", IF(AND($K45>0,$K45<5), IF($K45=4,"Inconnu", IF($K45=1, $F45*0.33, IF($K45=2, $F45*0.5+$G45*0.2, SUM(F45:G45)))), 0),"Non requis") -> 20377.4 | P45: 0 | Q45: 1 | R45: 1 | S45: 1 | T45: MDA3 (IVM) | U45: T1 (PZQ+ALB/MBD) | X45: 3249 | Y45: Savè | AB45: 0 | AC45: 1 | AD45: 2 | AE45: 2 | AF45: TRUE | AG45: TRUE | AH45: TRUE | AI45: TRUE
A46: =IF(INTRO!$E$34<>0,INTRO!$E$34,"") -> Benin | B46: Couffo | C46: Aplahoué | D46: 196517 | E46: =IF(INTRO!$E$48="","",ROUND($D46*INTRO!$E$48,0)) -> 26805 | F46: =IF(INTRO!$E$49="","",ROUND($D46*INTRO!$E$49,0)) -> 58366 | G46: =IF(INTRO!$E$50="","",ROUND($D46*INTRO!$E$50,0)) -> 103486 | H46: 99 | I46: 1 | J46: 2 | K46: 2 | L46: =IF(INTRO!$E$38="Endémique", IF($H46>0, IF($H46=4,"Inconnu", IF($H46=99,"Interrompu", $D46)), 0),"Non requis") -> Interrompu | M46: =IF(INTRO!$E$40="Endémique", IF($I46>0, IF($I46=4,"Inconnu",IF($I46=99,"Interrompu", $D46)), 0),"Non requis") -> 196517 | N46: =IF(INTRO!$E$42="Endémique", IF(AND($J46>1,$J46<5), IF($J46=4, "Inconnu", E46+F46), 0),"Non requis") -> 85171 | O46: =IF(INTRO!$E$44="Endémique", IF(AND($K46>0,$K46<5), IF($K46=4,"Inconnu", IF($K46=1, $F46*0.33, IF($K46=2, $F46*0.5+$G46*0.2, SUM(F46:G46)))), 0),"Non requis") -> 49880.2 | P46: 0 | Q46: 1 | R46: 1 | S46: 0 | T46: MDA3 (IVM) | U46: T3 (ALB/MBD) | X46: 3254 | Y46: Aplahoué | AB46: 99 | AC46: 1 | AD46: 2 | AE46: 2 | AF46: TRUE | AG46: TRUE | AH46: TRUE | AI46: TRUE
A47: =IF(INTRO!$E$34<>0,INTRO!$E$34,"") -> Benin | B47: Couffo | C47: Djakotomè | D47: 128414 | E47: =IF(INTRO!$E$48="","",ROUND($D47*INTRO!$E$48,0)) -> 17516 | F47: =IF(INTRO!$E$49="","",ROUND($D47*INTRO!$E$49,0)) -> 38139 | G47: =IF(INTRO!$E$50="","",ROUND($D47*INTRO!$E$50,0)) -> 67623 | H47: 99 | I47: 1 | J47: 3 | K47: 2 | L47: =IF(INTRO!$E$38="Endémique", IF($H47>0, IF($H47=4,"Inconnu", IF($H47=99,"Interrompu", $D47)), 0),"Non requis") -> Interrompu | M47: =IF(INTRO!$E$40="Endémique", IF($I47>0, IF($I47=4,"Inconnu",IF($I47=99,"Interrompu", $D47)), 0),"Non requis") -> 128414 | N47: =IF(INTRO!$E$42="Endémique", IF(AND($J47>1,$J47<5), IF($J47=4, "Inconnu", E47+F47), 0),"Non requis") -> 55655 | O47: =IF(INTRO!$E$44="Endémique", IF(AND($K47>0,$K47<5), IF($K47=4,"Inconnu", IF($K47=1, $F47*0.33, IF($K47=2, $F47*0.5+$G47*0.2, SUM(F47:G47)))), 0),"Non requis") -> 32594.1 | P47: 0 | Q47: 1 | R47: 1 | S47: 0 | T47: MDA3 (IVM) | U47: T3 (ALB/MBD) | X47: 3255 | Y47: Djakotomè | AB47: 99 | AC47: 1 | AD47: 3 | AE47: 2 | AF47: TRUE | AG47: TRUE | AH47: TRUE | AI47: TRUE
A48: =IF(INTRO!$E$34<>0,INTRO!$E$34,"") -> Benin | B48: Couffo | C48: Dogbo | D48: 10888 | E48: =IF(INTRO!$E$48="","",ROUND($D48*INTRO!$E$48,0)) -> 1485 | F48: =IF(INTRO!$E$49="","",ROUND($D48*INTRO!$E$49,0)) -> 3234 | G48: =IF(INTRO!$E$50="","",ROUND($D48*INTRO!$E$50,0)) -> 5734 | H48: 99 | I48: 1 | J48: 1 | K48: 1 | L48: =IF(INTRO!$E$38="Endémique", IF($H48>0, IF($H48=4,"Inconnu", IF($H48=99,"Interrompu", $D48)), 0),"Non requis") -> Interrompu | M48: =IF(INTRO!$E$40="Endémique", IF($I48>0, IF($I48=4,"Inconnu",IF($I48=99,"Interrompu", $D48)), 0),"Non requis") -> 10888 | N48: =IF(INTRO!$E$42="Endémique", IF(AND($J48>1,$J48<5), IF($J48=4, "Inconnu", E48+F48), 0),"Non requis") -> 0 | O48: =IF(INTRO!$E$44="Endémique", IF(AND($K48>0,$K48<5), IF($K48=4,"Inconnu", IF($K48=1, $F48*0.33, IF($K48=2, $F48*0.5+$G48*0.2, SUM(F48:G48)))), 0),"Non requis") -> 1067.22 | P48: 0 | Q48: 1 | R48: 0 | S48: 0 | T48: MDA3 (IVM) | X48: 3256 | Y48: Dogbo | AB48: 99 | AC48: 1 | AD48: 1 | AE48: 1 | AF48: TRUE | AG48: TRUE | AH48: TRUE | AI48: TRUE
A49: =IF(INTRO!$E$34<>0,INTRO!$E$34,"") -> Benin | B49: Couffo | C49: Klouékamè | D49: 156164 | E49: =IF(INTRO!$E$48="","",ROUND($D49*INTRO!$E$48,0)) -> 21301 | F49: =IF(INTRO!$E$49="","",ROUND($D49*INTRO!$E$49,0)) -> 46381 | G49: =IF(INTRO!$E$50="","",ROUND($D49*INTRO!$E$50,0)) -> 82236 | H49: 99 | I49: 1 | J49: 2 | K49: 2 | L49: =IF(INTRO!$E$38="Endémique", IF($H49>0, IF($H49=4,"Inconnu", IF($H49=99,"Interrompu", $D49)), 0),"Non requis") -> Interrompu | M49: =IF(INTRO!$E$40="Endémique", IF($I49>0, IF($I49=4,"Inconnu",IF($I49=99,"Interrompu", $D49)), 0),"Non requis") -> 156164 | N49: =IF(INTRO!$E$42="Endémique", IF(AND($J49>1,$J49<5), IF($J49=4, "Inconnu", E49+F49), 0),"Non requis") -> 67682 | O49: =IF(INTRO!$E$44="Endémique", IF(AND($K49>0,$K49<5), IF($K49=4,"Inconnu", IF($K49=1, $F49*0.33, IF($K49=2, $F49*0.5+$G49*0.2, SUM(F49:G49)))), 0),"Non requis") -> 39637.7 | P49: 0 | Q49: 1 | R49: 1 | S49: 0 | T49: MDA3 (IVM) | U49: T3 (ALB/MBD) | X49: 3257 | Y49: Klouékamè | AB49: 99 | AC49: 1 | AD49: 2 | AE49: 2 | AF49: TRUE | AG49: TRUE | AH49: TRUE | AI49: TRUE
A50: =IF(INTRO!$E$34<>0,INTRO!$E$34,"") -> Benin | B50: Couffo | C50: Lalo | D50: 143371 | E50: =IF(INTRO!$E$48="","",ROUND($D50*INTRO!$E$48,0)) -> 19556 | F50: =IF(INTRO!$E$49="","",ROUND($D50*INTRO!$E$49,0)) -> 42581 | G50: =IF(INTRO!$E$50="","",ROUND($D50*INTRO!$E$50,0)) -> 75499 | H50: 99 | I50: 1 | J50: 2 | K50: 2 | L50: =IF(INTRO!$E$38="Endémique", IF($H50>0, IF($H50=4,"Inconnu", IF($H50=99,"Interrompu", $D50)), 0),"Non requis") -> Interrompu | M50: =IF(INTRO!$E$40="Endémique", IF($I50>0, IF($I50=4,"Inconnu",IF($I50=99,"Interrompu", $D50)), 0),"Non requis") -> 143371 | N50: =IF(INTRO!$E$42="Endémique", IF(AND($J50>1,$J50<5), IF($J50=4, "Inconnu", E50+F50), 0),"Non requis") -> 62137 | O50: =IF(INTRO!$E$44="Endémique", IF(AND($K50>0,$K50<5), IF($K50=4,"Inconnu", IF($K50=1, $F50*0.33, IF($K50=2, $F50*0.5+$G50*0.2, SUM(F50:G50)))), 0),"Non requis") -> 36390.3 | P50: 0 | Q50: 1 | R50: 1 | S50: 0 | T50: MDA3 (IVM) | U50: T3 (ALB/MBD) | X50: 3265 | Y50: Lalo | AB50: 99 | AC50: 1 | AD50: 2 | AE50: 2 | AF50: TRUE | AG50: TRUE | AH50: TRUE | AI50: TRUE
A51: =IF(INTRO!$E$34<>0,INTRO!$E$34,"") -> Benin | B51: Couffo | C51: Toviklin | D51: 149661 | E51: =IF(INTRO!$E$48="","",ROUND($D51*INTRO!$E$48,0)) -> 20414 | F51: =IF(INTRO!$E$49="","",ROUND($D51*INTRO!$E$49,0)) -> 44449 | G51: =IF(INTRO!$E$50="","",ROUND($D51*INTRO!$E$50,0)) -> 78811 | H51: 99 | I51: 0 | J51: 2 | K51: 1 | L51: =IF(INTRO!$E$38="Endémique", IF($H51>0, IF($H51=4,"Inconnu", IF($H51=99,"Interrompu", $D51)), 0),"Non requis") -> Interrompu | M51: =IF(INTRO!$E$40="Endémique", IF($I51>0, IF($I51=4,"Inconnu",IF($I51=99,"Interrompu", $D51)), 0),"Non requis") -> 0 | N51: =IF(INTRO!$E$42="Endémique", IF(AND($J51>1,$J51<5), IF($J51=4, "Inconnu", E51+F51), 0),"Non requis") -> 64863 | O51: =IF(INTRO!$E$44="Endémique", IF(AND($K51>0,$K51<5), IF($K51=4,"Inconnu", IF($K51=1, $F51*0.33, IF($K51=2, $F51*0.5+$G51*0.2, SUM(F51:G51)))), 0),"Non requis") -> 14668.17 | P51: 0 | Q51: 0 | R51: 1 | S51: 0 | U51: T3 (ALB/MBD) | X51: 3258 | Y51: Toviklin | AB51: 99 | AC51: 0 | AD51: 2 | AE51: 1 | AF51: TRUE | AG51: TRUE | AH51: TRUE | AI51: TRUE
A52: =IF(INTRO!$E$34<>0,INTRO!$E$34,"") -> Benin | B52: Donga | C52: Bassila | D52: 127486 | E52: =IF(INTRO!$E$48="","",ROUND($D52*INTRO!$E$48,0)) -> 17389 | F52: =IF(INTRO!$E$49="","",ROUND($D52*INTRO!$E$49,0)) -> 37863 | G52: =IF(INTRO!$E$50="","",ROUND($D52*INTRO!$E$50,0)) -> 67134 | H52: 0 | I52: 1 | J52: 2 | K52: 2 | L52: =IF(INTRO!$E$38="Endémique", IF($H52>0, IF($H52=4,"Inconnu", IF($H52=99,"Interrompu", $D52)), 0),"Non requis") -> 0 | M52: =IF(INTRO!$E$40="Endémique", IF($I52>0, IF($I52=4,"Inconnu",IF($I52=99,"Interrompu", $D52)), 0),"Non requis") -> 127486 | N52: =IF(INTRO!$E$42="Endémique", IF(AND($J52>1,$J52<5), IF($J52=4, "Inconnu", E52+F52), 0),"Non requis") -> 55252 | O52: =IF(INTRO!$E$44="Endémique", IF(AND($K52>0,$K52<5), IF($K52=4,"Inconnu", IF($K52=1, $F52*0.33, IF($K52=2, $F52*0.5+$G52*0.2, SUM(F52:G52)))), 0),"Non requis") -> 32358.3 | P52: 0 | Q52: 1 | R52: 1 | S52: 1 | T52: MDA3 (IVM) | U52: T1 (PZQ+ALB/MBD) | X52: 3250 | Y52: Bassila | AB52: 0 | AC52: 1 | AD52: 2 | AE52: 2 | AF52: TRUE | AG52: TRUE | AH52: TRUE | AI52: TRUE
A53: =IF(INTRO!$E$34<>0,INTRO!$E$34,"") -> Benin | B53: Donga | C53: Copargo | D53: 81900 | E53: =IF(INTRO!$E$48="","",ROUND($D53*INTRO!$E$48,0)) -> 11171 | F53: =IF(INTRO!$E$49="","",ROUND($D53*INTRO!$E$49,0)) -> 24324 | G53: =IF(INTRO!$E$50="","",ROUND($D53*INTRO!$E$50,0)) -> 43129 | H53: 0 | I53: 1 | J53: 2 | K53: 3 | L53: =IF(INTRO!$E$38="Endémique", IF($H53>0, IF($H53=4,"Inconnu", IF($H53=99,"Interrompu", $D53)), 0),"Non requis") -> 0 | M53: =IF(INTRO!$E$40="Endémique", IF($I53>0, IF($I53=4,"Inconnu",IF($I53=99,"Interrompu", $D53)), 0),"Non requis") -> 81900 | N53: =IF(INTRO!$E$42="Endémique", IF(AND($J53>1,$J53<5), IF($J53=4, "Inconnu", E53+F53), 0),"Non requis") -> 35495 | O53: =IF(INTRO!$E$44="Endémique", IF(AND($K53>0,$K53<5), IF($K53=4,"Inconnu", IF($K53=1, $F53*0.33, IF($K53=2, $F53*0.5+$G53*0.2, SUM(F53:G53)))), 0),"Non requis") -> 67453 | P53: 0 | Q53: 1 | R53: 1 | S53: 1 | T53: MDA3 (IVM) | U53: T1 (PZQ+ALB/MBD) | X53: 3251 | Y53: Copargo | AB53: 0 | AC53: 1 | AD53: 2 | AE53: 3 | AF53: TRUE | AG53: TRUE | AH53: TRUE | AI53: TRUE
A54: =IF(INTRO!$E$34<>0,INTRO!$E$34,"") -> Benin | B54: Donga | C54: Djougou | D54: 226963 | E54: =IF(INTRO!$E$48="","",ROUND($D54*INTRO!$E$48,0)) -> 30958 | F54: =IF(INTRO!$E$49="","",ROUND($D54*INTRO!$E$49,0)) -> 67408 | G54: =IF(INTRO!$E$50="","",ROUND($D54*INTRO!$E$50,0)) -> 119519 | H54: 0 | I54: 1 | J54: 1 | K54: 1 | L54: =IF(INTRO!$E$38="Endémique", IF($H54>0, IF($H54=4,"Inconnu", IF($H54=99,"Interrompu", $D54)), 0),"Non requis") -> 0 | M54: =IF(INTRO!$E$40="Endémique", IF($I54>0, IF($I54=4,"Inconnu",IF($I54=99,"Interrompu", $D54)), 0),"Non requis") -> 226963 | N54: =IF(INTRO!$E$42="Endémique", IF(AND($J54>1,$J54<5), IF($J54=4, "Inconnu", E54+F54), 0),"Non requis") -> 0 | O54: =IF(INTRO!$E$44="Endémique", IF(AND($K54>0,$K54<5), IF($K54=4,"Inconnu", IF($K54=1, $F54*0.33, IF($K54=2, $F54*0.5+$G54*0.2, SUM(F54:G54)))), 0),"Non requis") -> 22244.64 | P54: 0 | Q54: 1 | R54: 0 | S54: 0 | T54: MDA3 (IVM) | X54: 3252 | Y54: Djougou | AB54: 0 | AC54: 1 | AD54: 1 | AE54: 1 | AF54: TRUE | AG54: TRUE | AH54: TRUE | AI54: TRUE
A55: =IF(INTRO!$E$34<>0,INTRO!$E$34,"") -> Benin | B55: Donga | C55: Ouaké | D55: 71655 | E55: =IF(INTRO!$E$48="","",ROUND($D55*INTRO!$E$48,0)) -> 9774 | F55: =IF(INTRO!$E$49="","",ROUND($D55*INTRO!$E$49,0)) -> 21282 | G55: =IF(INTRO!$E$50="","",ROUND($D55*INTRO!$E$50,0)) -> 37734 | H55: 0 | I55: 1 | J55: 2 | K55: 3 | L55: =IF(INTRO!$E$38="Endémique", IF($H55>0, IF($H55=4,"Inconnu", IF($H55=99,"Interrompu", $D55)), 0),"Non requis") -> 0 | M55: =IF(INTRO!$E$40="Endémique", IF($I55>0, IF($I55=4,"Inconnu",IF($I55=99,"Interrompu", $D55)), 0),"Non requis") -> 71655 | N55: =IF(INTRO!$E$42="Endémique", IF(AND($J55>1,$J55<5), IF($J55=4, "Inconnu", E55+F55), 0),"Non requis") -> 31056 | O55: =IF(INTRO!$E$44="Endémique", IF(AND($K55>0,$K55<5), IF($K55=4,"Inconnu", IF($K55=1, $F55*0.33, IF($K55=2, $F55*0.5+$G55*0.2, SUM(F55:G55)))), 0),"Non requis") -> 59016 | P55: 0 | Q55: 1 | R55: 1 | S55: 1 | T55: MDA3 (IVM) | U55: T1 (PZQ+ALB/MBD) | X55: 3223 | Y55: Ouaké | AB55: 0 | AC55: 1 | AD55: 2 | AE55: 3 | AF55: TRUE | AG55: TRUE | AH55: TRUE | AI55: TRUE
A56: =IF(INTRO!$E$34<>0,INTRO!$E$34,"") -> Benin | B56: Littoral | C56: Cotonou | D56: 847333 | E56: =IF(INTRO!$E$48="","",ROUND($D56*INTRO!$E$48,0)) -> 115576 | F56: =IF(INTRO!$E$49="","",ROUND($D56*INTRO!$E$49,0)) -> 251658 | G56: =IF(INTRO!$E$50="","",ROUND($D56*INTRO!$E$50,0)) -> 446206 | H56: 0 | I56: 0 | J56: 1 | K56: 1 | L56: =IF(INTRO!$E$38="Endémique", IF($H56>0, IF($H56=4,"Inconnu", IF($H56=99,"Interrompu", $D56)), 0),"Non requis") -> 0 | M56: =IF(INTRO!$E$40="Endémique", IF($I56>0, IF($I56=4,"Inconnu",IF($I56=99,"Interrompu", $D56)), 0),"Non requis") -> 0 | N56: =IF(INTRO!$E$42="Endémique", IF(AND($J56>1,$J56<5), IF($J56=4, "Inconnu", E56+F56), 0),"Non requis") -> 0 | O56: =IF(INTRO!$E$44="Endémique", IF(AND($K56>0,$K56<5), IF($K56=4,"Inconnu", IF($K56=1, $F56*0.33, IF($K56=2, $F56*0.5+$G56*0.2, SUM(F56:G56)))), 0),"Non requis") -> 83047.14 | P56: 0 | Q56: 0 | R56: 0 | S56: 0 | X56: 3259 | Y56: Cotonou | AB56: 0 | AC56: 0 | AD56: 1 | AE56: 1 | AF56: TRUE | AG56: TRUE | AH56: TRUE | AI56: TRUE
A57: =IF(INTRO!$E$34<>0,INTRO!$E$34,"") -> Benin | B57: Mono | C57: Athiémé | D57: 55145 | E57: =IF(INTRO!$E$48="","",ROUND($D57*INTRO!$E$48,0)) -> 7522 | F57: =IF(INTRO!$E$49="","",ROUND($D57*INTRO!$E$49,0)) -> 16378 | G57: =IF(INTRO!$E$50="","",ROUND($D57*INTRO!$E$50,0)) -> 29039 | H57: 99 | I57: 1 | J57: 1 | K57: 1 | L57: =IF(INTRO!$E$38="Endémique", IF($H57>0, IF($H57=4,"Inconnu", IF($H57=99,"Interrompu", $D57)), 0),"Non requis") -> Interrompu | M57: =IF(INTRO!$E$40="Endémique", IF($I57>0, IF($I57=4,"Inconnu",IF($I57=99,"Interrompu", $D57)), 0),"Non requis") -> 55145 | N57: =IF(INTRO!$E$42="Endémique", IF(AND($J57>1,$J57<5), IF($J57=4, "Inconnu", E57+F57), 0),"Non requis") -> 0 | O57: =IF(INTRO!$E$44="Endémique", IF(AND($K57>0,$K57<5), IF($K57=4,"Inconnu", IF($K57=1, $F57*0.33, IF($K57=2, $F57*0.5+$G57*0.2, SUM(F57:G57)))), 0),"Non requis") -> 5404.74 | P57: 0 | Q57: 1 | R57: 0 | S57: 0 | T57: MDA3 (IVM) | X57: 3260 | Y57: Athiémé | AB57: 99 | AC57: 1 | AD57: 1 | AE57: 1 | AF57: TRUE | AG57: TRUE | AH57: TRUE | AI57: TRUE
A58: =IF(INTRO!$E$34<>0,INTRO!$E$34,"") -> Benin | B58: Mono | C58: Bopa | D58: 120152 | E58: =IF(INTRO!$E$48="","",ROUND($D58*INTRO!$E$48,0)) -> 16389 | F58: =IF(INTRO!$E$49="","",ROUND($D58*INTRO!$E$49,0)) -> 35685 | G58: =IF(INTRO!$E$50="","",ROUND($D58*INTRO!$E$50,0)) -> 63272 | H58: 99 | I58: 0 | J58: 1 | K58: 1 | L58: =IF(INTRO!$E$38="Endémique", IF($H58>0, IF($H58=4,"Inconnu", IF($H58=99,"Interrompu", $D58)), 0),"Non requis") -> Interrompu | M58: =IF(INTRO!$E$40="Endémique", IF($I58>0, IF($I58=4,"Inconnu",IF($I58=99,"Interrompu", $D58)), 0),"Non requis") -> 0 | N58: =IF(INTRO!$E$42="Endémique", IF(AND($J58>1,$J58<5), IF($J58=4, "Inconnu", E58+F58), 0),"Non requis") -> 0 | O58: =IF(INTRO!$E$44="Endémique", IF(AND($K58>0,$K58<5), IF($K58=4,"Inconnu", IF($K58=1, $F58*0.33, IF($K58=2, $F58*0.5+$G58*0.2, SUM(F58:G58)))), 0),"Non requis") -> 11776.05 | P58: 0 | Q58: 0 | R58: 0 | S58: 0 | X58: 3261 | Y58: Bopa | AB58: 99 | AC58: 0 | AD58: 1 | AE58: 1 | AF58: TRUE | AG58: TRUE | AH58: TRUE | AI58: TRUE
A59: =IF(INTRO!$E$34<>0,INTRO!$E$34,"") -> Benin | B59: Mono | C59: Comé | D59: 99820 | E59: =IF(INTRO!$E$48="","",ROUND($D59*INTRO!$E$48,0)) -> 13615 | F59: =IF(INTRO!$E$49="","",ROUND($D59*INTRO!$E$49,0)) -> 29647 | G59: =IF(INTRO!$E$50="","",ROUND($D59*INTRO!$E$50,0)) -> 52565 | H59: 99 | I59: 0 | J59: 2 | K59: 1 | L59: =IF(INTRO!$E$38="Endémique", IF($H59>0, IF($H59=4,"Inconnu", IF($H59=99,"Interrompu", $D59)), 0),"Non requis") -> Interrompu | M59: =IF(INTRO!$E$40="Endémique", IF($I59>0, IF($I59=4,"Inconnu",IF($I59=99,"Interrompu", $D59)), 0),"Non requis") -> 0 | N59: =IF(INTRO!$E$42="Endémique", IF(AND($J59>1,$J59<5), IF($J59=4, "Inconnu", E59+F59), 0),"Non requis") -> 43262 | O59: =IF(INTRO!$E$44="Endémique", IF(AND($K59>0,$K59<5), IF($K59=4,"Inconnu", IF($K59=1, $F59*0.33, IF($K59=2, $F59*0.5+$G59*0.2, SUM(F59:G59)))), 0),"Non requis") -> 9783.51 | P59: 0 | Q59: 0 | R59: 1 | S59: 0 | U59: T3 (ALB/MBD) | X59: 3262 | Y59: Comé | AB59: 99 | AC59: 0 | AD59: 2 | AE59: 1 | AF59: TRUE | AG59: TRUE | AH59: TRUE | AI59: TRUE
A60: =IF(INTRO!$E$34<>0,INTRO!$E$34,"") -> Benin | B60: Mono | C60: Grand-Popo | D60: 71929 | E60: =IF(INTRO!$E$48="","",ROUND($D60*INTRO!$E$48,0)) -> 9811 | F60: =IF(INTRO!$E$49="","",ROUND($D60*INTRO!$E$49,0)) -> 21363 | G60: =IF(INTRO!$E$50="","",ROUND($D60*INTRO!$E$50,0)) -> 37878 | H60: 99 | I60: 0 | J60: 1 | K60: 1 | L60: =IF(INTRO!$E$38="Endémique", IF($H60>0, IF($H60=4,"Inconnu", IF($H60=99,"Interrompu", $D60)), 0),"Non requis") -> Interrompu | M60: =IF(INTRO!$E$40="Endémique", IF($I60>0, IF($I60=4,"Inconnu",IF($I60=99,"Interrompu", $D60)), 0),"Non requis") -> 0 | N60: =IF(INTRO!$E$42="Endémique", IF(AND($J60>1,$J60<5), IF($J60=4, "Inconnu", E60+F60), 0),"Non requis") -> 0 | O60: =IF(INTRO!$E$44="Endémique", IF(AND($K60>0,$K60<5), IF($K60=4,"Inconnu", IF($K60=1, $F60*0.33, IF($K60=2, $F60*0.5+$G60*0.2, SUM(F60:G60)))), 0),"Non requis") -> 7049.79 | P60: 0 | Q60: 0 | R60: 0 | S60: 0 | X60: 3263 | Y60: Grand-Popo | AB60: 99 | AC60: 0 | AD60: 1 | AE60: 1 | AF60: TRUE | AG60: TRUE | AH60: TRUE | AI60: TRUE
A61: =IF(INTRO!$E$34<>0,INTRO!$E$34,"") -> Benin | B61: Mono | C61: Houéyogbé | D61: 127154 | E61: =IF(INTRO!$E$48="","",ROUND($D61*INTRO!$E$48,0)) -> 17344 | F61: =IF(INTRO!$E$49="","",ROUND($D61*INTRO!$E$49,0)) -> 37765 | G61: =IF(INTRO!$E$50="","",ROUND($D61*INTRO!$E$50,0)) -> 66959 | H61: 99 | I61: 0 | J61: 1 | K61: 2 | L61: =IF(INTRO!$E$38="Endémique", IF($H61>0, IF($H61=4,"Inconnu", IF($H61=99,"Interrompu", $D61)), 0),"Non requis") -> Interrompu | M61: =IF(INTRO!$E$40="Endémique", IF($I61>0, IF($I61=4,"Inconnu",IF($I61=99,"Interrompu", $D61)), 0),"Non requis") -> 0 | N61: =IF(INTRO!$E$42="Endémique", IF(AND($J61>1,$J61<5), IF($J61=4, "Inconnu", E61+F61), 0),"Non requis") -> 0 | O61: =IF(INTRO!$E$44="Endémique", IF(AND($K61>0,$K61<5), IF($K61=4,"Inconnu", IF($K61=1, $F61*0.33, IF($K61=2, $F61*0.5+$G61*0.2, SUM(F61:G61)))), 0),"Non requis") -> 32274.3 | P61: 0 | Q61: 0 | R61: 0 | S61: 0 | X61: 3264 | Y61: Houéyogbé | AB61: 99 | AC61: 0 | AD61: 1 | AE61: 2 | AF61: TRUE | AG61: TRUE | AH61: TRUE | AI61: TRUE
A62: =IF(INTRO!$E$34<>0,INTRO!$E$34,"") -> Benin | B62: Mono | C62: Lokossa | D62: 14329 | E62: =IF(INTRO!$E$48="","",ROUND($D62*INTRO!$E$48,0)) -> 1954 | F62: =IF(INTRO!$E$49="","",ROUND($D62*INTRO!$E$49,0)) -> 4256 | G62: =IF(INTRO!$E$50="","",ROUND($D62*INTRO!$E$50,0)) -> 7546 | H62: 99 | I62: 1 | J62: 2 | K62: 2 | L62: =IF(INTRO!$E$38="Endémique", IF($H62>0, IF($H62=4,"Inconnu", IF($H62=99,"Interrompu", $D62)), 0),"Non requis") -> Interrompu | M62: =IF(INTRO!$E$40="Endémique", IF($I62>0, IF($I62=4,"Inconnu",IF($I62=99,"Interrompu", $D62)), 0),"Non requis") -> 14329 | N62: =IF(INTRO!$E$42="Endémique", IF(AND($J62>1,$J62<5), IF($J62=4, "Inconnu", E62+F62), 0),"Non requis") -> 6210 | O62: =IF(INTRO!$E$44="Endémique", IF(AND($K62>0,$K62<5), IF($K62=4,"Inconnu", IF($K62=1, $F62*0.33, IF($K62=2, $F62*0.5+$G62*0.2, SUM(F62:G62)))), 0),"Non requis") -> 3637.2 | P62: 0 | Q62: 1 | R62: 1 | S62: 0 | T62: MDA3 (IVM) | U62: T3 (ALB/MBD) | X62: 3266 | Y62: Lokossa | AB62: 99 | AC62: 1 | AD62: 2 | AE62: 2 | AF62: TRUE | AG62: TRUE | AH62: TRUE | AI62: TRUE
A63: =IF(INTRO!$E$34<>0,INTRO!$E$34,"") -> Benin | B63: Oueme | C63: Adjarra | D63: 102455 | E63: =IF(INTRO!$E$48="","",ROUND($D63*INTRO!$E$48,0)) -> 13975 | F63: =IF(INTRO!$E$49="","",ROUND($D63*INTRO!$E$49,0)) -> 30429 | G63: =IF(INTRO!$E$50="","",ROUND($D63*INTRO!$E$50,0)) -> 53953 | H63: 99 | I63: 0 | J63: 1 | K63: 1 | L63: =IF(INTRO!$E$38="Endémique", IF($H63>0, IF($H63=4,"Inconnu", IF($H63=99,"Interrompu", $D63)), 0),"Non requis") -> Interrompu | M63: =IF(INTRO!$E$40="Endémique", IF($I63>0, IF($I63=4,"Inconnu",IF($I63=99,"Interrompu", $D63)), 0),"Non requis") -> 0 | N63: =IF(INTRO!$E$42="Endémique", IF(AND($J63>1,$J63<5), IF($J63=4, "Inconnu", E63+F63), 0),"Non requis") -> 0 | O63: =IF(INTRO!$E$44="Endémique", IF(AND($K63>0,$K63<5), IF($K63=4,"Inconnu", IF($K63=1, $F63*0.33, IF($K63=2, $F63*0.5+$G63*0.2, SUM(F63:G63)))), 0),"Non requis") -> 10041.57 | P63: 0 | Q63: 0 | R63: 0 | S63: 0 | X63: 3267 | Y63: Adjarra | AB63: 99 | AC63: 0 | AD63: 1 | AE63: 1 | AF63: TRUE | AG63: TRUE | AH63: TRUE | AI63: TRUE
A64: =IF(INTRO!$E$34<>0,INTRO!$E$34,"") -> Benin | B64: Oueme | C64: Adjohoun | D64: 80455 | E64: =IF(INTRO!$E$48="","",ROUND($D64*INTRO!$E$48,0)) -> 10974 | F64: =IF(INTRO!$E$49="","",ROUND($D64*INTRO!$E$49,0)) -> 23895 | G64: =IF(INTRO!$E$50="","",ROUND($D64*INTRO!$E$50,0)) -> 42368 | H64: 99 | I64: 0 | J64: 1 | K64: 1 | L64: =IF(INTRO!$E$38="Endémique", IF($H64>0, IF($H64=4,"Inconnu", IF($H64=99,"Interrompu", $D64)), 0),"Non requis") -> Interrompu | M64: =IF(INTRO!$E$40="Endémique", IF($I64>0, IF($I64=4,"Inconnu",IF($I64=99,"Interrompu", $D64)), 0),"Non requis") -> 0 | N64: =IF(INTRO!$E$42="Endémique", IF(AND($J64>1,$J64<5), IF($J64=4, "Inconnu", E64+F64), 0),"Non requis") -> 0 | O64: =IF(INTRO!$E$44="Endémique", IF(AND($K64>0,$K64<5), IF($K64=4,"Inconnu", IF($K64=1, $F64*0.33, IF($K64=2, $F64*0.5+$G64*0.2, SUM(F64:G64)))), 0),"Non requis") -> 7885.35 | P64: 0 | Q64: 0 | R64: 0 | S64: 0 | X64: 3268 | Y64: Adjohoun | AB64: 99 | AC64: 0 | AD64: 1 | AE64: 1 | AF64: TRUE | AG64: TRUE | AH64: TRUE | AI64: TRUE
A65: =IF(INTRO!$E$34<>0,INTRO!$E$34,"") -> Benin | B65: Oueme | C65: Aguégués | D65: 39044 | E65: =IF(INTRO!$E$48="","",ROUND($D65*INTRO!$E$48,0)) -> 5326 | F65: =IF(INTRO!$E$49="","",ROUND($D65*INTRO!$E$49,0)) -> 11596 | G65: =IF(INTRO!$E$50="","",ROUND($D65*INTRO!$E$50,0)) -> 20561 | H65: 99 | I65: 0 | J65: 1 | K65: 3 | L65: =IF(INTRO!$E$38="Endémique", IF($H65>0, IF($H65=4,"Inconnu", IF($H65=99,"Interrompu", $D65)), 0),"Non requis") -> Interrompu | M65: =IF(INTRO!$E$40="Endémique", IF($I65>0, IF($I65=4,"Inconnu",IF($I65=99,"Interrompu", $D65)), 0),"Non requis") -> 0 | N65: =IF(INTRO!$E$42="Endémique", IF(AND($J65>1,$J65<5), IF($J65=4, "Inconnu", E65+F65), 0),"Non requis") -> 0 | O65: =IF(INTRO!$E$44="Endémique", IF(AND($K65>0,$K65<5), IF($K65=4,"Inconnu", IF($K65=1, $F65*0.33, IF($K65=2, $F65*0.5+$G65*0.2, SUM(F65:G65)))), 0),"Non requis") -> 32157 | P65: 0 | Q65: 0 | R65: 0 | S65: 1 | U65: T2 (PZQ) | X65: 3269 | Y65: Aguégués | AB65: 99 | AC65: 0 | AD65: 1 | AE65: 3 | AF65: TRUE | AG65: TRUE | AH65: TRUE | AI65: TRUE
A66: =IF(INTRO!$E$34<>0,INTRO!$E$34,"") -> Benin | B66: Oueme | C66: Akpro-Missérété | D66: 89643 | E66: =IF(INTRO!$E$48="","",ROUND($D66*INTRO!$E$48,0)) -> 12227 | F66: =IF(INTRO!$E$49="","",ROUND($D66*INTRO!$E$49,0)) -> 26624 | G66: =IF(INTRO!$E$50="","",ROUND($D66*INTRO!$E$50,0)) -> 47206 | H66: 99 | I66: 0 | J66: 2 | K66: 1 | L66: =IF(INTRO!$E$38="Endémique", IF($H66>0, IF($H66=4,"Inconnu", IF($H66=99,"Interrompu", $D66)), 0),"Non requis") -> Interrompu | M66: =IF(INTRO!$E$40="Endémique", IF($I66>0, IF($I66=4,"Inconnu",IF($I66=99,"Interrompu", $D66)), 0),"Non requis") -> 0 | N66: =IF(INTRO!$E$42="Endémique", IF(AND($J66>1,$J66<5), IF($J66=4, "Inconnu", E66+F66), 0),"Non requis") -> 38851 | O66: =IF(INTRO!$E$44="Endémique", IF(AND($K66>0,$K66<5), IF($K66=4,"Inconnu", IF($K66=1, $F66*0.33, IF($K66=2, $F66*0.5+$G66*0.2, SUM(F66:G66)))), 0),"Non requis") -> 8785.92 | P66: 0 | Q66: 0 | R66: 1 | S66: 0 | U66: T3 (ALB/MBD) | X66: 3270 | Y66: Akpro-Missérété | AB66: 99 | AC66: 0 | AD66: 2 | AE66: 1 | AF66: TRUE | AG66: TRUE | AH66: TRUE | AI66: TRUE
A67: =IF(INTRO!$E$34<>0,INTRO!$E$34,"") -> Benin | B67: Oueme | C67: Avrankou | D67: 113223 | E67: =IF(INTRO!$E$48="","",ROUND($D67*INTRO!$E$48,0)) -> 15444 | F67: =IF(INTRO!$E$49="","",ROUND($D67*INTRO!$E$49,0)) -> 33627 | G67: =IF(INTRO!$E$50="","",ROUND($D67*INTRO!$E$50,0)) -> 59623 | H67: 99 | I67: 0 | J67: 1 | K67: 1 | L67: =IF(INTRO!$E$38="Endémique", IF($H67>0, IF($H67=4,"Inconnu", IF($H67=99,"Interrompu", $D67)), 0),"Non requis") -> Interrompu | M67: =IF(INTRO!$E$40="Endémique", IF($I67>0, IF($I67=4,"Inconnu",IF($I67=99,"Interrompu", $D67)), 0),"Non requis") -> 0 | N67: =IF(INTRO!$E$42="Endémique", IF(AND($J67>1,$J67<5), IF($J67=4, "Inconnu", E67+F67), 0),"Non requis") -> 0 | O67: =IF(INTRO!$E$44="Endémique", IF(AND($K67>0,$K67<5), IF($K67=4,"Inconnu", IF($K67=1, $F67*0.33, IF($K67=2, $F67*0.5+$G67*0.2, SUM(F67:G67)))), 0),"Non requis") -> 11096.91 | P67: 0 | Q67: 0 | R67: 0 | S67: 0 | X67: 3271 | Y67: Avrankou | AB67: 99 | AC67: 0 | AD67: 1 | AE67: 1 | AF67: TRUE | AG67: TRUE | AH67: TRUE | AI67: TRUE
A68: =IF(INTRO!$E$34<>0,INTRO!$E$34,"") -> Benin | B68: Oueme | C68: Bonou | D68: 46971 | E68: =IF(INTRO!$E$48="","",ROUND($D68*INTRO!$E$48,0)) -> 6407 | F68: =IF(INTRO!$E$49="","",ROUND($D68*INTRO!$E$49,0)) -> 13950 | G68: =IF(INTRO!$E$50="","",ROUND($D68*INTRO!$E$50,0)) -> 24735 | H68: 99 | I68: 1 | J68: 1 | K68: 1 | L68: =IF(INTRO!$E$38="Endémique", IF($H68>0, IF($H68=4,"Inconnu", IF($H68=99,"Interrompu", $D68)), 0),"Non requis") -> Interrompu | M68: =IF(INTRO!$E$40="Endémique", IF($I68>0, IF($I68=4,"Inconnu",IF($I68=99,"Interrompu", $D68)), 0),"Non requis") -> 46971 | N68: =IF(INTRO!$E$42="Endémique", IF(AND($J68>1,$J68<5), IF($J68=4, "Inconnu", E68+F68), 0),"Non requis") -> 0 | O68: =IF(INTRO!$E$44="Endémique", IF(AND($K68>0,$K68<5), IF($K68=4,"Inconnu", IF($K68=1, $F68*0.33, IF($K68=2, $F68*0.5+$G68*0.2, SUM(F68:G68)))), 0),"Non requis") -> 4603.5 | P68: 0 | Q68: 1 | R68: 0 | S68: 0 | T68: MDA3 (IVM) | X68: 3272 | Y68: Bonou | AB68: 99 | AC68: 1 | AD68: 1 | AE68: 1 | AF68: TRUE | AG68: TRUE | AH68: TRUE | AI68: TRUE
A69: =IF(INTRO!$E$34<>0,INTRO!$E$34,"") -> Benin | B69: Oueme | C69: Dangbo | D69: 105195 | E69: =IF(INTRO!$E$48="","",ROUND($D69*INTRO!$E$48,0)) -> 14349 | F69: =IF(INTRO!$E$49="","",ROUND($D69*INTRO!$E$49,0)) -> 31243 | G69: =IF(INTRO!$E$50="","",ROUND($D69*INTRO!$E$50,0)) -> 55396 | H69: 99 | I69: 0 | J69: 1 | K69: 3 | L69: =IF(INTRO!$E$38="Endémique", IF($H69>0, IF($H69=4,"Inconnu", IF($H69=99,"Interrompu", $D69)), 0),"Non requis") -> Interrompu | M69: =IF(INTRO!$E$40="Endémique", IF($I69>0, IF($I69=4,"Inconnu",IF($I69=99,"Interrompu", $D69)), 0),"Non requis") -> 0 | N69: =IF(INTRO!$E$42="Endémique", IF(AND($J69>1,$J69<5), IF($J69=4, "Inconnu", E69+F69), 0),"Non requis") -> 0 | O69: =IF(INTRO!$E$44="Endémique", IF(AND($K69>0,$K69<5), IF($K69=4,"Inconnu", IF($K69=1, $F69*0.33, IF($K69=2, $F69*0.5+$G69*0.2, SUM(F69:G69)))), 0),"Non requis") -> 86639 | P69: 0 | Q69: 0 | R69: 0 | S69: 1 | U69: T2 (PZQ) | X69: 3273 | Y69: Dangbo | AB69: 99 | AC69: 0 | AD69: 1 | AE69: 3 | AF69: TRUE | AG69: TRUE | AH69: TRUE | AI69: TRUE
A70: =IF(INTRO!$E$34<>0,INTRO!$E$34,"") -> Benin | B70: Oueme | C70: Porto-Novo | D70: 329844 | E70: =IF(INTRO!$E$48="","",ROUND($D70*INTRO!$E$48,0)) -> 44991 | F70: =IF(INTRO!$E$49="","",ROUND($D70*INTRO!$E$49,0)) -> 97964 | G70: =IF(INTRO!$E$50="","",ROUND($D70*INTRO!$E$50,0)) -> 173696 | H70: 0 | I70: 0 | J70: 1 | K70: 1 | L70: =IF(INTRO!$E$38="Endémique", IF($H70>0, IF($H70=4,"Inconnu", IF($H70=99,"Interrompu", $D70)), 0),"Non requis") -> 0 | M70: =IF(INTRO!$E$40="Endémique", IF($I70>0, IF($I70=4,"Inconnu",IF($I70=99,"Interrompu", $D70)), 0),"Non requis") -> 0 | N70: =IF(INTRO!$E$42="Endémique", IF(AND($J70>1,$J70<5), IF($J70=4, "Inconnu", E70+F70), 0),"Non requis") -> 0 | O70: =IF(INTRO!$E$44="Endémique", IF(AND($K70>0,$K70<5), IF($K70=4,"Inconnu", IF($K70=1, $F70*0.33, IF($K70=2, $F70*0.5+$G70*0.2, SUM(F70:G70)))), 0),"Non requis") -> 32328.12 | P70: 0 | Q70: 0 | R70: 0 | S70: 0 | X70: 3275 | Y70: Porto-Novo | AB70: 0 | AC70: 0 | AD70: 1 | AE70: 1 | AF70: TRUE | AG70: TRUE | AH70: TRUE | AI70: TRUE
A71: =IF(INTRO!$E$34<>0,INTRO!$E$34,"") -> Benin | B71: Oueme | C71: Sèmè-Kpodji | D71: 119549 | E71: =IF(INTRO!$E$48="","",ROUND($D71*INTRO!$E$48,0)) -> 16306 | F71: =IF(INTRO!$E$49="","",ROUND($D71*INTRO!$E$49,0)) -> 35506 | G71: =IF(INTRO!$E$50="","",ROUND($D71*INTRO!$E$50,0)) -> 62955 | H71: 99 | I71: 0 | J71: 1 | K71: 1 | L71: =IF(INTRO!$E$38="Endémique", IF($H71>0, IF($H71=4,"Inconnu", IF($H71=99,"Interrompu", $D71)), 0),"Non requis") -> Interrompu | M71: =IF(INTRO!$E$40="Endémique", IF($I71>0, IF($I71=4,"Inconnu",IF($I71=99,"Interrompu", $D71)), 0),"Non requis") -> 0 | N71: =IF(INTRO!$E$42="Endémique", IF(AND($J71>1,$J71<5), IF($J71=4, "Inconnu", E71+F71), 0),"Non requis") -> 0 | O71: =IF(INTRO!$E$44="Endémique", IF(AND($K71>0,$K71<5), IF($K71=4,"Inconnu", IF($K71=1, $F71*0.33, IF($K71=2, $F71*0.5+$G71*0.2, SUM(F71:G71)))), 0),"Non requis") -> 11716.98 | P71: 0 | Q71: 0 | R71: 0 | S71: 0 | X71: 3277 | Y71: Sèmè-Kpodji | AB71: 99 | AC71: 0 | AD71: 1 | AE71: 1 | AF71: TRUE | AG71: TRUE | AH71: TRUE | AI71: TRUE
A72: =IF(INTRO!$E$34<>0,INTRO!$E$34,"") -> Benin | B72: Plateau | C72: Adja-Ouèrè | D72: 77179 | E72: =IF(INTRO!$E$48="","",ROUND($D72*INTRO!$E$48,0)) -> 10527 | F72: =IF(INTRO!$E$49="","",ROUND($D72*INTRO!$E$49,0)) -> 22922 | G72: =IF(INTRO!$E$50="","",ROUND($D72*INTRO!$E$50,0)) -> 40642 | H72: 99 | I72: 1 | J72: 2 | K72: 2 | L72: =IF(INTRO!$E$38="Endémique", IF($H72>0, IF($H72=4,"Inconnu", IF($H72=99,"Interrompu", $D72)), 0),"Non requis") -> Interrompu | M72: =IF(INTRO!$E$40="Endémique", IF($I72>0, IF($I72=4,"Inconnu",IF($I72=99,"Interrompu", $D72)), 0),"Non requis") -> 77179 | N72: =IF(INTRO!$E$42="Endémique", IF(AND($J72>1,$J72<5), IF($J72=4, "Inconnu", E72+F72), 0),"Non requis") -> 33449 | O72: =IF(INTRO!$E$44="Endémique", IF(AND($K72>0,$K72<5), IF($K72=4,"Inconnu", IF($K72=1, $F72*0.33, IF($K72=2, $F72*0.5+$G72*0.2, SUM(F72:G72)))), 0),"Non requis") -> 19589.4 | P72: 0 | Q72: 1 | R72: 1 | S72: 1 | T72: MDA3 (IVM) | U72: T1 (PZQ+ALB/MBD) | X72: 3278 | Y72: Adja-Ouèrè | AB72: 99 | AC72: 1 | AD72: 2 | AE72: 2 | AF72: TRUE | AG72: TRUE | AH72: TRUE | AI72: TRUE
A73: =IF(INTRO!$E$34<>0,INTRO!$E$34,"") -> Benin | B73: Plateau | C73: Ifangni | D73: 93580 | E73: =IF(INTRO!$E$48="","",ROUND($D73*INTRO!$E$48,0)) -> 12764 | F73: =IF(INTRO!$E$49="","",ROUND($D73*INTRO!$E$49,0)) -> 27793 | G73: =IF(INTRO!$E$50="","",ROUND($D73*INTRO!$E$50,0)) -> 49279 | H73: 99 | I73: 0 | J73: 2 | K73: 1 | L73: =IF(INTRO!$E$38="Endémique", IF($H73>0, IF($H73=4,"Inconnu", IF($H73=99,"Interrompu", $D73)), 0),"Non requis") -> Interrompu | M73: =IF(INTRO!$E$40="Endémique", IF($I73>0, IF($I73=4,"Inconnu",IF($I73=99,"Interrompu", $D73)), 0),"Non requis") -> 0 | N73: =IF(INTRO!$E$42="Endémique", IF(AND($J73>1,$J73<5), IF($J73=4, "Inconnu", E73+F73), 0),"Non requis") -> 40557 | O73: =IF(INTRO!$E$44="Endémique", IF(AND($K73>0,$K73<5), IF($K73=4,"Inconnu", IF($K73=1, $F73*0.33, IF($K73=2, $F73*0.5+$G73*0.2, SUM(F73:G73)))), 0),"Non requis") -> 9171.69 | P73: 0 | Q73: 0 | R73: 1 | S73: 0 | U73: T3 (ALB/MBD) | X73: 3279 | Y73: Ifangni | AB73: 99 | AC73: 0 | AD73: 2 | AE73: 1 | AF73: TRUE | AG73: TRUE | AH73: TRUE | AI73: TRUE
A74: =IF(INTRO!$E$34<>0,INTRO!$E$34,"") -> Benin | B74: Plateau | C74: Kétou | D74: 150746 | E74: =IF(INTRO!$E$48="","",ROUND($D74*INTRO!$E$48,0)) -> 20562 | F74: =IF(INTRO!$E$49="","",ROUND($D74*INTRO!$E$49,0)) -> 44772 | G74: =IF(INTRO!$E$50="","",ROUND($D74*INTRO!$E$50,0)) -> 79383 | H74: 0 | I74: 1 | J74: 2 | K74: 2 | L74: =IF(INTRO!$E$38="Endémique", IF($H74>0, IF($H74=4,"Inconnu", IF($H74=99,"Interrompu", $D74)), 0),"Non requis") -> 0 | M74: =IF(INTRO!$E$40="Endémique", IF($I74>0, IF($I74=4,"Inconnu",IF($I74=99,"Interrompu", $D74)), 0),"Non requis") -> 150746 | N74: =IF(INTRO!$E$42="Endémique", IF(AND($J74>1,$J74<5), IF($J74=4, "Inconnu", E74+F74), 0),"Non requis") -> 65334 | O74: =IF(INTRO!$E$44="Endémique", IF(AND($K74>0,$K74<5), IF($K74=4,"Inconnu", IF($K74=1, $F74*0.33, IF($K74=2, $F74*0.5+$G74*0.2, SUM(F74:G74)))), 0),"Non requis") -> 38262.6 | P74: 0 | Q74: 1 | R74: 1 | S74: 1 | T74: MDA3 (IVM) | U74: T1 (PZQ+ALB/MBD) | X74: 3274 | Y74: Kétou | AB74: 0 | AC74: 1 | AD74: 2 | AE74: 2 | AF74: =AB74=H74 -> TRUE | AG74: =AC74=I74 -> TRUE | AH74: =AD74=J74 -> TRUE | AI74: =AE74=K74 -> TRUE
A75: =IF(INTRO!$E$34<>0,INTRO!$E$34,"") -> Benin | B75: Plateau | C75: Pobè | D75: 113893 | E75: =IF(INTRO!$E$48="","",ROUND($D75*INTRO!$E$48,0)) -> 15535 | F75: =IF(INTRO!$E$49="","",ROUND($D75*INTRO!$E$49,0)) -> 33826 | G75: =IF(INTRO!$E$50="","",ROUND($D75*INTRO!$E$50,0)) -> 59976 | H75: 99 | I75: 0 | J75: 2 | K75: 2 | L75: =IF(INTRO!$E$38="Endémique", IF($H75>0, IF($H75=4,"Inconnu", IF($H75=99,"Interrompu", $D75)), 0),"Non requis") -> Interrompu | M75: =IF(INTRO!$E$40="Endémique", IF($I75>0, IF($I75=4,"Inconnu",IF($I75=99,"Interrompu", $D75)), 0),"Non requis") -> 0 | N75: =IF(INTRO!$E$42="Endémique", IF(AND($J75>1,$J75<5), IF($J75=4, "Inconnu", E75+F75), 0),"Non requis") -> 49361 | O75: =IF(INTRO!$E$44="Endémique", IF(AND($K75>0,$K75<5), IF($K75=4,"Inconnu", IF($K75=1, $F75*0.33, IF($K75=2, $F75*0.5+$G75*0.2, SUM(F75:G75)))), 0),"Non requis") -> 28908.2 | P75: 0 | Q75: 0 | R75: 1 | S75: 1 | U75: T1 (PZQ+ALB/MBD) | X75: 3280 | Y75: Pobè | AB75: 99 | AC75: 0 | AD75: 2 | AE75: 2 | AF75: TRUE | AG75: TRUE | AH75: TRUE | AI75: TRUE
A76: =IF(INTRO!$E$34<>0,INTRO!$E$34,"") -> Benin | B76: Plateau | C76: Sakété | D76: 90803 | E76: =IF(INTRO!$E$48="","",ROUND($D76*INTRO!$E$48,0)) -> 12386 | F76: =IF(INTRO!$E$49="","",ROUND($D76*INTRO!$E$49,0)) -> 26968 | G76: =IF(INTRO!$E$50="","",ROUND($D76*INTRO!$E$50,0)) -> 47817 | H76: 99 | I76: 0 | J76: 2 | K76: 1 | L76: =IF(INTRO!$E$38="Endémique", IF($H76>0, IF($H76=4,"Inconnu", IF($H76=99,"Interrompu", $D76)), 0),"Non requis") -> Interrompu | M76: =IF(INTRO!$E$40="Endémique", IF($I76>0, IF($I76=4,"Inconnu",IF($I76=99,"Interrompu", $D76)), 0),"Non requis") -> 0 | N76: =IF(INTRO!$E$42="Endémique", IF(AND($J76>1,$J76<5), IF($J76=4, "Inconnu", E76+F76), 0),"Non requis") -> 39354 | O76: =IF(INTRO!$E$44="Endémique", IF(AND($K76>0,$K76<5), IF($K76=4,"Inconnu", IF($K76=1, $F76*0.33, IF($K76=2, $F76*0.5+$G76*0.2, SUM(F76:G76)))), 0),"Non requis") -> 8899.44 | P76: 0 | Q76: 0 | R76: 1 | S76: 0 | U76: T3 (ALB/MBD) | X76: 3276 | Y76: Sakété | AB76: 99 | AC76: 0 | AD76: 2 | AE76: 1 | AF76: TRUE | AG76: TRUE | AH76: TRUE | AI76: TRUE
A77: =IF(INTRO!$E$34<>0,INTRO!$E$34,"") -> Benin | B77: Zou | C77: Abomey | D77: 75103 | E77: =IF(INTRO!$E$48="","",ROUND($D77*INTRO!$E$48,0)) -> 10244 | F77: =IF(INTRO!$E$49="","",ROUND($D77*INTRO!$E$49,0)) -> 22306 | G77: =IF(INTRO!$E$50="","",ROUND($D77*INTRO!$E$50,0)) -> 39549 | H77: 99 | I77: 1 | J77: 1 | K77: 1 | L77: =IF(INTRO!$E$38="Endémique", IF($H77>0, IF($H77=4,"Inconnu", IF($H77=99,"Interrompu", $D77)), 0),"Non requis") -> Interrompu | M77: =IF(INTRO!$E$40="Endémique", IF($I77>0, IF($I77=4,"Inconnu",IF($I77=99,"Interrompu", $D77)), 0),"Non requis") -> 75103 | N77: =IF(INTRO!$E$42="Endémique", IF(AND($J77>1,$J77<5), IF($J77=4, "Inconnu", E77+F77), 0),"Non requis") -> 0 | O77: =IF(INTRO!$E$44="Endémique", IF(AND($K77>0,$K77<5), IF($K77=4,"Inconnu", IF($K77=1, $F77*0.33, IF($K77=2, $F77*0.5+$G77*0.2, SUM(F77:G77)))), 0),"Non requis") -> 7360.98 | P77: 0 | Q77: 1 | R77: 0 | S77: 0 | T77: MDA3 (IVM) | X77: 3281 | Y77: Abomey | AB77: 99 | AC77: 1 | AD77: 1 | AE77: 1 | AF77: TRUE | AG77: TRUE | AH77: TRUE | AI77: TRUE
A78: =IF(INTRO!$E$34<>0,INTRO!$E$34,"") -> Benin | B78: Zou | C78: Agbangnizoun | D78: 67616 | E78: =IF(INTRO!$E$48="","",ROUND($D78*INTRO!$E$48,0)) -> 9223 | F78: =IF(INTRO!$E$49="","",ROUND($D78*INTRO!$E$49,0)) -> 20082 | G78: =IF(INTRO!$E$50="","",ROUND($D78*INTRO!$E$50,0)) -> 35607 | H78: 99 | I78: 1 | J78: 2 | K78: 1 | L78: =IF(INTRO!$E$38="Endémique", IF($H78>0, IF($H78=4,"Inconnu", IF($H78=99,"Interrompu", $D78)), 0),"Non requis") -> Interrompu | M78: =IF(INTRO!$E$40="Endémique", IF($I78>0, IF($I78=4,"Inconnu",IF($I78=99,"Interrompu", $D78)), 0),"Non requis") -> 67616 | N78: =IF(INTRO!$E$42="Endémique", IF(AND($J78>1,$J78<5), IF($J78=4, "Inconnu", E78+F78), 0),"Non requis") -> 29305 | O78: =IF(INTRO!$E$44="Endémique", IF(AND($K78>0,$K78<5), IF($K78=4,"Inconnu", IF($K78=1, $F78*0.33, IF($K78=2, $F78*0.5+$G78*0.2, SUM(F78:G78)))), 0),"Non requis") -> 6627.06 | P78: 0 | Q78: 1 | R78: 1 | S78: 0 | T78: MDA3 (IVM) | U78: T3 (ALB/MBD) | X78: 3282 | Y78: Agbangnizoun | AB78: 99 | AC78: 1 | AD78: 2 | AE78: 1 | AF78: TRUE | AG78: TRUE | AH78: TRUE | AI78: TRUE
A79: =IF(INTRO!$E$34<>0,INTRO!$E$34,"") -> Benin | B79: Zou | C79: Bohicon | D79: 163226 | E79: =IF(INTRO!$E$48="","",ROUND($D79*INTRO!$E$48,0)) -> 22264 | F79: =IF(INTRO!$E$49="","",ROUND($D79*INTRO!$E$49,0)) -> 48478 | G79: =IF(INTRO!$E$50="","",ROUND($D79*INTRO!$E$50,0)) -> 85955 | H79: 99 | I79: 0 | J79: 1 | K79: 1 | L79: =IF(INTRO!$E$38="Endémique", IF($H79>0, IF($H79=4,"Inconnu", IF($H79=99,"Interrompu", $D79)), 0),"Non requis") -> Interrompu | M79: =IF(INTRO!$E$40="Endémique", IF($I79>0, IF($I79=4,"Inconnu",IF($I79=99,"Interrompu", $D79)), 0),"Non requis") -> 0 | N79: =IF(INTRO!$E$42="Endémique", IF(AND($J79>1,$J79<5), IF($J79=4, "Inconnu", E79+F79), 0),"Non requis") -> 0 | O79: =IF(INTRO!$E$44="Endémique", IF(AND($K79>0,$K79<5), IF($K79=4,"Inconnu", IF($K79=1, $F79*0.33, IF($K79=2, $F79*0.5+$G79*0.2, SUM(F79:G79)))), 0),"Non requis") -> 15997.74 | P79: 0 | Q79: 0 | R79: 0 | S79: 0 | X79: 3283 | Y79: Bohicon | AB79: 99 | AC79: 0 | AD79: 1 | AE79: 1 | AF79: TRUE | AG79: TRUE | AH79: TRUE | AI79: TRUE
A80: =IF(INTRO!$E$34<>0,INTRO!$E$34,"") -> Benin | B80: Zou | C80: Covè | D80: 44424 | E80: =IF(INTRO!$E$48="","",ROUND($D80*INTRO!$E$48,0)) -> 6059 | F80: =IF(INTRO!$E$49="","",ROUND($D80*INTRO!$E$49,0)) -> 13194 | G80: =IF(INTRO!$E$50="","",ROUND($D80*INTRO!$E$50,0)) -> 23394 | H80: 1 | I80: 0 | J80: 2 | K80: 1 | L80: =IF(INTRO!$E$38="Endémique", IF($H80>0, IF($H80=4,"Inconnu", IF($H80=99,"Interrompu", $D80)), 0),"Non requis") -> 44424 | M80: =IF(INTRO!$E$40="Endémique", IF($I80>0, IF($I80=4,"Inconnu",IF($I80=99,"Interrompu", $D80)), 0),"Non requis") -> 0 | N80: =IF(INTRO!$E$42="Endémique", IF(AND($J80>1,$J80<5), IF($J80=4, "Inconnu", E80+F80), 0),"Non requis") -> 19253 | O80: =IF(INTRO!$E$44="Endémique", IF(AND($K80>0,$K80<5), IF($K80=4,"Inconnu", IF($K80=1, $F80*0.33, IF($K80=2, $F80*0.5+$G80*0.2, SUM(F80:G80)))), 0),"Non requis") -> 4354.02 | P80: 1 | Q80: 0 | R80: 0 | S80: 0 | T80: MDA1 (IVM+ALB) | X80: 3284 | Y80: Covè | AB80: 1 | AC80: 0 | AD80: 2 | AE80: 1 | AF80: TRUE | AG80: TRUE | AH80: TRUE | AI80: TRUE
A81: =IF(INTRO!$E$34<>0,INTRO!$E$34,"") -> Benin | B81: Zou | C81: Djidja | D81: 106589 | E81: =IF(INTRO!$E$48="","",ROUND($D81*INTRO!$E$48,0)) -> 14539 | F81: =IF(INTRO!$E$49="","",ROUND($D81*INTRO!$E$49,0)) -> 31657 | G81: =IF(INTRO!$E$50="","",ROUND($D81*INTRO!$E$50,0)) -> 56130 | H81: 0 | I81: 1 | J81: 1 | K81: 2 | L81: =IF(INTRO!$E$38="Endémique", IF($H81>0, IF($H81=4,"Inconnu", IF($H81=99,"Interrompu", $D81)), 0),"Non requis") -> 0 | M81: =IF(INTRO!$E$40="Endémique", IF($I81>0, IF($I81=4,"Inconnu",IF($I81=99,"Interrompu", $D81)), 0),"Non requis") -> 106589 | N81: =IF(INTRO!$E$42="Endémique", IF(AND($J81>1,$J81<5), IF($J81=4, "Inconnu", E81+F81), 0),"Non requis") -> 0 | O81: =IF(INTRO!$E$44="Endémique", IF(AND($K81>0,$K81<5), IF($K81=4,"Inconnu", IF($K81=1, $F81*0.33, IF($K81=2, $F81*0.5+$G81*0.2, SUM(F81:G81)))), 0),"Non requis") -> 27054.5 | P81: 0 | Q81: 1 | R81: 0 | S81: 1 | T81: MDA3 (IVM) | U81: T2 (PZQ) | X81: 3285 | Y81: Djidja | AB81: 0 | AC81: 1 | AD81: 1 | AE81: 2 | AF81: TRUE | AG81: TRUE | AH81: TRUE | AI81: TRUE
A82: =IF(INTRO!$E$34<>0,INTRO!$E$34,"") -> Benin | B82: Zou | C82: Ouinhi | D82: 66505 | E82: =IF(INTRO!$E$48="","",ROUND($D82*INTRO!$E$48,0)) -> 9071 | F82: =IF(INTRO!$E$49="","",ROUND($D82*INTRO!$E$49,0)) -> 19752 | G82: =IF(INTRO!$E$50="","",ROUND($D82*INTRO!$E$50,0)) -> 35022 | H82: 1 | I82: 1 | J82: 2 | K82: 2 | L82: =IF(INTRO!$E$38="Endémique", IF($H82>0, IF($H82=4,"Inconnu", IF($H82=99,"Interrompu", $D82)), 0),"Non requis") -> 66505 | M82: =IF(INTRO!$E$40="Endémique", IF($I82>0, IF($I82=4,"Inconnu",IF($I82=99,"Interrompu", $D82)), 0),"Non requis") -> 66505 | N82: =IF(INTRO!$E$42="Endémique", IF(AND($J82>1,$J82<5), IF($J82=4, "Inconnu", E82+F82), 0),"Non requis") -> 28823 | O82: =IF(INTRO!$E$44="Endémique", IF(AND($K82>0,$K82<5), IF($K82=4,"Inconnu", IF($K82=1, $F82*0.33, IF($K82=2, $F82*0.5+$G82*0.2, SUM(F82:G82)))), 0),"Non requis") -> 16880.4 | P82: 1 | Q82: 1 | R82: 0 | S82: 1 | T82: MDA1 (IVM+ALB) | U82: T2 (PZQ) | X82: 3286 | Y82: Ouinhi | AB82: 1 | AC82: 1 | AD82: 2 | AE82: 2 | AF82: TRUE | AG82: TRUE | AH82: TRUE | AI82: TRUE
A83: =IF(INTRO!$E$34<>0,INTRO!$E$34,"") -> Benin | B83: Zou | C83: Zagnanado | D83: 53803 | E83: =IF(INTRO!$E$48="","",ROUND($D83*INTRO!$E$48,0)) -> 7339 | F83: =IF(INTRO!$E$49="","",ROUND($D83*INTRO!$E$49,0)) -> 15979 | G83: =IF(INTRO!$E$50="","",ROUND($D83*INTRO!$E$50,0)) -> 28333 | H83: 1 | I83: 1 | J83: 1 | K83: 2 | L83: =IF(INTRO!$E$38="Endémique", IF($H83>0, IF($H83=4,"Inconnu", IF($H83=99,"Interrompu", $D83)), 0),"Non requis") -> 53803 | M83: =IF(INTRO!$E$40="Endémique", IF($I83>0, IF($I83=4,"Inconnu",IF($I83=99,"Interrompu", $D83)), 0),"Non requis") -> 53803 | N83: =IF(INTRO!$E$42="Endémique", IF(AND($J83>1,$J83<5), IF($J83=4, "Inconnu", E83+F83), 0),"Non requis") -> 0 | O83: =IF(INTRO!$E$44="Endémique", IF(AND($K83>0,$K83<5), IF($K83=4,"Inconnu", IF($K83=1, $F83*0.33, IF($K83=2, $F83*0.5+$G83*0.2, SUM(F83:G83)))), 0),"Non requis") -> 13656.1 | P83: 1 | Q83: 1 | R83: 0 | S83: 1 | T83: MDA1 (IVM+ALB) | U83: T2 (PZQ) | X83: 3288 | Y83: Zagnanado | AB83: 1 | AC83: 1 | AD83: 1 | AE83: 2 | AF83: TRUE | AG83: TRUE | AH83: TRUE | AI83: TRUE
A84: =IF(INTRO!$E$34<>0,INTRO!$E$34,"") -> Benin | B84: Zou | C84: Za-Kpota | D84: 150396 | E84: =IF(INTRO!$E$48="","",ROUND($D84*INTRO!$E$48,0)) -> 20514 | F84: =IF(INTRO!$E$49="","",ROUND($D84*INTRO!$E$49,0)) -> 44668 | G84: =IF(INTRO!$E$50="","",ROUND($D84*INTRO!$E$50,0)) -> 79199 | H84: 1 | I84: 1 | J84: 2 | K84: 2 | L84: =IF(INTRO!$E$38="Endémique", IF($H84>0, IF($H84=4,"Inconnu", IF($H84=99,"Interrompu", $D84)), 0),"Non requis") -> 150396 | M84: =IF(INTRO!$E$40="Endémique", IF($I84>0, IF($I84=4,"Inconnu",IF($I84=99,"Interrompu", $D84)), 0),"Non requis") -> 150396 | N84: =IF(INTRO!$E$42="Endémique", IF(AND($J84>1,$J84<5), IF($J84=4, "Inconnu", E84+F84), 0),"Non requis") -> 65182 | O84: =IF(INTRO!$E$44="Endémique", IF(AND($K84>0,$K84<5), IF($K84=4,"Inconnu", IF($K84=1, $F84*0.33, IF($K84=2, $F84*0.5+$G84*0.2, SUM(F84:G84)))), 0),"Non requis") -> 38173.8 | P84: 1 | Q84: 1 | R84: 0 | S84: 1 | T84: MDA1 (IVM+ALB) | U84: T2 (PZQ) | X84: 3287 | Y84: Za-Kpota | AB84: 1 | AC84: 1 | AD84: 2 | AE84: 2 | AF84: TRUE | AG84: TRUE | AH84: TRUE | AI84: TRUE
A85: =IF(INTRO!$E$34<>0,INTRO!$E$34,"") -> Benin | B85: Zou | C85: Zogbodomey | D85: 114697 | E85: =IF(INTRO!$E$48="","",ROUND($D85*INTRO!$E$48,0)) -> 15645 | F85: =IF(INTRO!$E$49="","",ROUND($D85*INTRO!$E$49,0)) -> 34065 | G85: =IF(INTRO!$E$50="","",ROUND($D85*INTRO!$E$50,0)) -> 60399 | H85: 99 | I85: 1 | J85: 2 | K85: 2 | L85: =IF(INTRO!$E$38="Endémique", IF($H85>0, IF($H85=4,"Inconnu", IF($H85=99,"Interrompu", $D85)), 0),"Non requis") -> Interrompu | M85: =IF(INTRO!$E$40="Endémique", IF($I85>0, IF($I85=4,"Inconnu",IF($I85=99,"Interrompu", $D85)), 0),"Non requis") -> 114697 | N85: =IF(INTRO!$E$42="Endémique", IF(AND($J85>1,$J85<5), IF($J85=4, "Inconnu", E85+F85), 0),"Non requis") -> 49710 | O85: =IF(INTRO!$E$44="Endémique", IF(AND($K85>0,$K85<5), IF($K85=4,"Inconnu", IF($K85=1, $F85*0.33, IF($K85=2, $F85*0.5+$G85*0.2, SUM(F85:G85)))), 0),"Non requis") -> 29112.3 | P85: 0 | Q85: 1 | R85: 1 | S85: 1 | T85: MDA3 (IVM) | U85: T1 (PZQ+ALB/MBD) | X85: 3289 | Y85: Zogbodomey | AB85: 99 | AC85: 1 | AD85: 2 | AE85: 2 | AF85: TRUE | AG85: TRUE | AH85: TRUE | AI85: TRUE

Sheet MDA1
A1: MDA 1 - Ivermectine (IVM) et Albendazole (ALB)
A2: Structure administrative, population nécessitant une chimioprévention par groupe d'âge, population traitée par groupe d'âge et couverture
A4: TOTAL | G4: =SUM(G$9:G$1000) -> 93593 | H4: =SUM(H$9:H$1000) -> 165948 | I4: =SUM(I$9:I$1000) -> 259541 | K4: =SUM(K$9:K$1000) -> 100221 | L4: =SUM(L$9:L$1000) -> 162165 | M4: =SUM(M$9:M$1000) -> 262386 | O4: =IF(G4<>0, IF(K4/G4*100=0, "-", K4/G4*100), " ") -> 107.0817262 | P4: =IF(H4<>0, IF(L4/H4*100=0, "-", L4/H4*100), " ") -> 97.72037024 | Q4: =IF(I4<>0, IF(M4/I4*100=0, "-", M4/I4*100), " ") -> 101.0961659
A6: Structure administrative du pays | D6: Mise en oeuvre de la CP | E6: Date | F6: Population ciblée pour MDA 1 | J6: Population traitée | N6: Couverture du Programme (%)
A7: Pays | B7: Région/Département | C7: District | F7: EAPréS | G7: EAS | H7: Adultes | I7: Total | J7: EAPréS | K7: EAS | L7: Adultes | M7: Total | N7: EAPréS | O7: EAS | P7: Adultes | Q7: Total
A9: =IF(COUNTRY_INFO!A9=0," ",COUNTRY_INFO!A9) -> Benin | B9: =IF(COUNTRY_INFO!B9=0," ",COUNTRY_INFO!B9) -> Alibori | C9: =IF(COUNTRY_INFO!C9=0," ",COUNTRY_INFO!C9) -> Banikoara | D9: =IF(COUNTRY_INFO!$T$9:$T$1000="MDA1 (IVM+ALB)", COUNTRY_INFO!$T$9:$T$1000, " ") ->  | I9: =SUM(F9:H9) -> 0 | M9: =SUM(J9:L9) -> 0 | O9: =IF(G9<>0, IF(K9/G9*100=0, "-", K9/G9*100), " ") ->  | P9: =IF(H9<>0, IF(L9/H9*100=0, "-", L9/H9*100), " ") -> 
A10: =IF(COUNTRY_INFO!A10=0," ",COUNTRY_INFO!A10) -> Benin | B10: =IF(COUNTRY_INFO!B10=0," ",COUNTRY_INFO!B10) -> Alibori | C10: =IF(COUNTRY_INFO!C10=0," ",COUNTRY_INFO!C10) -> Gogounou | D10: =IF(COUNTRY_INFO!$T$9:$T$1000="MDA1 (IVM+ALB)", COUNTRY_INFO!$T$9:$T$1000, " ") ->  | I10: =SUM(F10:H10) -> 0 | M10: =SUM(J10:L10) -> 0 | O10: =IF(G10<>0, IF(K10/G10*100=0, "-", K10/G10*100), " ") ->  | P10: =IF(H10<>0, IF(L10/H10*100=0, "-", L10/H10*100), " ") ->  | Q10: =IF(I10<>0, IF(M10/I10*100=0, "-", M10/I10*100), " ") -> 
A11: =IF(COUNTRY_INFO!A11=0," ",COUNTRY_INFO!A11) -> Benin | B11: =IF(COUNTRY_INFO!B11=0," ",COUNTRY_INFO!B11) -> Alibori | C11: =IF(COUNTRY_INFO!C11=0," ",COUNTRY_INFO!C11) -> Kandi | D11: =IF(COUNTRY_INFO!$T$9:$T$1000="MDA1 (IVM+ALB)", COUNTRY_INFO!$T$9:$T$1000, " ") ->  | I11: 0 | M11: 0
A12: =IF(COUNTRY_INFO!A12=0," ",COUNTRY_INFO!A12) -> Benin | B12: =IF(COUNTRY_INFO!B12=0," ",COUNTRY_INFO!B12) -> Alibori | C12: =IF(COUNTRY_INFO!C12=0," ",COUNTRY_INFO!C12) -> Karimama | D12: =IF(COUNTRY_INFO!$T$9:$T$1000="MDA1 (IVM+ALB)", COUNTRY_INFO!$T$9:$T$1000, " ") ->  | I12: 0 | M12: 0
A13: =IF(COUNTRY_INFO!A13=0," ",COUNTRY_INFO!A13) -> Benin | B13: =IF(COUNTRY_INFO!B13=0," ",COUNTRY_INFO!B13) -> Alibori | C13: =IF(COUNTRY_INFO!C13=0," ",COUNTRY_INFO!C13) -> Malanville | D13: =IF(COUNTRY_INFO!$T$9:$T$1000="MDA1 (IVM+ALB)", COUNTRY_INFO!$T$9:$T$1000, " ") ->  | I13: 0 | M13: 0
A14: =IF(COUNTRY_INFO!A14=0," ",COUNTRY_INFO!A14) -> Benin | B14: =IF(COUNTRY_INFO!B14=0," ",COUNTRY_INFO!B14) -> Alibori | C14: =IF(COUNTRY_INFO!C14=0," ",COUNTRY_INFO!C14) -> Ségbana | D14: =IF(COUNTRY_INFO!$T$9:$T$1000="MDA1 (IVM+ALB)", COUNTRY_INFO!$T$9:$T$1000, " ") ->  | I14: 0 | M14: 0
A15: =IF(COUNTRY_INFO!A15=0," ",COUNTRY_INFO!A15) -> Benin | B15: =IF(COUNTRY_INFO!B15=0," ",COUNTRY_INFO!B15) -> Atacora | C15: =IF(COUNTRY_INFO!C15=0," ",COUNTRY_INFO!C15) -> Boukoumbé | D15: =IF(COUNTRY_INFO!$T$9:$T$1000="MDA1 (IVM+ALB)", COUNTRY_INFO!$T$9:$T$1000, " ") ->  | I15: 0 | M15: 0
A16: =IF(COUNTRY_INFO!A16=0," ",COUNTRY_INFO!A16) -> Benin | B16: =IF(COUNTRY_INFO!B16=0," ",COUNTRY_INFO!B16) -> Atacora | C16: =IF(COUNTRY_INFO!C16=0," ",COUNTRY_INFO!C16) -> Cobly | D16: =IF(COUNTRY_INFO!$T$9:$T$1000="MDA1 (IVM+ALB)", COUNTRY_INFO!$T$9:$T$1000, " ") ->  | I16: 0 | M16: 0
A17: =IF(COUNTRY_INFO!A17=0," ",COUNTRY_INFO!A17) -> Benin | B17: =IF(COUNTRY_INFO!B17=0," ",COUNTRY_INFO!B17) -> Atacora | C17: =IF(COUNTRY_INFO!C17=0," ",COUNTRY_INFO!C17) -> Kérou | D17: =IF(COUNTRY_INFO!$T$9:$T$1000="MDA1 (IVM+ALB)", COUNTRY_INFO!$T$9:$T$1000, " ") ->  | I17: 0 | M17: 0
A18: =IF(COUNTRY_INFO!A18=0," ",COUNTRY_INFO!A18) -> Benin | B18: =IF(COUNTRY_INFO!B18=0," ",COUNTRY_INFO!B18) -> Atacora | C18: =IF(COUNTRY_INFO!C18=0," ",COUNTRY_INFO!C18) -> Kouandé | D18: =IF(COUNTRY_INFO!$T$9:$T$1000="MDA1 (IVM+ALB)", COUNTRY_INFO!$T$9:$T$1000, " ") ->  | I18: 0 | M18: 0
A19: =IF(COUNTRY_INFO!A19=0," ",COUNTRY_INFO!A19) -> Benin | B19: =IF(COUNTRY_INFO!B19=0," ",COUNTRY_INFO!B19) -> Atacora | C19: =IF(COUNTRY_INFO!C19=0," ",COUNTRY_INFO!C19) -> Matéri | D19: =IF(COUNTRY_INFO!$T$9:$T$1000="MDA1 (IVM+ALB)", COUNTRY_INFO!$T$9:$T$1000, " ") ->  | I19: 0 | M19: 0
A20: =IF(COUNTRY_INFO!A20=0," ",COUNTRY_INFO!A20) -> Benin | B20: =IF(COUNTRY_INFO!B20=0," ",COUNTRY_INFO!B20) -> Atacora | C20: =IF(COUNTRY_INFO!C20=0," ",COUNTRY_INFO!C20) -> Natitingou | D20: =IF(COUNTRY_INFO!$T$9:$T$1000="MDA1 (IVM+ALB)", COUNTRY_INFO!$T$9:$T$1000, " ") ->  | I20: 0 | M20: 0
A21: =IF(COUNTRY_INFO!A21=0," ",COUNTRY_INFO!A21) -> Benin | B21: =IF(COUNTRY_INFO!B21=0," ",COUNTRY_INFO!B21) -> Atacora | C21: =IF(COUNTRY_INFO!C21=0," ",COUNTRY_INFO!C21) -> Péhunco | D21: =IF(COUNTRY_INFO!$T$9:$T$1000="MDA1 (IVM+ALB)", COUNTRY_INFO!$T$9:$T$1000, " ") ->  | I21: 0 | M21: 0
A22: =IF(COUNTRY_INFO!A22=0," ",COUNTRY_INFO!A22) -> Benin | B22: =IF(COUNTRY_INFO!B22=0," ",COUNTRY_INFO!B22) -> Atacora | C22: =IF(COUNTRY_INFO!C22=0," ",COUNTRY_INFO!C22) -> Tanguiéta | D22: =IF(COUNTRY_INFO!$T$9:$T$1000="MDA1 (IVM+ALB)", COUNTRY_INFO!$T$9:$T$1000, " ") ->  | I22: 0 | M22: 0
A23: =IF(COUNTRY_INFO!A23=0," ",COUNTRY_INFO!A23) -> Benin | B23: =IF(COUNTRY_INFO!B23=0," ",COUNTRY_INFO!B23) -> Atacora | C23: =IF(COUNTRY_INFO!C23=0," ",COUNTRY_INFO!C23) -> Toukountouna | D23: =IF(COUNTRY_INFO!$T$9:$T$1000="MDA1 (IVM+ALB)", COUNTRY_INFO!$T$9:$T$1000, " ") ->  | I23: 0 | M23: 0
A24: =IF(COUNTRY_INFO!A24=0," ",COUNTRY_INFO!A24) -> Benin | B24: =IF(COUNTRY_INFO!B24=0," ",COUNTRY_INFO!B24) -> Atlantique | C24: =IF(COUNTRY_INFO!C24=0," ",COUNTRY_INFO!C24) -> Abomey-Calavi | D24: =IF(COUNTRY_INFO!$T$9:$T$1000="MDA1 (IVM+ALB)", COUNTRY_INFO!$T$9:$T$1000, " ") ->  | I24: 0 | M24: 0
A25: =IF(COUNTRY_INFO!A25=0," ",COUNTRY_INFO!A25) -> Benin | B25: =IF(COUNTRY_INFO!B25=0," ",COUNTRY_INFO!B25) -> Atlantique | C25: =IF(COUNTRY_INFO!C25=0," ",COUNTRY_INFO!C25) -> Allada | D25: =IF(COUNTRY_INFO!$T$9:$T$1000="MDA1 (IVM+ALB)", COUNTRY_INFO!$T$9:$T$1000, " ") ->  | I25: 0 | M25: 0
A26: =IF(COUNTRY_INFO!A26=0," ",COUNTRY_INFO!A26) -> Benin | B26: =IF(COUNTRY_INFO!B26=0," ",COUNTRY_INFO!B26) -> Atlantique | C26: =IF(COUNTRY_INFO!C26=0," ",COUNTRY_INFO!C26) -> Kpomassè | D26: =IF(COUNTRY_INFO!$T$9:$T$1000="MDA1 (IVM+ALB)", COUNTRY_INFO!$T$9:$T$1000, " ") ->  | I26: 0 | M26: 0
A27: =IF(COUNTRY_INFO!A27=0," ",COUNTRY_INFO!A27) -> Benin | B27: =IF(COUNTRY_INFO!B27=0," ",COUNTRY_INFO!B27) -> Atlantique | C27: =IF(COUNTRY_INFO!C27=0," ",COUNTRY_INFO!C27) -> Ouidah | D27: =IF(COUNTRY_INFO!$T$9:$T$1000="MDA1 (IVM+ALB)", COUNTRY_INFO!$T$9:$T$1000, " ") ->  | I27: 0 | M27: 0
A28: =IF(COUNTRY_INFO!A28=0," ",COUNTRY_INFO!A28) -> Benin | B28: =IF(COUNTRY_INFO!B28=0," ",COUNTRY_INFO!B28) -> Atlantique | C28: =IF(COUNTRY_INFO!C28=0," ",COUNTRY_INFO!C28) -> So-Ava | D28: =IF(COUNTRY_INFO!$T$9:$T$1000="MDA1 (IVM+ALB)", COUNTRY_INFO!$T$9:$T$1000, " ") ->  | I28: 0 | M28: 0
A29: =IF(COUNTRY_INFO!A29=0," ",COUNTRY_INFO!A29) -> Benin | B29: =IF(COUNTRY_INFO!B29=0," ",COUNTRY_INFO!B29) -> Atlantique | C29: =IF(COUNTRY_INFO!C29=0," ",COUNTRY_INFO!C29) -> Toffo | D29: =IF(COUNTRY_INFO!$T$9:$T$1000="MDA1 (IVM+ALB)", COUNTRY_INFO!$T$9:$T$1000, " ") ->  | I29: 0 | M29: 0
A30: =IF(COUNTRY_INFO!A30=0," ",COUNTRY_INFO!A30) -> Benin | B30: =IF(COUNTRY_INFO!B30=0," ",COUNTRY_INFO!B30) -> Atlantique | C30: =IF(COUNTRY_INFO!C30=0," ",COUNTRY_INFO!C30) -> Torri-Bossito | D30: =IF(COUNTRY_INFO!$T$9:$T$1000="MDA1 (IVM+ALB)", COUNTRY_INFO!$T$9:$T$1000, " ") ->  | I30: 0 | M30: 0
A31: =IF(COUNTRY_INFO!A31=0," ",COUNTRY_INFO!A31) -> Benin | B31: =IF(COUNTRY_INFO!B31=0," ",COUNTRY_INFO!B31) -> Atlantique | C31: =IF(COUNTRY_INFO!C31=0," ",COUNTRY_INFO!C31) -> Zè | D31: =IF(COUNTRY_INFO!$T$9:$T$1000="MDA1 (IVM+ALB)", COUNTRY_INFO!$T$9:$T$1000, " ") ->  | I31: 0 | M31: 0
A32: =IF(COUNTRY_INFO!A32=0," ",COUNTRY_INFO!A32) -> Benin | B32: =IF(COUNTRY_INFO!B32=0," ",COUNTRY_INFO!B32) -> Borgou | C32: =IF(COUNTRY_INFO!C32=0," ",COUNTRY_INFO!C32) -> Bembèrèkè | D32: =IF(COUNTRY_INFO!$T$9:$T$1000="MDA1 (IVM+ALB)", COUNTRY_INFO!$T$9:$T$1000, " ") ->  | I32: 0 | M32: 0
A33: =IF(COUNTRY_INFO!A33=0," ",COUNTRY_INFO!A33) -> Benin | B33: =IF(COUNTRY_INFO!B33=0," ",COUNTRY_INFO!B33) -> Borgou | C33: =IF(COUNTRY_INFO!C33=0," ",COUNTRY_INFO!C33) -> Kalalé | D33: =IF(COUNTRY_INFO!$T$9:$T$1000="MDA1 (IVM+ALB)", COUNTRY_INFO!$T$9:$T$1000, " ") ->  | I33: 0 | M33: 0
A34: =IF(COUNTRY_INFO!A34=0," ",COUNTRY_INFO!A34) -> Benin | B34: =IF(COUNTRY_INFO!B34=0," ",COUNTRY_INFO!B34) -> Borgou | C34: =IF(COUNTRY_INFO!C34=0," ",COUNTRY_INFO!C34) -> N'Dali | D34: =IF(COUNTRY_INFO!$T$9:$T$1000="MDA1 (IVM+ALB)", COUNTRY_INFO!$T$9:$T$1000, " ") ->  | I34: 0 | M34: 0
A35: =IF(COUNTRY_INFO!A35=0," ",COUNTRY_INFO!A35) -> Benin | B35: =IF(COUNTRY_INFO!B35=0," ",COUNTRY_INFO!B35) -> Borgou | C35: =IF(COUNTRY_INFO!C35=0," ",COUNTRY_INFO!C35) -> Nikki | D35: =IF(COUNTRY_INFO!$T$9:$T$1000="MDA1 (IVM+ALB)", COUNTRY_INFO!$T$9:$T$1000, " ") ->  | I35: 0 | M35: 0
A36: =IF(COUNTRY_INFO!A36=0," ",COUNTRY_INFO!A36) -> Benin | B36: =IF(COUNTRY_INFO!B36=0," ",COUNTRY_INFO!B36) -> Borgou | C36: =IF(COUNTRY_INFO!C36=0," ",COUNTRY_INFO!C36) -> Parakou | D36: =IF(COUNTRY_INFO!$T$9:$T$1000="MDA1 (IVM+ALB)", COUNTRY_INFO!$T$9:$T$1000, " ") ->  | I36: 0 | M36: 0
A37: =IF(COUNTRY_INFO!A37=0," ",COUNTRY_INFO!A37) -> Benin | B37: =IF(COUNTRY_INFO!B37=0," ",COUNTRY_INFO!B37) -> Borgou | C37: =IF(COUNTRY_INFO!C37=0," ",COUNTRY_INFO!C37) -> Pèrèrè | D37: =IF(COUNTRY_INFO!$T$9:$T$1000="MDA1 (IVM+ALB)", COUNTRY_INFO!$T$9:$T$1000, " ") ->  | I37: 0 | M37: 0
A38: =IF(COUNTRY_INFO!A38=0," ",COUNTRY_INFO!A38) -> Benin | B38: =IF(COUNTRY_INFO!B38=0," ",COUNTRY_INFO!B38) -> Borgou | C38: =IF(COUNTRY_INFO!C38=0," ",COUNTRY_INFO!C38) -> Sinendé | D38: =IF(COUNTRY_INFO!$T$9:$T$1000="MDA1 (IVM+ALB)", COUNTRY_INFO!$T$9:$T$1000, " ") ->  | I38: 0 | M38: 0
A39: =IF(COUNTRY_INFO!A39=0," ",COUNTRY_INFO!A39) -> Benin | B39: =IF(COUNTRY_INFO!B39=0," ",COUNTRY_INFO!B39) -> Borgou | C39: =IF(COUNTRY_INFO!C39=0," ",COUNTRY_INFO!C39) -> Tchaourou | D39: =IF(COUNTRY_INFO!$T$9:$T$1000="MDA1 (IVM+ALB)", COUNTRY_INFO!$T$9:$T$1000, " ") ->  | I39: 0 | M39: 0
A40: =IF(COUNTRY_INFO!A40=0," ",COUNTRY_INFO!A40) -> Benin | B40: =IF(COUNTRY_INFO!B40=0," ",COUNTRY_INFO!B40) -> Collines | C40: =IF(COUNTRY_INFO!C40=0," ",COUNTRY_INFO!C40) -> Bantè | D40: =IF(COUNTRY_INFO!$T$9:$T$1000="MDA1 (IVM+ALB)", COUNTRY_INFO!$T$9:$T$1000, " ") ->  | I40: 0 | M40: 0
A41: =IF(COUNTRY_INFO!A41=0," ",COUNTRY_INFO!A41) -> Benin | B41: =IF(COUNTRY_INFO!B41=0," ",COUNTRY_INFO!B41) -> Collines | C41: =IF(COUNTRY_INFO!C41=0," ",COUNTRY_INFO!C41) -> Dassa-Zoumè | D41: =IF(COUNTRY_INFO!$T$9:$T$1000="MDA1 (IVM+ALB)", COUNTRY_INFO!$T$9:$T$1000, " ") ->  | I41: 0 | M41: 0
A42: =IF(COUNTRY_INFO!A42=0," ",COUNTRY_INFO!A42) -> Benin | B42: =IF(COUNTRY_INFO!B42=0," ",COUNTRY_INFO!B42) -> Collines | C42: =IF(COUNTRY_INFO!C42=0," ",COUNTRY_INFO!C42) -> Glazoué | D42: =IF(COUNTRY_INFO!$T$9:$T$1000="MDA1 (IVM+ALB)", COUNTRY_INFO!$T$9:$T$1000, " ") ->  | I42: 0 | M42: 0
A43: =IF(COUNTRY_INFO!A43=0," ",COUNTRY_INFO!A43) -> Benin | B43: =IF(COUNTRY_INFO!B43=0," ",COUNTRY_INFO!B43) -> Collines | C43: =IF(COUNTRY_INFO!C43=0," ",COUNTRY_INFO!C43) -> Ouèssè | D43: =IF(COUNTRY_INFO!$T$9:$T$1000="MDA1 (IVM+ALB)", COUNTRY_INFO!$T$9:$T$1000, " ") ->  | I43: 0 | M43: 0
A44: =IF(COUNTRY_INFO!A44=0," ",COUNTRY_INFO!A44) -> Benin | B44: =IF(COUNTRY_INFO!B44=0," ",COUNTRY_INFO!B44) -> Collines | C44: =IF(COUNTRY_INFO!C44=0," ",COUNTRY_INFO!C44) -> Savalou | D44: =IF(COUNTRY_INFO!$T$9:$T$1000="MDA1 (IVM+ALB)", COUNTRY_INFO!$T$9:$T$1000, " ") ->  | I44: 0 | M44: 0
A45: =IF(COUNTRY_INFO!A45=0," ",COUNTRY_INFO!A45) -> Benin | B45: =IF(COUNTRY_INFO!B45=0," ",COUNTRY_INFO!B45) -> Collines | C45: =IF(COUNTRY_INFO!C45=0," ",COUNTRY_INFO!C45) -> Savè | D45: =IF(COUNTRY_INFO!$T$9:$T$1000="MDA1 (IVM+ALB)", COUNTRY_INFO!$T$9:$T$1000, " ") ->  | I45: 0 | M45: 0
A46: =IF(COUNTRY_INFO!A46=0," ",COUNTRY_INFO!A46) -> Benin | B46: =IF(COUNTRY_INFO!B46=0," ",COUNTRY_INFO!B46) -> Couffo | C46: =IF(COUNTRY_INFO!C46=0," ",COUNTRY_INFO!C46) -> Aplahoué | D46: =IF(COUNTRY_INFO!$T$9:$T$1000="MDA1 (IVM+ALB)", COUNTRY_INFO!$T$9:$T$1000, " ") ->  | I46: 0 | M46: 0
A47: =IF(COUNTRY_INFO!A47=0," ",COUNTRY_INFO!A47) -> Benin | B47: =IF(COUNTRY_INFO!B47=0," ",COUNTRY_INFO!B47) -> Couffo | C47: =IF(COUNTRY_INFO!C47=0," ",COUNTRY_INFO!C47) -> Djakotomè | D47: =IF(COUNTRY_INFO!$T$9:$T$1000="MDA1 (IVM+ALB)", COUNTRY_INFO!$T$9:$T$1000, " ") ->  | I47: 0 | M47: 0
A48: =IF(COUNTRY_INFO!A48=0," ",COUNTRY_INFO!A48) -> Benin | B48: =IF(COUNTRY_INFO!B48=0," ",COUNTRY_INFO!B48) -> Couffo | C48: =IF(COUNTRY_INFO!C48=0," ",COUNTRY_INFO!C48) -> Dogbo | D48: =IF(COUNTRY_INFO!$T$9:$T$1000="MDA1 (IVM+ALB)", COUNTRY_INFO!$T$9:$T$1000, " ") ->  | I48: 0 | M48: 0
A49: =IF(COUNTRY_INFO!A49=0," ",COUNTRY_INFO!A49) -> Benin | B49: =IF(COUNTRY_INFO!B49=0," ",COUNTRY_INFO!B49) -> Couffo | C49: =IF(COUNTRY_INFO!C49=0," ",COUNTRY_INFO!C49) -> Klouékamè | D49: =IF(COUNTRY_INFO!$T$9:$T$1000="MDA1 (IVM+ALB)", COUNTRY_INFO!$T$9:$T$1000, " ") ->  | I49: 0 | M49: 0
A50: =IF(COUNTRY_INFO!A50=0," ",COUNTRY_INFO!A50) -> Benin | B50: =IF(COUNTRY_INFO!B50=0," ",COUNTRY_INFO!B50) -> Couffo | C50: =IF(COUNTRY_INFO!C50=0," ",COUNTRY_INFO!C50) -> Lalo | D50: =IF(COUNTRY_INFO!$T$9:$T$1000="MDA1 (IVM+ALB)", COUNTRY_INFO!$T$9:$T$1000, " ") ->  | I50: 0 | M50: 0
A51: =IF(COUNTRY_INFO!A51=0," ",COUNTRY_INFO!A51) -> Benin | B51: =IF(COUNTRY_INFO!B51=0," ",COUNTRY_INFO!B51) -> Couffo | C51: =IF(COUNTRY_INFO!C51=0," ",COUNTRY_INFO!C51) -> Toviklin | D51: =IF(COUNTRY_INFO!$T$9:$T$1000="MDA1 (IVM+ALB)", COUNTRY_INFO!$T$9:$T$1000, " ") ->  | I51: 0 | M51: 0
A52: =IF(COUNTRY_INFO!A52=0," ",COUNTRY_INFO!A52) -> Benin | B52: =IF(COUNTRY_INFO!B52=0," ",COUNTRY_INFO!B52) -> Donga | C52: =IF(COUNTRY_INFO!C52=0," ",COUNTRY_INFO!C52) -> Bassila | D52: =IF(COUNTRY_INFO!$T$9:$T$1000="MDA1 (IVM+ALB)", COUNTRY_INFO!$T$9:$T$1000, " ") ->  | I52: 0 | M52: 0
A53: =IF(COUNTRY_INFO!A53=0," ",COUNTRY_INFO!A53) -> Benin | B53: =IF(COUNTRY_INFO!B53=0," ",COUNTRY_INFO!B53) -> Donga | C53: =IF(COUNTRY_INFO!C53=0," ",COUNTRY_INFO!C53) -> Copargo | D53: =IF(COUNTRY_INFO!$T$9:$T$1000="MDA1 (IVM+ALB)", COUNTRY_INFO!$T$9:$T$1000, " ") ->  | I53: 0 | M53: 0
A54: =IF(COUNTRY_INFO!A54=0," ",COUNTRY_INFO!A54) -> Benin | B54: =IF(COUNTRY_INFO!B54=0," ",COUNTRY_INFO!B54) -> Donga | C54: =IF(COUNTRY_INFO!C54=0," ",COUNTRY_INFO!C54) -> Djougou | D54: =IF(COUNTRY_INFO!$T$9:$T$1000="MDA1 (IVM+ALB)", COUNTRY_INFO!$T$9:$T$1000, " ") ->  | I54: 0 | M54: 0
A55: =IF(COUNTRY_INFO!A55=0," ",COUNTRY_INFO!A55) -> Benin | B55: =IF(COUNTRY_INFO!B55=0," ",COUNTRY_INFO!B55) -> Donga | C55: =IF(COUNTRY_INFO!C55=0," ",COUNTRY_INFO!C55) -> Ouaké | D55: =IF(COUNTRY_INFO!$T$9:$T$1000="MDA1 (IVM+ALB)", COUNTRY_INFO!$T$9:$T$1000, " ") ->  | I55: 0 | M55: 0
A56: =IF(COUNTRY_INFO!A56=0," ",COUNTRY_INFO!A56) -> Benin | B56: =IF(COUNTRY_INFO!B56=0," ",COUNTRY_INFO!B56) -> Littoral | C56: =IF(COUNTRY_INFO!C56=0," ",COUNTRY_INFO!C56) -> Cotonou | D56: =IF(COUNTRY_INFO!$T$9:$T$1000="MDA1 (IVM+ALB)", COUNTRY_INFO!$T$9:$T$1000, " ") ->  | I56: 0 | M56: 0
A57: =IF(COUNTRY_INFO!A57=0," ",COUNTRY_INFO!A57) -> Benin | B57: =IF(COUNTRY_INFO!B57=0," ",COUNTRY_INFO!B57) -> Mono | C57: =IF(COUNTRY_INFO!C57=0," ",COUNTRY_INFO!C57) -> Athiémé | D57: =IF(COUNTRY_INFO!$T$9:$T$1000="MDA1 (IVM+ALB)", COUNTRY_INFO!$T$9:$T$1000, " ") ->  | I57: 0 | M57: 0
A58: =IF(COUNTRY_INFO!A58=0," ",COUNTRY_INFO!A58) -> Benin | B58: =IF(COUNTRY_INFO!B58=0," ",COUNTRY_INFO!B58) -> Mono | C58: =IF(COUNTRY_INFO!C58=0," ",COUNTRY_INFO!C58) -> Bopa | D58: =IF(COUNTRY_INFO!$T$9:$T$1000="MDA1 (IVM+ALB)", COUNTRY_INFO!$T$9:$T$1000, " ") ->  | I58: 0 | M58: 0
A59: =IF(COUNTRY_INFO!A59=0," ",COUNTRY_INFO!A59) -> Benin | B59: =IF(COUNTRY_INFO!B59=0," ",COUNTRY_INFO!B59) -> Mono | C59: =IF(COUNTRY_INFO!C59=0," ",COUNTRY_INFO!C59) -> Comé | D59: =IF(COUNTRY_INFO!$T$9:$T$1000="MDA1 (IVM+ALB)", COUNTRY_INFO!$T$9:$T$1000, " ") ->  | I59: 0 | M59: 0
A60: =IF(COUNTRY_INFO!A60=0," ",COUNTRY_INFO!A60) -> Benin | B60: =IF(COUNTRY_INFO!B60=0," ",COUNTRY_INFO!B60) -> Mono | C60: =IF(COUNTRY_INFO!C60=0," ",COUNTRY_INFO!C60) -> Grand-Popo | D60: =IF(COUNTRY_INFO!$T$9:$T$1000="MDA1 (IVM+ALB)", COUNTRY_INFO!$T$9:$T$1000, " ") ->  | I60: 0 | M60: 0
A61: =IF(COUNTRY_INFO!A61=0," ",COUNTRY_INFO!A61) -> Benin | B61: =IF(COUNTRY_INFO!B61=0," ",COUNTRY_INFO!B61) -> Mono | C61: =IF(COUNTRY_INFO!C61=0," ",COUNTRY_INFO!C61) -> Houéyogbé | D61: =IF(COUNTRY_INFO!$T$9:$T$1000="MDA1 (IVM+ALB)", COUNTRY_INFO!$T$9:$T$1000, " ") ->  | I61: 0 | M61: 0
A62: =IF(COUNTRY_INFO!A62=0," ",COUNTRY_INFO!A62) -> Benin | B62: =IF(COUNTRY_INFO!B62=0," ",COUNTRY_INFO!B62) -> Mono | C62: =IF(COUNTRY_INFO!C62=0," ",COUNTRY_INFO!C62) -> Lokossa | D62: =IF(COUNTRY_INFO!$T$9:$T$1000="MDA1 (IVM+ALB)", COUNTRY_INFO!$T$9:$T$1000, " ") ->  | I62: 0 | M62: 0
A63: =IF(COUNTRY_INFO!A63=0," ",COUNTRY_INFO!A63) -> Benin | B63: =IF(COUNTRY_INFO!B63=0," ",COUNTRY_INFO!B63) -> Oueme | C63: =IF(COUNTRY_INFO!C63=0," ",COUNTRY_INFO!C63) -> Adjarra | D63: =IF(COUNTRY_INFO!$T$9:$T$1000="MDA1 (IVM+ALB)", COUNTRY_INFO!$T$9:$T$1000, " ") ->  | I63: 0 | M63: 0
A64: =IF(COUNTRY_INFO!A64=0," ",COUNTRY_INFO!A64) -> Benin | B64: =IF(COUNTRY_INFO!B64=0," ",COUNTRY_INFO!B64) -> Oueme | C64: =IF(COUNTRY_INFO!C64=0," ",COUNTRY_INFO!C64) -> Adjohoun | D64: =IF(COUNTRY_INFO!$T$9:$T$1000="MDA1 (IVM+ALB)", COUNTRY_INFO!$T$9:$T$1000, " ") ->  | I64: 0 | M64: 0
A65: =IF(COUNTRY_INFO!A65=0," ",COUNTRY_INFO!A65) -> Benin | B65: =IF(COUNTRY_INFO!B65=0," ",COUNTRY_INFO!B65) -> Oueme | C65: =IF(COUNTRY_INFO!C65=0," ",COUNTRY_INFO!C65) -> Aguégués | D65: =IF(COUNTRY_INFO!$T$9:$T$1000="MDA1 (IVM+ALB)", COUNTRY_INFO!$T$9:$T$1000, " ") ->  | I65: 0 | M65: 0
A66: =IF(COUNTRY_INFO!A66=0," ",COUNTRY_INFO!A66) -> Benin | B66: =IF(COUNTRY_INFO!B66=0," ",COUNTRY_INFO!B66) -> Oueme | C66: =IF(COUNTRY_INFO!C66=0," ",COUNTRY_INFO!C66) -> Akpro-Missérété | D66: =IF(COUNTRY_INFO!$T$9:$T$1000="MDA1 (IVM+ALB)", COUNTRY_INFO!$T$9:$T$1000, " ") ->  | I66: 0 | M66: 0
A67: =IF(COUNTRY_INFO!A67=0," ",COUNTRY_INFO!A67) -> Benin | B67: =IF(COUNTRY_INFO!B67=0," ",COUNTRY_INFO!B67) -> Oueme | C67: =IF(COUNTRY_INFO!C67=0," ",COUNTRY_INFO!C67) -> Avrankou | D67: =IF(COUNTRY_INFO!$T$9:$T$1000="MDA1 (IVM+ALB)", COUNTRY_INFO!$T$9:$T$1000, " ") ->  | I67: 0 | M67: 0
A68: =IF(COUNTRY_INFO!A68=0," ",COUNTRY_INFO!A68) -> Benin | B68: =IF(COUNTRY_INFO!B68=0," ",COUNTRY_INFO!B68) -> Oueme | C68: =IF(COUNTRY_INFO!C68=0," ",COUNTRY_INFO!C68) -> Bonou | D68: =IF(COUNTRY_INFO!$T$9:$T$1000="MDA1 (IVM+ALB)", COUNTRY_INFO!$T$9:$T$1000, " ") ->  | I68: 0 | M68: 0
A69: =IF(COUNTRY_INFO!A69=0," ",COUNTRY_INFO!A69) -> Benin | B69: =IF(COUNTRY_INFO!B69=0," ",COUNTRY_INFO!B69) -> Oueme | C69: =IF(COUNTRY_INFO!C69=0," ",COUNTRY_INFO!C69) -> Dangbo | D69: =IF(COUNTRY_INFO!$T$9:$T$1000="MDA1 (IVM+ALB)", COUNTRY_INFO!$T$9:$T$1000, " ") ->  | I69: 0 | M69: 0
A70: =IF(COUNTRY_INFO!A70=0," ",COUNTRY_INFO!A70) -> Benin | B70: =IF(COUNTRY_INFO!B70=0," ",COUNTRY_INFO!B70) -> Oueme | C70: =IF(COUNTRY_INFO!C70=0," ",COUNTRY_INFO!C70) -> Porto-Novo | D70: =IF(COUNTRY_INFO!$T$9:$T$1000="MDA1 (IVM+ALB)", COUNTRY_INFO!$T$9:$T$1000, " ") ->  | I70: 0 | M70: 0
A71: =IF(COUNTRY_INFO!A71=0," ",COUNTRY_INFO!A71) -> Benin | B71: =IF(COUNTRY_INFO!B71=0," ",COUNTRY_INFO!B71) -> Oueme | C71: =IF(COUNTRY_INFO!C71=0," ",COUNTRY_INFO!C71) -> Sèmè-Kpodji | D71: =IF(COUNTRY_INFO!$T$9:$T$1000="MDA1 (IVM+ALB)", COUNTRY_INFO!$T$9:$T$1000, " ") ->  | I71: 0 | M71: 0
A72: =IF(COUNTRY_INFO!A72=0," ",COUNTRY_INFO!A72) -> Benin | B72: =IF(COUNTRY_INFO!B72=0," ",COUNTRY_INFO!B72) -> Plateau | C72: =IF(COUNTRY_INFO!C72=0," ",COUNTRY_INFO!C72) -> Adja-Ouèrè | D72: =IF(COUNTRY_INFO!$T$9:$T$1000="MDA1 (IVM+ALB)", COUNTRY_INFO!$T$9:$T$1000, " ") ->  | I72: 0 | M72: 0
A73: =IF(COUNTRY_INFO!A73=0," ",COUNTRY_INFO!A73) -> Benin | B73: =IF(COUNTRY_INFO!B73=0," ",COUNTRY_INFO!B73) -> Plateau | C73: =IF(COUNTRY_INFO!C73=0," ",COUNTRY_INFO!C73) -> Ifangni | D73: =IF(COUNTRY_INFO!$T$9:$T$1000="MDA1 (IVM+ALB)", COUNTRY_INFO!$T$9:$T$1000, " ") ->  | I73: 0 | M73: 0
A74: =IF(COUNTRY_INFO!A74=0," ",COUNTRY_INFO!A74) -> Benin | B74: =IF(COUNTRY_INFO!B74=0," ",COUNTRY_INFO!B74) -> Plateau | C74: =IF(COUNTRY_INFO!C74=0," ",COUNTRY_INFO!C74) -> Kétou | D74: =IF(COUNTRY_INFO!$T$9:$T$1000="MDA1 (IVM+ALB)", COUNTRY_INFO!$T$9:$T$1000, " ") ->  | I74: =SUM(F74:H74) -> 0 | M74: =SUM(J74:L74) -> 0 | O74: =IF(G74<>0, IF(K74/G74*100=0, "-", K74/G74*100), " ") ->  | P74: =IF(H74<>0, IF(L74/H74*100=0, "-", L74/H74*100), " ") ->  | Q74: =IF(I74<>0, IF(M74/I74*100=0, "-", M74/I74*100), " ") -> 
A75: =IF(COUNTRY_INFO!A75=0," ",COUNTRY_INFO!A75) -> Benin | B75: =IF(COUNTRY_INFO!B75=0," ",COUNTRY_INFO!B75) -> Plateau | C75: =IF(COUNTRY_INFO!C75=0," ",COUNTRY_INFO!C75) -> Pobè | D75: =IF(COUNTRY_INFO!$T$9:$T$1000="MDA1 (IVM+ALB)", COUNTRY_INFO!$T$9:$T$1000, " ") ->  | I75: 0 | M75: 0
A76: =IF(COUNTRY_INFO!A76=0," ",COUNTRY_INFO!A76) -> Benin | B76: =IF(COUNTRY_INFO!B76=0," ",COUNTRY_INFO!B76) -> Plateau | C76: =IF(COUNTRY_INFO!C76=0," ",COUNTRY_INFO!C76) -> Sakété | D76: =IF(COUNTRY_INFO!$T$9:$T$1000="MDA1 (IVM+ALB)", COUNTRY_INFO!$T$9:$T$1000, " ") ->  | I76: 0 | M76: 0
A77: =IF(COUNTRY_INFO!A77=0," ",COUNTRY_INFO!A77) -> Benin | B77: =IF(COUNTRY_INFO!B77=0," ",COUNTRY_INFO!B77) -> Zou | C77: =IF(COUNTRY_INFO!C77=0," ",COUNTRY_INFO!C77) -> Abomey | D77: =IF(COUNTRY_INFO!$T$9:$T$1000="MDA1 (IVM+ALB)", COUNTRY_INFO!$T$9:$T$1000, " ") ->  | I77: 0 | M77: 0
A78: =IF(COUNTRY_INFO!A78=0," ",COUNTRY_INFO!A78) -> Benin | B78: =IF(COUNTRY_INFO!B78=0," ",COUNTRY_INFO!B78) -> Zou | C78: =IF(COUNTRY_INFO!C78=0," ",COUNTRY_INFO!C78) -> Agbangnizoun | D78: =IF(COUNTRY_INFO!$T$9:$T$1000="MDA1 (IVM+ALB)", COUNTRY_INFO!$T$9:$T$1000, " ") ->  | I78: 0 | M78: 0
A79: =IF(COUNTRY_INFO!A79=0," ",COUNTRY_INFO!A79) -> Benin | B79: =IF(COUNTRY_INFO!B79=0," ",COUNTRY_INFO!B79) -> Zou | C79: =IF(COUNTRY_INFO!C79=0," ",COUNTRY_INFO!C79) -> Bohicon | D79: =IF(COUNTRY_INFO!$T$9:$T$1000="MDA1 (IVM+ALB)", COUNTRY_INFO!$T$9:$T$1000, " ") ->  | I79: 0 | M79: 0
A80: =IF(COUNTRY_INFO!A80=0," ",COUNTRY_INFO!A80) -> Benin | B80: =IF(COUNTRY_INFO!B80=0," ",COUNTRY_INFO!B80) -> Zou | C80: =IF(COUNTRY_INFO!C80=0," ",COUNTRY_INFO!C80) -> Covè | D80: =IF(COUNTRY_INFO!$T$9:$T$1000="MDA1 (IVM+ALB)", COUNTRY_INFO!$T$9:$T$1000, " ") -> MDA1 (IVM+ALB) | E80: 04/2020 | G80: 13194 | H80: 23394 | I80: 36588 | K80: 12405 | L80: 23180 | M80: 35585 | O80: 94.0200091 | P80: 99.08523553 | Q80: 97.25866404
A81: =IF(COUNTRY_INFO!A81=0," ",COUNTRY_INFO!A81) -> Benin | B81: =IF(COUNTRY_INFO!B81=0," ",COUNTRY_INFO!B81) -> Zou | C81: =IF(COUNTRY_INFO!C81=0," ",COUNTRY_INFO!C81) -> Djidja | D81: =IF(COUNTRY_INFO!$T$9:$T$1000="MDA1 (IVM+ALB)", COUNTRY_INFO!$T$9:$T$1000, " ") ->  | I81: 0 | M81: 0
A82: =IF(COUNTRY_INFO!A82=0," ",COUNTRY_INFO!A82) -> Benin | B82: =IF(COUNTRY_INFO!B82=0," ",COUNTRY_INFO!B82) -> Zou | C82: =IF(COUNTRY_INFO!C82=0," ",COUNTRY_INFO!C82) -> Ouinhi | D82: =IF(COUNTRY_INFO!$T$9:$T$1000="MDA1 (IVM+ALB)", COUNTRY_INFO!$T$9:$T$1000, " ") -> MDA1 (IVM+ALB) | E82: 04/2020 | G82: 19752 | H82: 35022 | I82: 54774 | K82: 19240 | L82: 29977 | M82: 49217 | O82: 97.40785743 | P82: 85.594769 | Q82: 89.85467558
A83: =IF(COUNTRY_INFO!A83=0," ",COUNTRY_INFO!A83) -> Benin | B83: =IF(COUNTRY_INFO!B83=0," ",COUNTRY_INFO!B83) -> Zou | C83: =IF(COUNTRY_INFO!C83=0," ",COUNTRY_INFO!C83) -> Zagnanado | D83: =IF(COUNTRY_INFO!$T$9:$T$1000="MDA1 (IVM+ALB)", COUNTRY_INFO!$T$9:$T$1000, " ") -> MDA1 (IVM+ALB) | E83: 04/2020 | G83: 15979 | H83: 28333 | I83: 44312 | K83: 14800 | L83: 27721 | M83: 42521 | O83: 92.62156581 | P83: 97.83997459 | Q83: 95.95820545
A84: =IF(COUNTRY_INFO!A84=0," ",COUNTRY_INFO!A84) -> Benin | B84: =IF(COUNTRY_INFO!B84=0," ",COUNTRY_INFO!B84) -> Zou | C84: =IF(COUNTRY_INFO!C84=0," ",COUNTRY_INFO!C84) -> Za-Kpota | D84: =IF(COUNTRY_INFO!$T$9:$T$1000="MDA1 (IVM+ALB)", COUNTRY_INFO!$T$9:$T$1000, " ") -> MDA1 (IVM+ALB) | E84: 04/2020 | G84: 44668 | H84: 79199 | I84: 123867 | K84: 53776 | L84: 81287 | M84: 135063 | O84: 120.3904361 | P84: 102.6363969 | Q84: 109.038727
A85: =IF(COUNTRY_INFO!A85=0," ",COUNTRY_INFO!A85) -> Benin | B85: =IF(COUNTRY_INFO!B85=0," ",COUNTRY_INFO!B85) -> Zou | C85: =IF(COUNTRY_INFO!C85=0," ",COUNTRY_INFO!C85) -> Zogbodomey | D85: =IF(COUNTRY_INFO!$T$9:$T$1000="MDA1 (IVM+ALB)", COUNTRY_INFO!$T$9:$T$1000, " ") ->  | I85: 0 | M85: 0

Sheet MDA2 (hidden)
A1: MDA 2 - Diethylcarbamazine (DEC) + Albendazole (ALB)
A2: Structure administrative, population nécessitant une chimioprévention par groupe d'âge, population traitée par groupe d'âge et couverture
A4: TOTAL | F4: =SUM(F$9:F$1000) -> 0 | G4: =SUM(G$9:G$1000) -> 0 | H4: 0 | I4: 0 | J4: 0 | K4: 0 | L4: 0 | M4: 0 | N4: =IF(F4<>0, IF(J4/F4*100=0, "-", J4/F4*100), " ") ->  | O4: =IF(G4<>0, IF(K4/G4*100=0, "-", K4/G4*100), " ") ->  | P4: =IF(H4<>0, IF(L4/H4*100=0, "-", L4/H4*100), " ") ->  | Q4: =IF(I4<>0, IF(M4/I4*100=0, "-", M4/I4*100), " ") -> 
A6: Structure administrative du pays | D6: Mise en oeuvre de la CP | E6: Date | F6: Population ciblée pour MDA 2 | J6: Population traitée | N6: Couverture du Programme (%)
A7: Pays | B7: Région/Département | C7: District | F7: EAPréS | G7: EAS | H7: Adultes | I7: Total | J7: EAPréS | K7: EAS | L7: Adultes | M7: Total | N7: EAPréS | O7: EAS | P7: Adultes | Q7: Total
A9: =IF(COUNTRY_INFO!A9=0," ",COUNTRY_INFO!A9) -> Benin | B9: =IF(COUNTRY_INFO!B9=0," ",COUNTRY_INFO!B9) -> Alibori | C9: =IF(COUNTRY_INFO!C9=0," ",COUNTRY_INFO!C9) -> Banikoara | D9: =IF(COUNTRY_INFO!$T$9:$T$1000="MDA2 (DEC+ALB)", COUNTRY_INFO!$T$9:$T$1000, " ") ->  | I9: =SUM(F9:H9) -> 0 | M9: =SUM(J9:L9) -> 0 | N9: =IF(F9<>0, IF(J9/F9*100=0, "-", J9/F9*100), " ") -> 
A10: =IF(COUNTRY_INFO!A10=0," ",COUNTRY_INFO!A10) -> Benin | B10: =IF(COUNTRY_INFO!B10=0," ",COUNTRY_INFO!B10) -> Alibori | C10: =IF(COUNTRY_INFO!C10=0," ",COUNTRY_INFO!C10) -> Gogounou | D10: =IF(COUNTRY_INFO!$T$9:$T$1000="MDA2 (DEC+ALB)", COUNTRY_INFO!$T$9:$T$1000, " ") ->  | I10: =SUM(F10:H10) -> 0 | M10: =SUM(J10:L10) -> 0 | N10: =IF(F10<>0, IF(J10/F10*100=0, "-", J10/F10*100), " ") ->  | O10: =IF(G10<>0, IF(K10/G10*100=0, "-", K10/G10*100), " ") ->  | P10: =IF(H10<>0, IF(L10/H10*100=0, "-", L10/H10*100), " ") ->  | Q10: =IF(I10<>0, IF(M10/I10*100=0, "-", M10/I10*100), " ") -> 
A11: =IF(COUNTRY_INFO!A11=0," ",COUNTRY_INFO!A11) -> Benin | B11: =IF(COUNTRY_INFO!B11=0," ",COUNTRY_INFO!B11) -> Alibori | C11: =IF(COUNTRY_INFO!C11=0," ",COUNTRY_INFO!C11) -> Kandi | D11: =IF(COUNTRY_INFO!$T$9:$T$1000="MDA2 (DEC+ALB)", COUNTRY_INFO!$T$9:$T$1000, " ") ->  | I11: 0 | M11: 0
A12: =IF(COUNTRY_INFO!A12=0," ",COUNTRY_INFO!A12) -> Benin | B12: =IF(COUNTRY_INFO!B12=0," ",COUNTRY_INFO!B12) -> Alibori | C12: =IF(COUNTRY_INFO!C12=0," ",COUNTRY_INFO!C12) -> Karimama | D12: =IF(COUNTRY_INFO!$T$9:$T$1000="MDA2 (DEC+ALB)", COUNTRY_INFO!$T$9:$T$1000, " ") ->  | I12: 0 | M12: 0
A13: =IF(COUNTRY_INFO!A13=0," ",COUNTRY_INFO!A13) -> Benin | B13: =IF(COUNTRY_INFO!B13=0," ",COUNTRY_INFO!B13) -> Alibori | C13: =IF(COUNTRY_INFO!C13=0," ",COUNTRY_INFO!C13) -> Malanville | D13: =IF(COUNTRY_INFO!$T$9:$T$1000="MDA2 (DEC+ALB)", COUNTRY_INFO!$T$9:$T$1000, " ") ->  | I13: 0 | M13: 0
A14: =IF(COUNTRY_INFO!A14=0," ",COUNTRY_INFO!A14) -> Benin | B14: =IF(COUNTRY_INFO!B14=0," ",COUNTRY_INFO!B14) -> Alibori | C14: =IF(COUNTRY_INFO!C14=0," ",COUNTRY_INFO!C14) -> Ségbana | D14: =IF(COUNTRY_INFO!$T$9:$T$1000="MDA2 (DEC+ALB)", COUNTRY_INFO!$T$9:$T$1000, " ") ->  | I14: 0 | M14: 0
A15: =IF(COUNTRY_INFO!A15=0," ",COUNTRY_INFO!A15) -> Benin | B15: =IF(COUNTRY_INFO!B15=0," ",COUNTRY_INFO!B15) -> Atacora | C15: =IF(COUNTRY_INFO!C15=0," ",COUNTRY_INFO!C15) -> Boukoumbé | D15: =IF(COUNTRY_INFO!$T$9:$T$1000="MDA2 (DEC+ALB)", COUNTRY_INFO!$T$9:$T$1000, " ") ->  | I15: 0 | M15: 0
A16: =IF(COUNTRY_INFO!A16=0," ",COUNTRY_INFO!A16) -> Benin | B16: =IF(COUNTRY_INFO!B16=0," ",COUNTRY_INFO!B16) -> Atacora | C16: =IF(COUNTRY_INFO!C16=0," ",COUNTRY_INFO!C16) -> Cobly | D16: =IF(COUNTRY_INFO!$T$9:$T$1000="MDA2 (DEC+ALB)", COUNTRY_INFO!$T$9:$T$1000, " ") ->  | I16: 0 | M16: 0
A17: =IF(COUNTRY_INFO!A17=0," ",COUNTRY_INFO!A17) -> Benin | B17: =IF(COUNTRY_INFO!B17=0," ",COUNTRY_INFO!B17) -> Atacora | C17: =IF(COUNTRY_INFO!C17=0," ",COUNTRY_INFO!C17) -> Kérou | D17: =IF(COUNTRY_INFO!$T$9:$T$1000="MDA2 (DEC+ALB)", COUNTRY_INFO!$T$9:$T$1000, " ") ->  | I17: 0 | M17: 0
A18: =IF(COUNTRY_INFO!A18=0," ",COUNTRY_INFO!A18) -> Benin | B18: =IF(COUNTRY_INFO!B18=0," ",COUNTRY_INFO!B18) -> Atacora | C18: =IF(COUNTRY_INFO!C18=0," ",COUNTRY_INFO!C18) -> Kouandé | D18: =IF(COUNTRY_INFO!$T$9:$T$1000="MDA2 (DEC+ALB)", COUNTRY_INFO!$T$9:$T$1000, " ") ->  | I18: 0 | M18: 0
A19: =IF(COUNTRY_INFO!A19=0," ",COUNTRY_INFO!A19) -> Benin | B19: =IF(COUNTRY_INFO!B19=0," ",COUNTRY_INFO!B19) -> Atacora | C19: =IF(COUNTRY_INFO!C19=0," ",COUNTRY_INFO!C19) -> Matéri | D19: =IF(COUNTRY_INFO!$T$9:$T$1000="MDA2 (DEC+ALB)", COUNTRY_INFO!$T$9:$T$1000, " ") ->  | I19: 0 | M19: 0
A20: =IF(COUNTRY_INFO!A20=0," ",COUNTRY_INFO!A20) -> Benin | B20: =IF(COUNTRY_INFO!B20=0," ",COUNTRY_INFO!B20) -> Atacora | C20: =IF(COUNTRY_INFO!C20=0," ",COUNTRY_INFO!C20) -> Natitingou | D20: =IF(COUNTRY_INFO!$T$9:$T$1000="MDA2 (DEC+ALB)", COUNTRY_INFO!$T$9:$T$1000, " ") ->  | I20: 0 | M20: 0
A21: =IF(COUNTRY_INFO!A21=0," ",COUNTRY_INFO!A21) -> Benin | B21: =IF(COUNTRY_INFO!B21=0," ",COUNTRY_INFO!B21) -> Atacora | C21: =IF(COUNTRY_INFO!C21=0," ",COUNTRY_INFO!C21) -> Péhunco | D21: =IF(COUNTRY_INFO!$T$9:$T$1000="MDA2 (DEC+ALB)", COUNTRY_INFO!$T$9:$T$1000, " ") ->  | I21: 0 | M21: 0
A22: =IF(COUNTRY_INFO!A22=0," ",COUNTRY_INFO!A22) -> Benin | B22: =IF(COUNTRY_INFO!B22=0," ",COUNTRY_INFO!B22) -> Atacora | C22: =IF(COUNTRY_INFO!C22=0," ",COUNTRY_INFO!C22) -> Tanguiéta | D22: =IF(COUNTRY_INFO!$T$9:$T$1000="MDA2 (DEC+ALB)", COUNTRY_INFO!$T$9:$T$1000, " ") ->  | I22: 0 | M22: 0
A23: =IF(COUNTRY_INFO!A23=0," ",COUNTRY_INFO!A23) -> Benin | B23: =IF(COUNTRY_INFO!B23=0," ",COUNTRY_INFO!B23) -> Atacora | C23: =IF(COUNTRY_INFO!C23=0," ",COUNTRY_INFO!C23) -> Toukountouna | D23: =IF(COUNTRY_INFO!$T$9:$T$1000="MDA2 (DEC+ALB)", COUNTRY_INFO!$T$9:$T$1000, " ") ->  | I23: 0 | M23: 0
A24: =IF(COUNTRY_INFO!A24=0," ",COUNTRY_INFO!A24) -> Benin | B24: =IF(COUNTRY_INFO!B24=0," ",COUNTRY_INFO!B24) -> Atlantique | C24: =IF(COUNTRY_INFO!C24=0," ",COUNTRY_INFO!C24) -> Abomey-Calavi | D24: =IF(COUNTRY_INFO!$T$9:$T$1000="MDA2 (DEC+ALB)", COUNTRY_INFO!$T$9:$T$1000, " ") ->  | I24: 0 | M24: 0
A25: =IF(COUNTRY_INFO!A25=0," ",COUNTRY_INFO!A25) -> Benin | B25: =IF(COUNTRY_INFO!B25=0," ",COUNTRY_INFO!B25) -> Atlantique | C25: =IF(COUNTRY_INFO!C25=0," ",COUNTRY_INFO!C25) -> Allada | D25: =IF(COUNTRY_INFO!$T$9:$T$1000="MDA2 (DEC+ALB)", COUNTRY_INFO!$T$9:$T$1000, " ") ->  | I25: 0 | M25: 0
A26: =IF(COUNTRY_INFO!A26=0," ",COUNTRY_INFO!A26) -> Benin | B26: =IF(COUNTRY_INFO!B26=0," ",COUNTRY_INFO!B26) -> Atlantique | C26: =IF(COUNTRY_INFO!C26=0," ",COUNTRY_INFO!C26) -> Kpomassè | D26: =IF(COUNTRY_INFO!$T$9:$T$1000="MDA2 (DEC+ALB)", COUNTRY_INFO!$T$9:$T$1000, " ") ->  | I26: 0 | M26: 0
A27: =IF(COUNTRY_INFO!A27=0," ",COUNTRY_INFO!A27) -> Benin | B27: =IF(COUNTRY_INFO!B27=0," ",COUNTRY_INFO!B27) -> Atlantique | C27: =IF(COUNTRY_INFO!C27=0," ",COUNTRY_INFO!C27) -> Ouidah | D27: =IF(COUNTRY_INFO!$T$9:$T$1000="MDA2 (DEC+ALB)", COUNTRY_INFO!$T$9:$T$1000, " ") ->  | I27: 0 | M27: 0
A28: =IF(COUNTRY_INFO!A28=0," ",COUNTRY_INFO!A28) -> Benin | B28: =IF(COUNTRY_INFO!B28=0," ",COUNTRY_INFO!B28) -> Atlantique | C28: =IF(COUNTRY_INFO!C28=0," ",COUNTRY_INFO!C28) -> So-Ava | D28: =IF(COUNTRY_INFO!$T$9:$T$1000="MDA2 (DEC+ALB)", COUNTRY_INFO!$T$9:$T$1000, " ") ->  | I28: 0 | M28: 0
A29: =IF(COUNTRY_INFO!A29=0," ",COUNTRY_INFO!A29) -> Benin | B29: =IF(COUNTRY_INFO!B29=0," ",COUNTRY_INFO!B29) -> Atlantique | C29: =IF(COUNTRY_INFO!C29=0," ",COUNTRY_INFO!C29) -> Toffo | D29: =IF(COUNTRY_INFO!$T$9:$T$1000="MDA2 (DEC+ALB)", COUNTRY_INFO!$T$9:$T$1000, " ") ->  | I29: 0 | M29: 0
A30: =IF(COUNTRY_INFO!A30=0," ",COUNTRY_INFO!A30) -> Benin | B30: =IF(COUNTRY_INFO!B30=0," ",COUNTRY_INFO!B30) -> Atlantique | C30: =IF(COUNTRY_INFO!C30=0," ",COUNTRY_INFO!C30) -> Torri-Bossito | D30: =IF(COUNTRY_INFO!$T$9:$T$1000="MDA2 (DEC+ALB)", COUNTRY_INFO!$T$9:$T$1000, " ") ->  | I30: 0 | M30: 0
A31: =IF(COUNTRY_INFO!A31=0," ",COUNTRY_INFO!A31) -> Benin | B31: =IF(COUNTRY_INFO!B31=0," ",COUNTRY_INFO!B31) -> Atlantique | C31: =IF(COUNTRY_INFO!C31=0," ",COUNTRY_INFO!C31) -> Zè | D31: =IF(COUNTRY_INFO!$T$9:$T$1000="MDA2 (DEC+ALB)", COUNTRY_INFO!$T$9:$T$1000, " ") ->  | I31: 0 | M31: 0
A32: =IF(COUNTRY_INFO!A32=0," ",COUNTRY_INFO!A32) -> Benin | B32: =IF(COUNTRY_INFO!B32=0," ",COUNTRY_INFO!B32) -> Borgou | C32: =IF(COUNTRY_INFO!C32=0," ",COUNTRY_INFO!C32) -> Bembèrèkè | D32: =IF(COUNTRY_INFO!$T$9:$T$1000="MDA2 (DEC+ALB)", COUNTRY_INFO!$T$9:$T$1000, " ") ->  | I32: 0 | M32: 0
A33: =IF(COUNTRY_INFO!A33=0," ",COUNTRY_INFO!A33) -> Benin | B33: =IF(COUNTRY_INFO!B33=0," ",COUNTRY_INFO!B33) -> Borgou | C33: =IF(COUNTRY_INFO!C33=0," ",COUNTRY_INFO!C33) -> Kalalé | D33: =IF(COUNTRY_INFO!$T$9:$T$1000="MDA2 (DEC+ALB)", COUNTRY_INFO!$T$9:$T$1000, " ") ->  | I33: 0 | M33: 0
A34: =IF(COUNTRY_INFO!A34=0," ",COUNTRY_INFO!A34) -> Benin | B34: =IF(COUNTRY_INFO!B34=0," ",COUNTRY_INFO!B34) -> Borgou | C34: =IF(COUNTRY_INFO!C34=0," ",COUNTRY_INFO!C34) -> N'Dali | D34: =IF(COUNTRY_INFO!$T$9:$T$1000="MDA2 (DEC+ALB)", COUNTRY_INFO!$T$9:$T$1000, " ") ->  | I34: 0 | M34: 0
A35: =IF(COUNTRY_INFO!A35=0," ",COUNTRY_INFO!A35) -> Benin | B35: =IF(COUNTRY_INFO!B35=0," ",COUNTRY_INFO!B35) -> Borgou | C35: =IF(COUNTRY_INFO!C35=0," ",COUNTRY_INFO!C35) -> Nikki | D35: =IF(COUNTRY_INFO!$T$9:$T$1000="MDA2 (DEC+ALB)", COUNTRY_INFO!$T$9:$T$1000, " ") ->  | I35: 0 | M35: 0
A36: =IF(COUNTRY_INFO!A36=0," ",COUNTRY_INFO!A36) -> Benin | B36: =IF(COUNTRY_INFO!B36=0," ",COUNTRY_INFO!B36) -> Borgou | C36: =IF(COUNTRY_INFO!C36=0," ",COUNTRY_INFO!C36) -> Parakou | D36: =IF(COUNTRY_INFO!$T$9:$T$1000="MDA2 (DEC+ALB)", COUNTRY_INFO!$T$9:$T$1000, " ") ->  | I36: 0 | M36: 0
A37: =IF(COUNTRY_INFO!A37=0," ",COUNTRY_INFO!A37) -> Benin | B37: =IF(COUNTRY_INFO!B37=0," ",COUNTRY_INFO!B37) -> Borgou | C37: =IF(COUNTRY_INFO!C37=0," ",COUNTRY_INFO!C37) -> Pèrèrè | D37: =IF(COUNTRY_INFO!$T$9:$T$1000="MDA2 (DEC+ALB)", COUNTRY_INFO!$T$9:$T$1000, " ") ->  | I37: 0 | M37: 0
A38: =IF(COUNTRY_INFO!A38=0," ",COUNTRY_INFO!A38) -> Benin | B38: =IF(COUNTRY_INFO!B38=0," ",COUNTRY_INFO!B38) -> Borgou | C38: =IF(COUNTRY_INFO!C38=0," ",COUNTRY_INFO!C38) -> Sinendé | D38: =IF(COUNTRY_INFO!$T$9:$T$1000="MDA2 (DEC+ALB)", COUNTRY_INFO!$T$9:$T$1000, " ") ->  | I38: 0 | M38: 0
A39: =IF(COUNTRY_INFO!A39=0," ",COUNTRY_INFO!A39) -> Benin | B39: =IF(COUNTRY_INFO!B39=0," ",COUNTRY_INFO!B39) -> Borgou | C39: =IF(COUNTRY_INFO!C39=0," ",COUNTRY_INFO!C39) -> Tchaourou | D39: =IF(COUNTRY_INFO!$T$9:$T$1000="MDA2 (DEC+ALB)", COUNTRY_INFO!$T$9:$T$1000, " ") ->  | I39: 0 | M39: 0
A40: =IF(COUNTRY_INFO!A40=0," ",COUNTRY_INFO!A40) -> Benin | B40: =IF(COUNTRY_INFO!B40=0," ",COUNTRY_INFO!B40) -> Collines | C40: =IF(COUNTRY_INFO!C40=0," ",COUNTRY_INFO!C40) -> Bantè | D40: =IF(COUNTRY_INFO!$T$9:$T$1000="MDA2 (DEC+ALB)", COUNTRY_INFO!$T$9:$T$1000, " ") ->  | I40: 0 | M40: 0
A41: =IF(COUNTRY_INFO!A41=0," ",COUNTRY_INFO!A41) -> Benin | B41: =IF(COUNTRY_INFO!B41=0," ",COUNTRY_INFO!B41) -> Collines | C41: =IF(COUNTRY_INFO!C41=0," ",COUNTRY_INFO!C41) -> Dassa-Zoumè | D41: =IF(COUNTRY_INFO!$T$9:$T$1000="MDA2 (DEC+ALB)", COUNTRY_INFO!$T$9:$T$1000, " ") ->  | I41: 0 | M41: 0
A42: =IF(COUNTRY_INFO!A42=0," ",COUNTRY_INFO!A42) -> Benin | B42: =IF(COUNTRY_INFO!B42=0," ",COUNTRY_INFO!B42) -> Collines | C42: =IF(COUNTRY_INFO!C42=0," ",COUNTRY_INFO!C42) -> Glazoué | D42: =IF(COUNTRY_INFO!$T$9:$T$1000="MDA2 (DEC+ALB)", COUNTRY_INFO!$T$9:$T$1000, " ") ->  | I42: 0 | M42: 0
A43: =IF(COUNTRY_INFO!A43=0," ",COUNTRY_INFO!A43) -> Benin | B43: =IF(COUNTRY_INFO!B43=0," ",COUNTRY_INFO!B43) -> Collines | C43: =IF(COUNTRY_INFO!C43=0," ",COUNTRY_INFO!C43) -> Ouèssè | D43: =IF(COUNTRY_INFO!$T$9:$T$1000="MDA2 (DEC+ALB)", COUNTRY_INFO!$T$9:$T$1000, " ") ->  | I43: 0 | M43: 0
A44: =IF(COUNTRY_INFO!A44=0," ",COUNTRY_INFO!A44) -> Benin | B44: =IF(COUNTRY_INFO!B44=0," ",COUNTRY_INFO!B44) -> Collines | C44: =IF(COUNTRY_INFO!C44=0," ",COUNTRY_INFO!C44) -> Savalou | D44: =IF(COUNTRY_INFO!$T$9:$T$1000="MDA2 (DEC+ALB)", COUNTRY_INFO!$T$9:$T$1000, " ") ->  | I44: 0 | M44: 0
A45: =IF(COUNTRY_INFO!A45=0," ",COUNTRY_INFO!A45) -> Benin | B45: =IF(COUNTRY_INFO!B45=0," ",COUNTRY_INFO!B45) -> Collines | C45: =IF(COUNTRY_INFO!C45=0," ",COUNTRY_INFO!C45) -> Savè | D45: =IF(COUNTRY_INFO!$T$9:$T$1000="MDA2 (DEC+ALB)", COUNTRY_INFO!$T$9:$T$1000, " ") ->  | I45: 0 | M45: 0
A46: =IF(COUNTRY_INFO!A46=0," ",COUNTRY_INFO!A46) -> Benin | B46: =IF(COUNTRY_INFO!B46=0," ",COUNTRY_INFO!B46) -> Couffo | C46: =IF(COUNTRY_INFO!C46=0," ",COUNTRY_INFO!C46) -> Aplahoué | D46: =IF(COUNTRY_INFO!$T$9:$T$1000="MDA2 (DEC+ALB)", COUNTRY_INFO!$T$9:$T$1000, " ") ->  | I46: 0 | M46: 0
A47: =IF(COUNTRY_INFO!A47=0," ",COUNTRY_INFO!A47) -> Benin | B47: =IF(COUNTRY_INFO!B47=0," ",COUNTRY_INFO!B47) -> Couffo | C47: =IF(COUNTRY_INFO!C47=0," ",COUNTRY_INFO!C47) -> Djakotomè | D47: =IF(COUNTRY_INFO!$T$9:$T$1000="MDA2 (DEC+ALB)", COUNTRY_INFO!$T$9:$T$1000, " ") ->  | I47: 0 | M47: 0
A48: =IF(COUNTRY_INFO!A48=0," ",COUNTRY_INFO!A48) -> Benin | B48: =IF(COUNTRY_INFO!B48=0," ",COUNTRY_INFO!B48) -> Couffo | C48: =IF(COUNTRY_INFO!C48=0," ",COUNTRY_INFO!C48) -> Dogbo | D48: =IF(COUNTRY_INFO!$T$9:$T$1000="MDA2 (DEC+ALB)", COUNTRY_INFO!$T$9:$T$1000, " ") ->  | I48: 0 | M48: 0
A49: =IF(COUNTRY_INFO!A49=0," ",COUNTRY_INFO!A49) -> Benin | B49: =IF(COUNTRY_INFO!B49=0," ",COUNTRY_INFO!B49) -> Couffo | C49: =IF(COUNTRY_INFO!C49=0," ",COUNTRY_INFO!C49) -> Klouékamè | D49: =IF(COUNTRY_INFO!$T$9:$T$1000="MDA2 (DEC+ALB)", COUNTRY_INFO!$T$9:$T$1000, " ") ->  | I49: 0 | M49: 0
A50: =IF(COUNTRY_INFO!A50=0," ",COUNTRY_INFO!A50) -> Benin | B50: =IF(COUNTRY_INFO!B50=0," ",COUNTRY_INFO!B50) -> Couffo | C50: =IF(COUNTRY_INFO!C50=0," ",COUNTRY_INFO!C50) -> Lalo | D50: =IF(COUNTRY_INFO!$T$9:$T$1000="MDA2 (DEC+ALB)", COUNTRY_INFO!$T$9:$T$1000, " ") ->  | I50: 0 | M50: 0
A51: =IF(COUNTRY_INFO!A51=0," ",COUNTRY_INFO!A51) -> Benin | B51: =IF(COUNTRY_INFO!B51=0," ",COUNTRY_INFO!B51) -> Couffo | C51: =IF(COUNTRY_INFO!C51=0," ",COUNTRY_INFO!C51) -> Toviklin | D51: =IF(COUNTRY_INFO!$T$9:$T$1000="MDA2 (DEC+ALB)", COUNTRY_INFO!$T$9:$T$1000, " ") ->  | I51: 0 | M51: 0
A52: =IF(COUNTRY_INFO!A52=0," ",COUNTRY_INFO!A52) -> Benin | B52: =IF(COUNTRY_INFO!B52=0," ",COUNTRY_INFO!B52) -> Donga | C52: =IF(COUNTRY_INFO!C52=0," ",COUNTRY_INFO!C52) -> Bassila | D52: =IF(COUNTRY_INFO!$T$9:$T$1000="MDA2 (DEC+ALB)", COUNTRY_INFO!$T$9:$T$1000, " ") ->  | I52: 0 | M52: 0
A53: =IF(COUNTRY_INFO!A53=0," ",COUNTRY_INFO!A53) -> Benin | B53: =IF(COUNTRY_INFO!B53=0," ",COUNTRY_INFO!B53) -> Donga | C53: =IF(COUNTRY_INFO!C53=0," ",COUNTRY_INFO!C53) -> Copargo | D53: =IF(COUNTRY_INFO!$T$9:$T$1000="MDA2 (DEC+ALB)", COUNTRY_INFO!$T$9:$T$1000, " ") ->  | I53: 0 | M53: 0
A54: =IF(COUNTRY_INFO!A54=0," ",COUNTRY_INFO!A54) -> Benin | B54: =IF(COUNTRY_INFO!B54=0," ",COUNTRY_INFO!B54) -> Donga | C54: =IF(COUNTRY_INFO!C54=0," ",COUNTRY_INFO!C54) -> Djougou | D54: =IF(COUNTRY_INFO!$T$9:$T$1000="MDA2 (DEC+ALB)", COUNTRY_INFO!$T$9:$T$1000, " ") ->  | I54: 0 | M54: 0
A55: =IF(COUNTRY_INFO!A55=0," ",COUNTRY_INFO!A55) -> Benin | B55: =IF(COUNTRY_INFO!B55=0," ",COUNTRY_INFO!B55) -> Donga | C55: =IF(COUNTRY_INFO!C55=0," ",COUNTRY_INFO!C55) -> Ouaké | D55: =IF(COUNTRY_INFO!$T$9:$T$1000="MDA2 (DEC+ALB)", COUNTRY_INFO!$T$9:$T$1000, " ") ->  | I55: 0 | M55: 0
A56: =IF(COUNTRY_INFO!A56=0," ",COUNTRY_INFO!A56) -> Benin | B56: =IF(COUNTRY_INFO!B56=0," ",COUNTRY_INFO!B56) -> Littoral | C56: =IF(COUNTRY_INFO!C56=0," ",COUNTRY_INFO!C56) -> Cotonou | D56: =IF(COUNTRY_INFO!$T$9:$T$1000="MDA2 (DEC+ALB)", COUNTRY_INFO!$T$9:$T$1000, " ") ->  | I56: 0 | M56: 0
A57: =IF(COUNTRY_INFO!A57=0," ",COUNTRY_INFO!A57) -> Benin | B57: =IF(COUNTRY_INFO!B57=0," ",COUNTRY_INFO!B57) -> Mono | C57: =IF(COUNTRY_INFO!C57=0," ",COUNTRY_INFO!C57) -> Athiémé | D57: =IF(COUNTRY_INFO!$T$9:$T$1000="MDA2 (DEC+ALB)", COUNTRY_INFO!$T$9:$T$1000, " ") ->  | I57: 0 | M57: 0
A58: =IF(COUNTRY_INFO!A58=0," ",COUNTRY_INFO!A58) -> Benin | B58: =IF(COUNTRY_INFO!B58=0," ",COUNTRY_INFO!B58) -> Mono | C58: =IF(COUNTRY_INFO!C58=0," ",COUNTRY_INFO!C58) -> Bopa | D58: =IF(COUNTRY_INFO!$T$9:$T$1000="MDA2 (DEC+ALB)", COUNTRY_INFO!$T$9:$T$1000, " ") ->  | I58: 0 | M58: 0
A59: =IF(COUNTRY_INFO!A59=0," ",COUNTRY_INFO!A59) -> Benin | B59: =IF(COUNTRY_INFO!B59=0," ",COUNTRY_INFO!B59) -> Mono | C59: =IF(COUNTRY_INFO!C59=0," ",COUNTRY_INFO!C59) -> Comé | D59: =IF(COUNTRY_INFO!$T$9:$T$1000="MDA2 (DEC+ALB)", COUNTRY_INFO!$T$9:$T$1000, " ") ->  | I59: 0 | M59: 0
A60: =IF(COUNTRY_INFO!A60=0," ",COUNTRY_INFO!A60) -> Benin | B60: =IF(COUNTRY_INFO!B60=0," ",COUNTRY_INFO!B60) -> Mono | C60: =IF(COUNTRY_INFO!C60=0," ",COUNTRY_INFO!C60) -> Grand-Popo | D60: =IF(COUNTRY_INFO!$T$9:$T$1000="MDA2 (DEC+ALB)", COUNTRY_INFO!$T$9:$T$1000, " ") ->  | I60: 0 | M60: 0
A61: =IF(COUNTRY_INFO!A61=0," ",COUNTRY_INFO!A61) -> Benin | B61: =IF(COUNTRY_INFO!B61=0," ",COUNTRY_INFO!B61) -> Mono | C61: =IF(COUNTRY_INFO!C61=0," ",COUNTRY_INFO!C61) -> Houéyogbé | D61: =IF(COUNTRY_INFO!$T$9:$T$1000="MDA2 (DEC+ALB)", COUNTRY_INFO!$T$9:$T$1000, " ") ->  | I61: 0 | M61: 0
A62: =IF(COUNTRY_INFO!A62=0," ",COUNTRY_INFO!A62) -> Benin | B62: =IF(COUNTRY_INFO!B62=0," ",COUNTRY_INFO!B62) -> Mono | C62: =IF(COUNTRY_INFO!C62=0," ",COUNTRY_INFO!C62) -> Lokossa | D62: =IF(COUNTRY_INFO!$T$9:$T$1000="MDA2 (DEC+ALB)", COUNTRY_INFO!$T$9:$T$1000, " ") ->  | I62: 0 | M62: 0
A63: =IF(COUNTRY_INFO!A63=0," ",COUNTRY_INFO!A63) -> Benin | B63: =IF(COUNTRY_INFO!B63=0," ",COUNTRY_INFO!B63) -> Oueme | C63: =IF(COUNTRY_INFO!C63=0," ",COUNTRY_INFO!C63) -> Adjarra | D63: =IF(COUNTRY_INFO!$T$9:$T$1000="MDA2 (DEC+ALB)", COUNTRY_INFO!$T$9:$T$1000, " ") ->  | I63: 0 | M63: 0
A64: =IF(COUNTRY_INFO!A64=0," ",COUNTRY_INFO!A64) -> Benin | B64: =IF(COUNTRY_INFO!B64=0," ",COUNTRY_INFO!B64) -> Oueme | C64: =IF(COUNTRY_INFO!C64=0," ",COUNTRY_INFO!C64) -> Adjohoun | D64: =IF(COUNTRY_INFO!$T$9:$T$1000="MDA2 (DEC+ALB)", COUNTRY_INFO!$T$9:$T$1000, " ") ->  | I64: 0 | M64: 0
A65: =IF(COUNTRY_INFO!A65=0," ",COUNTRY_INFO!A65) -> Benin | B65: =IF(COUNTRY_INFO!B65=0," ",COUNTRY_INFO!B65) -> Oueme | C65: =IF(COUNTRY_INFO!C65=0," ",COUNTRY_INFO!C65) -> Aguégués | D65: =IF(COUNTRY_INFO!$T$9:$T$1000="MDA2 (DEC+ALB)", COUNTRY_INFO!$T$9:$T$1000, " ") ->  | I65: 0 | M65: 0
A66: =IF(COUNTRY_INFO!A66=0," ",COUNTRY_INFO!A66) -> Benin | B66: =IF(COUNTRY_INFO!B66=0," ",COUNTRY_INFO!B66) -> Oueme | C66: =IF(COUNTRY_INFO!C66=0," ",COUNTRY_INFO!C66) -> Akpro-Missérété | D66: =IF(COUNTRY_INFO!$T$9:$T$1000="MDA2 (DEC+ALB)", COUNTRY_INFO!$T$9:$T$1000, " ") ->  | I66: 0 | M66: 0
A67: =IF(COUNTRY_INFO!A67=0," ",COUNTRY_INFO!A67) -> Benin | B67: =IF(COUNTRY_INFO!B67=0," ",COUNTRY_INFO!B67) -> Oueme | C67: =IF(COUNTRY_INFO!C67=0," ",COUNTRY_INFO!C67) -> Avrankou | D67: =IF(COUNTRY_INFO!$T$9:$T$1000="MDA2 (DEC+ALB)", COUNTRY_INFO!$T$9:$T$1000, " ") ->  | I67: 0 | M67: 0
A68: =IF(COUNTRY_INFO!A68=0," ",COUNTRY_INFO!A68) -> Benin | B68: =IF(COUNTRY_INFO!B68=0," ",COUNTRY_INFO!B68) -> Oueme | C68: =IF(COUNTRY_INFO!C68=0," ",COUNTRY_INFO!C68) -> Bonou | D68: =IF(COUNTRY_INFO!$T$9:$T$1000="MDA2 (DEC+ALB)", COUNTRY_INFO!$T$9:$T$1000, " ") ->  | I68: 0 | M68: 0
A69: =IF(COUNTRY_INFO!A69=0," ",COUNTRY_INFO!A69) -> Benin | B69: =IF(COUNTRY_INFO!B69=0," ",COUNTRY_INFO!B69) -> Oueme | C69: =IF(COUNTRY_INFO!C69=0," ",COUNTRY_INFO!C69) -> Dangbo | D69: =IF(COUNTRY_INFO!$T$9:$T$1000="MDA2 (DEC+ALB)", COUNTRY_INFO!$T$9:$T$1000, " ") ->  | I69: 0 | M69: 0
A70: =IF(COUNTRY_INFO!A70=0," ",COUNTRY_INFO!A70) -> Benin | B70: =IF(COUNTRY_INFO!B70=0," ",COUNTRY_INFO!B70) -> Oueme | C70: =IF(COUNTRY_INFO!C70=0," ",COUNTRY_INFO!C70) -> Porto-Novo | D70: =IF(COUNTRY_INFO!$T$9:$T$1000="MDA2 (DEC+ALB)", COUNTRY_INFO!$T$9:$T$1000, " ") ->  | I70: 0 | M70: 0
A71: =IF(COUNTRY_INFO!A71=0," ",COUNTRY_INFO!A71) -> Benin | B71: =IF(COUNTRY_INFO!B71=0," ",COUNTRY_INFO!B71) -> Oueme | C71: =IF(COUNTRY_INFO!C71=0," ",COUNTRY_INFO!C71) -> Sèmè-Kpodji | D71: =IF(COUNTRY_INFO!$T$9:$T$1000="MDA2 (DEC+ALB)", COUNTRY_INFO!$T$9:$T$1000, " ") ->  | I71: 0 | M71: 0
A72: =IF(COUNTRY_INFO!A72=0," ",COUNTRY_INFO!A72) -> Benin | B72: =IF(COUNTRY_INFO!B72=0," ",COUNTRY_INFO!B72) -> Plateau | C72: =IF(COUNTRY_INFO!C72=0," ",COUNTRY_INFO!C72) -> Adja-Ouèrè | D72: =IF(COUNTRY_INFO!$T$9:$T$1000="MDA2 (DEC+ALB)", COUNTRY_INFO!$T$9:$T$1000, " ") ->  | I72: 0 | M72: 0
A73: =IF(COUNTRY_INFO!A73=0," ",COUNTRY_INFO!A73) -> Benin | B73: =IF(COUNTRY_INFO!B73=0," ",COUNTRY_INFO!B73) -> Plateau | C73: =IF(COUNTRY_INFO!C73=0," ",COUNTRY_INFO!C73) -> Ifangni | D73: =IF(COUNTRY_INFO!$T$9:$T$1000="MDA2 (DEC+ALB)", COUNTRY_INFO!$T$9:$T$1000, " ") ->  | I73: 0 | M73: 0
A74: =IF(COUNTRY_INFO!A74=0," ",COUNTRY_INFO!A74) -> Benin | B74: =IF(COUNTRY_INFO!B74=0," ",COUNTRY_INFO!B74) -> Plateau | C74: =IF(COUNTRY_INFO!C74=0," ",COUNTRY_INFO!C74) -> Kétou | D74: =IF(COUNTRY_INFO!$T$9:$T$1000="MDA2 (DEC+ALB)", COUNTRY_INFO!$T$9:$T$1000, " ") ->  | I74: =SUM(F74:H74) -> 0 | M74: =SUM(J74:L74) -> 0 | N74: =IF(F74<>0, IF(J74/F74*100=0, "-", J74/F74*100), " ") ->  | O74: =IF(G74<>0, IF(K74/G74*100=0, "-", K74/G74*100), " ") ->  | P74: =IF(H74<>0, IF(L74/H74*100=0, "-", L74/H74*100), " ") ->  | Q74: =IF(I74<>0, IF(M74/I74*100=0, "-", M74/I74*100), " ") -> 
A75: =IF(COUNTRY_INFO!A75=0," ",COUNTRY_INFO!A75) -> Benin | B75: =IF(COUNTRY_INFO!B75=0," ",COUNTRY_INFO!B75) -> Plateau | C75: =IF(COUNTRY_INFO!C75=0," ",COUNTRY_INFO!C75) -> Pobè | D75: =IF(COUNTRY_INFO!$T$9:$T$1000="MDA2 (DEC+ALB)", COUNTRY_INFO!$T$9:$T$1000, " ") ->  | I75: 0 | M75: 0
A76: =IF(COUNTRY_INFO!A76=0," ",COUNTRY_INFO!A76) -> Benin | B76: =IF(COUNTRY_INFO!B76=0," ",COUNTRY_INFO!B76) -> Plateau | C76: =IF(COUNTRY_INFO!C76=0," ",COUNTRY_INFO!C76) -> Sakété | D76: =IF(COUNTRY_INFO!$T$9:$T$1000="MDA2 (DEC+ALB)", COUNTRY_INFO!$T$9:$T$1000, " ") ->  | I76: 0 | M76: 0
A77: =IF(COUNTRY_INFO!A77=0," ",COUNTRY_INFO!A77) -> Benin | B77: =IF(COUNTRY_INFO!B77=0," ",COUNTRY_INFO!B77) -> Zou | C77: =IF(COUNTRY_INFO!C77=0," ",COUNTRY_INFO!C77) -> Abomey | D77: =IF(COUNTRY_INFO!$T$9:$T$1000="MDA2 (DEC+ALB)", COUNTRY_INFO!$T$9:$T$1000, " ") ->  | I77: 0 | M77: 0
A78: =IF(COUNTRY_INFO!A78=0," ",COUNTRY_INFO!A78) -> Benin | B78: =IF(COUNTRY_INFO!B78=0," ",COUNTRY_INFO!B78) -> Zou | C78: =IF(COUNTRY_INFO!C78=0," ",COUNTRY_INFO!C78) -> Agbangnizoun | D78: =IF(COUNTRY_INFO!$T$9:$T$1000="MDA2 (DEC+ALB)", COUNTRY_INFO!$T$9:$T$1000, " ") ->  | I78: 0 | M78: 0
A79: =IF(COUNTRY_INFO!A79=0," ",COUNTRY_INFO!A79) -> Benin | B79: =IF(COUNTRY_INFO!B79=0," ",COUNTRY_INFO!B79) -> Zou | C79: =IF(COUNTRY_INFO!C79=0," ",COUNTRY_INFO!C79) -> Bohicon | D79: =IF(COUNTRY_INFO!$T$9:$T$1000="MDA2 (DEC+ALB)", COUNTRY_INFO!$T$9:$T$1000, " ") ->  | I79: 0 | M79: 0
A80: =IF(COUNTRY_INFO!A80=0," ",COUNTRY_INFO!A80) -> Benin | B80: =IF(COUNTRY_INFO!B80=0," ",COUNTRY_INFO!B80) -> Zou | C80: =IF(COUNTRY_INFO!C80=0," ",COUNTRY_INFO!C80) -> Covè | D80: =IF(COUNTRY_INFO!$T$9:$T$1000="MDA2 (DEC+ALB)", COUNTRY_INFO!$T$9:$T$1000, " ") ->  | I80: 0 | M80: 0
A81: =IF(COUNTRY_INFO!A81=0," ",COUNTRY_INFO!A81) -> Benin | B81: =IF(COUNTRY_INFO!B81=0," ",COUNTRY_INFO!B81) -> Zou | C81: =IF(COUNTRY_INFO!C81=0," ",COUNTRY_INFO!C81) -> Djidja | D81: =IF(COUNTRY_INFO!$T$9:$T$1000="MDA2 (DEC+ALB)", COUNTRY_INFO!$T$9:$T$1000, " ") ->  | I81: 0 | M81: 0
A82: =IF(COUNTRY_INFO!A82=0," ",COUNTRY_INFO!A82) -> Benin | B82: =IF(COUNTRY_INFO!B82=0," ",COUNTRY_INFO!B82) -> Zou | C82: =IF(COUNTRY_INFO!C82=0," ",COUNTRY_INFO!C82) -> Ouinhi | D82: =IF(COUNTRY_INFO!$T$9:$T$1000="MDA2 (DEC+ALB)", COUNTRY_INFO!$T$9:$T$1000, " ") ->  | I82: 0 | M82: 0
A83: =IF(COUNTRY_INFO!A83=0," ",COUNTRY_INFO!A83) -> Benin | B83: =IF(COUNTRY_INFO!B83=0," ",COUNTRY_INFO!B83) -> Zou | C83: =IF(COUNTRY_INFO!C83=0," ",COUNTRY_INFO!C83) -> Zagnanado | D83: =IF(COUNTRY_INFO!$T$9:$T$1000="MDA2 (DEC+ALB)", COUNTRY_INFO!$T$9:$T$1000, " ") ->  | I83: 0 | M83: 0
A84: =IF(COUNTRY_INFO!A84=0," ",COUNTRY_INFO!A84) -> Benin | B84: =IF(COUNTRY_INFO!B84=0," ",COUNTRY_INFO!B84) -> Zou | C84: =IF(COUNTRY_INFO!C84=0," ",COUNTRY_INFO!C84) -> Za-Kpota | D84: =IF(COUNTRY_INFO!$T$9:$T$1000="MDA2 (DEC+ALB)", COUNTRY_INFO!$T$9:$T$1000, " ") ->  | I84: 0 | M84: 0
A85: =IF(COUNTRY_INFO!A85=0," ",COUNTRY_INFO!A85) -> Benin | B85: =IF(COUNTRY_INFO!B85=0," ",COUNTRY_INFO!B85) -> Zou | C85: =IF(COUNTRY_INFO!C85=0," ",COUNTRY_INFO!C85) -> Zogbodomey | D85: =IF(COUNTRY_INFO!$T$9:$T$1000="MDA2 (DEC+ALB)", COUNTRY_INFO!$T$9:$T$1000, " ") ->  | I85: 0 | M85: 0

Sheet MDA3
A1: MDA 3 - Ivermectine (IVM)
A2: Structure administrative, population nécessitant une chimioprévention par groupe d'âge, population traitée par groupe d'âge et couverture
A4: TOTAL | F4: =SUM(F$9:F$1000) -> 1560634 | G4: 2766850 | H4: 4327484 | I4: 1610833 | J4: 2807179 | K4: 4418012 | L4: 0 | M4: 0 | N4: 0 | O4: 1610833 | P4: 2807179 | Q4: 4418012 | R4: =IF(F4<>0, IF(O4/F4*100=0, "-", O4/F4*100), " ") -> 103.2165774 | S4: =IF(G4<>0, IF(P4/G4*100=0, "-", P4/G4*100), " ") -> 101.4575781 | T4: =IF(H4<>0, IF(Q4/H4*100=0, "-", Q4/H4*100), " ") -> 102.0919315
A6: Structure administrative du pays | D6: Mise en oeuvre de la CP | E6: Date | F6: Population ciblée pour MDA 3 | I6: Population traitée - tournée 1 | L6: Population traitée - tournée 2 | O6: Population traitée | R6: Couverture du Programme (%)
A7: Pays | B7: Région/Département | C7: District | F7: EAS | G7: Adultes | H7: Total | I7: EAS | J7: Adultes | K7: Total | L7: EAS | M7: Adultes | N7: Total | O7: EAS | P7: Adultes | Q7: Total | R7: EAS | S7: Adultes | T7: Total
A9: =IF(COUNTRY_INFO!A9=0," ",COUNTRY_INFO!A9) -> Benin | B9: =IF(COUNTRY_INFO!B9=0," ",COUNTRY_INFO!B9) -> Alibori | C9: =IF(COUNTRY_INFO!C9=0," ",COUNTRY_INFO!C9) -> Banikoara | D9: =IF(COUNTRY_INFO!$T$9:$T$1000="MDA3 (IVM)", COUNTRY_INFO!$T$9:$T$1000, " ") -> MDA3 (IVM) | E9: 12/2020 | F9: 89552 | G9: 158781 | H9: =SUM(F9:G9) -> 248333 | I9: 88318 | J9: 172003 | K9: =SUM(I9:J9) -> 260321 | N9: =SUM(L9:M9) -> 0 | O9: =MAX(I9,L9) -> 88318 | P9: 172003 | Q9: =SUM(O9:P9) -> 260321 | R9: =IF(F9<>0, IF(MAX(I9,L9)/F9*100=0, "-", MAX(I9,L9)/F9*100), " ") -> 98.62202966 | S9: 108.3271928 | T9: =IF(H9<>0, IF((MAX(I9,L9)+MAX(J9,M9))/H9*100=0, "-",(MAX(I9,L9)+MAX(J9,M9))/H9*100), " ") -> 104.827389
A10: =IF(COUNTRY_INFO!A10=0," ",COUNTRY_INFO!A10) -> Benin | B10: =IF(COUNTRY_INFO!B10=0," ",COUNTRY_INFO!B10) -> Alibori | C10: =IF(COUNTRY_INFO!C10=0," ",COUNTRY_INFO!C10) -> Gogounou | D10: =IF(COUNTRY_INFO!$T$9:$T$1000="MDA3 (IVM)", COUNTRY_INFO!$T$9:$T$1000, " ") -> MDA3 (IVM) | E10: 12/2020 | F10: 36064 | G10: 63944 | H10: =SUM(F10:G10) -> 100008 | I10: 32929 | J10: 53380 | K10: =SUM(I10:J10) -> 86309 | N10: =SUM(L10:M10) -> 0 | O10: =MAX(I10,L10) -> 32929 | P10: =MAX(J10,M10) -> 53380 | Q10: =SUM(O10:P10) -> 86309 | R10: =IF(F10<>0, IF(MAX(I10,L10)/F10*100=0, "-", MAX(I10,L10)/F10*100), " ") -> 91.30712067 | S10: =IF(G10<>0, IF(MAX(J10,M10)/G10*100=0, "-", MAX(J10,M10)/G10*100), " ") -> 83.47929438 | T10: =IF(H10<>0, IF((MAX(I10,L10)+MAX(J10,M10))/H10*100=0, "-",(MAX(I10,L10)+MAX(J10,M10))/H10*100), " ") -> 86.30209583
A11: =IF(COUNTRY_INFO!A11=0," ",COUNTRY_INFO!A11) -> Benin | B11: =IF(COUNTRY_INFO!B11=0," ",COUNTRY_INFO!B11) -> Alibori | C11: =IF(COUNTRY_INFO!C11=0," ",COUNTRY_INFO!C11) -> Kandi | D11: =IF(COUNTRY_INFO!$T$9:$T$1000="MDA3 (IVM)", COUNTRY_INFO!$T$9:$T$1000, " ") -> MDA3 (IVM) | E11: 12/2020 | F11: 40639 | G11: 72055 | H11: 112694 | I11: 39329 | J11: 63806 | K11: 103135 | N11: 0 | O11: 39329 | P11: 63806 | Q11: 103135 | R11: 96.77649548 | S11: 88.55180071 | T11: 91.5177383
A12: =IF(COUNTRY_INFO!A12=0," ",COUNTRY_INFO!A12) -> Benin | B12: =IF(COUNTRY_INFO!B12=0," ",COUNTRY_INFO!B12) -> Alibori | C12: =IF(COUNTRY_INFO!C12=0," ",COUNTRY_INFO!C12) -> Karimama | D12: =IF(COUNTRY_INFO!$T$9:$T$1000="MDA3 (IVM)", COUNTRY_INFO!$T$9:$T$1000, " ") -> MDA3 (IVM) | E12: 03/2021 | F12: 21753 | G12: 38570 | H12: 60323 | I12: 19955 | J12: 31090 | K12: 51045 | N12: 0 | O12: 19955 | P12: 31090 | Q12: 51045 | R12: 91.73447341 | S12: 80.60668914 | T12: 84.61946521
A13: =IF(COUNTRY_INFO!A13=0," ",COUNTRY_INFO!A13) -> Benin | B13: =IF(COUNTRY_INFO!B13=0," ",COUNTRY_INFO!B13) -> Alibori | C13: =IF(COUNTRY_INFO!C13=0," ",COUNTRY_INFO!C13) -> Malanville | D13: =IF(COUNTRY_INFO!$T$9:$T$1000="MDA3 (IVM)", COUNTRY_INFO!$T$9:$T$1000, " ") -> MDA3 (IVM) | E13: 12/2020 | F13: 38368 | G13: 68029 | H13: 106397 | I13: 34501 | J13: 62529 | K13: 97030 | N13: 0 | O13: 34501 | P13: 62529 | Q13: 97030 | R13: 89.92128857 | S13: 91.91521263 | T13: 91.19618034
A14: =IF(COUNTRY_INFO!A14=0," ",COUNTRY_INFO!A14) -> Benin | B14: =IF(COUNTRY_INFO!B14=0," ",COUNTRY_INFO!B14) -> Alibori | C14: =IF(COUNTRY_INFO!C14=0," ",COUNTRY_INFO!C14) -> Ségbana | D14: =IF(COUNTRY_INFO!$T$9:$T$1000="MDA3 (IVM)", COUNTRY_INFO!$T$9:$T$1000, " ") -> MDA3 (IVM) | E14: 12/2020 | F14: 21146 | G14: 37493 | H14: 58639 | I14: 21951 | J14: 37496 | K14: 59447 | N14: 0 | O14: 21951 | P14: 37496 | Q14: 59447 | R14: 103.8068665 | S14: 100.0080015 | T14: 101.3779225
A15: =IF(COUNTRY_INFO!A15=0," ",COUNTRY_INFO!A15) -> Benin | B15: =IF(COUNTRY_INFO!B15=0," ",COUNTRY_INFO!B15) -> Atacora | C15: =IF(COUNTRY_INFO!C15=0," ",COUNTRY_INFO!C15) -> Boukoumbé | D15: =IF(COUNTRY_INFO!$T$9:$T$1000="MDA3 (IVM)", COUNTRY_INFO!$T$9:$T$1000, " ") -> MDA3 (IVM) | E15: 03/2021 | F15: 28575 | G15: 50665 | H15: 79240 | I15: 28507 | J15: 48597 | K15: 77104 | N15: 0 | O15: 28507 | P15: 48597 | Q15: 77104 | R15: 99.76202975 | S15: 95.91828679 | T15: 97.30439172
A16: =IF(COUNTRY_INFO!A16=0," ",COUNTRY_INFO!A16) -> Benin | B16: =IF(COUNTRY_INFO!B16=0," ",COUNTRY_INFO!B16) -> Atacora | C16: =IF(COUNTRY_INFO!C16=0," ",COUNTRY_INFO!C16) -> Cobly | D16: =IF(COUNTRY_INFO!$T$9:$T$1000="MDA3 (IVM)", COUNTRY_INFO!$T$9:$T$1000, " ") -> MDA3 (IVM) | E16: 12/2020 | F16: 23651 | G16: 41934 | H16: 65585 | I16: 28505 | J16: 39822 | K16: 68327 | N16: 0 | O16: 28505 | P16: 39822 | Q16: 68327 | R16: 120.5234451 | S16: 94.96351409 | T16: 104.180834
A17: =IF(COUNTRY_INFO!A17=0," ",COUNTRY_INFO!A17) -> Benin | B17: =IF(COUNTRY_INFO!B17=0," ",COUNTRY_INFO!B17) -> Atacora | C17: =IF(COUNTRY_INFO!C17=0," ",COUNTRY_INFO!C17) -> Kérou | D17: =IF(COUNTRY_INFO!$T$9:$T$1000="MDA3 (IVM)", COUNTRY_INFO!$T$9:$T$1000, " ") -> MDA3 (IVM) | E17: 12/2020 | F17: 31713 | G17: 56229 | H17: 87942 | I17: 33986 | J17: 60409 | K17: 94395 | N17: 0 | O17: 33986 | P17: 60409 | Q17: 94395 | R17: 107.1674077 | S17: 107.4338864 | T17: 107.3377908
A18: =IF(COUNTRY_INFO!A18=0," ",COUNTRY_INFO!A18) -> Benin | B18: =IF(COUNTRY_INFO!B18=0," ",COUNTRY_INFO!B18) -> Atacora | C18: =IF(COUNTRY_INFO!C18=0," ",COUNTRY_INFO!C18) -> Kouandé | D18: =IF(COUNTRY_INFO!$T$9:$T$1000="MDA3 (IVM)", COUNTRY_INFO!$T$9:$T$1000, " ") -> MDA3 (IVM) | E18: 12/2020 | F18: 40216 | G18: 71305 | H18: 111521 | I18: 38701 | J18: 72368 | K18: 111069 | N18: 0 | O18: 38701 | P18: 72368 | Q18: 111069 | R18: 96.23284265 | S18: 101.490779 | T18: 99.59469517
A19: =IF(COUNTRY_INFO!A19=0," ",COUNTRY_INFO!A19) -> Benin | B19: =IF(COUNTRY_INFO!B19=0," ",COUNTRY_INFO!B19) -> Atacora | C19: =IF(COUNTRY_INFO!C19=0," ",COUNTRY_INFO!C19) -> Matéri | D19: =IF(COUNTRY_INFO!$T$9:$T$1000="MDA3 (IVM)", COUNTRY_INFO!$T$9:$T$1000, " ") -> MDA3 (IVM) | E19: 12/2020 | F19: 40100 | G19: 71099 | H19: 111199 | I19: 35198 | J19: 57040 | K19: 92238 | N19: 0 | O19: 35198 | P19: 57040 | Q19: 92238 | R19: 87.7755611 | S19: 80.22616352 | T19: 82.94858767
A20: =IF(COUNTRY_INFO!A20=0," ",COUNTRY_INFO!A20) -> Benin | B20: =IF(COUNTRY_INFO!B20=0," ",COUNTRY_INFO!B20) -> Atacora | C20: =IF(COUNTRY_INFO!C20=0," ",COUNTRY_INFO!C20) -> Natitingou | D20: =IF(COUNTRY_INFO!$T$9:$T$1000="MDA3 (IVM)", COUNTRY_INFO!$T$9:$T$1000, " ") -> MDA3 (IVM) | E20: 12/2020 | F20: 24045 | G20: 42634 | H20: 66679 | I20: 25730 | J20: 43386 | K20: 69116 | N20: 0 | O20: 25730 | P20: 43386 | Q20: 69116 | R20: 107.0076939 | S20: 101.7638504 | T20: 103.6548239
A21: =IF(COUNTRY_INFO!A21=0," ",COUNTRY_INFO!A21) -> Benin | B21: =IF(COUNTRY_INFO!B21=0," ",COUNTRY_INFO!B21) -> Atacora | C21: =IF(COUNTRY_INFO!C21=0," ",COUNTRY_INFO!C21) -> Péhunco | D21: =IF(COUNTRY_INFO!$T$9:$T$1000="MDA3 (IVM)", COUNTRY_INFO!$T$9:$T$1000, " ") ->  | H21: 0 | K21: 0 | N21: 0 | O21: 0 | P21: 0 | Q21: 0
A22: =IF(COUNTRY_INFO!A22=0," ",COUNTRY_INFO!A22) -> Benin | B22: =IF(COUNTRY_INFO!B22=0," ",COUNTRY_INFO!B22) -> Atacora | C22: =IF(COUNTRY_INFO!C22=0," ",COUNTRY_INFO!C22) -> Tanguiéta | D22: =IF(COUNTRY_INFO!$T$9:$T$1000="MDA3 (IVM)", COUNTRY_INFO!$T$9:$T$1000, " ") -> MDA3 (IVM) | E22: 12/2020 | F22: 14127 | G22: 25049 | H22: 39176 | I22: 23519 | J22: 39694 | K22: 63213 | N22: 0 | O22: 23519 | P22: 39694 | Q22: 63213 | R22: 166.4826219 | S22: 158.4654078 | T22: 161.3564427
A23: =IF(COUNTRY_INFO!A23=0," ",COUNTRY_INFO!A23) -> Benin | B23: =IF(COUNTRY_INFO!B23=0," ",COUNTRY_INFO!B23) -> Atacora | C23: =IF(COUNTRY_INFO!C23=0," ",COUNTRY_INFO!C23) -> Toukountouna | D23: =IF(COUNTRY_INFO!$T$9:$T$1000="MDA3 (IVM)", COUNTRY_INFO!$T$9:$T$1000, " ") -> MDA3 (IVM) | E23: 12/2020 | F23: 14733 | G23: 26123 | H23: 40856 | I23: 15421 | J23: 21725 | K23: 37146 | N23: 0 | O23: 15421 | P23: 21725 | Q23: 37146 | R23: 104.6697889 | S23: 83.16426138 | T23: 90.91932641
A24: =IF(COUNTRY_INFO!A24=0," ",COUNTRY_INFO!A24) -> Benin | B24: =IF(COUNTRY_INFO!B24=0," ",COUNTRY_INFO!B24) -> Atlantique | C24: =IF(COUNTRY_INFO!C24=0," ",COUNTRY_INFO!C24) -> Abomey-Calavi | D24: =IF(COUNTRY_INFO!$T$9:$T$1000="MDA3 (IVM)", COUNTRY_INFO!$T$9:$T$1000, " ") ->  | H24: 0 | K24: 0 | N24: 0 | O24: 0 | P24: 0 | Q24: 0
A25: =IF(COUNTRY_INFO!A25=0," ",COUNTRY_INFO!A25) -> Benin | B25: =IF(COUNTRY_INFO!B25=0," ",COUNTRY_INFO!B25) -> Atlantique | C25: =IF(COUNTRY_INFO!C25=0," ",COUNTRY_INFO!C25) -> Allada | D25: =IF(COUNTRY_INFO!$T$9:$T$1000="MDA3 (IVM)", COUNTRY_INFO!$T$9:$T$1000, " ") ->  | H25: 0 | K25: 0 | N25: 0 | O25: 0 | P25: 0 | Q25: 0
A26: =IF(COUNTRY_INFO!A26=0," ",COUNTRY_INFO!A26) -> Benin | B26: =IF(COUNTRY_INFO!B26=0," ",COUNTRY_INFO!B26) -> Atlantique | C26: =IF(COUNTRY_INFO!C26=0," ",COUNTRY_INFO!C26) -> Kpomassè | D26: =IF(COUNTRY_INFO!$T$9:$T$1000="MDA3 (IVM)", COUNTRY_INFO!$T$9:$T$1000, " ") ->  | H26: 0 | K26: 0 | N26: 0 | O26: 0 | P26: 0 | Q26: 0
A27: =IF(COUNTRY_INFO!A27=0," ",COUNTRY_INFO!A27) -> Benin | B27: =IF(COUNTRY_INFO!B27=0," ",COUNTRY_INFO!B27) -> Atlantique | C27: =IF(COUNTRY_INFO!C27=0," ",COUNTRY_INFO!C27) -> Ouidah | D27: =IF(COUNTRY_INFO!$T$9:$T$1000="MDA3 (IVM)", COUNTRY_INFO!$T$9:$T$1000, " ") ->  | H27: 0 | K27: 0 | N27: 0 | O27: 0 | P27: 0 | Q27: 0
A28: =IF(COUNTRY_INFO!A28=0," ",COUNTRY_INFO!A28) -> Benin | B28: =IF(COUNTRY_INFO!B28=0," ",COUNTRY_INFO!B28) -> Atlantique | C28: =IF(COUNTRY_INFO!C28=0," ",COUNTRY_INFO!C28) -> So-Ava | D28: =IF(COUNTRY_INFO!$T$9:$T$1000="MDA3 (IVM)", COUNTRY_INFO!$T$9:$T$1000, " ") ->  | H28: 0 | K28: 0 | N28: 0 | O28: 0 | P28: 0 | Q28: 0
A29: =IF(COUNTRY_INFO!A29=0," ",COUNTRY_INFO!A29) -> Benin | B29: =IF(COUNTRY_INFO!B29=0," ",COUNTRY_INFO!B29) -> Atlantique | C29: =IF(COUNTRY_INFO!C29=0," ",COUNTRY_INFO!C29) -> Toffo | D29: =IF(COUNTRY_INFO!$T$9:$T$1000="MDA3 (IVM)", COUNTRY_INFO!$T$9:$T$1000, " ") -> MDA3 (IVM) | E29: 12/2020 | F29: 6816 | G29: 13254 | H29: 20070 | I29: 6703 | J29: 13376 | K29: 20079 | N29: 0 | O29: 6703 | P29: 13376 | Q29: 20079 | R29: 98.34213615 | S29: 100.9204768 | T29: 100.044843
A30: =IF(COUNTRY_INFO!A30=0," ",COUNTRY_INFO!A30) -> Benin | B30: =IF(COUNTRY_INFO!B30=0," ",COUNTRY_INFO!B30) -> Atlantique | C30: =IF(COUNTRY_INFO!C30=0," ",COUNTRY_INFO!C30) -> Torri-Bossito | D30: =IF(COUNTRY_INFO!$T$9:$T$1000="MDA3 (IVM)", COUNTRY_INFO!$T$9:$T$1000, " ") ->  | H30: 0 | K30: 0 | N30: 0 | O30: 0 | P30: 0 | Q30: 0
A31: =IF(COUNTRY_INFO!A31=0," ",COUNTRY_INFO!A31) -> Benin | B31: =IF(COUNTRY_INFO!B31=0," ",COUNTRY_INFO!B31) -> Atlantique | C31: =IF(COUNTRY_INFO!C31=0," ",COUNTRY_INFO!C31) -> Zè | D31: =IF(COUNTRY_INFO!$T$9:$T$1000="MDA3 (IVM)", COUNTRY_INFO!$T$9:$T$1000, " ") -> MDA3 (IVM) | E31: 12/2020 | F31: 1158 | G31: 2402 | H31: 3560 | I31: 1158 | J31: 2337 | K31: 3495 | N31: 0 | O31: 1158 | P31: 2337 | Q31: 3495 | R31: 100 | S31: 97.29392173 | T31: 98.1741573
A32: =IF(COUNTRY_INFO!A32=0," ",COUNTRY_INFO!A32) -> Benin | B32: =IF(COUNTRY_INFO!B32=0," ",COUNTRY_INFO!B32) -> Borgou | C32: =IF(COUNTRY_INFO!C32=0," ",COUNTRY_INFO!C32) -> Bembèrèkè | D32: =IF(COUNTRY_INFO!$T$9:$T$1000="MDA3 (IVM)", COUNTRY_INFO!$T$9:$T$1000, " ") -> MDA3 (IVM) | E32: 12/2020 | F32: 29741 | G32: 52733 | H32: 82474 | I32: 40097 | J32: 65429 | K32: 105526 | N32: 0 | O32: 40097 | P32: 65429 | Q32: 105526 | R32: 134.820618 | S32: 124.0760055 | T32: 127.9506269
A33: =IF(COUNTRY_INFO!A33=0," ",COUNTRY_INFO!A33) -> Benin | B33: =IF(COUNTRY_INFO!B33=0," ",COUNTRY_INFO!B33) -> Borgou | C33: =IF(COUNTRY_INFO!C33=0," ",COUNTRY_INFO!C33) -> Kalalé | D33: =IF(COUNTRY_INFO!$T$9:$T$1000="MDA3 (IVM)", COUNTRY_INFO!$T$9:$T$1000, " ") -> MDA3 (IVM) | E33: 12/2020 | F33: 60559 | G33: 107375 | H33: 167934 | I33: 59104 | J33: 100105 | K33: 159209 | N33: 0 | O33: 59104 | P33: 100105 | Q33: 159209 | R33: 97.59738437 | S33: 93.22933644 | T33: 94.80450653
A34: =IF(COUNTRY_INFO!A34=0," ",COUNTRY_INFO!A34) -> Benin | B34: =IF(COUNTRY_INFO!B34=0," ",COUNTRY_INFO!B34) -> Borgou | C34: =IF(COUNTRY_INFO!C34=0," ",COUNTRY_INFO!C34) -> N'Dali | D34: =IF(COUNTRY_INFO!$T$9:$T$1000="MDA3 (IVM)", COUNTRY_INFO!$T$9:$T$1000, " ") -> MDA3 (IVM) | E34: 12/2020 | F34: 29225 | G34: 51818 | H34: 81043 | I34: 28263 | J34: 58135 | K34: 86398 | N34: 0 | O34: 28263 | P34: 58135 | Q34: 86398 | R34: 96.70829769 | S34: 112.1907445 | T34: 106.6076034
A35: =IF(COUNTRY_INFO!A35=0," ",COUNTRY_INFO!A35) -> Benin | B35: =IF(COUNTRY_INFO!B35=0," ",COUNTRY_INFO!B35) -> Borgou | C35: =IF(COUNTRY_INFO!C35=0," ",COUNTRY_INFO!C35) -> Nikki | D35: =IF(COUNTRY_INFO!$T$9:$T$1000="MDA3 (IVM)", COUNTRY_INFO!$T$9:$T$1000, " ") -> MDA3 (IVM) | E35: 12/2020 | F35: 54630 | G35: 96862 | H35: 151492 | I35: 55666 | J35: 94609 | K35: 150275 | N35: 0 | O35: 55666 | P35: 94609 | Q35: 150275 | R35: 101.8963939 | S35: 97.67401045 | T35: 99.19665725
A36: =IF(COUNTRY_INFO!A36=0," ",COUNTRY_INFO!A36) -> Benin | B36: =IF(COUNTRY_INFO!B36=0," ",COUNTRY_INFO!B36) -> Borgou | C36: =IF(COUNTRY_INFO!C36=0," ",COUNTRY_INFO!C36) -> Parakou | D36: =IF(COUNTRY_INFO!$T$9:$T$1000="MDA3 (IVM)", COUNTRY_INFO!$T$9:$T$1000, " ") -> MDA3 (IVM) | E36: 12/2020 | F36: 60274 | G36: 106869 | H36: 167143 | I36: 39007 | J36: 83852 | K36: 122859 | N36: 0 | O36: 39007 | P36: 83852 | Q36: 122859 | R36: 64.71612967 | S36: 78.4624166 | T36: 73.50532179
A37: =IF(COUNTRY_INFO!A37=0," ",COUNTRY_INFO!A37) -> Benin | B37: =IF(COUNTRY_INFO!B37=0," ",COUNTRY_INFO!B37) -> Borgou | C37: =IF(COUNTRY_INFO!C37=0," ",COUNTRY_INFO!C37) -> Pèrèrè | D37: =IF(COUNTRY_INFO!$T$9:$T$1000="MDA3 (IVM)", COUNTRY_INFO!$T$9:$T$1000, " ") -> MDA3 (IVM) | E37: 12/2020 | F37: 24640 | G37: 43688 | H37: 68328 | I37: 28079 | J37: 42913 | K37: 70992 | N37: 0 | O37: 28079 | P37: 42913 | Q37: 70992 | R37: 113.9569805 | S37: 98.2260575 | T37: 103.8988409
A38: =IF(COUNTRY_INFO!A38=0," ",COUNTRY_INFO!A38) -> Benin | B38: =IF(COUNTRY_INFO!B38=0," ",COUNTRY_INFO!B38) -> Borgou | C38: =IF(COUNTRY_INFO!C38=0," ",COUNTRY_INFO!C38) -> Sinendé | D38: =IF(COUNTRY_INFO!$T$9:$T$1000="MDA3 (IVM)", COUNTRY_INFO!$T$9:$T$1000, " ") -> MDA3 (IVM) | E38: 12/2020 | F38: 23776 | G38: 42156 | H38: 65932 | I38: 23230 | J38: 37446 | K38: 60676 | N38: 0 | O38: 23230 | P38: 37446 | Q38: 60676 | R38: 97.70356662 | S38: 88.82721321 | T38: 92.02815022
A39: =IF(COUNTRY_INFO!A39=0," ",COUNTRY_INFO!A39) -> Benin | B39: =IF(COUNTRY_INFO!B39=0," ",COUNTRY_INFO!B39) -> Borgou | C39: =IF(COUNTRY_INFO!C39=0," ",COUNTRY_INFO!C39) -> Tchaourou | D39: =IF(COUNTRY_INFO!$T$9:$T$1000="MDA3 (IVM)", COUNTRY_INFO!$T$9:$T$1000, " ") -> MDA3 (IVM) | E39: 12/2020 | F39: 80159 | G39: 142128 | H39: 222287 | I39: 87323 | J39: 154114 | K39: 241437 | N39: 0 | O39: 87323 | P39: 154114 | Q39: 241437 | R39: 108.9372372 | S39: 108.4332433 | T39: 108.6149887
A40: =IF(COUNTRY_INFO!A40=0," ",COUNTRY_INFO!A40) -> Benin | B40: =IF(COUNTRY_INFO!B40=0," ",COUNTRY_INFO!B40) -> Collines | C40: =IF(COUNTRY_INFO!C40=0," ",COUNTRY_INFO!C40) -> Bantè | D40: =IF(COUNTRY_INFO!$T$9:$T$1000="MDA3 (IVM)", COUNTRY_INFO!$T$9:$T$1000, " ") -> MDA3 (IVM) | E40: 12/2020 | F40: 28292 | G40: 50164 | H40: 78456 | I40: 26199 | J40: 46526 | K40: 72725 | N40: 0 | O40: 26199 | P40: 46526 | Q40: 72725 | R40: 92.60214902 | S40: 92.74778726 | T40: 92.69526869
A41: =IF(COUNTRY_INFO!A41=0," ",COUNTRY_INFO!A41) -> Benin | B41: =IF(COUNTRY_INFO!B41=0," ",COUNTRY_INFO!B41) -> Collines | C41: =IF(COUNTRY_INFO!C41=0," ",COUNTRY_INFO!C41) -> Dassa-Zoumè | D41: =IF(COUNTRY_INFO!$T$9:$T$1000="MDA3 (IVM)", COUNTRY_INFO!$T$9:$T$1000, " ") -> MDA3 (IVM) | E41: 12/2020 | F41: 35887 | G41: 63629 | H41: 99516 | I41: 30376 | J41: 52187 | K41: 82563 | N41: 0 | O41: 30376 | P41: 52187 | Q41: 82563 | R41: 84.64346421 | S41: 82.01763347 | T41: 82.96454841
A42: =IF(COUNTRY_INFO!A42=0," ",COUNTRY_INFO!A42) -> Benin | B42: =IF(COUNTRY_INFO!B42=0," ",COUNTRY_INFO!B42) -> Collines | C42: =IF(COUNTRY_INFO!C42=0," ",COUNTRY_INFO!C42) -> Glazoué | D42: =IF(COUNTRY_INFO!$T$9:$T$1000="MDA3 (IVM)", COUNTRY_INFO!$T$9:$T$1000, " ") -> MDA3 (IVM) | E42: 03/2021 | F42: 33789 | G42: 59910 | H42: 93699 | I42: 29915 | J42: 56083 | K42: 85998 | N42: 0 | O42: 29915 | P42: 56083 | Q42: 85998 | R42: 88.53473024 | S42: 93.61208479 | T42: 91.78112893
A43: =IF(COUNTRY_INFO!A43=0," ",COUNTRY_INFO!A43) -> Benin | B43: =IF(COUNTRY_INFO!B43=0," ",COUNTRY_INFO!B43) -> Collines | C43: =IF(COUNTRY_INFO!C43=0," ",COUNTRY_INFO!C43) -> Ouèssè | D43: =IF(COUNTRY_INFO!$T$9:$T$1000="MDA3 (IVM)", COUNTRY_INFO!$T$9:$T$1000, " ") -> MDA3 (IVM) | E43: 12/2020 | F43: 26297 | G43: 46626 | H43: 72923 | I43: 38076 | J43: 62504 | K43: 100580 | N43: 0 | O43: 38076 | P43: 62504 | Q43: 100580 | R43: 144.7921816 | S43: 134.0539613 | T43: 137.9263058
A44: =IF(COUNTRY_INFO!A44=0," ",COUNTRY_INFO!A44) -> Benin | B44: =IF(COUNTRY_INFO!B44=0," ",COUNTRY_INFO!B44) -> Collines | C44: =IF(COUNTRY_INFO!C44=0," ",COUNTRY_INFO!C44) -> Savalou | D44: =IF(COUNTRY_INFO!$T$9:$T$1000="MDA3 (IVM)", COUNTRY_INFO!$T$9:$T$1000, " ") -> MDA3 (IVM) | E44: 12/2020 | F44: 45937 | G44: 81450 | H44: 127387 | I44: 46189 | J44: 74203 | K44: 120392 | N44: 0 | O44: 46189 | P44: 74203 | Q44: 120392 | R44: 100.5485774 | S44: 91.10251688 | T44: 94.50885883
A45: =IF(COUNTRY_INFO!A45=0," ",COUNTRY_INFO!A45) -> Benin | B45: =IF(COUNTRY_INFO!B45=0," ",COUNTRY_INFO!B45) -> Collines | C45: =IF(COUNTRY_INFO!C45=0," ",COUNTRY_INFO!C45) -> Savè | D45: =IF(COUNTRY_INFO!$T$9:$T$1000="MDA3 (IVM)", COUNTRY_INFO!$T$9:$T$1000, " ") -> MDA3 (IVM) | E45: 12/2020 | F45: 23844 | G45: 42277 | H45: 66121 | I45: 24252 | J45: 48842 | K45: 73094 | N45: 0 | O45: 24252 | P45: 48842 | Q45: 73094 | R45: 101.7111223 | S45: 115.528538 | T45: 110.5458175
A46: =IF(COUNTRY_INFO!A46=0," ",COUNTRY_INFO!A46) -> Benin | B46: =IF(COUNTRY_INFO!B46=0," ",COUNTRY_INFO!B46) -> Couffo | C46: =IF(COUNTRY_INFO!C46=0," ",COUNTRY_INFO!C46) -> Aplahoué | D46: =IF(COUNTRY_INFO!$T$9:$T$1000="MDA3 (IVM)", COUNTRY_INFO!$T$9:$T$1000, " ") -> MDA3 (IVM) | E46: 12/2020 | F46: 58366 | G46: 103486 | H46: 161852 | I46: 59026 | J46: 112940 | K46: 171966 | N46: 0 | O46: 59026 | P46: 112940 | Q46: 171966 | R46: 101.1307953 | S46: 109.1355352 | T46: 106.2489188
A47: =IF(COUNTRY_INFO!A47=0," ",COUNTRY_INFO!A47) -> Benin | B47: =IF(COUNTRY_INFO!B47=0," ",COUNTRY_INFO!B47) -> Couffo | C47: =IF(COUNTRY_INFO!C47=0," ",COUNTRY_INFO!C47) -> Djakotomè | D47: =IF(COUNTRY_INFO!$T$9:$T$1000="MDA3 (IVM)", COUNTRY_INFO!$T$9:$T$1000, " ") -> MDA3 (IVM) | E47: 12/2020 | F47: 38139 | G47: 67623 | H47: 105762 | I47: 67731 | J47: 75581 | K47: 143312 | N47: 0 | O47: 67731 | P47: 75581 | Q47: 143312 | R47: 177.5898686 | S47: 111.7681854 | T47: 135.5042454
A48: =IF(COUNTRY_INFO!A48=0," ",COUNTRY_INFO!A48) -> Benin | B48: =IF(COUNTRY_INFO!B48=0," ",COUNTRY_INFO!B48) -> Couffo | C48: =IF(COUNTRY_INFO!C48=0," ",COUNTRY_INFO!C48) -> Dogbo | D48: =IF(COUNTRY_INFO!$T$9:$T$1000="MDA3 (IVM)", COUNTRY_INFO!$T$9:$T$1000, " ") -> MDA3 (IVM) | E48: 12/2020 | F48: 4359 | G48: 7206 | H48: 11565 | I48: 4359 | J48: 7203 | K48: 11562 | N48: 0 | O48: 4359 | P48: 7203 | Q48: 11562 | R48: 100 | S48: 99.95836803 | T48: 99.97405966
A49: =IF(COUNTRY_INFO!A49=0," ",COUNTRY_INFO!A49) -> Benin | B49: =IF(COUNTRY_INFO!B49=0," ",COUNTRY_INFO!B49) -> Couffo | C49: =IF(COUNTRY_INFO!C49=0," ",COUNTRY_INFO!C49) -> Klouékamè | D49: =IF(COUNTRY_INFO!$T$9:$T$1000="MDA3 (IVM)", COUNTRY_INFO!$T$9:$T$1000, " ") -> MDA3 (IVM) | E49: 12/2020 | F49: 46381 | G49: 82236 | H49: 128617 | I49: 44789 | J49: 73712 | K49: 118501 | N49: 0 | O49: 44789 | P49: 73712 | Q49: 118501 | R49: 96.56755999 | S49: 89.63470986 | T49: 92.13478778
A50: =IF(COUNTRY_INFO!A50=0," ",COUNTRY_INFO!A50) -> Benin | B50: =IF(COUNTRY_INFO!B50=0," ",COUNTRY_INFO!B50) -> Couffo | C50: =IF(COUNTRY_INFO!C50=0," ",COUNTRY_INFO!C50) -> Lalo | D50: =IF(COUNTRY_INFO!$T$9:$T$1000="MDA3 (IVM)", COUNTRY_INFO!$T$9:$T$1000, " ") -> MDA3 (IVM) | E50: 12/2020 | F50: 42581 | G50: 75499 | H50: 118080 | I50: 32747 | J50: 77737 | K50: 110484 | N50: 0 | O50: 32747 | P50: 77737 | Q50: 110484 | R50: 76.90519246 | S50: 102.9642777 | T50: 93.56707317
A51: =IF(COUNTRY_INFO!A51=0," ",COUNTRY_INFO!A51) -> Benin | B51: =IF(COUNTRY_INFO!B51=0," ",COUNTRY_INFO!B51) -> Couffo | C51: =IF(COUNTRY_INFO!C51=0," ",COUNTRY_INFO!C51) -> Toviklin | D51: =IF(COUNTRY_INFO!$T$9:$T$1000="MDA3 (IVM)", COUNTRY_INFO!$T$9:$T$1000, " ") ->  | H51: 0 | K51: 0 | N51: 0 | O51: 0 | P51: 0 | Q51: 0
A52: =IF(COUNTRY_INFO!A52=0," ",COUNTRY_INFO!A52) -> Benin | B52: =IF(COUNTRY_INFO!B52=0," ",COUNTRY_INFO!B52) -> Donga | C52: =IF(COUNTRY_INFO!C52=0," ",COUNTRY_INFO!C52) -> Bassila | D52: =IF(COUNTRY_INFO!$T$9:$T$1000="MDA3 (IVM)", COUNTRY_INFO!$T$9:$T$1000, " ") -> MDA3 (IVM) | E52: 12/2020 | F52: 37863 | G52: 67134 | H52: 104997 | I52: 33924 | J52: 57790 | K52: 91714 | N52: 0 | O52: 33924 | P52: 57790 | Q52: 91714 | R52: 89.59670391 | S52: 86.08156821 | T52: 87.34916236
A53: =IF(COUNTRY_INFO!A53=0," ",COUNTRY_INFO!A53) -> Benin | B53: =IF(COUNTRY_INFO!B53=0," ",COUNTRY_INFO!B53) -> Donga | C53: =IF(COUNTRY_INFO!C53=0," ",COUNTRY_INFO!C53) -> Copargo | D53: =IF(COUNTRY_INFO!$T$9:$T$1000="MDA3 (IVM)", COUNTRY_INFO!$T$9:$T$1000, " ") -> MDA3 (IVM) | E53: 12/2020 | F53: 24324 | G53: 43129 | H53: 67453 | I53: 25434 | J53: 48324 | K53: 73758 | N53: 0 | O53: 25434 | P53: 48324 | Q53: 73758 | R53: 104.5633942 | S53: 112.0452596 | T53: 109.3472492
A54: =IF(COUNTRY_INFO!A54=0," ",COUNTRY_INFO!A54) -> Benin | B54: =IF(COUNTRY_INFO!B54=0," ",COUNTRY_INFO!B54) -> Donga | C54: =IF(COUNTRY_INFO!C54=0," ",COUNTRY_INFO!C54) -> Djougou | D54: =IF(COUNTRY_INFO!$T$9:$T$1000="MDA3 (IVM)", COUNTRY_INFO!$T$9:$T$1000, " ") -> MDA3 (IVM) | E54: 12/2020 | F54: 67408 | G54: 119519 | H54: 186927 | I54: 71950 | J54: 123263 | K54: 195213 | N54: 0 | O54: 71950 | P54: 123263 | Q54: 195213 | R54: 106.7380726 | S54: 103.1325563 | T54: 104.4327465
A55: =IF(COUNTRY_INFO!A55=0," ",COUNTRY_INFO!A55) -> Benin | B55: =IF(COUNTRY_INFO!B55=0," ",COUNTRY_INFO!B55) -> Donga | C55: =IF(COUNTRY_INFO!C55=0," ",COUNTRY_INFO!C55) -> Ouaké | D55: =IF(COUNTRY_INFO!$T$9:$T$1000="MDA3 (IVM)", COUNTRY_INFO!$T$9:$T$1000, " ") -> MDA3 (IVM) | E55: 12/2020 | F55: 21282 | G55: 37734 | H55: 59016 | I55: 24882 | J55: 46839 | K55: 71721 | N55: 0 | O55: 24882 | P55: 46839 | Q55: 71721 | R55: 116.9157034 | S55: 124.1294323 | T55: 121.5280602
A56: =IF(COUNTRY_INFO!A56=0," ",COUNTRY_INFO!A56) -> Benin | B56: =IF(COUNTRY_INFO!B56=0," ",COUNTRY_INFO!B56) -> Littoral | C56: =IF(COUNTRY_INFO!C56=0," ",COUNTRY_INFO!C56) -> Cotonou | D56: =IF(COUNTRY_INFO!$T$9:$T$1000="MDA3 (IVM)", COUNTRY_INFO!$T$9:$T$1000, " ") ->  | H56: 0 | K56: 0 | N56: 0 | O56: 0 | P56: 0 | Q56: 0
A57: =IF(COUNTRY_INFO!A57=0," ",COUNTRY_INFO!A57) -> Benin | B57: =IF(COUNTRY_INFO!B57=0," ",COUNTRY_INFO!B57) -> Mono | C57: =IF(COUNTRY_INFO!C57=0," ",COUNTRY_INFO!C57) -> Athiémé | D57: =IF(COUNTRY_INFO!$T$9:$T$1000="MDA3 (IVM)", COUNTRY_INFO!$T$9:$T$1000, " ") -> MDA3 (IVM) | E57: 12/2020 | F57: 16378 | G57: 29039 | H57: 45417 | I57: 18551 | J57: 36707 | K57: 55258 | N57: 0 | O57: 18551 | P57: 36707 | Q57: 55258 | R57: 113.2677983 | S57: 126.405868 | T57: 121.6680978
A58: =IF(COUNTRY_INFO!A58=0," ",COUNTRY_INFO!A58) -> Benin | B58: =IF(COUNTRY_INFO!B58=0," ",COUNTRY_INFO!B58) -> Mono | C58: =IF(COUNTRY_INFO!C58=0," ",COUNTRY_INFO!C58) -> Bopa | D58: =IF(COUNTRY_INFO!$T$9:$T$1000="MDA3 (IVM)", COUNTRY_INFO!$T$9:$T$1000, " ") ->  | H58: 0 | K58: 0 | N58: 0 | O58: 0 | P58: 0 | Q58: 0
A59: =IF(COUNTRY_INFO!A59=0," ",COUNTRY_INFO!A59) -> Benin | B59: =IF(COUNTRY_INFO!B59=0," ",COUNTRY_INFO!B59) -> Mono | C59: =IF(COUNTRY_INFO!C59=0," ",COUNTRY_INFO!C59) -> Comé | D59: =IF(COUNTRY_INFO!$T$9:$T$1000="MDA3 (IVM)", COUNTRY_INFO!$T$9:$T$1000, " ") ->  | H59: 0 | K59: 0 | N59: 0 | O59: 0 | P59: 0 | Q59: 0
A60: =IF(COUNTRY_INFO!A60=0," ",COUNTRY_INFO!A60) -> Benin | B60: =IF(COUNTRY_INFO!B60=0," ",COUNTRY_INFO!B60) -> Mono | C60: =IF(COUNTRY_INFO!C60=0," ",COUNTRY_INFO!C60) -> Grand-Popo | D60: =IF(COUNTRY_INFO!$T$9:$T$1000="MDA3 (IVM)", COUNTRY_INFO!$T$9:$T$1000, " ") ->  | H60: 0 | K60: 0 | N60: 0 | O60: 0 | P60: 0 | Q60: 0
A61: =IF(COUNTRY_INFO!A61=0," ",COUNTRY_INFO!A61) -> Benin | B61: =IF(COUNTRY_INFO!B61=0," ",COUNTRY_INFO!B61) -> Mono | C61: =IF(COUNTRY_INFO!C61=0," ",COUNTRY_INFO!C61) -> Houéyogbé | D61: =IF(COUNTRY_INFO!$T$9:$T$1000="MDA3 (IVM)", COUNTRY_INFO!$T$9:$T$1000, " ") ->  | H61: 0 | K61: 0 | N61: 0 | O61: 0 | P61: 0 | Q61: 0
A62: =IF(COUNTRY_INFO!A62=0," ",COUNTRY_INFO!A62) -> Benin | B62: =IF(COUNTRY_INFO!B62=0," ",COUNTRY_INFO!B62) -> Mono | C62: =IF(COUNTRY_INFO!C62=0," ",COUNTRY_INFO!C62) -> Lokossa | D62: =IF(COUNTRY_INFO!$T$9:$T$1000="MDA3 (IVM)", COUNTRY_INFO!$T$9:$T$1000, " ") -> MDA3 (IVM) | E62: 12/2020 | F62: 5101 | G62: 8405 | H62: 13506 | I62: 4882 | J62: 8478 | K62: 13360 | N62: 0 | O62: 4882 | P62: 8478 | Q62: 13360 | R62: 95.70672417 | S62: 100.8685306 | T62: 98.91899896
A63: =IF(COUNTRY_INFO!A63=0," ",COUNTRY_INFO!A63) -> Benin | B63: =IF(COUNTRY_INFO!B63=0," ",COUNTRY_INFO!B63) -> Oueme | C63: =IF(COUNTRY_INFO!C63=0," ",COUNTRY_INFO!C63) -> Adjarra | D63: =IF(COUNTRY_INFO!$T$9:$T$1000="MDA3 (IVM)", COUNTRY_INFO!$T$9:$T$1000, " ") ->  | H63: 0 | K63: 0 | N63: 0 | O63: 0 | P63: 0 | Q63: 0
A64: =IF(COUNTRY_INFO!A64=0," ",COUNTRY_INFO!A64) -> Benin | B64: =IF(COUNTRY_INFO!B64=0," ",COUNTRY_INFO!B64) -> Oueme | C64: =IF(COUNTRY_INFO!C64=0," ",COUNTRY_INFO!C64) -> Adjohoun | D64: =IF(COUNTRY_INFO!$T$9:$T$1000="MDA3 (IVM)", COUNTRY_INFO!$T$9:$T$1000, " ") ->  | H64: 0 | K64: 0 | N64: 0 | O64: 0 | P64: 0 | Q64: 0
A65: =IF(COUNTRY_INFO!A65=0," ",COUNTRY_INFO!A65) -> Benin | B65: =IF(COUNTRY_INFO!B65=0," ",COUNTRY_INFO!B65) -> Oueme | C65: =IF(COUNTRY_INFO!C65=0," ",COUNTRY_INFO!C65) -> Aguégués | D65: =IF(COUNTRY_INFO!$T$9:$T$1000="MDA3 (IVM)", COUNTRY_INFO!$T$9:$T$1000, " ") ->  | H65: 0 | K65: 0 | N65: 0 | O65: 0 | P65: 0 | Q65: 0
A66: =IF(COUNTRY_INFO!A66=0," ",COUNTRY_INFO!A66) -> Benin | B66: =IF(COUNTRY_INFO!B66=0," ",COUNTRY_INFO!B66) -> Oueme | C66: =IF(COUNTRY_INFO!C66=0," ",COUNTRY_INFO!C66) -> Akpro-Missérété | D66: =IF(COUNTRY_INFO!$T$9:$T$1000="MDA3 (IVM)", COUNTRY_INFO!$T$9:$T$1000, " ") ->  | H66: 0 | K66: 0 | N66: 0 | O66: 0 | P66: 0 | Q66: 0
A67: =IF(COUNTRY_INFO!A67=0," ",COUNTRY_INFO!A67) -> Benin | B67: =IF(COUNTRY_INFO!B67=0," ",COUNTRY_INFO!B67) -> Oueme | C67: =IF(COUNTRY_INFO!C67=0," ",COUNTRY_INFO!C67) -> Avrankou | D67: =IF(COUNTRY_INFO!$T$9:$T$1000="MDA3 (IVM)", COUNTRY_INFO!$T$9:$T$1000, " ") ->  | H67: 0 | K67: 0 | N67: 0 | O67: 0 | P67: 0 | Q67: 0
A68: =IF(COUNTRY_INFO!A68=0," ",COUNTRY_INFO!A68) -> Benin | B68: =IF(COUNTRY_INFO!B68=0," ",COUNTRY_INFO!B68) -> Oueme | C68: =IF(COUNTRY_INFO!C68=0," ",COUNTRY_INFO!C68) -> Bonou | D68: =IF(COUNTRY_INFO!$T$9:$T$1000="MDA3 (IVM)", COUNTRY_INFO!$T$9:$T$1000, " ") -> MDA3 (IVM) | E68: 12/2020 | F68: 13950 | G68: 24735 | H68: 38685 | I68: 11330 | J68: 22730 | K68: 34060 | N68: 0 | O68: 11330 | P68: 22730 | Q68: 34060 | R68: 81.21863799 | S68: 91.89407722 | T68: 88.04446168
A69: =IF(COUNTRY_INFO!A69=0," ",COUNTRY_INFO!A69) -> Benin | B69: =IF(COUNTRY_INFO!B69=0," ",COUNTRY_INFO!B69) -> Oueme | C69: =IF(COUNTRY_INFO!C69=0," ",COUNTRY_INFO!C69) -> Dangbo | D69: =IF(COUNTRY_INFO!$T$9:$T$1000="MDA3 (IVM)", COUNTRY_INFO!$T$9:$T$1000, " ") ->  | H69: 0 | K69: 0 | N69: 0 | O69: 0 | P69: 0 | Q69: 0
A70: =IF(COUNTRY_INFO!A70=0," ",COUNTRY_INFO!A70) -> Benin | B70: =IF(COUNTRY_INFO!B70=0," ",COUNTRY_INFO!B70) -> Oueme | C70: =IF(COUNTRY_INFO!C70=0," ",COUNTRY_INFO!C70) -> Porto-Novo | D70: =IF(COUNTRY_INFO!$T$9:$T$1000="MDA3 (IVM)", COUNTRY_INFO!$T$9:$T$1000, " ") ->  | H70: 0 | K70: 0 | N70: 0 | O70: 0 | P70: 0 | Q70: 0
A71: =IF(COUNTRY_INFO!A71=0," ",COUNTRY_INFO!A71) -> Benin | B71: =IF(COUNTRY_INFO!B71=0," ",COUNTRY_INFO!B71) -> Oueme | C71: =IF(COUNTRY_INFO!C71=0," ",COUNTRY_INFO!C71) -> Sèmè-Kpodji | D71: =IF(COUNTRY_INFO!$T$9:$T$1000="MDA3 (IVM)", COUNTRY_INFO!$T$9:$T$1000, " ") ->  | H71: 0 | K71: 0 | N71: 0 | O71: 0 | P71: 0 | Q71: 0
A72: =IF(COUNTRY_INFO!A72=0," ",COUNTRY_INFO!A72) -> Benin | B72: =IF(COUNTRY_INFO!B72=0," ",COUNTRY_INFO!B72) -> Plateau | C72: =IF(COUNTRY_INFO!C72=0," ",COUNTRY_INFO!C72) -> Adja-Ouèrè | D72: =IF(COUNTRY_INFO!$T$9:$T$1000="MDA3 (IVM)", COUNTRY_INFO!$T$9:$T$1000, " ") -> MDA3 (IVM) | E72: 12/2020 | F72: 22922 | G72: 40642 | H72: 63564 | I72: 37793 | J72: 64371 | K72: 102164 | N72: 0 | O72: 37793 | P72: 64371 | Q72: 102164 | R72: 164.8765378 | S72: 158.3854141 | T72: 160.7261972
A73: =IF(COUNTRY_INFO!A73=0," ",COUNTRY_INFO!A73) -> Benin | B73: =IF(COUNTRY_INFO!B73=0," ",COUNTRY_INFO!B73) -> Plateau | C73: =IF(COUNTRY_INFO!C73=0," ",COUNTRY_INFO!C73) -> Ifangni | D73: =IF(COUNTRY_INFO!$T$9:$T$1000="MDA3 (IVM)", COUNTRY_INFO!$T$9:$T$1000, " ") ->  | H73: 0 | K73: 0 | N73: 0 | O73: 0 | P73: 0 | Q73: 0
A74: =IF(COUNTRY_INFO!A74=0," ",COUNTRY_INFO!A74) -> Benin | B74: =IF(COUNTRY_INFO!B74=0," ",COUNTRY_INFO!B74) -> Plateau | C74: =IF(COUNTRY_INFO!C74=0," ",COUNTRY_INFO!C74) -> Kétou | D74: =IF(COUNTRY_INFO!$T$9:$T$1000="MDA3 (IVM)", COUNTRY_INFO!$T$9:$T$1000, " ") -> MDA3 (IVM) | E74: 12/2020 | F74: 44772 | G74: 79383 | H74: =SUM(F74:G74) -> 124155 | I74: 49965 | J74: 80762 | K74: =SUM(I74:J74) -> 130727 | N74: =SUM(L74:M74) -> 0 | O74: =MAX(I74,L74) -> 49965 | P74: =MAX(J74,M74) -> 80762 | Q74: =SUM(O74:P74) -> 130727 | R74: =IF(F74<>0, IF(MAX(I74,L74)/F74*100=0, "-", MAX(I74,L74)/F74*100), " ") -> 111.5987671 | S74: =IF(G74<>0, IF(MAX(J74,M74)/G74*100=0, "-", MAX(J74,M74)/G74*100), " ") -> 101.7371478 | T74: =IF(H74<>0, IF((MAX(I74,L74)+MAX(J74,M74))/H74*100=0, "-",(MAX(I74,L74)+MAX(J74,M74))/H74*100), " ") -> 105.2933833
A75: =IF(COUNTRY_INFO!A75=0," ",COUNTRY_INFO!A75) -> Benin | B75: =IF(COUNTRY_INFO!B75=0," ",COUNTRY_INFO!B75) -> Plateau | C75: =IF(COUNTRY_INFO!C75=0," ",COUNTRY_INFO!C75) -> Pobè | D75: =IF(COUNTRY_INFO!$T$9:$T$1000="MDA3 (IVM)", COUNTRY_INFO!$T$9:$T$1000, " ") ->  | H75: 0 | K75: 0 | N75: 0 | O75: 0 | P75: 0 | Q75: 0
A76: =IF(COUNTRY_INFO!A76=0," ",COUNTRY_INFO!A76) -> Benin | B76: =IF(COUNTRY_INFO!B76=0," ",COUNTRY_INFO!B76) -> Plateau | C76: =IF(COUNTRY_INFO!C76=0," ",COUNTRY_INFO!C76) -> Sakété | D76: =IF(COUNTRY_INFO!$T$9:$T$1000="MDA3 (IVM)", COUNTRY_INFO!$T$9:$T$1000, " ") ->  | H76: 0 | K76: 0 | N76: 0 | O76: 0 | P76: 0 | Q76: 0
A77: =IF(COUNTRY_INFO!A77=0," ",COUNTRY_INFO!A77) -> Benin | B77: =IF(COUNTRY_INFO!B77=0," ",COUNTRY_INFO!B77) -> Zou | C77: =IF(COUNTRY_INFO!C77=0," ",COUNTRY_INFO!C77) -> Abomey | D77: =IF(COUNTRY_INFO!$T$9:$T$1000="MDA3 (IVM)", COUNTRY_INFO!$T$9:$T$1000, " ") -> MDA3 (IVM) | E77: 12/2020 | F77: 1298 | G77: 1693 | H77: 2991 | I77: 1258 | J77: 1636 | K77: 2894 | N77: 0 | O77: 1258 | P77: 1636 | Q77: 2894 | R77: 96.9183359 | S77: 96.63319551 | T77: 96.75693748
A78: =IF(COUNTRY_INFO!A78=0," ",COUNTRY_INFO!A78) -> Benin | B78: =IF(COUNTRY_INFO!B78=0," ",COUNTRY_INFO!B78) -> Zou | C78: =IF(COUNTRY_INFO!C78=0," ",COUNTRY_INFO!C78) -> Agbangnizoun | D78: =IF(COUNTRY_INFO!$T$9:$T$1000="MDA3 (IVM)", COUNTRY_INFO!$T$9:$T$1000, " ") -> MDA3 (IVM) | E78: 12/2020 | F78: 20082 | G78: 35607 | H78: 55689 | I78: 20065 | J78: 38523 | K78: 58588 | N78: 0 | O78: 20065 | P78: 38523 | Q78: 58588 | R78: 99.91534708 | S78: 108.189401 | T78: 105.2056959
A79: =IF(COUNTRY_INFO!A79=0," ",COUNTRY_INFO!A79) -> Benin | B79: =IF(COUNTRY_INFO!B79=0," ",COUNTRY_INFO!B79) -> Zou | C79: =IF(COUNTRY_INFO!C79=0," ",COUNTRY_INFO!C79) -> Bohicon | D79: =IF(COUNTRY_INFO!$T$9:$T$1000="MDA3 (IVM)", COUNTRY_INFO!$T$9:$T$1000, " ") ->  | H79: 0 | K79: 0 | N79: 0 | O79: 0 | P79: 0 | Q79: 0
A80: =IF(COUNTRY_INFO!A80=0," ",COUNTRY_INFO!A80) -> Benin | B80: =IF(COUNTRY_INFO!B80=0," ",COUNTRY_INFO!B80) -> Zou | C80: =IF(COUNTRY_INFO!C80=0," ",COUNTRY_INFO!C80) -> Covè | D80: =IF(COUNTRY_INFO!$T$9:$T$1000="MDA3 (IVM)", COUNTRY_INFO!$T$9:$T$1000, " ") ->  | H80: 0 | K80: 0 | N80: 0 | O80: 0 | P80: 0 | Q80: 0
A81: =IF(COUNTRY_INFO!A81=0," ",COUNTRY_INFO!A81) -> Benin | B81: =IF(COUNTRY_INFO!B81=0," ",COUNTRY_INFO!B81) -> Zou | C81: =IF(COUNTRY_INFO!C81=0," ",COUNTRY_INFO!C81) -> Djidja | D81: =IF(COUNTRY_INFO!$T$9:$T$1000="MDA3 (IVM)", COUNTRY_INFO!$T$9:$T$1000, " ") -> MDA3 (IVM) | E81: 12/2020 | F81: 31657 | G81: 56130 | H81: 87787 | I81: 37674 | J81: 59819 | K81: 97493 | N81: 0 | O81: 37674 | P81: 59819 | Q81: 97493 | R81: 119.0068547 | S81: 106.572243 | T81: 111.0563067
A82: =IF(COUNTRY_INFO!A82=0," ",COUNTRY_INFO!A82) -> Benin | B82: =IF(COUNTRY_INFO!B82=0," ",COUNTRY_INFO!B82) -> Zou | C82: =IF(COUNTRY_INFO!C82=0," ",COUNTRY_INFO!C82) -> Ouinhi | D82: =IF(COUNTRY_INFO!$T$9:$T$1000="MDA3 (IVM)", COUNTRY_INFO!$T$9:$T$1000, " ") ->  | H82: 0 | K82: 0 | N82: 0 | O82: 0 | P82: 0 | Q82: 0
A83: =IF(COUNTRY_INFO!A83=0," ",COUNTRY_INFO!A83) -> Benin | B83: =IF(COUNTRY_INFO!B83=0," ",COUNTRY_INFO!B83) -> Zou | C83: =IF(COUNTRY_INFO!C83=0," ",COUNTRY_INFO!C83) -> Zagnanado | D83: =IF(COUNTRY_INFO!$T$9:$T$1000="MDA3 (IVM)", COUNTRY_INFO!$T$9:$T$1000, " ") ->  | H83: 0 | K83: 0 | N83: 0 | O83: 0 | P83: 0 | Q83: 0
A84: =IF(COUNTRY_INFO!A84=0," ",COUNTRY_INFO!A84) -> Benin | B84: =IF(COUNTRY_INFO!B84=0," ",COUNTRY_INFO!B84) -> Zou | C84: =IF(COUNTRY_INFO!C84=0," ",COUNTRY_INFO!C84) -> Za-Kpota | D84: =IF(COUNTRY_INFO!$T$9:$T$1000="MDA3 (IVM)", COUNTRY_INFO!$T$9:$T$1000, " ") ->  | H84: 0 | K84: 0 | N84: 0 | O84: 0 | P84: 0 | Q84: 0
A85: =IF(COUNTRY_INFO!A85=0," ",COUNTRY_INFO!A85) -> Benin | B85: =IF(COUNTRY_INFO!B85=0," ",COUNTRY_INFO!B85) -> Zou | C85: =IF(COUNTRY_INFO!C85=0," ",COUNTRY_INFO!C85) -> Zogbodomey | D85: =IF(COUNTRY_INFO!$T$9:$T$1000="MDA3 (IVM)", COUNTRY_INFO!$T$9:$T$1000, " ") -> MDA3 (IVM) | E85: 12/2020 | F85: 34065 | G85: 60399 | H85: 94464 | I85: 34286 | J85: 74758 | K85: 109044 | N85: 0 | O85: 34286 | P85: 74758 | Q85: 109044 | R85: 100.6487597 | S85: 123.7735724 | T85: 115.4344512

Sheet T1
A1: T 1 - Praziquantel (PZQ) et Albendazole (ALB) ou Mebendazole (MBD)
A2: Structure administrative, population nécessitant une chimioprévention par groupe d'âge, population traitée par groupe d'âge et couverture
A4: TOTAL | G4: =SUM(G$9:G$1000) -> 0 | H4: 757573 | I4: 595653 | J4: 0 | K4: =SUM(K$9:K$1000) -> 757573 | L4: 0 | M4: 677433 | N4: 0 | O4: 677433 | P4: =IF(G4<>0, IF(L4/G4*100=0, "-", L4/G4*100), " ") ->  | Q4: =IF(OR(I4<>0,H4<>0), IF(M4/MAX(H4,I4)*100=0, "-", M4/MAX(H4,I4)*100), " ") -> 89.42148149 | R4: =IF(J4<>0, IF(N4/J4*100=0, "-", N4/J4*100), " ") ->  | S4: =IF(K4<>0, IF(O4/K4*100=0, "-", O4/K4*100), " ") -> 89.42148149
A6: Structure administrative du pays | D6: Mise en oeuvre de la CP | E6: Médica-ment | F6: Date | G6: Population ciblée pour T1 | L6: Population traitée | P6: Couverture du Programme (%)
A7: Pays | B7: Région/Département | C7: District | G7: EAPréS (ALB) | H7: EAS (ALB) | I7: EAS (PZQ) | J7: Adultes (PZQ) | K7: Total | L7: EAPréS | M7: EAS | N7: Adultes | O7: Total | P7: EAPréS | Q7: EAS | R7: Adultes | S7: Total
A9: =IF(COUNTRY_INFO!A9=0," ",COUNTRY_INFO!A9) -> Benin | B9: =IF(COUNTRY_INFO!B9=0," ",COUNTRY_INFO!B9) -> Alibori | C9: =IF(COUNTRY_INFO!C9=0," ",COUNTRY_INFO!C9) -> Banikoara | D9: =IF(OR(COUNTRY_INFO!$T$9:$T$1000="T1 (PZQ+ALB/MBD)",COUNTRY_INFO!$U$9:$U$1000="T1 (PZQ+ALB/MBD)"), "T1 (PZQ+ALB/MBD)", " ") ->  | K9: =MAX(H9:I9)+G9+J9 -> 0 | O9: =SUM(L9:N9) -> 0 | P9: =IF(G9<>0, IF(L9/G9*100=0, "-", L9/G9*100), " ") ->  | Q9: =IF(OR(I9<>0,H9<>0), IF(M9/MAX(H9,I9)*100=0, "-", M9/MAX(H9,I9)*100), " ") ->  | R9: =IF(J9<>0, IF(N9/J9*100=0, "-", N9/J9*100), " ") -> 
A10: =IF(COUNTRY_INFO!A10=0," ",COUNTRY_INFO!A10) -> Benin | B10: =IF(COUNTRY_INFO!B10=0," ",COUNTRY_INFO!B10) -> Alibori | C10: =IF(COUNTRY_INFO!C10=0," ",COUNTRY_INFO!C10) -> Gogounou | D10: =IF(OR(COUNTRY_INFO!$T$9:$T$1000="T1 (PZQ+ALB/MBD)",COUNTRY_INFO!$U$9:$U$1000="T1 (PZQ+ALB/MBD)"), "T1 (PZQ+ALB/MBD)", " ") ->  | K10: =MAX(H10:I10)+G10+J10 -> 0 | O10: =SUM(L10:N10) -> 0 | P10: =IF(G10<>0, IF(L10/G10*100=0, "-", L10/G10*100), " ") ->  | Q10: =IF(OR(I10<>0,H10<>0), IF(M10/MAX(H10,I10)*100=0, "-", M10/MAX(H10,I10)*100), " ") ->  | R10: =IF(J10<>0, IF(N10/J10*100=0, "-", N10/J10*100), " ") ->  | S10: =IF(K10<>0, IF(O10/K10*100=0, "-", O10/K10*100), " ") -> 
A11: =IF(COUNTRY_INFO!A11=0," ",COUNTRY_INFO!A11) -> Benin | B11: =IF(COUNTRY_INFO!B11=0," ",COUNTRY_INFO!B11) -> Alibori | C11: =IF(COUNTRY_INFO!C11=0," ",COUNTRY_INFO!C11) -> Kandi | D11: =IF(OR(COUNTRY_INFO!$T$9:$T$1000="T1 (PZQ+ALB/MBD)",COUNTRY_INFO!$U$9:$U$1000="T1 (PZQ+ALB/MBD)"), "T1 (PZQ+ALB/MBD)", " ") ->  | K11: 0 | O11: 0
A12: =IF(COUNTRY_INFO!A12=0," ",COUNTRY_INFO!A12) -> Benin | B12: =IF(COUNTRY_INFO!B12=0," ",COUNTRY_INFO!B12) -> Alibori | C12: =IF(COUNTRY_INFO!C12=0," ",COUNTRY_INFO!C12) -> Karimama | D12: =IF(OR(COUNTRY_INFO!$T$9:$T$1000="T1 (PZQ+ALB/MBD)",COUNTRY_INFO!$U$9:$U$1000="T1 (PZQ+ALB/MBD)"), "T1 (PZQ+ALB/MBD)", " ") ->  | K12: 0 | O12: 0
A13: =IF(COUNTRY_INFO!A13=0," ",COUNTRY_INFO!A13) -> Benin | B13: =IF(COUNTRY_INFO!B13=0," ",COUNTRY_INFO!B13) -> Alibori | C13: =IF(COUNTRY_INFO!C13=0," ",COUNTRY_INFO!C13) -> Malanville | D13: =IF(OR(COUNTRY_INFO!$T$9:$T$1000="T1 (PZQ+ALB/MBD)",COUNTRY_INFO!$U$9:$U$1000="T1 (PZQ+ALB/MBD)"), "T1 (PZQ+ALB/MBD)", " ") ->  | K13: 0 | O13: 0
A14: =IF(COUNTRY_INFO!A14=0," ",COUNTRY_INFO!A14) -> Benin | B14: =IF(COUNTRY_INFO!B14=0," ",COUNTRY_INFO!B14) -> Alibori | C14: =IF(COUNTRY_INFO!C14=0," ",COUNTRY_INFO!C14) -> Ségbana | D14: =IF(OR(COUNTRY_INFO!$T$9:$T$1000="T1 (PZQ+ALB/MBD)",COUNTRY_INFO!$U$9:$U$1000="T1 (PZQ+ALB/MBD)"), "T1 (PZQ+ALB/MBD)", " ") ->  | K14: 0 | O14: 0
A15: =IF(COUNTRY_INFO!A15=0," ",COUNTRY_INFO!A15) -> Benin | B15: =IF(COUNTRY_INFO!B15=0," ",COUNTRY_INFO!B15) -> Atacora | C15: =IF(COUNTRY_INFO!C15=0," ",COUNTRY_INFO!C15) -> Boukoumbé | D15: =IF(OR(COUNTRY_INFO!$T$9:$T$1000="T1 (PZQ+ALB/MBD)",COUNTRY_INFO!$U$9:$U$1000="T1 (PZQ+ALB/MBD)"), "T1 (PZQ+ALB/MBD)", " ") -> T1 (PZQ+ALB/MBD) | E15: PZQ+ALB | F15: 12/2020 | H15: 28575 | I15: 28575 | K15: 28575 | M15: 26783 | O15: 26783 | Q15: 93.7287839 | S15: 93.7287839
A16: =IF(COUNTRY_INFO!A16=0," ",COUNTRY_INFO!A16) -> Benin | B16: =IF(COUNTRY_INFO!B16=0," ",COUNTRY_INFO!B16) -> Atacora | C16: =IF(COUNTRY_INFO!C16=0," ",COUNTRY_INFO!C16) -> Cobly | D16: =IF(OR(COUNTRY_INFO!$T$9:$T$1000="T1 (PZQ+ALB/MBD)",COUNTRY_INFO!$U$9:$U$1000="T1 (PZQ+ALB/MBD)"), "T1 (PZQ+ALB/MBD)", " ") -> T1 (PZQ+ALB/MBD) | E16: PZQ+ALB | F16: 12/2020 | H16: 23651 | I16: 11825.5 | K16: 23651 | M16: 3300 | O16: 3300 | Q16: 13.9528984 | S16: 13.9528984
A17: =IF(COUNTRY_INFO!A17=0," ",COUNTRY_INFO!A17) -> Benin | B17: =IF(COUNTRY_INFO!B17=0," ",COUNTRY_INFO!B17) -> Atacora | C17: =IF(COUNTRY_INFO!C17=0," ",COUNTRY_INFO!C17) -> Kérou | D17: =IF(OR(COUNTRY_INFO!$T$9:$T$1000="T1 (PZQ+ALB/MBD)",COUNTRY_INFO!$U$9:$U$1000="T1 (PZQ+ALB/MBD)"), "T1 (PZQ+ALB/MBD)", " ") ->  | K17: 0 | O17: 0
A18: =IF(COUNTRY_INFO!A18=0," ",COUNTRY_INFO!A18) -> Benin | B18: =IF(COUNTRY_INFO!B18=0," ",COUNTRY_INFO!B18) -> Atacora | C18: =IF(COUNTRY_INFO!C18=0," ",COUNTRY_INFO!C18) -> Kouandé | D18: =IF(OR(COUNTRY_INFO!$T$9:$T$1000="T1 (PZQ+ALB/MBD)",COUNTRY_INFO!$U$9:$U$1000="T1 (PZQ+ALB/MBD)"), "T1 (PZQ+ALB/MBD)", " ") -> T1 (PZQ+ALB/MBD) | E18: PZQ+ALB | F18: 12/2020 | H18: 40216 | I18: 20108 | K18: 40216 | M18: 33228 | O18: 33228 | Q18: 82.62383131 | S18: 82.62383131
A19: =IF(COUNTRY_INFO!A19=0," ",COUNTRY_INFO!A19) -> Benin | B19: =IF(COUNTRY_INFO!B19=0," ",COUNTRY_INFO!B19) -> Atacora | C19: =IF(COUNTRY_INFO!C19=0," ",COUNTRY_INFO!C19) -> Matéri | D19: =IF(OR(COUNTRY_INFO!$T$9:$T$1000="T1 (PZQ+ALB/MBD)",COUNTRY_INFO!$U$9:$U$1000="T1 (PZQ+ALB/MBD)"), "T1 (PZQ+ALB/MBD)", " ") ->  | K19: 0 | O19: 0
A20: =IF(COUNTRY_INFO!A20=0," ",COUNTRY_INFO!A20) -> Benin | B20: =IF(COUNTRY_INFO!B20=0," ",COUNTRY_INFO!B20) -> Atacora | C20: =IF(COUNTRY_INFO!C20=0," ",COUNTRY_INFO!C20) -> Natitingou | D20: =IF(OR(COUNTRY_INFO!$T$9:$T$1000="T1 (PZQ+ALB/MBD)",COUNTRY_INFO!$U$9:$U$1000="T1 (PZQ+ALB/MBD)"), "T1 (PZQ+ALB/MBD)", " ") ->  | K20: 0 | O20: 0
A21: =IF(COUNTRY_INFO!A21=0," ",COUNTRY_INFO!A21) -> Benin | B21: =IF(COUNTRY_INFO!B21=0," ",COUNTRY_INFO!B21) -> Atacora | C21: =IF(COUNTRY_INFO!C21=0," ",COUNTRY_INFO!C21) -> Péhunco | D21: =IF(OR(COUNTRY_INFO!$T$9:$T$1000="T1 (PZQ+ALB/MBD)",COUNTRY_INFO!$U$9:$U$1000="T1 (PZQ+ALB/MBD)"), "T1 (PZQ+ALB/MBD)", " ") ->  | K21: 0 | O21: 0
A22: =IF(COUNTRY_INFO!A22=0," ",COUNTRY_INFO!A22) -> Benin | B22: =IF(COUNTRY_INFO!B22=0," ",COUNTRY_INFO!B22) -> Atacora | C22: =IF(COUNTRY_INFO!C22=0," ",COUNTRY_INFO!C22) -> Tanguiéta | D22: =IF(OR(COUNTRY_INFO!$T$9:$T$1000="T1 (PZQ+ALB/MBD)",COUNTRY_INFO!$U$9:$U$1000="T1 (PZQ+ALB/MBD)"), "T1 (PZQ+ALB/MBD)", " ") -> T1 (PZQ+ALB/MBD) | E22: PZQ+ALB | F22: 12/2020 | H22: 14127 | I22: 14127 | K22: 14127 | M22: 8354 | O22: 8354 | Q22: 59.13498974 | S22: 59.13498974
A23: =IF(COUNTRY_INFO!A23=0," ",COUNTRY_INFO!A23) -> Benin | B23: =IF(COUNTRY_INFO!B23=0," ",COUNTRY_INFO!B23) -> Atacora | C23: =IF(COUNTRY_INFO!C23=0," ",COUNTRY_INFO!C23) -> Toukountouna | D23: =IF(OR(COUNTRY_INFO!$T$9:$T$1000="T1 (PZQ+ALB/MBD)",COUNTRY_INFO!$U$9:$U$1000="T1 (PZQ+ALB/MBD)"), "T1 (PZQ+ALB/MBD)", " ") ->  | K23: 0 | O23: 0
A24: =IF(COUNTRY_INFO!A24=0," ",COUNTRY_INFO!A24) -> Benin | B24: =IF(COUNTRY_INFO!B24=0," ",COUNTRY_INFO!B24) -> Atlantique | C24: =IF(COUNTRY_INFO!C24=0," ",COUNTRY_INFO!C24) -> Abomey-Calavi | D24: =IF(OR(COUNTRY_INFO!$T$9:$T$1000="T1 (PZQ+ALB/MBD)",COUNTRY_INFO!$U$9:$U$1000="T1 (PZQ+ALB/MBD)"), "T1 (PZQ+ALB/MBD)", " ") ->  | K24: 0 | O24: 0
A25: =IF(COUNTRY_INFO!A25=0," ",COUNTRY_INFO!A25) -> Benin | B25: =IF(COUNTRY_INFO!B25=0," ",COUNTRY_INFO!B25) -> Atlantique | C25: =IF(COUNTRY_INFO!C25=0," ",COUNTRY_INFO!C25) -> Allada | D25: =IF(OR(COUNTRY_INFO!$T$9:$T$1000="T1 (PZQ+ALB/MBD)",COUNTRY_INFO!$U$9:$U$1000="T1 (PZQ+ALB/MBD)"), "T1 (PZQ+ALB/MBD)", " ") ->  | K25: 0 | O25: 0
A26: =IF(COUNTRY_INFO!A26=0," ",COUNTRY_INFO!A26) -> Benin | B26: =IF(COUNTRY_INFO!B26=0," ",COUNTRY_INFO!B26) -> Atlantique | C26: =IF(COUNTRY_INFO!C26=0," ",COUNTRY_INFO!C26) -> Kpomassè | D26: =IF(OR(COUNTRY_INFO!$T$9:$T$1000="T1 (PZQ+ALB/MBD)",COUNTRY_INFO!$U$9:$U$1000="T1 (PZQ+ALB/MBD)"), "T1 (PZQ+ALB/MBD)", " ") ->  | K26: 0 | O26: 0
A27: =IF(COUNTRY_INFO!A27=0," ",COUNTRY_INFO!A27) -> Benin | B27: =IF(COUNTRY_INFO!B27=0," ",COUNTRY_INFO!B27) -> Atlantique | C27: =IF(COUNTRY_INFO!C27=0," ",COUNTRY_INFO!C27) -> Ouidah | D27: =IF(OR(COUNTRY_INFO!$T$9:$T$1000="T1 (PZQ+ALB/MBD)",COUNTRY_INFO!$U$9:$U$1000="T1 (PZQ+ALB/MBD)"), "T1 (PZQ+ALB/MBD)", " ") ->  | K27: 0 | O27: 0
A28: =IF(COUNTRY_INFO!A28=0," ",COUNTRY_INFO!A28) -> Benin | B28: =IF(COUNTRY_INFO!B28=0," ",COUNTRY_INFO!B28) -> Atlantique | C28: =IF(COUNTRY_INFO!C28=0," ",COUNTRY_INFO!C28) -> So-Ava | D28: =IF(OR(COUNTRY_INFO!$T$9:$T$1000="T1 (PZQ+ALB/MBD)",COUNTRY_INFO!$U$9:$U$1000="T1 (PZQ+ALB/MBD)"), "T1 (PZQ+ALB/MBD)", " ") ->  | K28: 0 | O28: 0
A29: =IF(COUNTRY_INFO!A29=0," ",COUNTRY_INFO!A29) -> Benin | B29: =IF(COUNTRY_INFO!B29=0," ",COUNTRY_INFO!B29) -> Atlantique | C29: =IF(COUNTRY_INFO!C29=0," ",COUNTRY_INFO!C29) -> Toffo | D29: =IF(OR(COUNTRY_INFO!$T$9:$T$1000="T1 (PZQ+ALB/MBD)",COUNTRY_INFO!$U$9:$U$1000="T1 (PZQ+ALB/MBD)"), "T1 (PZQ+ALB/MBD)", " ") -> T1 (PZQ+ALB/MBD) | E29: PZQ+ALB | F29: 12/2020 | H29: 9420 | I29: 9420 | K29: 9420 | M29: 9862 | O29: 9862 | Q29: 104.6921444 | S29: 104.6921444
A30: =IF(COUNTRY_INFO!A30=0," ",COUNTRY_INFO!A30) -> Benin | B30: =IF(COUNTRY_INFO!B30=0," ",COUNTRY_INFO!B30) -> Atlantique | C30: =IF(COUNTRY_INFO!C30=0," ",COUNTRY_INFO!C30) -> Torri-Bossito | D30: =IF(OR(COUNTRY_INFO!$T$9:$T$1000="T1 (PZQ+ALB/MBD)",COUNTRY_INFO!$U$9:$U$1000="T1 (PZQ+ALB/MBD)"), "T1 (PZQ+ALB/MBD)", " ") -> T1 (PZQ+ALB/MBD) | E30: PZQ+ALB | F30: 12/2020 | H30: 17470 | I30: 8735 | K30: 17470 | M30: 10894 | O30: 10894 | Q30: 62.35832856 | S30: 62.35832856
A31: =IF(COUNTRY_INFO!A31=0," ",COUNTRY_INFO!A31) -> Benin | B31: =IF(COUNTRY_INFO!B31=0," ",COUNTRY_INFO!B31) -> Atlantique | C31: =IF(COUNTRY_INFO!C31=0," ",COUNTRY_INFO!C31) -> Zè | D31: =IF(OR(COUNTRY_INFO!$T$9:$T$1000="T1 (PZQ+ALB/MBD)",COUNTRY_INFO!$U$9:$U$1000="T1 (PZQ+ALB/MBD)"), "T1 (PZQ+ALB/MBD)", " ") -> T1 (PZQ+ALB/MBD) | E31: PZQ+ALB | F31: 12/2020 | H31: 40399 | I31: 38782 | K31: 40399 | M31: 34807 | O31: 34807 | Q31: 86.15807322 | S31: 86.15807322
A32: =IF(COUNTRY_INFO!A32=0," ",COUNTRY_INFO!A32) -> Benin | B32: =IF(COUNTRY_INFO!B32=0," ",COUNTRY_INFO!B32) -> Borgou | C32: =IF(COUNTRY_INFO!C32=0," ",COUNTRY_INFO!C32) -> Bembèrèkè | D32: =IF(OR(COUNTRY_INFO!$T$9:$T$1000="T1 (PZQ+ALB/MBD)",COUNTRY_INFO!$U$9:$U$1000="T1 (PZQ+ALB/MBD)"), "T1 (PZQ+ALB/MBD)", " ") ->  | K32: 0 | O32: 0
A33: =IF(COUNTRY_INFO!A33=0," ",COUNTRY_INFO!A33) -> Benin | B33: =IF(COUNTRY_INFO!B33=0," ",COUNTRY_INFO!B33) -> Borgou | C33: =IF(COUNTRY_INFO!C33=0," ",COUNTRY_INFO!C33) -> Kalalé | D33: =IF(OR(COUNTRY_INFO!$T$9:$T$1000="T1 (PZQ+ALB/MBD)",COUNTRY_INFO!$U$9:$U$1000="T1 (PZQ+ALB/MBD)"), "T1 (PZQ+ALB/MBD)", " ") -> T1 (PZQ+ALB/MBD) | E33: PZQ+ALB | F33: 12/2020 | H33: 60559 | I33: 30279.5 | K33: 60559 | M33: 40918 | O33: 40918 | Q33: 67.5671659 | S33: 67.5671659
A34: =IF(COUNTRY_INFO!A34=0," ",COUNTRY_INFO!A34) -> Benin | B34: =IF(COUNTRY_INFO!B34=0," ",COUNTRY_INFO!B34) -> Borgou | C34: =IF(COUNTRY_INFO!C34=0," ",COUNTRY_INFO!C34) -> N'Dali | D34: =IF(OR(COUNTRY_INFO!$T$9:$T$1000="T1 (PZQ+ALB/MBD)",COUNTRY_INFO!$U$9:$U$1000="T1 (PZQ+ALB/MBD)"), "T1 (PZQ+ALB/MBD)", " ") -> T1 (PZQ+ALB/MBD) | E34: PZQ+ALB | F34: 12/2020 | H34: 29225 | I34: 29225 | K34: 29225 | M34: 39806 | O34: 39806 | Q34: 136.2053037 | S34: 136.2053037
A35: =IF(COUNTRY_INFO!A35=0," ",COUNTRY_INFO!A35) -> Benin | B35: =IF(COUNTRY_INFO!B35=0," ",COUNTRY_INFO!B35) -> Borgou | C35: =IF(COUNTRY_INFO!C35=0," ",COUNTRY_INFO!C35) -> Nikki | D35: =IF(OR(COUNTRY_INFO!$T$9:$T$1000="T1 (PZQ+ALB/MBD)",COUNTRY_INFO!$U$9:$U$1000="T1 (PZQ+ALB/MBD)"), "T1 (PZQ+ALB/MBD)", " ") ->  | K35: 0 | O35: 0
A36: =IF(COUNTRY_INFO!A36=0," ",COUNTRY_INFO!A36) -> Benin | B36: =IF(COUNTRY_INFO!B36=0," ",COUNTRY_INFO!B36) -> Borgou | C36: =IF(COUNTRY_INFO!C36=0," ",COUNTRY_INFO!C36) -> Parakou | D36: =IF(OR(COUNTRY_INFO!$T$9:$T$1000="T1 (PZQ+ALB/MBD)",COUNTRY_INFO!$U$9:$U$1000="T1 (PZQ+ALB/MBD)"), "T1 (PZQ+ALB/MBD)", " ") -> T1 (PZQ+ALB/MBD) | E36: PZQ+ALB | F36: 12/2020 | H36: 60274 | I36: 30137 | K36: 60274 | M36: 93873 | O36: 93873 | Q36: 155.7437701 | S36: 155.7437701
A37: =IF(COUNTRY_INFO!A37=0," ",COUNTRY_INFO!A37) -> Benin | B37: =IF(COUNTRY_INFO!B37=0," ",COUNTRY_INFO!B37) -> Borgou | C37: =IF(COUNTRY_INFO!C37=0," ",COUNTRY_INFO!C37) -> Pèrèrè | D37: =IF(OR(COUNTRY_INFO!$T$9:$T$1000="T1 (PZQ+ALB/MBD)",COUNTRY_INFO!$U$9:$U$1000="T1 (PZQ+ALB/MBD)"), "T1 (PZQ+ALB/MBD)", " ") -> T1 (PZQ+ALB/MBD) | E37: PZQ+ALB | F37: 12/2020 | H37: 24640 | I37: 12320 | K37: 24640 | M37: 10255 | O37: 10255 | Q37: 41.61931818 | S37: 41.61931818
A38: =IF(COUNTRY_INFO!A38=0," ",COUNTRY_INFO!A38) -> Benin | B38: =IF(COUNTRY_INFO!B38=0," ",COUNTRY_INFO!B38) -> Borgou | C38: =IF(COUNTRY_INFO!C38=0," ",COUNTRY_INFO!C38) -> Sinendé | D38: =IF(OR(COUNTRY_INFO!$T$9:$T$1000="T1 (PZQ+ALB/MBD)",COUNTRY_INFO!$U$9:$U$1000="T1 (PZQ+ALB/MBD)"), "T1 (PZQ+ALB/MBD)", " ") -> T1 (PZQ+ALB/MBD) | E38: PZQ+ALB | F38: 12/2020 | H38: 23776 | I38: 23776 | K38: 23776 | M38: 24019 | O38: 24019 | Q38: 101.022039 | S38: 101.022039
A39: =IF(COUNTRY_INFO!A39=0," ",COUNTRY_INFO!A39) -> Benin | B39: =IF(COUNTRY_INFO!B39=0," ",COUNTRY_INFO!B39) -> Borgou | C39: =IF(COUNTRY_INFO!C39=0," ",COUNTRY_INFO!C39) -> Tchaourou | D39: =IF(OR(COUNTRY_INFO!$T$9:$T$1000="T1 (PZQ+ALB/MBD)",COUNTRY_INFO!$U$9:$U$1000="T1 (PZQ+ALB/MBD)"), "T1 (PZQ+ALB/MBD)", " ") -> T1 (PZQ+ALB/MBD) | E39: PZQ+ALB | F39: 12/2020 | H39: 80159 | I39: 80159 | K39: 80159 | M39: 73307 | O39: 73307 | Q39: 91.45198917 | S39: 91.45198917
A40: =IF(COUNTRY_INFO!A40=0," ",COUNTRY_INFO!A40) -> Benin | B40: =IF(COUNTRY_INFO!B40=0," ",COUNTRY_INFO!B40) -> Collines | C40: =IF(COUNTRY_INFO!C40=0," ",COUNTRY_INFO!C40) -> Bantè | D40: =IF(OR(COUNTRY_INFO!$T$9:$T$1000="T1 (PZQ+ALB/MBD)",COUNTRY_INFO!$U$9:$U$1000="T1 (PZQ+ALB/MBD)"), "T1 (PZQ+ALB/MBD)", " ") ->  | K40: 0 | O40: 0
A41: =IF(COUNTRY_INFO!A41=0," ",COUNTRY_INFO!A41) -> Benin | B41: =IF(COUNTRY_INFO!B41=0," ",COUNTRY_INFO!B41) -> Collines | C41: =IF(COUNTRY_INFO!C41=0," ",COUNTRY_INFO!C41) -> Dassa-Zoumè | D41: =IF(OR(COUNTRY_INFO!$T$9:$T$1000="T1 (PZQ+ALB/MBD)",COUNTRY_INFO!$U$9:$U$1000="T1 (PZQ+ALB/MBD)"), "T1 (PZQ+ALB/MBD)", " ") -> T1 (PZQ+ALB/MBD) | E41: PZQ+ALB | F41: 12/2020 | H41: 35887 | I41: 17943.5 | K41: 35887 | M41: 28277 | O41: 28277 | Q41: 78.79454956 | S41: 78.79454956
A42: =IF(COUNTRY_INFO!A42=0," ",COUNTRY_INFO!A42) -> Benin | B42: =IF(COUNTRY_INFO!B42=0," ",COUNTRY_INFO!B42) -> Collines | C42: =IF(COUNTRY_INFO!C42=0," ",COUNTRY_INFO!C42) -> Glazoué | D42: =IF(OR(COUNTRY_INFO!$T$9:$T$1000="T1 (PZQ+ALB/MBD)",COUNTRY_INFO!$U$9:$U$1000="T1 (PZQ+ALB/MBD)"), "T1 (PZQ+ALB/MBD)", " ") ->  | K42: 0 | O42: 0
A43: =IF(COUNTRY_INFO!A43=0," ",COUNTRY_INFO!A43) -> Benin | B43: =IF(COUNTRY_INFO!B43=0," ",COUNTRY_INFO!B43) -> Collines | C43: =IF(COUNTRY_INFO!C43=0," ",COUNTRY_INFO!C43) -> Ouèssè | D43: =IF(OR(COUNTRY_INFO!$T$9:$T$1000="T1 (PZQ+ALB/MBD)",COUNTRY_INFO!$U$9:$U$1000="T1 (PZQ+ALB/MBD)"), "T1 (PZQ+ALB/MBD)", " ") -> T1 (PZQ+ALB/MBD) | E43: PZQ+ALB | F43: 12/2020 | H43: 26297 | I43: 26297 | K43: 26297 | M43: 43818 | O43: 43818 | Q43: 166.6273719 | S43: 166.6273719
A44: =IF(COUNTRY_INFO!A44=0," ",COUNTRY_INFO!A44) -> Benin | B44: =IF(COUNTRY_INFO!B44=0," ",COUNTRY_INFO!B44) -> Collines | C44: =IF(COUNTRY_INFO!C44=0," ",COUNTRY_INFO!C44) -> Savalou | D44: =IF(OR(COUNTRY_INFO!$T$9:$T$1000="T1 (PZQ+ALB/MBD)",COUNTRY_INFO!$U$9:$U$1000="T1 (PZQ+ALB/MBD)"), "T1 (PZQ+ALB/MBD)", " ") ->  | K44: 0 | O44: 0
A45: =IF(COUNTRY_INFO!A45=0," ",COUNTRY_INFO!A45) -> Benin | B45: =IF(COUNTRY_INFO!B45=0," ",COUNTRY_INFO!B45) -> Collines | C45: =IF(COUNTRY_INFO!C45=0," ",COUNTRY_INFO!C45) -> Savè | D45: =IF(OR(COUNTRY_INFO!$T$9:$T$1000="T1 (PZQ+ALB/MBD)",COUNTRY_INFO!$U$9:$U$1000="T1 (PZQ+ALB/MBD)"), "T1 (PZQ+ALB/MBD)", " ") -> T1 (PZQ+ALB/MBD) | E45: PZQ+ALB | F45: 12/2020 | H45: 23844 | I45: 11922 | K45: 23844 | M45: 21222 | O45: 21222 | Q45: 89.0035229 | S45: 89.0035229
A46: =IF(COUNTRY_INFO!A46=0," ",COUNTRY_INFO!A46) -> Benin | B46: =IF(COUNTRY_INFO!B46=0," ",COUNTRY_INFO!B46) -> Couffo | C46: =IF(COUNTRY_INFO!C46=0," ",COUNTRY_INFO!C46) -> Aplahoué | D46: =IF(OR(COUNTRY_INFO!$T$9:$T$1000="T1 (PZQ+ALB/MBD)",COUNTRY_INFO!$U$9:$U$1000="T1 (PZQ+ALB/MBD)"), "T1 (PZQ+ALB/MBD)", " ") ->  | K46: 0 | O46: 0
A47: =IF(COUNTRY_INFO!A47=0," ",COUNTRY_INFO!A47) -> Benin | B47: =IF(COUNTRY_INFO!B47=0," ",COUNTRY_INFO!B47) -> Couffo | C47: =IF(COUNTRY_INFO!C47=0," ",COUNTRY_INFO!C47) -> Djakotomè | D47: =IF(OR(COUNTRY_INFO!$T$9:$T$1000="T1 (PZQ+ALB/MBD)",COUNTRY_INFO!$U$9:$U$1000="T1 (PZQ+ALB/MBD)"), "T1 (PZQ+ALB/MBD)", " ") ->  | K47: 0 | O47: 0
A48: =IF(COUNTRY_INFO!A48=0," ",COUNTRY_INFO!A48) -> Benin | B48: =IF(COUNTRY_INFO!B48=0," ",COUNTRY_INFO!B48) -> Couffo | C48: =IF(COUNTRY_INFO!C48=0," ",COUNTRY_INFO!C48) -> Dogbo | D48: =IF(OR(COUNTRY_INFO!$T$9:$T$1000="T1 (PZQ+ALB/MBD)",COUNTRY_INFO!$U$9:$U$1000="T1 (PZQ+ALB/MBD)"), "T1 (PZQ+ALB/MBD)", " ") ->  | K48: 0 | O48: 0
A49: =IF(COUNTRY_INFO!A49=0," ",COUNTRY_INFO!A49) -> Benin | B49: =IF(COUNTRY_INFO!B49=0," ",COUNTRY_INFO!B49) -> Couffo | C49: =IF(COUNTRY_INFO!C49=0," ",COUNTRY_INFO!C49) -> Klouékamè | D49: =IF(OR(COUNTRY_INFO!$T$9:$T$1000="T1 (PZQ+ALB/MBD)",COUNTRY_INFO!$U$9:$U$1000="T1 (PZQ+ALB/MBD)"), "T1 (PZQ+ALB/MBD)", " ") ->  | K49: 0 | O49: 0
A50: =IF(COUNTRY_INFO!A50=0," ",COUNTRY_INFO!A50) -> Benin | B50: =IF(COUNTRY_INFO!B50=0," ",COUNTRY_INFO!B50) -> Couffo | C50: =IF(COUNTRY_INFO!C50=0," ",COUNTRY_INFO!C50) -> Lalo | D50: =IF(OR(COUNTRY_INFO!$T$9:$T$1000="T1 (PZQ+ALB/MBD)",COUNTRY_INFO!$U$9:$U$1000="T1 (PZQ+ALB/MBD)"), "T1 (PZQ+ALB/MBD)", " ") ->  | K50: 0 | O50: 0
A51: =IF(COUNTRY_INFO!A51=0," ",COUNTRY_INFO!A51) -> Benin | B51: =IF(COUNTRY_INFO!B51=0," ",COUNTRY_INFO!B51) -> Couffo | C51: =IF(COUNTRY_INFO!C51=0," ",COUNTRY_INFO!C51) -> Toviklin | D51: =IF(OR(COUNTRY_INFO!$T$9:$T$1000="T1 (PZQ+ALB/MBD)",COUNTRY_INFO!$U$9:$U$1000="T1 (PZQ+ALB/MBD)"), "T1 (PZQ+ALB/MBD)", " ") ->  | K51: 0 | O51: 0
A52: =IF(COUNTRY_INFO!A52=0," ",COUNTRY_INFO!A52) -> Benin | B52: =IF(COUNTRY_INFO!B52=0," ",COUNTRY_INFO!B52) -> Donga | C52: =IF(COUNTRY_INFO!C52=0," ",COUNTRY_INFO!C52) -> Bassila | D52: =IF(OR(COUNTRY_INFO!$T$9:$T$1000="T1 (PZQ+ALB/MBD)",COUNTRY_INFO!$U$9:$U$1000="T1 (PZQ+ALB/MBD)"), "T1 (PZQ+ALB/MBD)", " ") -> T1 (PZQ+ALB/MBD) | E52: PZQ+ALB | F52: 12/2020 | H52: 37863 | I52: 37863 | K52: 37863 | M52: 33603 | O52: 33603 | Q52: 88.74891055 | S52: 88.74891055
A53: =IF(COUNTRY_INFO!A53=0," ",COUNTRY_INFO!A53) -> Benin | B53: =IF(COUNTRY_INFO!B53=0," ",COUNTRY_INFO!B53) -> Donga | C53: =IF(COUNTRY_INFO!C53=0," ",COUNTRY_INFO!C53) -> Copargo | D53: =IF(OR(COUNTRY_INFO!$T$9:$T$1000="T1 (PZQ+ALB/MBD)",COUNTRY_INFO!$U$9:$U$1000="T1 (PZQ+ALB/MBD)"), "T1 (PZQ+ALB/MBD)", " ") -> T1 (PZQ+ALB/MBD) | E53: PZQ+ALB | F53: 12/2020 | H53: 24324 | I53: 24324 | K53: 24324 | M53: 21177 | O53: 21177 | Q53: 87.06216083 | S53: 87.06216083
A54: =IF(COUNTRY_INFO!A54=0," ",COUNTRY_INFO!A54) -> Benin | B54: =IF(COUNTRY_INFO!B54=0," ",COUNTRY_INFO!B54) -> Donga | C54: =IF(COUNTRY_INFO!C54=0," ",COUNTRY_INFO!C54) -> Djougou | D54: =IF(OR(COUNTRY_INFO!$T$9:$T$1000="T1 (PZQ+ALB/MBD)",COUNTRY_INFO!$U$9:$U$1000="T1 (PZQ+ALB/MBD)"), "T1 (PZQ+ALB/MBD)", " ") ->  | K54: 0 | O54: 0
A55: =IF(COUNTRY_INFO!A55=0," ",COUNTRY_INFO!A55) -> Benin | B55: =IF(COUNTRY_INFO!B55=0," ",COUNTRY_INFO!B55) -> Donga | C55: =IF(COUNTRY_INFO!C55=0," ",COUNTRY_INFO!C55) -> Ouaké | D55: =IF(OR(COUNTRY_INFO!$T$9:$T$1000="T1 (PZQ+ALB/MBD)",COUNTRY_INFO!$U$9:$U$1000="T1 (PZQ+ALB/MBD)"), "T1 (PZQ+ALB/MBD)", " ") -> T1 (PZQ+ALB/MBD) | E55: PZQ+ALB | F55: 12/2020 | H55: 21282 | I55: 21282 | K55: 21282 | M55: 23810 | O55: 23810 | Q55: 111.8785828 | S55: 111.8785828
A56: =IF(COUNTRY_INFO!A56=0," ",COUNTRY_INFO!A56) -> Benin | B56: =IF(COUNTRY_INFO!B56=0," ",COUNTRY_INFO!B56) -> Littoral | C56: =IF(COUNTRY_INFO!C56=0," ",COUNTRY_INFO!C56) -> Cotonou | D56: =IF(OR(COUNTRY_INFO!$T$9:$T$1000="T1 (PZQ+ALB/MBD)",COUNTRY_INFO!$U$9:$U$1000="T1 (PZQ+ALB/MBD)"), "T1 (PZQ+ALB/MBD)", " ") ->  | K56: 0 | O56: 0
A57: =IF(COUNTRY_INFO!A57=0," ",COUNTRY_INFO!A57) -> Benin | B57: =IF(COUNTRY_INFO!B57=0," ",COUNTRY_INFO!B57) -> Mono | C57: =IF(COUNTRY_INFO!C57=0," ",COUNTRY_INFO!C57) -> Athiémé | D57: =IF(OR(COUNTRY_INFO!$T$9:$T$1000="T1 (PZQ+ALB/MBD)",COUNTRY_INFO!$U$9:$U$1000="T1 (PZQ+ALB/MBD)"), "T1 (PZQ+ALB/MBD)", " ") ->  | K57: 0 | O57: 0
A58: =IF(COUNTRY_INFO!A58=0," ",COUNTRY_INFO!A58) -> Benin | B58: =IF(COUNTRY_INFO!B58=0," ",COUNTRY_INFO!B58) -> Mono | C58: =IF(COUNTRY_INFO!C58=0," ",COUNTRY_INFO!C58) -> Bopa | D58: =IF(OR(COUNTRY_INFO!$T$9:$T$1000="T1 (PZQ+ALB/MBD)",COUNTRY_INFO!$U$9:$U$1000="T1 (PZQ+ALB/MBD)"), "T1 (PZQ+ALB/MBD)", " ") ->  | K58: 0 | O58: 0
A59: =IF(COUNTRY_INFO!A59=0," ",COUNTRY_INFO!A59) -> Benin | B59: =IF(COUNTRY_INFO!B59=0," ",COUNTRY_INFO!B59) -> Mono | C59: =IF(COUNTRY_INFO!C59=0," ",COUNTRY_INFO!C59) -> Comé | D59: =IF(OR(COUNTRY_INFO!$T$9:$T$1000="T1 (PZQ+ALB/MBD)",COUNTRY_INFO!$U$9:$U$1000="T1 (PZQ+ALB/MBD)"), "T1 (PZQ+ALB/MBD)", " ") ->  | K59: 0 | O59: 0
A60: =IF(COUNTRY_INFO!A60=0," ",COUNTRY_INFO!A60) -> Benin | B60: =IF(COUNTRY_INFO!B60=0," ",COUNTRY_INFO!B60) -> Mono | C60: =IF(COUNTRY_INFO!C60=0," ",COUNTRY_INFO!C60) -> Grand-Popo | D60: =IF(OR(COUNTRY_INFO!$T$9:$T$1000="T1 (PZQ+ALB/MBD)",COUNTRY_INFO!$U$9:$U$1000="T1 (PZQ+ALB/MBD)"), "T1 (PZQ+ALB/MBD)", " ") ->  | K60: 0 | O60: 0
A61: =IF(COUNTRY_INFO!A61=0," ",COUNTRY_INFO!A61) -> Benin | B61: =IF(COUNTRY_INFO!B61=0," ",COUNTRY_INFO!B61) -> Mono | C61: =IF(COUNTRY_INFO!C61=0," ",COUNTRY_INFO!C61) -> Houéyogbé | D61: =IF(OR(COUNTRY_INFO!$T$9:$T$1000="T1 (PZQ+ALB/MBD)",COUNTRY_INFO!$U$9:$U$1000="T1 (PZQ+ALB/MBD)"), "T1 (PZQ+ALB/MBD)", " ") ->  | K61: 0 | O61: 0
A62: =IF(COUNTRY_INFO!A62=0," ",COUNTRY_INFO!A62) -> Benin | B62: =IF(COUNTRY_INFO!B62=0," ",COUNTRY_INFO!B62) -> Mono | C62: =IF(COUNTRY_INFO!C62=0," ",COUNTRY_INFO!C62) -> Lokossa | D62: =IF(OR(COUNTRY_INFO!$T$9:$T$1000="T1 (PZQ+ALB/MBD)",COUNTRY_INFO!$U$9:$U$1000="T1 (PZQ+ALB/MBD)"), "T1 (PZQ+ALB/MBD)", " ") ->  | K62: 0 | O62: 0
A63: =IF(COUNTRY_INFO!A63=0," ",COUNTRY_INFO!A63) -> Benin | B63: =IF(COUNTRY_INFO!B63=0," ",COUNTRY_INFO!B63) -> Oueme | C63: =IF(COUNTRY_INFO!C63=0," ",COUNTRY_INFO!C63) -> Adjarra | D63: =IF(OR(COUNTRY_INFO!$T$9:$T$1000="T1 (PZQ+ALB/MBD)",COUNTRY_INFO!$U$9:$U$1000="T1 (PZQ+ALB/MBD)"), "T1 (PZQ+ALB/MBD)", " ") ->  | K63: 0 | O63: 0
A64: =IF(COUNTRY_INFO!A64=0," ",COUNTRY_INFO!A64) -> Benin | B64: =IF(COUNTRY_INFO!B64=0," ",COUNTRY_INFO!B64) -> Oueme | C64: =IF(COUNTRY_INFO!C64=0," ",COUNTRY_INFO!C64) -> Adjohoun | D64: =IF(OR(COUNTRY_INFO!$T$9:$T$1000="T1 (PZQ+ALB/MBD)",COUNTRY_INFO!$U$9:$U$1000="T1 (PZQ+ALB/MBD)"), "T1 (PZQ+ALB/MBD)", " ") ->  | K64: 0 | O64: 0
A65: =IF(COUNTRY_INFO!A65=0," ",COUNTRY_INFO!A65) -> Benin | B65: =IF(COUNTRY_INFO!B65=0," ",COUNTRY_INFO!B65) -> Oueme | C65: =IF(COUNTRY_INFO!C65=0," ",COUNTRY_INFO!C65) -> Aguégués | D65: =IF(OR(COUNTRY_INFO!$T$9:$T$1000="T1 (PZQ+ALB/MBD)",COUNTRY_INFO!$U$9:$U$1000="T1 (PZQ+ALB/MBD)"), "T1 (PZQ+ALB/MBD)", " ") ->  | K65: 0 | O65: 0
A66: =IF(COUNTRY_INFO!A66=0," ",COUNTRY_INFO!A66) -> Benin | B66: =IF(COUNTRY_INFO!B66=0," ",COUNTRY_INFO!B66) -> Oueme | C66: =IF(COUNTRY_INFO!C66=0," ",COUNTRY_INFO!C66) -> Akpro-Missérété | D66: =IF(OR(COUNTRY_INFO!$T$9:$T$1000="T1 (PZQ+ALB/MBD)",COUNTRY_INFO!$U$9:$U$1000="T1 (PZQ+ALB/MBD)"), "T1 (PZQ+ALB/MBD)", " ") ->  | K66: 0 | O66: 0
A67: =IF(COUNTRY_INFO!A67=0," ",COUNTRY_INFO!A67) -> Benin | B67: =IF(COUNTRY_INFO!B67=0," ",COUNTRY_INFO!B67) -> Oueme | C67: =IF(COUNTRY_INFO!C67=0," ",COUNTRY_INFO!C67) -> Avrankou | D67: =IF(OR(COUNTRY_INFO!$T$9:$T$1000="T1 (PZQ+ALB/MBD)",COUNTRY_INFO!$U$9:$U$1000="T1 (PZQ+ALB/MBD)"), "T1 (PZQ+ALB/MBD)", " ") ->  | K67: 0 | O67: 0
A68: =IF(COUNTRY_INFO!A68=0," ",COUNTRY_INFO!A68) -> Benin | B68: =IF(COUNTRY_INFO!B68=0," ",COUNTRY_INFO!B68) -> Oueme | C68: =IF(COUNTRY_INFO!C68=0," ",COUNTRY_INFO!C68) -> Bonou | D68: =IF(OR(COUNTRY_INFO!$T$9:$T$1000="T1 (PZQ+ALB/MBD)",COUNTRY_INFO!$U$9:$U$1000="T1 (PZQ+ALB/MBD)"), "T1 (PZQ+ALB/MBD)", " ") ->  | K68: 0 | O68: 0
A69: =IF(COUNTRY_INFO!A69=0," ",COUNTRY_INFO!A69) -> Benin | B69: =IF(COUNTRY_INFO!B69=0," ",COUNTRY_INFO!B69) -> Oueme | C69: =IF(COUNTRY_INFO!C69=0," ",COUNTRY_INFO!C69) -> Dangbo | D69: =IF(OR(COUNTRY_INFO!$T$9:$T$1000="T1 (PZQ+ALB/MBD)",COUNTRY_INFO!$U$9:$U$1000="T1 (PZQ+ALB/MBD)"), "T1 (PZQ+ALB/MBD)", " ") ->  | K69: 0 | O69: 0
A70: =IF(COUNTRY_INFO!A70=0," ",COUNTRY_INFO!A70) -> Benin | B70: =IF(COUNTRY_INFO!B70=0," ",COUNTRY_INFO!B70) -> Oueme | C70: =IF(COUNTRY_INFO!C70=0," ",COUNTRY_INFO!C70) -> Porto-Novo | D70: =IF(OR(COUNTRY_INFO!$T$9:$T$1000="T1 (PZQ+ALB/MBD)",COUNTRY_INFO!$U$9:$U$1000="T1 (PZQ+ALB/MBD)"), "T1 (PZQ+ALB/MBD)", " ") ->  | K70: 0 | O70: 0
A71: =IF(COUNTRY_INFO!A71=0," ",COUNTRY_INFO!A71) -> Benin | B71: =IF(COUNTRY_INFO!B71=0," ",COUNTRY_INFO!B71) -> Oueme | C71: =IF(COUNTRY_INFO!C71=0," ",COUNTRY_INFO!C71) -> Sèmè-Kpodji | D71: =IF(OR(COUNTRY_INFO!$T$9:$T$1000="T1 (PZQ+ALB/MBD)",COUNTRY_INFO!$U$9:$U$1000="T1 (PZQ+ALB/MBD)"), "T1 (PZQ+ALB/MBD)", " ") ->  | K71: 0 | O71: 0
A72: =IF(COUNTRY_INFO!A72=0," ",COUNTRY_INFO!A72) -> Benin | B72: =IF(COUNTRY_INFO!B72=0," ",COUNTRY_INFO!B72) -> Plateau | C72: =IF(COUNTRY_INFO!C72=0," ",COUNTRY_INFO!C72) -> Adja-Ouèrè | D72: =IF(OR(COUNTRY_INFO!$T$9:$T$1000="T1 (PZQ+ALB/MBD)",COUNTRY_INFO!$U$9:$U$1000="T1 (PZQ+ALB/MBD)"), "T1 (PZQ+ALB/MBD)", " ") -> T1 (PZQ+ALB/MBD) | E72: PZQ+ALB | F72: 12/2020 | H72: 22922 | I72: 22922 | K72: 22922 | M72: 14558 | O72: 14558 | Q72: 63.51103743 | S72: 63.51103743
A73: =IF(COUNTRY_INFO!A73=0," ",COUNTRY_INFO!A73) -> Benin | B73: =IF(COUNTRY_INFO!B73=0," ",COUNTRY_INFO!B73) -> Plateau | C73: =IF(COUNTRY_INFO!C73=0," ",COUNTRY_INFO!C73) -> Ifangni | D73: =IF(OR(COUNTRY_INFO!$T$9:$T$1000="T1 (PZQ+ALB/MBD)",COUNTRY_INFO!$U$9:$U$1000="T1 (PZQ+ALB/MBD)"), "T1 (PZQ+ALB/MBD)", " ") ->  | K73: 0 | O73: 0
A74: =IF(COUNTRY_INFO!A74=0," ",COUNTRY_INFO!A74) -> Benin | B74: =IF(COUNTRY_INFO!B74=0," ",COUNTRY_INFO!B74) -> Plateau | C74: =IF(COUNTRY_INFO!C74=0," ",COUNTRY_INFO!C74) -> Kétou | D74: =IF(OR(COUNTRY_INFO!$T$9:$T$1000="T1 (PZQ+ALB/MBD)",COUNTRY_INFO!$U$9:$U$1000="T1 (PZQ+ALB/MBD)"), "T1 (PZQ+ALB/MBD)", " ") -> T1 (PZQ+ALB/MBD) | E74: PZQ+ALB | F74: 12/2020 | H74: 44772 | I74: 44772 | K74: =MAX(H74:I74)+G74+J74 -> 44772 | M74: 23120 | O74: =SUM(L74:N74) -> 23120 | P74: =IF(G74<>0, IF(L74/G74*100=0, "-", L74/G74*100), " ") ->  | Q74: =IF(OR(I74<>0,H74<>0), IF(M74/MAX(H74,I74)*100=0, "-", M74/MAX(H74,I74)*100), " ") -> 51.63941749 | R74: =IF(J74<>0, IF(N74/J74*100=0, "-", N74/J74*100), " ") ->  | S74: =IF(K74<>0, IF(O74/K74*100=0, "-", O74/K74*100), " ") -> 51.63941749
A75: =IF(COUNTRY_INFO!A75=0," ",COUNTRY_INFO!A75) -> Benin | B75: =IF(COUNTRY_INFO!B75=0," ",COUNTRY_INFO!B75) -> Plateau | C75: =IF(COUNTRY_INFO!C75=0," ",COUNTRY_INFO!C75) -> Pobè | D75: =IF(OR(COUNTRY_INFO!$T$9:$T$1000="T1 (PZQ+ALB/MBD)",COUNTRY_INFO!$U$9:$U$1000="T1 (PZQ+ALB/MBD)"), "T1 (PZQ+ALB/MBD)", " ") -> T1 (PZQ+ALB/MBD) | E75: PZQ+ALB | F75: 12/2020 | H75: 33826 | I75: 33826 | K75: 33826 | M75: 26377 | O75: 26377 | Q75: 77.97847809 | S75: 77.97847809
A76: =IF(COUNTRY_INFO!A76=0," ",COUNTRY_INFO!A76) -> Benin | B76: =IF(COUNTRY_INFO!B76=0," ",COUNTRY_INFO!B76) -> Plateau | C76: =IF(COUNTRY_INFO!C76=0," ",COUNTRY_INFO!C76) -> Sakété | D76: =IF(OR(COUNTRY_INFO!$T$9:$T$1000="T1 (PZQ+ALB/MBD)",COUNTRY_INFO!$U$9:$U$1000="T1 (PZQ+ALB/MBD)"), "T1 (PZQ+ALB/MBD)", " ") ->  | K76: 0 | O76: 0
A77: =IF(COUNTRY_INFO!A77=0," ",COUNTRY_INFO!A77) -> Benin | B77: =IF(COUNTRY_INFO!B77=0," ",COUNTRY_INFO!B77) -> Zou | C77: =IF(COUNTRY_INFO!C77=0," ",COUNTRY_INFO!C77) -> Abomey | D77: =IF(OR(COUNTRY_INFO!$T$9:$T$1000="T1 (PZQ+ALB/MBD)",COUNTRY_INFO!$U$9:$U$1000="T1 (PZQ+ALB/MBD)"), "T1 (PZQ+ALB/MBD)", " ") ->  | K77: 0 | O77: 0
A78: =IF(COUNTRY_INFO!A78=0," ",COUNTRY_INFO!A78) -> Benin | B78: =IF(COUNTRY_INFO!B78=0," ",COUNTRY_INFO!B78) -> Zou | C78: =IF(COUNTRY_INFO!C78=0," ",COUNTRY_INFO!C78) -> Agbangnizoun | D78: =IF(OR(COUNTRY_INFO!$T$9:$T$1000="T1 (PZQ+ALB/MBD)",COUNTRY_INFO!$U$9:$U$1000="T1 (PZQ+ALB/MBD)"), "T1 (PZQ+ALB/MBD)", " ") ->  | K78: 0 | O78: 0
A79: =IF(COUNTRY_INFO!A79=0," ",COUNTRY_INFO!A79) -> Benin | B79: =IF(COUNTRY_INFO!B79=0," ",COUNTRY_INFO!B79) -> Zou | C79: =IF(COUNTRY_INFO!C79=0," ",COUNTRY_INFO!C79) -> Bohicon | D79: =IF(OR(COUNTRY_INFO!$T$9:$T$1000="T1 (PZQ+ALB/MBD)",COUNTRY_INFO!$U$9:$U$1000="T1 (PZQ+ALB/MBD)"), "T1 (PZQ+ALB/MBD)", " ") ->  | K79: 0 | O79: 0
A80: =IF(COUNTRY_INFO!A80=0," ",COUNTRY_INFO!A80) -> Benin | B80: =IF(COUNTRY_INFO!B80=0," ",COUNTRY_INFO!B80) -> Zou | C80: =IF(COUNTRY_INFO!C80=0," ",COUNTRY_INFO!C80) -> Covè | D80: =IF(OR(COUNTRY_INFO!$T$9:$T$1000="T1 (PZQ+ALB/MBD)",COUNTRY_INFO!$U$9:$U$1000="T1 (PZQ+ALB/MBD)"), "T1 (PZQ+ALB/MBD)", " ") ->  | K80: 0 | O80: 0
A81: =IF(COUNTRY_INFO!A81=0," ",COUNTRY_INFO!A81) -> Benin | B81: =IF(COUNTRY_INFO!B81=0," ",COUNTRY_INFO!B81) -> Zou | C81: =IF(COUNTRY_INFO!C81=0," ",COUNTRY_INFO!C81) -> Djidja | D81: =IF(OR(COUNTRY_INFO!$T$9:$T$1000="T1 (PZQ+ALB/MBD)",COUNTRY_INFO!$U$9:$U$1000="T1 (PZQ+ALB/MBD)"), "T1 (PZQ+ALB/MBD)", " ") ->  | K81: 0 | O81: 0
A82: =IF(COUNTRY_INFO!A82=0," ",COUNTRY_INFO!A82) -> Benin | B82: =IF(COUNTRY_INFO!B82=0," ",COUNTRY_INFO!B82) -> Zou | C82: =IF(COUNTRY_INFO!C82=0," ",COUNTRY_INFO!C82) -> Ouinhi | D82: =IF(OR(COUNTRY_INFO!$T$9:$T$1000="T1 (PZQ+ALB/MBD)",COUNTRY_INFO!$U$9:$U$1000="T1 (PZQ+ALB/MBD)"), "T1 (PZQ+ALB/MBD)", " ") ->  | K82: 0 | O82: 0
A83: =IF(COUNTRY_INFO!A83=0," ",COUNTRY_INFO!A83) -> Benin | B83: =IF(COUNTRY_INFO!B83=0," ",COUNTRY_INFO!B83) -> Zou | C83: =IF(COUNTRY_INFO!C83=0," ",COUNTRY_INFO!C83) -> Zagnanado | D83: =IF(OR(COUNTRY_INFO!$T$9:$T$1000="T1 (PZQ+ALB/MBD)",COUNTRY_INFO!$U$9:$U$1000="T1 (PZQ+ALB/MBD)"), "T1 (PZQ+ALB/MBD)", " ") ->  | K83: 0 | O83: 0
A84: =IF(COUNTRY_INFO!A84=0," ",COUNTRY_INFO!A84) -> Benin | B84: =IF(COUNTRY_INFO!B84=0," ",COUNTRY_INFO!B84) -> Zou | C84: =IF(COUNTRY_INFO!C84=0," ",COUNTRY_INFO!C84) -> Za-Kpota | D84: =IF(OR(COUNTRY_INFO!$T$9:$T$1000="T1 (PZQ+ALB/MBD)",COUNTRY_INFO!$U$9:$U$1000="T1 (PZQ+ALB/MBD)"), "T1 (PZQ+ALB/MBD)", " ") ->  | K84: 0 | O84: 0
A85: =IF(COUNTRY_INFO!A85=0," ",COUNTRY_INFO!A85) -> Benin | B85: =IF(COUNTRY_INFO!B85=0," ",COUNTRY_INFO!B85) -> Zou | C85: =IF(COUNTRY_INFO!C85=0," ",COUNTRY_INFO!C85) -> Zogbodomey | D85: =IF(OR(COUNTRY_INFO!$T$9:$T$1000="T1 (PZQ+ALB/MBD)",COUNTRY_INFO!$U$9:$U$1000="T1 (PZQ+ALB/MBD)"), "T1 (PZQ+ALB/MBD)", " ") -> T1 (PZQ+ALB/MBD) | E85: PZQ+ALB | F85: 12/2020 | H85: 34065 | I85: 17032.5 | K85: 34065 | M85: 32065 | O85: 32065 | Q85: 94.12887128 | S85: 94.12887128

Sheet T2
A1: T 2 - Praziquantel (PZQ)
A2: Structure administrative, population nécessitant une chimioprévention par groupe d'âge, population traitée par groupe d'âge et couverture
A4: TOTAL | F4: =SUM(F$9:F$1000) -> 0 | G4: 321033 | H4: 0 | I4: 321033 | J4: 0 | K4: 266865 | L4: 0 | M4: 266865 | N4: =IF(F4<>0, IF(J4/F4*100=0, "-", J4/F4*100), " ") ->  | O4: =IF(G4<>0, IF(K4/G4*100=0, "-", K4/G4*100), " ") -> 83.12696826 | P4: =IF(H4<>0, IF(L4/H4*100=0, "-", L4/H4*100), " ") ->  | Q4: =IF(I4<>0, IF(M4/I4*100=0, "-", M4/I4*100), " ") -> 83.12696826
A6: Structure administrative du pays | D6: Mise en oeuvre de la CP | E6: Date | F6: Population ciblée pour T2 | J6: Population traitée | N6: Couverture du Programme (%)
A7: Pays | B7: Région/Département | C7: District | F7: EAPréS | G7: EAS | H7: Adultes | I7: Total | J7: EAPréS | K7: EAS | L7: Adultes | M7: Total | N7: EAPréS | O7: EAS | P7: Adultes | Q7: Total
A9: =IF(COUNTRY_INFO!A9=0," ",COUNTRY_INFO!A9) -> Benin | B9: =IF(COUNTRY_INFO!B9=0," ",COUNTRY_INFO!B9) -> Alibori | C9: =IF(COUNTRY_INFO!C9=0," ",COUNTRY_INFO!C9) -> Banikoara | D9: =IF(OR(COUNTRY_INFO!$T$9:$T$1000="T2 (PZQ)",COUNTRY_INFO!$U$9:$U$1000="T2 (PZQ)"), "T2 (PZQ)", " ") ->  | I9: =SUM(F9:H9) -> 0 | M9: =SUM(J9:L9) -> 0 | N9: =IF(F9<>0, IF(J9/F9*100=0, "-", J9/F9*100), " ") -> 
A10: =IF(COUNTRY_INFO!A10=0," ",COUNTRY_INFO!A10) -> Benin | B10: =IF(COUNTRY_INFO!B10=0," ",COUNTRY_INFO!B10) -> Alibori | C10: =IF(COUNTRY_INFO!C10=0," ",COUNTRY_INFO!C10) -> Gogounou | D10: =IF(OR(COUNTRY_INFO!$T$9:$T$1000="T2 (PZQ)",COUNTRY_INFO!$U$9:$U$1000="T2 (PZQ)"), "T2 (PZQ)", " ") ->  | I10: =SUM(F10:H10) -> 0 | M10: =SUM(J10:L10) -> 0 | N10: =IF(F10<>0, IF(J10/F10*100=0, "-", J10/F10*100), " ") ->  | O10: =IF(G10<>0, IF(K10/G10*100=0, "-", K10/G10*100), " ") ->  | P10: =IF(H10<>0, IF(L10/H10*100=0, "-", L10/H10*100), " ") ->  | Q10: =IF(I10<>0, IF(M10/I10*100=0, "-", M10/I10*100), " ") -> 
A11: =IF(COUNTRY_INFO!A11=0," ",COUNTRY_INFO!A11) -> Benin | B11: =IF(COUNTRY_INFO!B11=0," ",COUNTRY_INFO!B11) -> Alibori | C11: =IF(COUNTRY_INFO!C11=0," ",COUNTRY_INFO!C11) -> Kandi | D11: =IF(OR(COUNTRY_INFO!$T$9:$T$1000="T2 (PZQ)",COUNTRY_INFO!$U$9:$U$1000="T2 (PZQ)"), "T2 (PZQ)", " ") ->  | I11: 0 | M11: 0
A12: =IF(COUNTRY_INFO!A12=0," ",COUNTRY_INFO!A12) -> Benin | B12: =IF(COUNTRY_INFO!B12=0," ",COUNTRY_INFO!B12) -> Alibori | C12: =IF(COUNTRY_INFO!C12=0," ",COUNTRY_INFO!C12) -> Karimama | D12: =IF(OR(COUNTRY_INFO!$T$9:$T$1000="T2 (PZQ)",COUNTRY_INFO!$U$9:$U$1000="T2 (PZQ)"), "T2 (PZQ)", " ") ->  | I12: 0 | M12: 0
A13: =IF(COUNTRY_INFO!A13=0," ",COUNTRY_INFO!A13) -> Benin | B13: =IF(COUNTRY_INFO!B13=0," ",COUNTRY_INFO!B13) -> Alibori | C13: =IF(COUNTRY_INFO!C13=0," ",COUNTRY_INFO!C13) -> Malanville | D13: =IF(OR(COUNTRY_INFO!$T$9:$T$1000="T2 (PZQ)",COUNTRY_INFO!$U$9:$U$1000="T2 (PZQ)"), "T2 (PZQ)", " ") ->  | I13: 0 | M13: 0
A14: =IF(COUNTRY_INFO!A14=0," ",COUNTRY_INFO!A14) -> Benin | B14: =IF(COUNTRY_INFO!B14=0," ",COUNTRY_INFO!B14) -> Alibori | C14: =IF(COUNTRY_INFO!C14=0," ",COUNTRY_INFO!C14) -> Ségbana | D14: =IF(OR(COUNTRY_INFO!$T$9:$T$1000="T2 (PZQ)",COUNTRY_INFO!$U$9:$U$1000="T2 (PZQ)"), "T2 (PZQ)", " ") ->  | I14: 0 | M14: 0
A15: =IF(COUNTRY_INFO!A15=0," ",COUNTRY_INFO!A15) -> Benin | B15: =IF(COUNTRY_INFO!B15=0," ",COUNTRY_INFO!B15) -> Atacora | C15: =IF(COUNTRY_INFO!C15=0," ",COUNTRY_INFO!C15) -> Boukoumbé | D15: =IF(OR(COUNTRY_INFO!$T$9:$T$1000="T2 (PZQ)",COUNTRY_INFO!$U$9:$U$1000="T2 (PZQ)"), "T2 (PZQ)", " ") ->  | I15: 0 | M15: 0
A16: =IF(COUNTRY_INFO!A16=0," ",COUNTRY_INFO!A16) -> Benin | B16: =IF(COUNTRY_INFO!B16=0," ",COUNTRY_INFO!B16) -> Atacora | C16: =IF(COUNTRY_INFO!C16=0," ",COUNTRY_INFO!C16) -> Cobly | D16: =IF(OR(COUNTRY_INFO!$T$9:$T$1000="T2 (PZQ)",COUNTRY_INFO!$U$9:$U$1000="T2 (PZQ)"), "T2 (PZQ)", " ") ->  | I16: 0 | M16: 0
A17: =IF(COUNTRY_INFO!A17=0," ",COUNTRY_INFO!A17) -> Benin | B17: =IF(COUNTRY_INFO!B17=0," ",COUNTRY_INFO!B17) -> Atacora | C17: =IF(COUNTRY_INFO!C17=0," ",COUNTRY_INFO!C17) -> Kérou | D17: =IF(OR(COUNTRY_INFO!$T$9:$T$1000="T2 (PZQ)",COUNTRY_INFO!$U$9:$U$1000="T2 (PZQ)"), "T2 (PZQ)", " ") ->  | I17: 0 | M17: 0
A18: =IF(COUNTRY_INFO!A18=0," ",COUNTRY_INFO!A18) -> Benin | B18: =IF(COUNTRY_INFO!B18=0," ",COUNTRY_INFO!B18) -> Atacora | C18: =IF(COUNTRY_INFO!C18=0," ",COUNTRY_INFO!C18) -> Kouandé | D18: =IF(OR(COUNTRY_INFO!$T$9:$T$1000="T2 (PZQ)",COUNTRY_INFO!$U$9:$U$1000="T2 (PZQ)"), "T2 (PZQ)", " ") ->  | I18: 0 | M18: 0
A19: =IF(COUNTRY_INFO!A19=0," ",COUNTRY_INFO!A19) -> Benin | B19: =IF(COUNTRY_INFO!B19=0," ",COUNTRY_INFO!B19) -> Atacora | C19: =IF(COUNTRY_INFO!C19=0," ",COUNTRY_INFO!C19) -> Matéri | D19: =IF(OR(COUNTRY_INFO!$T$9:$T$1000="T2 (PZQ)",COUNTRY_INFO!$U$9:$U$1000="T2 (PZQ)"), "T2 (PZQ)", " ") ->  | I19: 0 | M19: 0
A20: =IF(COUNTRY_INFO!A20=0," ",COUNTRY_INFO!A20) -> Benin | B20: =IF(COUNTRY_INFO!B20=0," ",COUNTRY_INFO!B20) -> Atacora | C20: =IF(COUNTRY_INFO!C20=0," ",COUNTRY_INFO!C20) -> Natitingou | D20: =IF(OR(COUNTRY_INFO!$T$9:$T$1000="T2 (PZQ)",COUNTRY_INFO!$U$9:$U$1000="T2 (PZQ)"), "T2 (PZQ)", " ") ->  | I20: 0 | M20: 0
A21: =IF(COUNTRY_INFO!A21=0," ",COUNTRY_INFO!A21) -> Benin | B21: =IF(COUNTRY_INFO!B21=0," ",COUNTRY_INFO!B21) -> Atacora | C21: =IF(COUNTRY_INFO!C21=0," ",COUNTRY_INFO!C21) -> Péhunco | D21: =IF(OR(COUNTRY_INFO!$T$9:$T$1000="T2 (PZQ)",COUNTRY_INFO!$U$9:$U$1000="T2 (PZQ)"), "T2 (PZQ)", " ") -> T2 (PZQ) | E21: 12/2020 | G21: 28246 | I21: 28246 | K21: 27610 | M21: 27610 | O21: 97.74835375 | Q21: 97.74835375
A22: =IF(COUNTRY_INFO!A22=0," ",COUNTRY_INFO!A22) -> Benin | B22: =IF(COUNTRY_INFO!B22=0," ",COUNTRY_INFO!B22) -> Atacora | C22: =IF(COUNTRY_INFO!C22=0," ",COUNTRY_INFO!C22) -> Tanguiéta | D22: =IF(OR(COUNTRY_INFO!$T$9:$T$1000="T2 (PZQ)",COUNTRY_INFO!$U$9:$U$1000="T2 (PZQ)"), "T2 (PZQ)", " ") ->  | I22: 0 | M22: 0
A23: =IF(COUNTRY_INFO!A23=0," ",COUNTRY_INFO!A23) -> Benin | B23: =IF(COUNTRY_INFO!B23=0," ",COUNTRY_INFO!B23) -> Atacora | C23: =IF(COUNTRY_INFO!C23=0," ",COUNTRY_INFO!C23) -> Toukountouna | D23: =IF(OR(COUNTRY_INFO!$T$9:$T$1000="T2 (PZQ)",COUNTRY_INFO!$U$9:$U$1000="T2 (PZQ)"), "T2 (PZQ)", " ") ->  | I23: 0 | M23: 0
A24: =IF(COUNTRY_INFO!A24=0," ",COUNTRY_INFO!A24) -> Benin | B24: =IF(COUNTRY_INFO!B24=0," ",COUNTRY_INFO!B24) -> Atlantique | C24: =IF(COUNTRY_INFO!C24=0," ",COUNTRY_INFO!C24) -> Abomey-Calavi | D24: =IF(OR(COUNTRY_INFO!$T$9:$T$1000="T2 (PZQ)",COUNTRY_INFO!$U$9:$U$1000="T2 (PZQ)"), "T2 (PZQ)", " ") ->  | I24: 0 | M24: 0
A25: =IF(COUNTRY_INFO!A25=0," ",COUNTRY_INFO!A25) -> Benin | B25: =IF(COUNTRY_INFO!B25=0," ",COUNTRY_INFO!B25) -> Atlantique | C25: =IF(COUNTRY_INFO!C25=0," ",COUNTRY_INFO!C25) -> Allada | D25: =IF(OR(COUNTRY_INFO!$T$9:$T$1000="T2 (PZQ)",COUNTRY_INFO!$U$9:$U$1000="T2 (PZQ)"), "T2 (PZQ)", " ") ->  | I25: 0 | M25: 0
A26: =IF(COUNTRY_INFO!A26=0," ",COUNTRY_INFO!A26) -> Benin | B26: =IF(COUNTRY_INFO!B26=0," ",COUNTRY_INFO!B26) -> Atlantique | C26: =IF(COUNTRY_INFO!C26=0," ",COUNTRY_INFO!C26) -> Kpomassè | D26: =IF(OR(COUNTRY_INFO!$T$9:$T$1000="T2 (PZQ)",COUNTRY_INFO!$U$9:$U$1000="T2 (PZQ)"), "T2 (PZQ)", " ") ->  | I26: 0 | M26: 0
A27: =IF(COUNTRY_INFO!A27=0," ",COUNTRY_INFO!A27) -> Benin | B27: =IF(COUNTRY_INFO!B27=0," ",COUNTRY_INFO!B27) -> Atlantique | C27: =IF(COUNTRY_INFO!C27=0," ",COUNTRY_INFO!C27) -> Ouidah | D27: =IF(OR(COUNTRY_INFO!$T$9:$T$1000="T2 (PZQ)",COUNTRY_INFO!$U$9:$U$1000="T2 (PZQ)"), "T2 (PZQ)", " ") -> T2 (PZQ) | E27: 12/2020 | G27: 19450 | I27: 19450 | K27: 18906 | M27: 18906 | O27: 97.20308483 | Q27: 97.20308483
A28: =IF(COUNTRY_INFO!A28=0," ",COUNTRY_INFO!A28) -> Benin | B28: =IF(COUNTRY_INFO!B28=0," ",COUNTRY_INFO!B28) -> Atlantique | C28: =IF(COUNTRY_INFO!C28=0," ",COUNTRY_INFO!C28) -> So-Ava | D28: =IF(OR(COUNTRY_INFO!$T$9:$T$1000="T2 (PZQ)",COUNTRY_INFO!$U$9:$U$1000="T2 (PZQ)"), "T2 (PZQ)", " ") -> T2 (PZQ) | E28: 12/2020 | G28: 41486 | I28: 41486 | K28: 27048 | M28: 27048 | O28: 65.19789809 | Q28: 65.19789809
A29: =IF(COUNTRY_INFO!A29=0," ",COUNTRY_INFO!A29) -> Benin | B29: =IF(COUNTRY_INFO!B29=0," ",COUNTRY_INFO!B29) -> Atlantique | C29: =IF(COUNTRY_INFO!C29=0," ",COUNTRY_INFO!C29) -> Toffo | D29: =IF(OR(COUNTRY_INFO!$T$9:$T$1000="T2 (PZQ)",COUNTRY_INFO!$U$9:$U$1000="T2 (PZQ)"), "T2 (PZQ)", " ") ->  | I29: 0 | M29: 0
A30: =IF(COUNTRY_INFO!A30=0," ",COUNTRY_INFO!A30) -> Benin | B30: =IF(COUNTRY_INFO!B30=0," ",COUNTRY_INFO!B30) -> Atlantique | C30: =IF(COUNTRY_INFO!C30=0," ",COUNTRY_INFO!C30) -> Torri-Bossito | D30: =IF(OR(COUNTRY_INFO!$T$9:$T$1000="T2 (PZQ)",COUNTRY_INFO!$U$9:$U$1000="T2 (PZQ)"), "T2 (PZQ)", " ") ->  | I30: 0 | M30: 0
A31: =IF(COUNTRY_INFO!A31=0," ",COUNTRY_INFO!A31) -> Benin | B31: =IF(COUNTRY_INFO!B31=0," ",COUNTRY_INFO!B31) -> Atlantique | C31: =IF(COUNTRY_INFO!C31=0," ",COUNTRY_INFO!C31) -> Zè | D31: =IF(OR(COUNTRY_INFO!$T$9:$T$1000="T2 (PZQ)",COUNTRY_INFO!$U$9:$U$1000="T2 (PZQ)"), "T2 (PZQ)", " ") ->  | I31: 0 | M31: 0
A32: =IF(COUNTRY_INFO!A32=0," ",COUNTRY_INFO!A32) -> Benin | B32: =IF(COUNTRY_INFO!B32=0," ",COUNTRY_INFO!B32) -> Borgou | C32: =IF(COUNTRY_INFO!C32=0," ",COUNTRY_INFO!C32) -> Bembèrèkè | D32: =IF(OR(COUNTRY_INFO!$T$9:$T$1000="T2 (PZQ)",COUNTRY_INFO!$U$9:$U$1000="T2 (PZQ)"), "T2 (PZQ)", " ") -> T2 (PZQ) | E32: 12/2020 | G32: 29741 | I32: 29741 | K32: 27410 | M32: 27410 | O32: 92.16233482 | Q32: 92.16233482
A33: =IF(COUNTRY_INFO!A33=0," ",COUNTRY_INFO!A33) -> Benin | B33: =IF(COUNTRY_INFO!B33=0," ",COUNTRY_INFO!B33) -> Borgou | C33: =IF(COUNTRY_INFO!C33=0," ",COUNTRY_INFO!C33) -> Kalalé | D33: =IF(OR(COUNTRY_INFO!$T$9:$T$1000="T2 (PZQ)",COUNTRY_INFO!$U$9:$U$1000="T2 (PZQ)"), "T2 (PZQ)", " ") ->  | I33: 0 | M33: 0
A34: =IF(COUNTRY_INFO!A34=0," ",COUNTRY_INFO!A34) -> Benin | B34: =IF(COUNTRY_INFO!B34=0," ",COUNTRY_INFO!B34) -> Borgou | C34: =IF(COUNTRY_INFO!C34=0," ",COUNTRY_INFO!C34) -> N'Dali | D34: =IF(OR(COUNTRY_INFO!$T$9:$T$1000="T2 (PZQ)",COUNTRY_INFO!$U$9:$U$1000="T2 (PZQ)"), "T2 (PZQ)", " ") ->  | I34: 0 | M34: 0
A35: =IF(COUNTRY_INFO!A35=0," ",COUNTRY_INFO!A35) -> Benin | B35: =IF(COUNTRY_INFO!B35=0," ",COUNTRY_INFO!B35) -> Borgou | C35: =IF(COUNTRY_INFO!C35=0," ",COUNTRY_INFO!C35) -> Nikki | D35: =IF(OR(COUNTRY_INFO!$T$9:$T$1000="T2 (PZQ)",COUNTRY_INFO!$U$9:$U$1000="T2 (PZQ)"), "T2 (PZQ)", " ") -> T2 (PZQ) | E35: 12/2020 | G35: 54630 | I35: 54630 | K35: 40463 | M35: 40463 | O35: 74.06736226 | Q35: 74.06736226
A36: =IF(COUNTRY_INFO!A36=0," ",COUNTRY_INFO!A36) -> Benin | B36: =IF(COUNTRY_INFO!B36=0," ",COUNTRY_INFO!B36) -> Borgou | C36: =IF(COUNTRY_INFO!C36=0," ",COUNTRY_INFO!C36) -> Parakou | D36: =IF(OR(COUNTRY_INFO!$T$9:$T$1000="T2 (PZQ)",COUNTRY_INFO!$U$9:$U$1000="T2 (PZQ)"), "T2 (PZQ)", " ") ->  | I36: 0 | M36: 0
A37: =IF(COUNTRY_INFO!A37=0," ",COUNTRY_INFO!A37) -> Benin | B37: =IF(COUNTRY_INFO!B37=0," ",COUNTRY_INFO!B37) -> Borgou | C37: =IF(COUNTRY_INFO!C37=0," ",COUNTRY_INFO!C37) -> Pèrèrè | D37: =IF(OR(COUNTRY_INFO!$T$9:$T$1000="T2 (PZQ)",COUNTRY_INFO!$U$9:$U$1000="T2 (PZQ)"), "T2 (PZQ)", " ") ->  | I37: 0 | M37: 0
A38: =IF(COUNTRY_INFO!A38=0," ",COUNTRY_INFO!A38) -> Benin | B38: =IF(COUNTRY_INFO!B38=0," ",COUNTRY_INFO!B38) -> Borgou | C38: =IF(COUNTRY_INFO!C38=0," ",COUNTRY_INFO!C38) -> Sinendé | D38: =IF(OR(COUNTRY_INFO!$T$9:$T$1000="T2 (PZQ)",COUNTRY_INFO!$U$9:$U$1000="T2 (PZQ)"), "T2 (PZQ)", " ") ->  | I38: 0 | M38: 0
A39: =IF(COUNTRY_INFO!A39=0," ",COUNTRY_INFO!A39) -> Benin | B39: =IF(COUNTRY_INFO!B39=0," ",COUNTRY_INFO!B39) -> Borgou | C39: =IF(COUNTRY_INFO!C39=0," ",COUNTRY_INFO!C39) -> Tchaourou | D39: =IF(OR(COUNTRY_INFO!$T$9:$T$1000="T2 (PZQ)",COUNTRY_INFO!$U$9:$U$1000="T2 (PZQ)"), "T2 (PZQ)", " ") ->  | I39: 0 | M39: 0
A40: =IF(COUNTRY_INFO!A40=0," ",COUNTRY_INFO!A40) -> Benin | B40: =IF(COUNTRY_INFO!B40=0," ",COUNTRY_INFO!B40) -> Collines | C40: =IF(COUNTRY_INFO!C40=0," ",COUNTRY_INFO!C40) -> Bantè | D40: =IF(OR(COUNTRY_INFO!$T$9:$T$1000="T2 (PZQ)",COUNTRY_INFO!$U$9:$U$1000="T2 (PZQ)"), "T2 (PZQ)", " ") ->  | I40: 0 | M40: 0
A41: =IF(COUNTRY_INFO!A41=0," ",COUNTRY_INFO!A41) -> Benin | B41: =IF(COUNTRY_INFO!B41=0," ",COUNTRY_INFO!B41) -> Collines | C41: =IF(COUNTRY_INFO!C41=0," ",COUNTRY_INFO!C41) -> Dassa-Zoumè | D41: =IF(OR(COUNTRY_INFO!$T$9:$T$1000="T2 (PZQ)",COUNTRY_INFO!$U$9:$U$1000="T2 (PZQ)"), "T2 (PZQ)", " ") ->  | I41: 0 | M41: 0
A42: =IF(COUNTRY_INFO!A42=0," ",COUNTRY_INFO!A42) -> Benin | B42: =IF(COUNTRY_INFO!B42=0," ",COUNTRY_INFO!B42) -> Collines | C42: =IF(COUNTRY_INFO!C42=0," ",COUNTRY_INFO!C42) -> Glazoué | D42: =IF(OR(COUNTRY_INFO!$T$9:$T$1000="T2 (PZQ)",COUNTRY_INFO!$U$9:$U$1000="T2 (PZQ)"), "T2 (PZQ)", " ") ->  | I42: 0 | M42: 0
A43: =IF(COUNTRY_INFO!A43=0," ",COUNTRY_INFO!A43) -> Benin | B43: =IF(COUNTRY_INFO!B43=0," ",COUNTRY_INFO!B43) -> Collines | C43: =IF(COUNTRY_INFO!C43=0," ",COUNTRY_INFO!C43) -> Ouèssè | D43: =IF(OR(COUNTRY_INFO!$T$9:$T$1000="T2 (PZQ)",COUNTRY_INFO!$U$9:$U$1000="T2 (PZQ)"), "T2 (PZQ)", " ") ->  | I43: 0 | M43: 0
A44: =IF(COUNTRY_INFO!A44=0," ",COUNTRY_INFO!A44) -> Benin | B44: =IF(COUNTRY_INFO!B44=0," ",COUNTRY_INFO!B44) -> Collines | C44: =IF(COUNTRY_INFO!C44=0," ",COUNTRY_INFO!C44) -> Savalou | D44: =IF(OR(COUNTRY_INFO!$T$9:$T$1000="T2 (PZQ)",COUNTRY_INFO!$U$9:$U$1000="T2 (PZQ)"), "T2 (PZQ)", " ") ->  | I44: 0 | M44: 0
A45: =IF(COUNTRY_INFO!A45=0," ",COUNTRY_INFO!A45) -> Benin | B45: =IF(COUNTRY_INFO!B45=0," ",COUNTRY_INFO!B45) -> Collines | C45: =IF(COUNTRY_INFO!C45=0," ",COUNTRY_INFO!C45) -> Savè | D45: =IF(OR(COUNTRY_INFO!$T$9:$T$1000="T2 (PZQ)",COUNTRY_INFO!$U$9:$U$1000="T2 (PZQ)"), "T2 (PZQ)", " ") ->  | I45: 0 | M45: 0
A46: =IF(COUNTRY_INFO!A46=0," ",COUNTRY_INFO!A46) -> Benin | B46: =IF(COUNTRY_INFO!B46=0," ",COUNTRY_INFO!B46) -> Couffo | C46: =IF(COUNTRY_INFO!C46=0," ",COUNTRY_INFO!C46) -> Aplahoué | D46: =IF(OR(COUNTRY_INFO!$T$9:$T$1000="T2 (PZQ)",COUNTRY_INFO!$U$9:$U$1000="T2 (PZQ)"), "T2 (PZQ)", " ") ->  | I46: 0 | M46: 0
A47: =IF(COUNTRY_INFO!A47=0," ",COUNTRY_INFO!A47) -> Benin | B47: =IF(COUNTRY_INFO!B47=0," ",COUNTRY_INFO!B47) -> Couffo | C47: =IF(COUNTRY_INFO!C47=0," ",COUNTRY_INFO!C47) -> Djakotomè | D47: =IF(OR(COUNTRY_INFO!$T$9:$T$1000="T2 (PZQ)",COUNTRY_INFO!$U$9:$U$1000="T2 (PZQ)"), "T2 (PZQ)", " ") ->  | I47: 0 | M47: 0
A48: =IF(COUNTRY_INFO!A48=0," ",COUNTRY_INFO!A48) -> Benin | B48: =IF(COUNTRY_INFO!B48=0," ",COUNTRY_INFO!B48) -> Couffo | C48: =IF(COUNTRY_INFO!C48=0," ",COUNTRY_INFO!C48) -> Dogbo | D48: =IF(OR(COUNTRY_INFO!$T$9:$T$1000="T2 (PZQ)",COUNTRY_INFO!$U$9:$U$1000="T2 (PZQ)"), "T2 (PZQ)", " ") ->  | I48: 0 | M48: 0
A49: =IF(COUNTRY_INFO!A49=0," ",COUNTRY_INFO!A49) -> Benin | B49: =IF(COUNTRY_INFO!B49=0," ",COUNTRY_INFO!B49) -> Couffo | C49: =IF(COUNTRY_INFO!C49=0," ",COUNTRY_INFO!C49) -> Klouékamè | D49: =IF(OR(COUNTRY_INFO!$T$9:$T$1000="T2 (PZQ)",COUNTRY_INFO!$U$9:$U$1000="T2 (PZQ)"), "T2 (PZQ)", " ") ->  | I49: 0 | M49: 0
A50: =IF(COUNTRY_INFO!A50=0," ",COUNTRY_INFO!A50) -> Benin | B50: =IF(COUNTRY_INFO!B50=0," ",COUNTRY_INFO!B50) -> Couffo | C50: =IF(COUNTRY_INFO!C50=0," ",COUNTRY_INFO!C50) -> Lalo | D50: =IF(OR(COUNTRY_INFO!$T$9:$T$1000="T2 (PZQ)",COUNTRY_INFO!$U$9:$U$1000="T2 (PZQ)"), "T2 (PZQ)", " ") ->  | I50: 0 | M50: 0
A51: =IF(COUNTRY_INFO!A51=0," ",COUNTRY_INFO!A51) -> Benin | B51: =IF(COUNTRY_INFO!B51=0," ",COUNTRY_INFO!B51) -> Couffo | C51: =IF(COUNTRY_INFO!C51=0," ",COUNTRY_INFO!C51) -> Toviklin | D51: =IF(OR(COUNTRY_INFO!$T$9:$T$1000="T2 (PZQ)",COUNTRY_INFO!$U$9:$U$1000="T2 (PZQ)"), "T2 (PZQ)", " ") ->  | I51: 0 | M51: 0
A52: =IF(COUNTRY_INFO!A52=0," ",COUNTRY_INFO!A52) -> Benin | B52: =IF(COUNTRY_INFO!B52=0," ",COUNTRY_INFO!B52) -> Donga | C52: =IF(COUNTRY_INFO!C52=0," ",COUNTRY_INFO!C52) -> Bassila | D52: =IF(OR(COUNTRY_INFO!$T$9:$T$1000="T2 (PZQ)",COUNTRY_INFO!$U$9:$U$1000="T2 (PZQ)"), "T2 (PZQ)", " ") ->  | I52: 0 | M52: 0
A53: =IF(COUNTRY_INFO!A53=0," ",COUNTRY_INFO!A53) -> Benin | B53: =IF(COUNTRY_INFO!B53=0," ",COUNTRY_INFO!B53) -> Donga | C53: =IF(COUNTRY_INFO!C53=0," ",COUNTRY_INFO!C53) -> Copargo | D53: =IF(OR(COUNTRY_INFO!$T$9:$T$1000="T2 (PZQ)",COUNTRY_INFO!$U$9:$U$1000="T2 (PZQ)"), "T2 (PZQ)", " ") ->  | I53: 0 | M53: 0
A54: =IF(COUNTRY_INFO!A54=0," ",COUNTRY_INFO!A54) -> Benin | B54: =IF(COUNTRY_INFO!B54=0," ",COUNTRY_INFO!B54) -> Donga | C54: =IF(COUNTRY_INFO!C54=0," ",COUNTRY_INFO!C54) -> Djougou | D54: =IF(OR(COUNTRY_INFO!$T$9:$T$1000="T2 (PZQ)",COUNTRY_INFO!$U$9:$U$1000="T2 (PZQ)"), "T2 (PZQ)", " ") ->  | I54: 0 | M54: 0
A55: =IF(COUNTRY_INFO!A55=0," ",COUNTRY_INFO!A55) -> Benin | B55: =IF(COUNTRY_INFO!B55=0," ",COUNTRY_INFO!B55) -> Donga | C55: =IF(COUNTRY_INFO!C55=0," ",COUNTRY_INFO!C55) -> Ouaké | D55: =IF(OR(COUNTRY_INFO!$T$9:$T$1000="T2 (PZQ)",COUNTRY_INFO!$U$9:$U$1000="T2 (PZQ)"), "T2 (PZQ)", " ") ->  | I55: 0 | M55: 0
A56: =IF(COUNTRY_INFO!A56=0," ",COUNTRY_INFO!A56) -> Benin | B56: =IF(COUNTRY_INFO!B56=0," ",COUNTRY_INFO!B56) -> Littoral | C56: =IF(COUNTRY_INFO!C56=0," ",COUNTRY_INFO!C56) -> Cotonou | D56: =IF(OR(COUNTRY_INFO!$T$9:$T$1000="T2 (PZQ)",COUNTRY_INFO!$U$9:$U$1000="T2 (PZQ)"), "T2 (PZQ)", " ") ->  | I56: 0 | M56: 0
A57: =IF(COUNTRY_INFO!A57=0," ",COUNTRY_INFO!A57) -> Benin | B57: =IF(COUNTRY_INFO!B57=0," ",COUNTRY_INFO!B57) -> Mono | C57: =IF(COUNTRY_INFO!C57=0," ",COUNTRY_INFO!C57) -> Athiémé | D57: =IF(OR(COUNTRY_INFO!$T$9:$T$1000="T2 (PZQ)",COUNTRY_INFO!$U$9:$U$1000="T2 (PZQ)"), "T2 (PZQ)", " ") ->  | I57: 0 | M57: 0
A58: =IF(COUNTRY_INFO!A58=0," ",COUNTRY_INFO!A58) -> Benin | B58: =IF(COUNTRY_INFO!B58=0," ",COUNTRY_INFO!B58) -> Mono | C58: =IF(COUNTRY_INFO!C58=0," ",COUNTRY_INFO!C58) -> Bopa | D58: =IF(OR(COUNTRY_INFO!$T$9:$T$1000="T2 (PZQ)",COUNTRY_INFO!$U$9:$U$1000="T2 (PZQ)"), "T2 (PZQ)", " ") ->  | I58: 0 | M58: 0
A59: =IF(COUNTRY_INFO!A59=0," ",COUNTRY_INFO!A59) -> Benin | B59: =IF(COUNTRY_INFO!B59=0," ",COUNTRY_INFO!B59) -> Mono | C59: =IF(COUNTRY_INFO!C59=0," ",COUNTRY_INFO!C59) -> Comé | D59: =IF(OR(COUNTRY_INFO!$T$9:$T$1000="T2 (PZQ)",COUNTRY_INFO!$U$9:$U$1000="T2 (PZQ)"), "T2 (PZQ)", " ") ->  | I59: 0 | M59: 0
A60: =IF(COUNTRY_INFO!A60=0," ",COUNTRY_INFO!A60) -> Benin | B60: =IF(COUNTRY_INFO!B60=0," ",COUNTRY_INFO!B60) -> Mono | C60: =IF(COUNTRY_INFO!C60=0," ",COUNTRY_INFO!C60) -> Grand-Popo | D60: =IF(OR(COUNTRY_INFO!$T$9:$T$1000="T2 (PZQ)",COUNTRY_INFO!$U$9:$U$1000="T2 (PZQ)"), "T2 (PZQ)", " ") ->  | I60: 0 | M60: 0
A61: =IF(COUNTRY_INFO!A61=0," ",COUNTRY_INFO!A61) -> Benin | B61: =IF(COUNTRY_INFO!B61=0," ",COUNTRY_INFO!B61) -> Mono | C61: =IF(COUNTRY_INFO!C61=0," ",COUNTRY_INFO!C61) -> Houéyogbé | D61: =IF(OR(COUNTRY_INFO!$T$9:$T$1000="T2 (PZQ)",COUNTRY_INFO!$U$9:$U$1000="T2 (PZQ)"), "T2 (PZQ)", " ") ->  | I61: 0 | M61: 0
A62: =IF(COUNTRY_INFO!A62=0," ",COUNTRY_INFO!A62) -> Benin | B62: =IF(COUNTRY_INFO!B62=0," ",COUNTRY_INFO!B62) -> Mono | C62: =IF(COUNTRY_INFO!C62=0," ",COUNTRY_INFO!C62) -> Lokossa | D62: =IF(OR(COUNTRY_INFO!$T$9:$T$1000="T2 (PZQ)",COUNTRY_INFO!$U$9:$U$1000="T2 (PZQ)"), "T2 (PZQ)", " ") ->  | I62: 0 | M62: 0
A63: =IF(COUNTRY_INFO!A63=0," ",COUNTRY_INFO!A63) -> Benin | B63: =IF(COUNTRY_INFO!B63=0," ",COUNTRY_INFO!B63) -> Oueme | C63: =IF(COUNTRY_INFO!C63=0," ",COUNTRY_INFO!C63) -> Adjarra | D63: =IF(OR(COUNTRY_INFO!$T$9:$T$1000="T2 (PZQ)",COUNTRY_INFO!$U$9:$U$1000="T2 (PZQ)"), "T2 (PZQ)", " ") ->  | I63: 0 | M63: 0
A64: =IF(COUNTRY_INFO!A64=0," ",COUNTRY_INFO!A64) -> Benin | B64: =IF(COUNTRY_INFO!B64=0," ",COUNTRY_INFO!B64) -> Oueme | C64: =IF(COUNTRY_INFO!C64=0," ",COUNTRY_INFO!C64) -> Adjohoun | D64: =IF(OR(COUNTRY_INFO!$T$9:$T$1000="T2 (PZQ)",COUNTRY_INFO!$U$9:$U$1000="T2 (PZQ)"), "T2 (PZQ)", " ") ->  | I64: 0 | M64: 0
A65: =IF(COUNTRY_INFO!A65=0," ",COUNTRY_INFO!A65) -> Benin | B65: =IF(COUNTRY_INFO!B65=0," ",COUNTRY_INFO!B65) -> Oueme | C65: =IF(COUNTRY_INFO!C65=0," ",COUNTRY_INFO!C65) -> Aguégués | D65: =IF(OR(COUNTRY_INFO!$T$9:$T$1000="T2 (PZQ)",COUNTRY_INFO!$U$9:$U$1000="T2 (PZQ)"), "T2 (PZQ)", " ") -> T2 (PZQ) | E65: 12/2020 | G65: 11596 | I65: 11596 | K65: 9981 | M65: 9981 | O65: 86.07278372 | Q65: 86.07278372
A66: =IF(COUNTRY_INFO!A66=0," ",COUNTRY_INFO!A66) -> Benin | B66: =IF(COUNTRY_INFO!B66=0," ",COUNTRY_INFO!B66) -> Oueme | C66: =IF(COUNTRY_INFO!C66=0," ",COUNTRY_INFO!C66) -> Akpro-Missérété | D66: =IF(OR(COUNTRY_INFO!$T$9:$T$1000="T2 (PZQ)",COUNTRY_INFO!$U$9:$U$1000="T2 (PZQ)"), "T2 (PZQ)", " ") ->  | I66: 0 | M66: 0
A67: =IF(COUNTRY_INFO!A67=0," ",COUNTRY_INFO!A67) -> Benin | B67: =IF(COUNTRY_INFO!B67=0," ",COUNTRY_INFO!B67) -> Oueme | C67: =IF(COUNTRY_INFO!C67=0," ",COUNTRY_INFO!C67) -> Avrankou | D67: =IF(OR(COUNTRY_INFO!$T$9:$T$1000="T2 (PZQ)",COUNTRY_INFO!$U$9:$U$1000="T2 (PZQ)"), "T2 (PZQ)", " ") ->  | I67: 0 | M67: 0
A68: =IF(COUNTRY_INFO!A68=0," ",COUNTRY_INFO!A68) -> Benin | B68: =IF(COUNTRY_INFO!B68=0," ",COUNTRY_INFO!B68) -> Oueme | C68: =IF(COUNTRY_INFO!C68=0," ",COUNTRY_INFO!C68) -> Bonou | D68: =IF(OR(COUNTRY_INFO!$T$9:$T$1000="T2 (PZQ)",COUNTRY_INFO!$U$9:$U$1000="T2 (PZQ)"), "T2 (PZQ)", " ") ->  | I68: 0 | M68: 0
A69: =IF(COUNTRY_INFO!A69=0," ",COUNTRY_INFO!A69) -> Benin | B69: =IF(COUNTRY_INFO!B69=0," ",COUNTRY_INFO!B69) -> Oueme | C69: =IF(COUNTRY_INFO!C69=0," ",COUNTRY_INFO!C69) -> Dangbo | D69: =IF(OR(COUNTRY_INFO!$T$9:$T$1000="T2 (PZQ)",COUNTRY_INFO!$U$9:$U$1000="T2 (PZQ)"), "T2 (PZQ)", " ") -> T2 (PZQ) | E69: 12/2020 | G69: 23063 | I69: 23063 | K69: 19569 | M69: 19569 | O69: 84.85019295 | Q69: 84.85019295
A70: =IF(COUNTRY_INFO!A70=0," ",COUNTRY_INFO!A70) -> Benin | B70: =IF(COUNTRY_INFO!B70=0," ",COUNTRY_INFO!B70) -> Oueme | C70: =IF(COUNTRY_INFO!C70=0," ",COUNTRY_INFO!C70) -> Porto-Novo | D70: =IF(OR(COUNTRY_INFO!$T$9:$T$1000="T2 (PZQ)",COUNTRY_INFO!$U$9:$U$1000="T2 (PZQ)"), "T2 (PZQ)", " ") ->  | I70: 0 | M70: 0
A71: =IF(COUNTRY_INFO!A71=0," ",COUNTRY_INFO!A71) -> Benin | B71: =IF(COUNTRY_INFO!B71=0," ",COUNTRY_INFO!B71) -> Oueme | C71: =IF(COUNTRY_INFO!C71=0," ",COUNTRY_INFO!C71) -> Sèmè-Kpodji | D71: =IF(OR(COUNTRY_INFO!$T$9:$T$1000="T2 (PZQ)",COUNTRY_INFO!$U$9:$U$1000="T2 (PZQ)"), "T2 (PZQ)", " ") ->  | I71: 0 | M71: 0
A72: =IF(COUNTRY_INFO!A72=0," ",COUNTRY_INFO!A72) -> Benin | B72: =IF(COUNTRY_INFO!B72=0," ",COUNTRY_INFO!B72) -> Plateau | C72: =IF(COUNTRY_INFO!C72=0," ",COUNTRY_INFO!C72) -> Adja-Ouèrè | D72: =IF(OR(COUNTRY_INFO!$T$9:$T$1000="T2 (PZQ)",COUNTRY_INFO!$U$9:$U$1000="T2 (PZQ)"), "T2 (PZQ)", " ") ->  | I72: 0 | M72: 0
A73: =IF(COUNTRY_INFO!A73=0," ",COUNTRY_INFO!A73) -> Benin | B73: =IF(COUNTRY_INFO!B73=0," ",COUNTRY_INFO!B73) -> Plateau | C73: =IF(COUNTRY_INFO!C73=0," ",COUNTRY_INFO!C73) -> Ifangni | D73: =IF(OR(COUNTRY_INFO!$T$9:$T$1000="T2 (PZQ)",COUNTRY_INFO!$U$9:$U$1000="T2 (PZQ)"), "T2 (PZQ)", " ") ->  | I73: 0 | M73: 0
A74: =IF(COUNTRY_INFO!A74=0," ",COUNTRY_INFO!A74) -> Benin | B74: =IF(COUNTRY_INFO!B74=0," ",COUNTRY_INFO!B74) -> Plateau | C74: =IF(COUNTRY_INFO!C74=0," ",COUNTRY_INFO!C74) -> Kétou | D74: =IF(OR(COUNTRY_INFO!$T$9:$T$1000="T2 (PZQ)",COUNTRY_INFO!$U$9:$U$1000="T2 (PZQ)"), "T2 (PZQ)", " ") ->  | I74: =SUM(F74:H74) -> 0 | M74: =SUM(J74:L74) -> 0 | N74: =IF(F74<>0, IF(J74/F74*100=0, "-", J74/F74*100), " ") ->  | O74: =IF(G74<>0, IF(K74/G74*100=0, "-", K74/G74*100), " ") ->  | P74: =IF(H74<>0, IF(L74/H74*100=0, "-", L74/H74*100), " ") ->  | Q74: =IF(I74<>0, IF(M74/I74*100=0, "-", M74/I74*100), " ") -> 
A75: =IF(COUNTRY_INFO!A75=0," ",COUNTRY_INFO!A75) -> Benin | B75: =IF(COUNTRY_INFO!B75=0," ",COUNTRY_INFO!B75) -> Plateau | C75: =IF(COUNTRY_INFO!C75=0," ",COUNTRY_INFO!C75) -> Pobè | D75: =IF(OR(COUNTRY_INFO!$T$9:$T$1000="T2 (PZQ)",COUNTRY_INFO!$U$9:$U$1000="T2 (PZQ)"), "T2 (PZQ)", " ") ->  | I75: 0 | M75: 0
A76: =IF(COUNTRY_INFO!A76=0," ",COUNTRY_INFO!A76) -> Benin | B76: =IF(COUNTRY_INFO!B76=0," ",COUNTRY_INFO!B76) -> Plateau | C76: =IF(COUNTRY_INFO!C76=0," ",COUNTRY_INFO!C76) -> Sakété | D76: =IF(OR(COUNTRY_INFO!$T$9:$T$1000="T2 (PZQ)",COUNTRY_INFO!$U$9:$U$1000="T2 (PZQ)"), "T2 (PZQ)", " ") ->  | I76: 0 | M76: 0
A77: =IF(COUNTRY_INFO!A77=0," ",COUNTRY_INFO!A77) -> Benin | B77: =IF(COUNTRY_INFO!B77=0," ",COUNTRY_INFO!B77) -> Zou | C77: =IF(COUNTRY_INFO!C77=0," ",COUNTRY_INFO!C77) -> Abomey | D77: =IF(OR(COUNTRY_INFO!$T$9:$T$1000="T2 (PZQ)",COUNTRY_INFO!$U$9:$U$1000="T2 (PZQ)"), "T2 (PZQ)", " ") ->  | I77: 0 | M77: 0
A78: =IF(COUNTRY_INFO!A78=0," ",COUNTRY_INFO!A78) -> Benin | B78: =IF(COUNTRY_INFO!B78=0," ",COUNTRY_INFO!B78) -> Zou | C78: =IF(COUNTRY_INFO!C78=0," ",COUNTRY_INFO!C78) -> Agbangnizoun | D78: =IF(OR(COUNTRY_INFO!$T$9:$T$1000="T2 (PZQ)",COUNTRY_INFO!$U$9:$U$1000="T2 (PZQ)"), "T2 (PZQ)", " ") ->  | I78: 0 | M78: 0
A79: =IF(COUNTRY_INFO!A79=0," ",COUNTRY_INFO!A79) -> Benin | B79: =IF(COUNTRY_INFO!B79=0," ",COUNTRY_INFO!B79) -> Zou | C79: =IF(COUNTRY_INFO!C79=0," ",COUNTRY_INFO!C79) -> Bohicon | D79: =IF(OR(COUNTRY_INFO!$T$9:$T$1000="T2 (PZQ)",COUNTRY_INFO!$U$9:$U$1000="T2 (PZQ)"), "T2 (PZQ)", " ") ->  | I79: 0 | M79: 0
A80: =IF(COUNTRY_INFO!A80=0," ",COUNTRY_INFO!A80) -> Benin | B80: =IF(COUNTRY_INFO!B80=0," ",COUNTRY_INFO!B80) -> Zou | C80: =IF(COUNTRY_INFO!C80=0," ",COUNTRY_INFO!C80) -> Covè | D80: =IF(OR(COUNTRY_INFO!$T$9:$T$1000="T2 (PZQ)",COUNTRY_INFO!$U$9:$U$1000="T2 (PZQ)"), "T2 (PZQ)", " ") ->  | I80: 0 | M80: 0
A81: =IF(COUNTRY_INFO!A81=0," ",COUNTRY_INFO!A81) -> Benin | B81: =IF(COUNTRY_INFO!B81=0," ",COUNTRY_INFO!B81) -> Zou | C81: =IF(COUNTRY_INFO!C81=0," ",COUNTRY_INFO!C81) -> Djidja | D81: =IF(OR(COUNTRY_INFO!$T$9:$T$1000="T2 (PZQ)",COUNTRY_INFO!$U$9:$U$1000="T2 (PZQ)"), "T2 (PZQ)", " ") -> T2 (PZQ) | E81: 12/2020 | G81: 28180 | I81: 28180 | K81: 24352 | M81: 24352 | O81: 86.4158978 | Q81: 86.4158978
A82: =IF(COUNTRY_INFO!A82=0," ",COUNTRY_INFO!A82) -> Benin | B82: =IF(COUNTRY_INFO!B82=0," ",COUNTRY_INFO!B82) -> Zou | C82: =IF(COUNTRY_INFO!C82=0," ",COUNTRY_INFO!C82) -> Ouinhi | D82: =IF(OR(COUNTRY_INFO!$T$9:$T$1000="T2 (PZQ)",COUNTRY_INFO!$U$9:$U$1000="T2 (PZQ)"), "T2 (PZQ)", " ") -> T2 (PZQ) | E82: 12/2020 | G82: 22438 | I82: 22438 | K82: 18769 | M82: 18769 | O82: 83.64827525 | Q82: 83.64827525
A83: =IF(COUNTRY_INFO!A83=0," ",COUNTRY_INFO!A83) -> Benin | B83: =IF(COUNTRY_INFO!B83=0," ",COUNTRY_INFO!B83) -> Zou | C83: =IF(COUNTRY_INFO!C83=0," ",COUNTRY_INFO!C83) -> Zagnanado | D83: =IF(OR(COUNTRY_INFO!$T$9:$T$1000="T2 (PZQ)",COUNTRY_INFO!$U$9:$U$1000="T2 (PZQ)"), "T2 (PZQ)", " ") -> T2 (PZQ) | E83: 12/2020 | G83: 20806 | I83: 20806 | K83: 17241 | M83: 17241 | O83: 82.86551956 | Q83: 82.86551956
A84: =IF(COUNTRY_INFO!A84=0," ",COUNTRY_INFO!A84) -> Benin | B84: =IF(COUNTRY_INFO!B84=0," ",COUNTRY_INFO!B84) -> Zou | C84: =IF(COUNTRY_INFO!C84=0," ",COUNTRY_INFO!C84) -> Za-Kpota | D84: =IF(OR(COUNTRY_INFO!$T$9:$T$1000="T2 (PZQ)",COUNTRY_INFO!$U$9:$U$1000="T2 (PZQ)"), "T2 (PZQ)", " ") -> T2 (PZQ) | E84: 12/2020 | G84: 41397 | I84: 41397 | K84: 35516 | M84: 35516 | O84: 85.79365655 | Q84: 85.79365655
A85: =IF(COUNTRY_INFO!A85=0," ",COUNTRY_INFO!A85) -> Benin | B85: =IF(COUNTRY_INFO!B85=0," ",COUNTRY_INFO!B85) -> Zou | C85: =IF(COUNTRY_INFO!C85=0," ",COUNTRY_INFO!C85) -> Zogbodomey | D85: =IF(OR(COUNTRY_INFO!$T$9:$T$1000="T2 (PZQ)",COUNTRY_INFO!$U$9:$U$1000="T2 (PZQ)"), "T2 (PZQ)", " ") ->  | I85: 0 | M85: 0

Sheet T3_R1
A1: T 3 - Albendazole (ALB) ou Mebendazole (MBD) - Tournée 1
A2: Structure administrative, population nécessitant une chimioprévention par groupe d'âge, population traitée par groupe d'âge et couverture
A4: TOTAL | G4: =SUM(G$9:G$1000) -> 0 | H4: 804805 | I4: 0 | J4: 804805 | K4: 0 | L4: 750235 | M4: 0 | N4: 750235 | O4: =IF(G4<>0, IF(K4/G4*100=0, "-", K4/G4*100), " ") ->  | P4: =IF(H4<>0, IF(L4/H4*100=0, "-", L4/H4*100), " ") -> 93.21947553 | Q4: =IF(I4<>0, IF(M4/I4*100=0, "-", M4/I4*100), " ") ->  | R4: =IF(J4<>0, IF(N4/J4*100=0, "-", N4/J4*100), " ") -> 93.21947553
A6: Structure administrative du pays | D6: Mise en oeuvre de la CP | E6: Médica-ment | F6: Date | G6: Population ciblée pour T3 | K6: Population traitée | O6: Couverture du Programme (%)
A7: Pays | B7: Région/Département | C7: District | G7: EAPréS | H7: EAS | I7: Adultes | J7: Total | K7: EAPréS | L7: EAS | M7: Adultes | N7: Total | O7: EAPréS | P7: EAS | Q7: Adultes | R7: Total
A9: =IF(COUNTRY_INFO!A9=0," ",COUNTRY_INFO!A9) -> Benin | B9: =IF(COUNTRY_INFO!B9=0," ",COUNTRY_INFO!B9) -> Alibori | C9: =IF(COUNTRY_INFO!C9=0," ",COUNTRY_INFO!C9) -> Banikoara | D9: =IF(OR(COUNTRY_INFO!$T$9:$T$1000="T3 (ALB/MBD)",COUNTRY_INFO!$U$9:$U$1000="T3 (ALB/MBD)"), "T3 (ALB/MBD)", " ") ->  | J9: =SUM(G9:I9) -> 0 | N9: =SUM(K9:M9) -> 0 | O9: =IF(G9<>0, IF(K9/G9*100=0, "-", K9/G9*100), " ") -> 
A10: =IF(COUNTRY_INFO!A10=0," ",COUNTRY_INFO!A10) -> Benin | B10: =IF(COUNTRY_INFO!B10=0," ",COUNTRY_INFO!B10) -> Alibori | C10: =IF(COUNTRY_INFO!C10=0," ",COUNTRY_INFO!C10) -> Gogounou | D10: =IF(OR(COUNTRY_INFO!$T$9:$T$1000="T3 (ALB/MBD)",COUNTRY_INFO!$U$9:$U$1000="T3 (ALB/MBD)"), "T3 (ALB/MBD)", " ") -> T3 (ALB/MBD) | E10: ALB | F10: 12/2020 | H10: 44408 | J10: =SUM(G10:I10) -> 44408 | L10: 45374 | N10: =SUM(K10:M10) -> 45374 | O10: =IF(G10<>0, IF(K10/G10*100=0, "-", K10/G10*100), " ") ->  | P10: =IF(H10<>0, IF(L10/H10*100=0, "-", L10/H10*100), " ") -> 102.1752837 | Q10: =IF(I10<>0, IF(M10/I10*100=0, "-", M10/I10*100), " ") ->  | R10: =IF(J10<>0, IF(N10/J10*100=0, "-", N10/J10*100), " ") -> 102.1752837
A11: =IF(COUNTRY_INFO!A11=0," ",COUNTRY_INFO!A11) -> Benin | B11: =IF(COUNTRY_INFO!B11=0," ",COUNTRY_INFO!B11) -> Alibori | C11: =IF(COUNTRY_INFO!C11=0," ",COUNTRY_INFO!C11) -> Kandi | D11: =IF(OR(COUNTRY_INFO!$T$9:$T$1000="T3 (ALB/MBD)",COUNTRY_INFO!$U$9:$U$1000="T3 (ALB/MBD)"), "T3 (ALB/MBD)", " ") -> T3 (ALB/MBD) | E11: ALB | F11: 12/2020 | H11: 67748 | J11: 67748 | L11: 72255 | N11: 72255 | P11: 106.6525949 | R11: 106.6525949
A12: =IF(COUNTRY_INFO!A12=0," ",COUNTRY_INFO!A12) -> Benin | B12: =IF(COUNTRY_INFO!B12=0," ",COUNTRY_INFO!B12) -> Alibori | C12: =IF(COUNTRY_INFO!C12=0," ",COUNTRY_INFO!C12) -> Karimama | D12: =IF(OR(COUNTRY_INFO!$T$9:$T$1000="T3 (ALB/MBD)",COUNTRY_INFO!$U$9:$U$1000="T3 (ALB/MBD)"), "T3 (ALB/MBD)", " ") ->  | J12: 0 | N12: 0
A13: =IF(COUNTRY_INFO!A13=0," ",COUNTRY_INFO!A13) -> Benin | B13: =IF(COUNTRY_INFO!B13=0," ",COUNTRY_INFO!B13) -> Alibori | C13: =IF(COUNTRY_INFO!C13=0," ",COUNTRY_INFO!C13) -> Malanville | D13: =IF(OR(COUNTRY_INFO!$T$9:$T$1000="T3 (ALB/MBD)",COUNTRY_INFO!$U$9:$U$1000="T3 (ALB/MBD)"), "T3 (ALB/MBD)", " ") ->  | J13: 0 | N13: 0
A14: =IF(COUNTRY_INFO!A14=0," ",COUNTRY_INFO!A14) -> Benin | B14: =IF(COUNTRY_INFO!B14=0," ",COUNTRY_INFO!B14) -> Alibori | C14: =IF(COUNTRY_INFO!C14=0," ",COUNTRY_INFO!C14) -> Ségbana | D14: =IF(OR(COUNTRY_INFO!$T$9:$T$1000="T3 (ALB/MBD)",COUNTRY_INFO!$U$9:$U$1000="T3 (ALB/MBD)"), "T3 (ALB/MBD)", " ") -> T3 (ALB/MBD) | E14: ALB | F14: 12/2020 | H14: 33661 | J14: 33661 | L14: 25905 | N14: 25905 | P14: 76.95849797 | R14: 76.95849797
A15: =IF(COUNTRY_INFO!A15=0," ",COUNTRY_INFO!A15) -> Benin | B15: =IF(COUNTRY_INFO!B15=0," ",COUNTRY_INFO!B15) -> Atacora | C15: =IF(COUNTRY_INFO!C15=0," ",COUNTRY_INFO!C15) -> Boukoumbé | D15: =IF(OR(COUNTRY_INFO!$T$9:$T$1000="T3 (ALB/MBD)",COUNTRY_INFO!$U$9:$U$1000="T3 (ALB/MBD)"), "T3 (ALB/MBD)", " ") ->  | J15: 0 | N15: 0
A16: =IF(COUNTRY_INFO!A16=0," ",COUNTRY_INFO!A16) -> Benin | B16: =IF(COUNTRY_INFO!B16=0," ",COUNTRY_INFO!B16) -> Atacora | C16: =IF(COUNTRY_INFO!C16=0," ",COUNTRY_INFO!C16) -> Cobly | D16: =IF(OR(COUNTRY_INFO!$T$9:$T$1000="T3 (ALB/MBD)",COUNTRY_INFO!$U$9:$U$1000="T3 (ALB/MBD)"), "T3 (ALB/MBD)", " ") ->  | J16: 0 | N16: 0
A17: =IF(COUNTRY_INFO!A17=0," ",COUNTRY_INFO!A17) -> Benin | B17: =IF(COUNTRY_INFO!B17=0," ",COUNTRY_INFO!B17) -> Atacora | C17: =IF(COUNTRY_INFO!C17=0," ",COUNTRY_INFO!C17) -> Kérou | D17: =IF(OR(COUNTRY_INFO!$T$9:$T$1000="T3 (ALB/MBD)",COUNTRY_INFO!$U$9:$U$1000="T3 (ALB/MBD)"), "T3 (ALB/MBD)", " ") ->  | J17: 0 | N17: 0
A18: =IF(COUNTRY_INFO!A18=0," ",COUNTRY_INFO!A18) -> Benin | B18: =IF(COUNTRY_INFO!B18=0," ",COUNTRY_INFO!B18) -> Atacora | C18: =IF(COUNTRY_INFO!C18=0," ",COUNTRY_INFO!C18) -> Kouandé | D18: =IF(OR(COUNTRY_INFO!$T$9:$T$1000="T3 (ALB/MBD)",COUNTRY_INFO!$U$9:$U$1000="T3 (ALB/MBD)"), "T3 (ALB/MBD)", " ") ->  | J18: 0 | N18: 0
A19: =IF(COUNTRY_INFO!A19=0," ",COUNTRY_INFO!A19) -> Benin | B19: =IF(COUNTRY_INFO!B19=0," ",COUNTRY_INFO!B19) -> Atacora | C19: =IF(COUNTRY_INFO!C19=0," ",COUNTRY_INFO!C19) -> Matéri | D19: =IF(OR(COUNTRY_INFO!$T$9:$T$1000="T3 (ALB/MBD)",COUNTRY_INFO!$U$9:$U$1000="T3 (ALB/MBD)"), "T3 (ALB/MBD)", " ") -> T3 (ALB/MBD) | E19: ALB | F19: 12/2020 | H19: 43061 | J19: 43061 | L19: 41959 | N19: 41959 | P19: 97.44083974 | R19: 97.44083974
A20: =IF(COUNTRY_INFO!A20=0," ",COUNTRY_INFO!A20) -> Benin | B20: =IF(COUNTRY_INFO!B20=0," ",COUNTRY_INFO!B20) -> Atacora | C20: =IF(COUNTRY_INFO!C20=0," ",COUNTRY_INFO!C20) -> Natitingou | D20: =IF(OR(COUNTRY_INFO!$T$9:$T$1000="T3 (ALB/MBD)",COUNTRY_INFO!$U$9:$U$1000="T3 (ALB/MBD)"), "T3 (ALB/MBD)", " ") ->  | J20: 0 | N20: 0
A21: =IF(COUNTRY_INFO!A21=0," ",COUNTRY_INFO!A21) -> Benin | B21: =IF(COUNTRY_INFO!B21=0," ",COUNTRY_INFO!B21) -> Atacora | C21: =IF(COUNTRY_INFO!C21=0," ",COUNTRY_INFO!C21) -> Péhunco | D21: =IF(OR(COUNTRY_INFO!$T$9:$T$1000="T3 (ALB/MBD)",COUNTRY_INFO!$U$9:$U$1000="T3 (ALB/MBD)"), "T3 (ALB/MBD)", " ") ->  | J21: 0 | N21: 0
A22: =IF(COUNTRY_INFO!A22=0," ",COUNTRY_INFO!A22) -> Benin | B22: =IF(COUNTRY_INFO!B22=0," ",COUNTRY_INFO!B22) -> Atacora | C22: =IF(COUNTRY_INFO!C22=0," ",COUNTRY_INFO!C22) -> Tanguiéta | D22: =IF(OR(COUNTRY_INFO!$T$9:$T$1000="T3 (ALB/MBD)",COUNTRY_INFO!$U$9:$U$1000="T3 (ALB/MBD)"), "T3 (ALB/MBD)", " ") ->  | J22: 0 | N22: 0
A23: =IF(COUNTRY_INFO!A23=0," ",COUNTRY_INFO!A23) -> Benin | B23: =IF(COUNTRY_INFO!B23=0," ",COUNTRY_INFO!B23) -> Atacora | C23: =IF(COUNTRY_INFO!C23=0," ",COUNTRY_INFO!C23) -> Toukountouna | D23: =IF(OR(COUNTRY_INFO!$T$9:$T$1000="T3 (ALB/MBD)",COUNTRY_INFO!$U$9:$U$1000="T3 (ALB/MBD)"), "T3 (ALB/MBD)", " ") ->  | J23: 0 | N23: 0
A24: =IF(COUNTRY_INFO!A24=0," ",COUNTRY_INFO!A24) -> Benin | B24: =IF(COUNTRY_INFO!B24=0," ",COUNTRY_INFO!B24) -> Atlantique | C24: =IF(COUNTRY_INFO!C24=0," ",COUNTRY_INFO!C24) -> Abomey-Calavi | D24: =IF(OR(COUNTRY_INFO!$T$9:$T$1000="T3 (ALB/MBD)",COUNTRY_INFO!$U$9:$U$1000="T3 (ALB/MBD)"), "T3 (ALB/MBD)", " ") ->  | J24: 0 | N24: 0
A25: =IF(COUNTRY_INFO!A25=0," ",COUNTRY_INFO!A25) -> Benin | B25: =IF(COUNTRY_INFO!B25=0," ",COUNTRY_INFO!B25) -> Atlantique | C25: =IF(COUNTRY_INFO!C25=0," ",COUNTRY_INFO!C25) -> Allada | D25: =IF(OR(COUNTRY_INFO!$T$9:$T$1000="T3 (ALB/MBD)",COUNTRY_INFO!$U$9:$U$1000="T3 (ALB/MBD)"), "T3 (ALB/MBD)", " ") -> T3 (ALB/MBD) | E25: ALB | F25: 12/2020 | H25: 48183 | J25: 48183 | L25: 43167 | N25: 43167 | P25: 89.58968931 | R25: 89.58968931
A26: =IF(COUNTRY_INFO!A26=0," ",COUNTRY_INFO!A26) -> Benin | B26: =IF(COUNTRY_INFO!B26=0," ",COUNTRY_INFO!B26) -> Atlantique | C26: =IF(COUNTRY_INFO!C26=0," ",COUNTRY_INFO!C26) -> Kpomassè | D26: =IF(OR(COUNTRY_INFO!$T$9:$T$1000="T3 (ALB/MBD)",COUNTRY_INFO!$U$9:$U$1000="T3 (ALB/MBD)"), "T3 (ALB/MBD)", " ") ->  | J26: 0 | N26: 0
A27: =IF(COUNTRY_INFO!A27=0," ",COUNTRY_INFO!A27) -> Benin | B27: =IF(COUNTRY_INFO!B27=0," ",COUNTRY_INFO!B27) -> Atlantique | C27: =IF(COUNTRY_INFO!C27=0," ",COUNTRY_INFO!C27) -> Ouidah | D27: =IF(OR(COUNTRY_INFO!$T$9:$T$1000="T3 (ALB/MBD)",COUNTRY_INFO!$U$9:$U$1000="T3 (ALB/MBD)"), "T3 (ALB/MBD)", " ") ->  | J27: 0 | N27: 0
A28: =IF(COUNTRY_INFO!A28=0," ",COUNTRY_INFO!A28) -> Benin | B28: =IF(COUNTRY_INFO!B28=0," ",COUNTRY_INFO!B28) -> Atlantique | C28: =IF(COUNTRY_INFO!C28=0," ",COUNTRY_INFO!C28) -> So-Ava | D28: =IF(OR(COUNTRY_INFO!$T$9:$T$1000="T3 (ALB/MBD)",COUNTRY_INFO!$U$9:$U$1000="T3 (ALB/MBD)"), "T3 (ALB/MBD)", " ") ->  | J28: 0 | N28: 0
A29: =IF(COUNTRY_INFO!A29=0," ",COUNTRY_INFO!A29) -> Benin | B29: =IF(COUNTRY_INFO!B29=0," ",COUNTRY_INFO!B29) -> Atlantique | C29: =IF(COUNTRY_INFO!C29=0," ",COUNTRY_INFO!C29) -> Toffo | D29: =IF(OR(COUNTRY_INFO!$T$9:$T$1000="T3 (ALB/MBD)",COUNTRY_INFO!$U$9:$U$1000="T3 (ALB/MBD)"), "T3 (ALB/MBD)", " ") ->  | J29: 0 | N29: 0
A30: =IF(COUNTRY_INFO!A30=0," ",COUNTRY_INFO!A30) -> Benin | B30: =IF(COUNTRY_INFO!B30=0," ",COUNTRY_INFO!B30) -> Atlantique | C30: =IF(COUNTRY_INFO!C30=0," ",COUNTRY_INFO!C30) -> Torri-Bossito | D30: =IF(OR(COUNTRY_INFO!$T$9:$T$1000="T3 (ALB/MBD)",COUNTRY_INFO!$U$9:$U$1000="T3 (ALB/MBD)"), "T3 (ALB/MBD)", " ") ->  | J30: 0 | N30: 0
A31: =IF(COUNTRY_INFO!A31=0," ",COUNTRY_INFO!A31) -> Benin | B31: =IF(COUNTRY_INFO!B31=0," ",COUNTRY_INFO!B31) -> Atlantique | C31: =IF(COUNTRY_INFO!C31=0," ",COUNTRY_INFO!C31) -> Zè | D31: =IF(OR(COUNTRY_INFO!$T$9:$T$1000="T3 (ALB/MBD)",COUNTRY_INFO!$U$9:$U$1000="T3 (ALB/MBD)"), "T3 (ALB/MBD)", " ") ->  | J31: 0 | N31: 0
A32: =IF(COUNTRY_INFO!A32=0," ",COUNTRY_INFO!A32) -> Benin | B32: =IF(COUNTRY_INFO!B32=0," ",COUNTRY_INFO!B32) -> Borgou | C32: =IF(COUNTRY_INFO!C32=0," ",COUNTRY_INFO!C32) -> Bembèrèkè | D32: =IF(OR(COUNTRY_INFO!$T$9:$T$1000="T3 (ALB/MBD)",COUNTRY_INFO!$U$9:$U$1000="T3 (ALB/MBD)"), "T3 (ALB/MBD)", " ") ->  | J32: 0 | N32: 0
A33: =IF(COUNTRY_INFO!A33=0," ",COUNTRY_INFO!A33) -> Benin | B33: =IF(COUNTRY_INFO!B33=0," ",COUNTRY_INFO!B33) -> Borgou | C33: =IF(COUNTRY_INFO!C33=0," ",COUNTRY_INFO!C33) -> Kalalé | D33: =IF(OR(COUNTRY_INFO!$T$9:$T$1000="T3 (ALB/MBD)",COUNTRY_INFO!$U$9:$U$1000="T3 (ALB/MBD)"), "T3 (ALB/MBD)", " ") ->  | J33: 0 | N33: 0
A34: =IF(COUNTRY_INFO!A34=0," ",COUNTRY_INFO!A34) -> Benin | B34: =IF(COUNTRY_INFO!B34=0," ",COUNTRY_INFO!B34) -> Borgou | C34: =IF(COUNTRY_INFO!C34=0," ",COUNTRY_INFO!C34) -> N'Dali | D34: =IF(OR(COUNTRY_INFO!$T$9:$T$1000="T3 (ALB/MBD)",COUNTRY_INFO!$U$9:$U$1000="T3 (ALB/MBD)"), "T3 (ALB/MBD)", " ") ->  | J34: 0 | N34: 0
A35: =IF(COUNTRY_INFO!A35=0," ",COUNTRY_INFO!A35) -> Benin | B35: =IF(COUNTRY_INFO!B35=0," ",COUNTRY_INFO!B35) -> Borgou | C35: =IF(COUNTRY_INFO!C35=0," ",COUNTRY_INFO!C35) -> Nikki | D35: =IF(OR(COUNTRY_INFO!$T$9:$T$1000="T3 (ALB/MBD)",COUNTRY_INFO!$U$9:$U$1000="T3 (ALB/MBD)"), "T3 (ALB/MBD)", " ") ->  | J35: 0 | N35: 0
A36: =IF(COUNTRY_INFO!A36=0," ",COUNTRY_INFO!A36) -> Benin | B36: =IF(COUNTRY_INFO!B36=0," ",COUNTRY_INFO!B36) -> Borgou | C36: =IF(COUNTRY_INFO!C36=0," ",COUNTRY_INFO!C36) -> Parakou | D36: =IF(OR(COUNTRY_INFO!$T$9:$T$1000="T3 (ALB/MBD)",COUNTRY_INFO!$U$9:$U$1000="T3 (ALB/MBD)"), "T3 (ALB/MBD)", " ") ->  | J36: 0 | N36: 0
A37: =IF(COUNTRY_INFO!A37=0," ",COUNTRY_INFO!A37) -> Benin | B37: =IF(COUNTRY_INFO!B37=0," ",COUNTRY_INFO!B37) -> Borgou | C37: =IF(COUNTRY_INFO!C37=0," ",COUNTRY_INFO!C37) -> Pèrèrè | D37: =IF(OR(COUNTRY_INFO!$T$9:$T$1000="T3 (ALB/MBD)",COUNTRY_INFO!$U$9:$U$1000="T3 (ALB/MBD)"), "T3 (ALB/MBD)", " ") ->  | J37: 0 | N37: 0
A38: =IF(COUNTRY_INFO!A38=0," ",COUNTRY_INFO!A38) -> Benin | B38: =IF(COUNTRY_INFO!B38=0," ",COUNTRY_INFO!B38) -> Borgou | C38: =IF(COUNTRY_INFO!C38=0," ",COUNTRY_INFO!C38) -> Sinendé | D38: =IF(OR(COUNTRY_INFO!$T$9:$T$1000="T3 (ALB/MBD)",COUNTRY_INFO!$U$9:$U$1000="T3 (ALB/MBD)"), "T3 (ALB/MBD)", " ") ->  | J38: 0 | N38: 0
A39: =IF(COUNTRY_INFO!A39=0," ",COUNTRY_INFO!A39) -> Benin | B39: =IF(COUNTRY_INFO!B39=0," ",COUNTRY_INFO!B39) -> Borgou | C39: =IF(COUNTRY_INFO!C39=0," ",COUNTRY_INFO!C39) -> Tchaourou | D39: =IF(OR(COUNTRY_INFO!$T$9:$T$1000="T3 (ALB/MBD)",COUNTRY_INFO!$U$9:$U$1000="T3 (ALB/MBD)"), "T3 (ALB/MBD)", " ") ->  | J39: 0 | N39: 0
A40: =IF(COUNTRY_INFO!A40=0," ",COUNTRY_INFO!A40) -> Benin | B40: =IF(COUNTRY_INFO!B40=0," ",COUNTRY_INFO!B40) -> Collines | C40: =IF(COUNTRY_INFO!C40=0," ",COUNTRY_INFO!C40) -> Bantè | D40: =IF(OR(COUNTRY_INFO!$T$9:$T$1000="T3 (ALB/MBD)",COUNTRY_INFO!$U$9:$U$1000="T3 (ALB/MBD)"), "T3 (ALB/MBD)", " ") ->  | J40: 0 | N40: 0
A41: =IF(COUNTRY_INFO!A41=0," ",COUNTRY_INFO!A41) -> Benin | B41: =IF(COUNTRY_INFO!B41=0," ",COUNTRY_INFO!B41) -> Collines | C41: =IF(COUNTRY_INFO!C41=0," ",COUNTRY_INFO!C41) -> Dassa-Zoumè | D41: =IF(OR(COUNTRY_INFO!$T$9:$T$1000="T3 (ALB/MBD)",COUNTRY_INFO!$U$9:$U$1000="T3 (ALB/MBD)"), "T3 (ALB/MBD)", " ") ->  | J41: 0 | N41: 0
A42: =IF(COUNTRY_INFO!A42=0," ",COUNTRY_INFO!A42) -> Benin | B42: =IF(COUNTRY_INFO!B42=0," ",COUNTRY_INFO!B42) -> Collines | C42: =IF(COUNTRY_INFO!C42=0," ",COUNTRY_INFO!C42) -> Glazoué | D42: =IF(OR(COUNTRY_INFO!$T$9:$T$1000="T3 (ALB/MBD)",COUNTRY_INFO!$U$9:$U$1000="T3 (ALB/MBD)"), "T3 (ALB/MBD)", " ") -> T3 (ALB/MBD) | E42: ALB | F42: 12/2020 | H42: 47018 | J42: 47018 | L42: 27892 | N42: 27892 | P42: 59.3219618 | R42: 59.3219618
A43: =IF(COUNTRY_INFO!A43=0," ",COUNTRY_INFO!A43) -> Benin | B43: =IF(COUNTRY_INFO!B43=0," ",COUNTRY_INFO!B43) -> Collines | C43: =IF(COUNTRY_INFO!C43=0," ",COUNTRY_INFO!C43) -> Ouèssè | D43: =IF(OR(COUNTRY_INFO!$T$9:$T$1000="T3 (ALB/MBD)",COUNTRY_INFO!$U$9:$U$1000="T3 (ALB/MBD)"), "T3 (ALB/MBD)", " ") ->  | J43: 0 | N43: 0
A44: =IF(COUNTRY_INFO!A44=0," ",COUNTRY_INFO!A44) -> Benin | B44: =IF(COUNTRY_INFO!B44=0," ",COUNTRY_INFO!B44) -> Collines | C44: =IF(COUNTRY_INFO!C44=0," ",COUNTRY_INFO!C44) -> Savalou | D44: =IF(OR(COUNTRY_INFO!$T$9:$T$1000="T3 (ALB/MBD)",COUNTRY_INFO!$U$9:$U$1000="T3 (ALB/MBD)"), "T3 (ALB/MBD)", " ") -> T3 (ALB/MBD) | H44: 54620 | J44: 54620 | L44: 54450 | N44: 54450 | P44: 99.6887587 | R44: 99.6887587
A45: =IF(COUNTRY_INFO!A45=0," ",COUNTRY_INFO!A45) -> Benin | B45: =IF(COUNTRY_INFO!B45=0," ",COUNTRY_INFO!B45) -> Collines | C45: =IF(COUNTRY_INFO!C45=0," ",COUNTRY_INFO!C45) -> Savè | D45: =IF(OR(COUNTRY_INFO!$T$9:$T$1000="T3 (ALB/MBD)",COUNTRY_INFO!$U$9:$U$1000="T3 (ALB/MBD)"), "T3 (ALB/MBD)", " ") ->  | J45: 0 | N45: 0
A46: =IF(COUNTRY_INFO!A46=0," ",COUNTRY_INFO!A46) -> Benin | B46: =IF(COUNTRY_INFO!B46=0," ",COUNTRY_INFO!B46) -> Couffo | C46: =IF(COUNTRY_INFO!C46=0," ",COUNTRY_INFO!C46) -> Aplahoué | D46: =IF(OR(COUNTRY_INFO!$T$9:$T$1000="T3 (ALB/MBD)",COUNTRY_INFO!$U$9:$U$1000="T3 (ALB/MBD)"), "T3 (ALB/MBD)", " ") -> T3 (ALB/MBD) | E46: ALB | F46: 12/2020 | H46: 64656 | J46: 64656 | L46: 58369 | N46: 58369 | P46: 90.27623113 | R46: 90.27623113
A47: =IF(COUNTRY_INFO!A47=0," ",COUNTRY_INFO!A47) -> Benin | B47: =IF(COUNTRY_INFO!B47=0," ",COUNTRY_INFO!B47) -> Couffo | C47: =IF(COUNTRY_INFO!C47=0," ",COUNTRY_INFO!C47) -> Djakotomè | D47: =IF(OR(COUNTRY_INFO!$T$9:$T$1000="T3 (ALB/MBD)",COUNTRY_INFO!$U$9:$U$1000="T3 (ALB/MBD)"), "T3 (ALB/MBD)", " ") -> T3 (ALB/MBD) | E47: ALB | F47: 12/2020 | H47: 50645 | J47: 50645 | L47: 50227 | N47: 50227 | P47: 99.17464705 | R47: 99.17464705
A48: =IF(COUNTRY_INFO!A48=0," ",COUNTRY_INFO!A48) -> Benin | B48: =IF(COUNTRY_INFO!B48=0," ",COUNTRY_INFO!B48) -> Couffo | C48: =IF(COUNTRY_INFO!C48=0," ",COUNTRY_INFO!C48) -> Dogbo | D48: =IF(OR(COUNTRY_INFO!$T$9:$T$1000="T3 (ALB/MBD)",COUNTRY_INFO!$U$9:$U$1000="T3 (ALB/MBD)"), "T3 (ALB/MBD)", " ") ->  | J48: 0 | N48: 0
A49: =IF(COUNTRY_INFO!A49=0," ",COUNTRY_INFO!A49) -> Benin | B49: =IF(COUNTRY_INFO!B49=0," ",COUNTRY_INFO!B49) -> Couffo | C49: =IF(COUNTRY_INFO!C49=0," ",COUNTRY_INFO!C49) -> Klouékamè | D49: =IF(OR(COUNTRY_INFO!$T$9:$T$1000="T3 (ALB/MBD)",COUNTRY_INFO!$U$9:$U$1000="T3 (ALB/MBD)"), "T3 (ALB/MBD)", " ") -> T3 (ALB/MBD) | E49: ALB | F49: 12/2020 | H49: 48593 | J49: 48593 | L49: 47785 | N49: 47785 | P49: 98.33720906 | R49: 98.33720906
A50: =IF(COUNTRY_INFO!A50=0," ",COUNTRY_INFO!A50) -> Benin | B50: =IF(COUNTRY_INFO!B50=0," ",COUNTRY_INFO!B50) -> Couffo | C50: =IF(COUNTRY_INFO!C50=0," ",COUNTRY_INFO!C50) -> Lalo | D50: =IF(OR(COUNTRY_INFO!$T$9:$T$1000="T3 (ALB/MBD)",COUNTRY_INFO!$U$9:$U$1000="T3 (ALB/MBD)"), "T3 (ALB/MBD)", " ") -> T3 (ALB/MBD) | E50: ALB | F50: 12/2020 | H50: 45316 | J50: 45316 | L50: 39538 | N50: 39538 | P50: 87.24953659 | R50: 87.24953659
A51: =IF(COUNTRY_INFO!A51=0," ",COUNTRY_INFO!A51) -> Benin | B51: =IF(COUNTRY_INFO!B51=0," ",COUNTRY_INFO!B51) -> Couffo | C51: =IF(COUNTRY_INFO!C51=0," ",COUNTRY_INFO!C51) -> Toviklin | D51: =IF(OR(COUNTRY_INFO!$T$9:$T$1000="T3 (ALB/MBD)",COUNTRY_INFO!$U$9:$U$1000="T3 (ALB/MBD)"), "T3 (ALB/MBD)", " ") -> T3 (ALB/MBD) | E51: ALB | F51: 12/2020 | H51: 33483 | J51: 33483 | L51: 30266 | N51: 30266 | P51: 90.39213929 | R51: 90.39213929
A52: =IF(COUNTRY_INFO!A52=0," ",COUNTRY_INFO!A52) -> Benin | B52: =IF(COUNTRY_INFO!B52=0," ",COUNTRY_INFO!B52) -> Donga | C52: =IF(COUNTRY_INFO!C52=0," ",COUNTRY_INFO!C52) -> Bassila | D52: =IF(OR(COUNTRY_INFO!$T$9:$T$1000="T3 (ALB/MBD)",COUNTRY_INFO!$U$9:$U$1000="T3 (ALB/MBD)"), "T3 (ALB/MBD)", " ") ->  | J52: 0 | N52: 0
A53: =IF(COUNTRY_INFO!A53=0," ",COUNTRY_INFO!A53) -> Benin | B53: =IF(COUNTRY_INFO!B53=0," ",COUNTRY_INFO!B53) -> Donga | C53: =IF(COUNTRY_INFO!C53=0," ",COUNTRY_INFO!C53) -> Copargo | D53: =IF(OR(COUNTRY_INFO!$T$9:$T$1000="T3 (ALB/MBD)",COUNTRY_INFO!$U$9:$U$1000="T3 (ALB/MBD)"), "T3 (ALB/MBD)", " ") ->  | J53: 0 | N53: 0
A54: =IF(COUNTRY_INFO!A54=0," ",COUNTRY_INFO!A54) -> Benin | B54: =IF(COUNTRY_INFO!B54=0," ",COUNTRY_INFO!B54) -> Donga | C54: =IF(COUNTRY_INFO!C54=0," ",COUNTRY_INFO!C54) -> Djougou | D54: =IF(OR(COUNTRY_INFO!$T$9:$T$1000="T3 (ALB/MBD)",COUNTRY_INFO!$U$9:$U$1000="T3 (ALB/MBD)"), "T3 (ALB/MBD)", " ") ->  | J54: 0 | N54: 0
A55: =IF(COUNTRY_INFO!A55=0," ",COUNTRY_INFO!A55) -> Benin | B55: =IF(COUNTRY_INFO!B55=0," ",COUNTRY_INFO!B55) -> Donga | C55: =IF(COUNTRY_INFO!C55=0," ",COUNTRY_INFO!C55) -> Ouaké | D55: =IF(OR(COUNTRY_INFO!$T$9:$T$1000="T3 (ALB/MBD)",COUNTRY_INFO!$U$9:$U$1000="T3 (ALB/MBD)"), "T3 (ALB/MBD)", " ") ->  | J55: 0 | N55: 0
A56: =IF(COUNTRY_INFO!A56=0," ",COUNTRY_INFO!A56) -> Benin | B56: =IF(COUNTRY_INFO!B56=0," ",COUNTRY_INFO!B56) -> Littoral | C56: =IF(COUNTRY_INFO!C56=0," ",COUNTRY_INFO!C56) -> Cotonou | D56: =IF(OR(COUNTRY_INFO!$T$9:$T$1000="T3 (ALB/MBD)",COUNTRY_INFO!$U$9:$U$1000="T3 (ALB/MBD)"), "T3 (ALB/MBD)", " ") ->  | J56: 0 | N56: 0
A57: =IF(COUNTRY_INFO!A57=0," ",COUNTRY_INFO!A57) -> Benin | B57: =IF(COUNTRY_INFO!B57=0," ",COUNTRY_INFO!B57) -> Mono | C57: =IF(COUNTRY_INFO!C57=0," ",COUNTRY_INFO!C57) -> Athiémé | D57: =IF(OR(COUNTRY_INFO!$T$9:$T$1000="T3 (ALB/MBD)",COUNTRY_INFO!$U$9:$U$1000="T3 (ALB/MBD)"), "T3 (ALB/MBD)", " ") ->  | J57: 0 | N57: 0
A58: =IF(COUNTRY_INFO!A58=0," ",COUNTRY_INFO!A58) -> Benin | B58: =IF(COUNTRY_INFO!B58=0," ",COUNTRY_INFO!B58) -> Mono | C58: =IF(COUNTRY_INFO!C58=0," ",COUNTRY_INFO!C58) -> Bopa | D58: =IF(OR(COUNTRY_INFO!$T$9:$T$1000="T3 (ALB/MBD)",COUNTRY_INFO!$U$9:$U$1000="T3 (ALB/MBD)"), "T3 (ALB/MBD)", " ") ->  | J58: 0 | N58: 0
A59: =IF(COUNTRY_INFO!A59=0," ",COUNTRY_INFO!A59) -> Benin | B59: =IF(COUNTRY_INFO!B59=0," ",COUNTRY_INFO!B59) -> Mono | C59: =IF(COUNTRY_INFO!C59=0," ",COUNTRY_INFO!C59) -> Comé | D59: =IF(OR(COUNTRY_INFO!$T$9:$T$1000="T3 (ALB/MBD)",COUNTRY_INFO!$U$9:$U$1000="T3 (ALB/MBD)"), "T3 (ALB/MBD)", " ") -> T3 (ALB/MBD) | E59: ALB | F59: 12/2020 | H59: 23212 | J59: 23212 | L59: 22712 | N59: 22712 | P59: 97.84594175 | R59: 97.84594175
A60: =IF(COUNTRY_INFO!A60=0," ",COUNTRY_INFO!A60) -> Benin | B60: =IF(COUNTRY_INFO!B60=0," ",COUNTRY_INFO!B60) -> Mono | C60: =IF(COUNTRY_INFO!C60=0," ",COUNTRY_INFO!C60) -> Grand-Popo | D60: =IF(OR(COUNTRY_INFO!$T$9:$T$1000="T3 (ALB/MBD)",COUNTRY_INFO!$U$9:$U$1000="T3 (ALB/MBD)"), "T3 (ALB/MBD)", " ") ->  | J60: 0 | N60: 0
A61: =IF(COUNTRY_INFO!A61=0," ",COUNTRY_INFO!A61) -> Benin | B61: =IF(COUNTRY_INFO!B61=0," ",COUNTRY_INFO!B61) -> Mono | C61: =IF(COUNTRY_INFO!C61=0," ",COUNTRY_INFO!C61) -> Houéyogbé | D61: =IF(OR(COUNTRY_INFO!$T$9:$T$1000="T3 (ALB/MBD)",COUNTRY_INFO!$U$9:$U$1000="T3 (ALB/MBD)"), "T3 (ALB/MBD)", " ") ->  | J61: 0 | N61: 0
A62: =IF(COUNTRY_INFO!A62=0," ",COUNTRY_INFO!A62) -> Benin | B62: =IF(COUNTRY_INFO!B62=0," ",COUNTRY_INFO!B62) -> Mono | C62: =IF(COUNTRY_INFO!C62=0," ",COUNTRY_INFO!C62) -> Lokossa | D62: =IF(OR(COUNTRY_INFO!$T$9:$T$1000="T3 (ALB/MBD)",COUNTRY_INFO!$U$9:$U$1000="T3 (ALB/MBD)"), "T3 (ALB/MBD)", " ") -> T3 (ALB/MBD) | E62: ALB | F62: 12/2020 | H62: 39661 | J62: 39661 | L62: 30310 | N62: 30310 | P62: 76.42268223 | R62: 76.42268223
A63: =IF(COUNTRY_INFO!A63=0," ",COUNTRY_INFO!A63) -> Benin | B63: =IF(COUNTRY_INFO!B63=0," ",COUNTRY_INFO!B63) -> Oueme | C63: =IF(COUNTRY_INFO!C63=0," ",COUNTRY_INFO!C63) -> Adjarra | D63: =IF(OR(COUNTRY_INFO!$T$9:$T$1000="T3 (ALB/MBD)",COUNTRY_INFO!$U$9:$U$1000="T3 (ALB/MBD)"), "T3 (ALB/MBD)", " ") ->  | J63: 0 | N63: 0
A64: =IF(COUNTRY_INFO!A64=0," ",COUNTRY_INFO!A64) -> Benin | B64: =IF(COUNTRY_INFO!B64=0," ",COUNTRY_INFO!B64) -> Oueme | C64: =IF(COUNTRY_INFO!C64=0," ",COUNTRY_INFO!C64) -> Adjohoun | D64: =IF(OR(COUNTRY_INFO!$T$9:$T$1000="T3 (ALB/MBD)",COUNTRY_INFO!$U$9:$U$1000="T3 (ALB/MBD)"), "T3 (ALB/MBD)", " ") ->  | J64: 0 | N64: 0
A65: =IF(COUNTRY_INFO!A65=0," ",COUNTRY_INFO!A65) -> Benin | B65: =IF(COUNTRY_INFO!B65=0," ",COUNTRY_INFO!B65) -> Oueme | C65: =IF(COUNTRY_INFO!C65=0," ",COUNTRY_INFO!C65) -> Aguégués | D65: =IF(OR(COUNTRY_INFO!$T$9:$T$1000="T3 (ALB/MBD)",COUNTRY_INFO!$U$9:$U$1000="T3 (ALB/MBD)"), "T3 (ALB/MBD)", " ") ->  | J65: 0 | N65: 0
A66: =IF(COUNTRY_INFO!A66=0," ",COUNTRY_INFO!A66) -> Benin | B66: =IF(COUNTRY_INFO!B66=0," ",COUNTRY_INFO!B66) -> Oueme | C66: =IF(COUNTRY_INFO!C66=0," ",COUNTRY_INFO!C66) -> Akpro-Missérété | D66: =IF(OR(COUNTRY_INFO!$T$9:$T$1000="T3 (ALB/MBD)",COUNTRY_INFO!$U$9:$U$1000="T3 (ALB/MBD)"), "T3 (ALB/MBD)", " ") -> T3 (ALB/MBD) | E66: ALB | F66: 12/2020 | H66: 48083 | J66: 48083 | L66: 50521 | N66: 50521 | P66: 105.0703991 | R66: 105.0703991
A67: =IF(COUNTRY_INFO!A67=0," ",COUNTRY_INFO!A67) -> Benin | B67: =IF(COUNTRY_INFO!B67=0," ",COUNTRY_INFO!B67) -> Oueme | C67: =IF(COUNTRY_INFO!C67=0," ",COUNTRY_INFO!C67) -> Avrankou | D67: =IF(OR(COUNTRY_INFO!$T$9:$T$1000="T3 (ALB/MBD)",COUNTRY_INFO!$U$9:$U$1000="T3 (ALB/MBD)"), "T3 (ALB/MBD)", " ") ->  | J67: 0 | N67: 0
A68: =IF(COUNTRY_INFO!A68=0," ",COUNTRY_INFO!A68) -> Benin | B68: =IF(COUNTRY_INFO!B68=0," ",COUNTRY_INFO!B68) -> Oueme | C68: =IF(COUNTRY_INFO!C68=0," ",COUNTRY_INFO!C68) -> Bonou | D68: =IF(OR(COUNTRY_INFO!$T$9:$T$1000="T3 (ALB/MBD)",COUNTRY_INFO!$U$9:$U$1000="T3 (ALB/MBD)"), "T3 (ALB/MBD)", " ") ->  | J68: 0 | N68: 0
A69: =IF(COUNTRY_INFO!A69=0," ",COUNTRY_INFO!A69) -> Benin | B69: =IF(COUNTRY_INFO!B69=0," ",COUNTRY_INFO!B69) -> Oueme | C69: =IF(COUNTRY_INFO!C69=0," ",COUNTRY_INFO!C69) -> Dangbo | D69: =IF(OR(COUNTRY_INFO!$T$9:$T$1000="T3 (ALB/MBD)",COUNTRY_INFO!$U$9:$U$1000="T3 (ALB/MBD)"), "T3 (ALB/MBD)", " ") ->  | J69: 0 | N69: 0
A70: =IF(COUNTRY_INFO!A70=0," ",COUNTRY_INFO!A70) -> Benin | B70: =IF(COUNTRY_INFO!B70=0," ",COUNTRY_INFO!B70) -> Oueme | C70: =IF(COUNTRY_INFO!C70=0," ",COUNTRY_INFO!C70) -> Porto-Novo | D70: =IF(OR(COUNTRY_INFO!$T$9:$T$1000="T3 (ALB/MBD)",COUNTRY_INFO!$U$9:$U$1000="T3 (ALB/MBD)"), "T3 (ALB/MBD)", " ") ->  | J70: 0 | N70: 0
A71: =IF(COUNTRY_INFO!A71=0," ",COUNTRY_INFO!A71) -> Benin | B71: =IF(COUNTRY_INFO!B71=0," ",COUNTRY_INFO!B71) -> Oueme | C71: =IF(COUNTRY_INFO!C71=0," ",COUNTRY_INFO!C71) -> Sèmè-Kpodji | D71: =IF(OR(COUNTRY_INFO!$T$9:$T$1000="T3 (ALB/MBD)",COUNTRY_INFO!$U$9:$U$1000="T3 (ALB/MBD)"), "T3 (ALB/MBD)", " ") ->  | J71: 0 | N71: 0
A72: =IF(COUNTRY_INFO!A72=0," ",COUNTRY_INFO!A72) -> Benin | B72: =IF(COUNTRY_INFO!B72=0," ",COUNTRY_INFO!B72) -> Plateau | C72: =IF(COUNTRY_INFO!C72=0," ",COUNTRY_INFO!C72) -> Adja-Ouèrè | D72: =IF(OR(COUNTRY_INFO!$T$9:$T$1000="T3 (ALB/MBD)",COUNTRY_INFO!$U$9:$U$1000="T3 (ALB/MBD)"), "T3 (ALB/MBD)", " ") ->  | J72: 0 | N72: 0
A73: =IF(COUNTRY_INFO!A73=0," ",COUNTRY_INFO!A73) -> Benin | B73: =IF(COUNTRY_INFO!B73=0," ",COUNTRY_INFO!B73) -> Plateau | C73: =IF(COUNTRY_INFO!C73=0," ",COUNTRY_INFO!C73) -> Ifangni | D73: =IF(OR(COUNTRY_INFO!$T$9:$T$1000="T3 (ALB/MBD)",COUNTRY_INFO!$U$9:$U$1000="T3 (ALB/MBD)"), "T3 (ALB/MBD)", " ") -> T3 (ALB/MBD) | E73: ALB | F73: 12/2020 | H73: 41933 | J73: 41933 | L73: 40985 | N73: 40985 | P73: 97.73925071 | R73: 97.73925071
A74: =IF(COUNTRY_INFO!A74=0," ",COUNTRY_INFO!A74) -> Benin | B74: =IF(COUNTRY_INFO!B74=0," ",COUNTRY_INFO!B74) -> Plateau | C74: =IF(COUNTRY_INFO!C74=0," ",COUNTRY_INFO!C74) -> Kétou | D74: =IF(OR(COUNTRY_INFO!$T$9:$T$1000="T3 (ALB/MBD)",COUNTRY_INFO!$U$9:$U$1000="T3 (ALB/MBD)"), "T3 (ALB/MBD)", " ") ->  | J74: =SUM(G74:I74) -> 0 | N74: =SUM(K74:M74) -> 0 | O74: =IF(G74<>0, IF(K74/G74*100=0, "-", K74/G74*100), " ") ->  | P74: =IF(H74<>0, IF(L74/H74*100=0, "-", L74/H74*100), " ") ->  | Q74: =IF(I74<>0, IF(M74/I74*100=0, "-", M74/I74*100), " ") ->  | R74: =IF(J74<>0, IF(N74/J74*100=0, "-", N74/J74*100), " ") -> 
A75: =IF(COUNTRY_INFO!A75=0," ",COUNTRY_INFO!A75) -> Benin | B75: =IF(COUNTRY_INFO!B75=0," ",COUNTRY_INFO!B75) -> Plateau | C75: =IF(COUNTRY_INFO!C75=0," ",COUNTRY_INFO!C75) -> Pobè | D75: =IF(OR(COUNTRY_INFO!$T$9:$T$1000="T3 (ALB/MBD)",COUNTRY_INFO!$U$9:$U$1000="T3 (ALB/MBD)"), "T3 (ALB/MBD)", " ") ->  | J75: 0 | N75: 0
A76: =IF(COUNTRY_INFO!A76=0," ",COUNTRY_INFO!A76) -> Benin | B76: =IF(COUNTRY_INFO!B76=0," ",COUNTRY_INFO!B76) -> Plateau | C76: =IF(COUNTRY_INFO!C76=0," ",COUNTRY_INFO!C76) -> Sakété | D76: =IF(OR(COUNTRY_INFO!$T$9:$T$1000="T3 (ALB/MBD)",COUNTRY_INFO!$U$9:$U$1000="T3 (ALB/MBD)"), "T3 (ALB/MBD)", " ") -> T3 (ALB/MBD) | E76: ALB | F76: 12/2020 | H76: 43110 | J76: 43110 | L76: 41730 | N76: 41730 | P76: 96.79888657 | R76: 96.79888657
A77: =IF(COUNTRY_INFO!A77=0," ",COUNTRY_INFO!A77) -> Benin | B77: =IF(COUNTRY_INFO!B77=0," ",COUNTRY_INFO!B77) -> Zou | C77: =IF(COUNTRY_INFO!C77=0," ",COUNTRY_INFO!C77) -> Abomey | D77: =IF(OR(COUNTRY_INFO!$T$9:$T$1000="T3 (ALB/MBD)",COUNTRY_INFO!$U$9:$U$1000="T3 (ALB/MBD)"), "T3 (ALB/MBD)", " ") ->  | J77: 0 | N77: 0
A78: =IF(COUNTRY_INFO!A78=0," ",COUNTRY_INFO!A78) -> Benin | B78: =IF(COUNTRY_INFO!B78=0," ",COUNTRY_INFO!B78) -> Zou | C78: =IF(COUNTRY_INFO!C78=0," ",COUNTRY_INFO!C78) -> Agbangnizoun | D78: =IF(OR(COUNTRY_INFO!$T$9:$T$1000="T3 (ALB/MBD)",COUNTRY_INFO!$U$9:$U$1000="T3 (ALB/MBD)"), "T3 (ALB/MBD)", " ") -> T3 (ALB/MBD) | E78: ALB | F78: 12/2020 | H78: 27414 | J78: 27414 | L78: 26790 | N78: 26790 | P78: 97.72379076 | R78: 97.72379076
A79: =IF(COUNTRY_INFO!A79=0," ",COUNTRY_INFO!A79) -> Benin | B79: =IF(COUNTRY_INFO!B79=0," ",COUNTRY_INFO!B79) -> Zou | C79: =IF(COUNTRY_INFO!C79=0," ",COUNTRY_INFO!C79) -> Bohicon | D79: =IF(OR(COUNTRY_INFO!$T$9:$T$1000="T3 (ALB/MBD)",COUNTRY_INFO!$U$9:$U$1000="T3 (ALB/MBD)"), "T3 (ALB/MBD)", " ") ->  | J79: 0 | N79: 0
A80: =IF(COUNTRY_INFO!A80=0," ",COUNTRY_INFO!A80) -> Benin | B80: =IF(COUNTRY_INFO!B80=0," ",COUNTRY_INFO!B80) -> Zou | C80: =IF(COUNTRY_INFO!C80=0," ",COUNTRY_INFO!C80) -> Covè | D80: =IF(OR(COUNTRY_INFO!$T$9:$T$1000="T3 (ALB/MBD)",COUNTRY_INFO!$U$9:$U$1000="T3 (ALB/MBD)"), "T3 (ALB/MBD)", " ") ->  | J80: 0 | N80: 0
A81: =IF(COUNTRY_INFO!A81=0," ",COUNTRY_INFO!A81) -> Benin | B81: =IF(COUNTRY_INFO!B81=0," ",COUNTRY_INFO!B81) -> Zou | C81: =IF(COUNTRY_INFO!C81=0," ",COUNTRY_INFO!C81) -> Djidja | D81: =IF(OR(COUNTRY_INFO!$T$9:$T$1000="T3 (ALB/MBD)",COUNTRY_INFO!$U$9:$U$1000="T3 (ALB/MBD)"), "T3 (ALB/MBD)", " ") ->  | J81: 0 | N81: 0
A82: =IF(COUNTRY_INFO!A82=0," ",COUNTRY_INFO!A82) -> Benin | B82: =IF(COUNTRY_INFO!B82=0," ",COUNTRY_INFO!B82) -> Zou | C82: =IF(COUNTRY_INFO!C82=0," ",COUNTRY_INFO!C82) -> Ouinhi | D82: =IF(OR(COUNTRY_INFO!$T$9:$T$1000="T3 (ALB/MBD)",COUNTRY_INFO!$U$9:$U$1000="T3 (ALB/MBD)"), "T3 (ALB/MBD)", " ") ->  | J82: 0 | N82: 0
A83: =IF(COUNTRY_INFO!A83=0," ",COUNTRY_INFO!A83) -> Benin | B83: =IF(COUNTRY_INFO!B83=0," ",COUNTRY_INFO!B83) -> Zou | C83: =IF(COUNTRY_INFO!C83=0," ",COUNTRY_INFO!C83) -> Zagnanado | D83: =IF(OR(COUNTRY_INFO!$T$9:$T$1000="T3 (ALB/MBD)",COUNTRY_INFO!$U$9:$U$1000="T3 (ALB/MBD)"), "T3 (ALB/MBD)", " ") ->  | J83: 0 | N83: 0
A84: =IF(COUNTRY_INFO!A84=0," ",COUNTRY_INFO!A84) -> Benin | B84: =IF(COUNTRY_INFO!B84=0," ",COUNTRY_INFO!B84) -> Zou | C84: =IF(COUNTRY_INFO!C84=0," ",COUNTRY_INFO!C84) -> Za-Kpota | D84: =IF(OR(COUNTRY_INFO!$T$9:$T$1000="T3 (ALB/MBD)",COUNTRY_INFO!$U$9:$U$1000="T3 (ALB/MBD)"), "T3 (ALB/MBD)", " ") ->  | J84: 0 | N84: 0
A85: =IF(COUNTRY_INFO!A85=0," ",COUNTRY_INFO!A85) -> Benin | B85: =IF(COUNTRY_INFO!B85=0," ",COUNTRY_INFO!B85) -> Zou | C85: =IF(COUNTRY_INFO!C85=0," ",COUNTRY_INFO!C85) -> Zogbodomey | D85: =IF(OR(COUNTRY_INFO!$T$9:$T$1000="T3 (ALB/MBD)",COUNTRY_INFO!$U$9:$U$1000="T3 (ALB/MBD)"), "T3 (ALB/MBD)", " ") ->  | J85: 0 | N85: 0

Sheet T3_R2
A1: T 3 - Albendazole (ALB) ou Mebendazole (MBD) - Tournée 2
A2: Structure administrative, population nécessitant une chimioprévention par groupe d'âge, population traitée par groupe d'âge et couverture
A4: TOTAL | G4: =SUM(G$9:G$1000) -> 0 | H4: 0 | I4: 0 | J4: 0 | K4: 0 | L4: 0 | M4: 0 | N4: 0 | O4: =IF(G4<>0, IF(K4/G4*100=0, "-", K4/G4*100), " ") ->  | P4: =IF(H4<>0, IF(L4/H4*100=0, "-", L4/H4*100), " ") ->  | Q4: =IF(I4<>0, IF(M4/I4*100=0, "-", M4/I4*100), " ") ->  | R4: =IF(J4<>0, IF(N4/J4*100=0, "-", N4/J4*100), " ") -> 
A6: Structure administrative du pays | D6: Mise en oeuvre de la CP | E6: Médica-ment | F6: Date | G6: Population ciblée pour T3 | K6: Population traitée | O6: Couverture du Programme (%)
A7: Pays | B7: Région/Département | C7: District | G7: EAPréS | H7: EAS | I7: Adultes | J7: Total | K7: EAPréS | L7: EAS | M7: Adultes | N7: Total | O7: EAPréS | P7: EAS | Q7: Adultes | R7: Total
A9: =IF(COUNTRY_INFO!A9=0," ",COUNTRY_INFO!A9) -> Benin | B9: =IF(COUNTRY_INFO!B9=0," ",COUNTRY_INFO!B9) -> Alibori | C9: =IF(COUNTRY_INFO!C9=0," ",COUNTRY_INFO!C9) -> Banikoara | D9: =IF(AND(COUNTRY_INFO!$T$9:$T$1000="T3 (ALB/MBD)",COUNTRY_INFO!$U$9:$U$1000="T3 (ALB/MBD)"), "T3 (ALB/MBD)", " ") ->  | J9: =SUM(G9:I9) -> 0 | N9: =SUM(K9:M9) -> 0 | O9: =IF(G9<>0, IF(K9/G9*100=0, "-", K9/G9*100), " ") -> 
A10: =IF(COUNTRY_INFO!A10=0," ",COUNTRY_INFO!A10) -> Benin | B10: =IF(COUNTRY_INFO!B10=0," ",COUNTRY_INFO!B10) -> Alibori | C10: =IF(COUNTRY_INFO!C10=0," ",COUNTRY_INFO!C10) -> Gogounou | D10: =IF(AND(COUNTRY_INFO!$T$9:$T$1000="T3 (ALB/MBD)",COUNTRY_INFO!$U$9:$U$1000="T3 (ALB/MBD)"), "T3 (ALB/MBD)", " ") ->  | J10: =SUM(G10:I10) -> 0 | N10: =SUM(K10:M10) -> 0 | O10: =IF(G10<>0, IF(K10/G10*100=0, "-", K10/G10*100), " ") ->  | P10: =IF(H10<>0, IF(L10/H10*100=0, "-", L10/H10*100), " ") ->  | Q10: =IF(I10<>0, IF(M10/I10*100=0, "-", M10/I10*100), " ") ->  | R10: =IF(J10<>0, IF(N10/J10*100=0, "-", N10/J10*100), " ") -> 
A11: =IF(COUNTRY_INFO!A11=0," ",COUNTRY_INFO!A11) -> Benin | B11: =IF(COUNTRY_INFO!B11=0," ",COUNTRY_INFO!B11) -> Alibori | C11: =IF(COUNTRY_INFO!C11=0," ",COUNTRY_INFO!C11) -> Kandi | D11: =IF(AND(COUNTRY_INFO!$T$9:$T$1000="T3 (ALB/MBD)",COUNTRY_INFO!$U$9:$U$1000="T3 (ALB/MBD)"), "T3 (ALB/MBD)", " ") ->  | J11: 0 | N11: 0
A12: =IF(COUNTRY_INFO!A12=0," ",COUNTRY_INFO!A12) -> Benin | B12: =IF(COUNTRY_INFO!B12=0," ",COUNTRY_INFO!B12) -> Alibori | C12: =IF(COUNTRY_INFO!C12=0," ",COUNTRY_INFO!C12) -> Karimama | D12: =IF(AND(COUNTRY_INFO!$T$9:$T$1000="T3 (ALB/MBD)",COUNTRY_INFO!$U$9:$U$1000="T3 (ALB/MBD)"), "T3 (ALB/MBD)", " ") ->  | J12: 0 | N12: 0
A13: =IF(COUNTRY_INFO!A13=0," ",COUNTRY_INFO!A13) -> Benin | B13: =IF(COUNTRY_INFO!B13=0," ",COUNTRY_INFO!B13) -> Alibori | C13: =IF(COUNTRY_INFO!C13=0," ",COUNTRY_INFO!C13) -> Malanville | D13: =IF(AND(COUNTRY_INFO!$T$9:$T$1000="T3 (ALB/MBD)",COUNTRY_INFO!$U$9:$U$1000="T3 (ALB/MBD)"), "T3 (ALB/MBD)", " ") ->  | J13: 0 | N13: 0
A14: =IF(COUNTRY_INFO!A14=0," ",COUNTRY_INFO!A14) -> Benin | B14: =IF(COUNTRY_INFO!B14=0," ",COUNTRY_INFO!B14) -> Alibori | C14: =IF(COUNTRY_INFO!C14=0," ",COUNTRY_INFO!C14) -> Ségbana | D14: =IF(AND(COUNTRY_INFO!$T$9:$T$1000="T3 (ALB/MBD)",COUNTRY_INFO!$U$9:$U$1000="T3 (ALB/MBD)"), "T3 (ALB/MBD)", " ") ->  | J14: 0 | N14: 0
A15: =IF(COUNTRY_INFO!A15=0," ",COUNTRY_INFO!A15) -> Benin | B15: =IF(COUNTRY_INFO!B15=0," ",COUNTRY_INFO!B15) -> Atacora | C15: =IF(COUNTRY_INFO!C15=0," ",COUNTRY_INFO!C15) -> Boukoumbé | D15: =IF(AND(COUNTRY_INFO!$T$9:$T$1000="T3 (ALB/MBD)",COUNTRY_INFO!$U$9:$U$1000="T3 (ALB/MBD)"), "T3 (ALB/MBD)", " ") ->  | J15: 0 | N15: 0
A16: =IF(COUNTRY_INFO!A16=0," ",COUNTRY_INFO!A16) -> Benin | B16: =IF(COUNTRY_INFO!B16=0," ",COUNTRY_INFO!B16) -> Atacora | C16: =IF(COUNTRY_INFO!C16=0," ",COUNTRY_INFO!C16) -> Cobly | D16: =IF(AND(COUNTRY_INFO!$T$9:$T$1000="T3 (ALB/MBD)",COUNTRY_INFO!$U$9:$U$1000="T3 (ALB/MBD)"), "T3 (ALB/MBD)", " ") ->  | J16: 0 | N16: 0
A17: =IF(COUNTRY_INFO!A17=0," ",COUNTRY_INFO!A17) -> Benin | B17: =IF(COUNTRY_INFO!B17=0," ",COUNTRY_INFO!B17) -> Atacora | C17: =IF(COUNTRY_INFO!C17=0," ",COUNTRY_INFO!C17) -> Kérou | D17: =IF(AND(COUNTRY_INFO!$T$9:$T$1000="T3 (ALB/MBD)",COUNTRY_INFO!$U$9:$U$1000="T3 (ALB/MBD)"), "T3 (ALB/MBD)", " ") ->  | J17: 0 | N17: 0
A18: =IF(COUNTRY_INFO!A18=0," ",COUNTRY_INFO!A18) -> Benin | B18: =IF(COUNTRY_INFO!B18=0," ",COUNTRY_INFO!B18) -> Atacora | C18: =IF(COUNTRY_INFO!C18=0," ",COUNTRY_INFO!C18) -> Kouandé | D18: =IF(AND(COUNTRY_INFO!$T$9:$T$1000="T3 (ALB/MBD)",COUNTRY_INFO!$U$9:$U$1000="T3 (ALB/MBD)"), "T3 (ALB/MBD)", " ") ->  | J18: 0 | N18: 0
A19: =IF(COUNTRY_INFO!A19=0," ",COUNTRY_INFO!A19) -> Benin | B19: =IF(COUNTRY_INFO!B19=0," ",COUNTRY_INFO!B19) -> Atacora | C19: =IF(COUNTRY_INFO!C19=0," ",COUNTRY_INFO!C19) -> Matéri | D19: =IF(AND(COUNTRY_INFO!$T$9:$T$1000="T3 (ALB/MBD)",COUNTRY_INFO!$U$9:$U$1000="T3 (ALB/MBD)"), "T3 (ALB/MBD)", " ") ->  | J19: 0 | N19: 0
A20: =IF(COUNTRY_INFO!A20=0," ",COUNTRY_INFO!A20) -> Benin | B20: =IF(COUNTRY_INFO!B20=0," ",COUNTRY_INFO!B20) -> Atacora | C20: =IF(COUNTRY_INFO!C20=0," ",COUNTRY_INFO!C20) -> Natitingou | D20: =IF(AND(COUNTRY_INFO!$T$9:$T$1000="T3 (ALB/MBD)",COUNTRY_INFO!$U$9:$U$1000="T3 (ALB/MBD)"), "T3 (ALB/MBD)", " ") ->  | J20: 0 | N20: 0
A21: =IF(COUNTRY_INFO!A21=0," ",COUNTRY_INFO!A21) -> Benin | B21: =IF(COUNTRY_INFO!B21=0," ",COUNTRY_INFO!B21) -> Atacora | C21: =IF(COUNTRY_INFO!C21=0," ",COUNTRY_INFO!C21) -> Péhunco | D21: =IF(AND(COUNTRY_INFO!$T$9:$T$1000="T3 (ALB/MBD)",COUNTRY_INFO!$U$9:$U$1000="T3 (ALB/MBD)"), "T3 (ALB/MBD)", " ") ->  | J21: 0 | N21: 0
A22: =IF(COUNTRY_INFO!A22=0," ",COUNTRY_INFO!A22) -> Benin | B22: =IF(COUNTRY_INFO!B22=0," ",COUNTRY_INFO!B22) -> Atacora | C22: =IF(COUNTRY_INFO!C22=0," ",COUNTRY_INFO!C22) -> Tanguiéta | D22: =IF(AND(COUNTRY_INFO!$T$9:$T$1000="T3 (ALB/MBD)",COUNTRY_INFO!$U$9:$U$1000="T3 (ALB/MBD)"), "T3 (ALB/MBD)", " ") ->  | J22: 0 | N22: 0
A23: =IF(COUNTRY_INFO!A23=0," ",COUNTRY_INFO!A23) -> Benin | B23: =IF(COUNTRY_INFO!B23=0," ",COUNTRY_INFO!B23) -> Atacora | C23: =IF(COUNTRY_INFO!C23=0," ",COUNTRY_INFO!C23) -> Toukountouna | D23: =IF(AND(COUNTRY_INFO!$T$9:$T$1000="T3 (ALB/MBD)",COUNTRY_INFO!$U$9:$U$1000="T3 (ALB/MBD)"), "T3 (ALB/MBD)", " ") ->  | J23: 0 | N23: 0
A24: =IF(COUNTRY_INFO!A24=0," ",COUNTRY_INFO!A24) -> Benin | B24: =IF(COUNTRY_INFO!B24=0," ",COUNTRY_INFO!B24) -> Atlantique | C24: =IF(COUNTRY_INFO!C24=0," ",COUNTRY_INFO!C24) -> Abomey-Calavi | D24: =IF(AND(COUNTRY_INFO!$T$9:$T$1000="T3 (ALB/MBD)",COUNTRY_INFO!$U$9:$U$1000="T3 (ALB/MBD)"), "T3 (ALB/MBD)", " ") ->  | J24: 0 | N24: 0
A25: =IF(COUNTRY_INFO!A25=0," ",COUNTRY_INFO!A25) -> Benin | B25: =IF(COUNTRY_INFO!B25=0," ",COUNTRY_INFO!B25) -> Atlantique | C25: =IF(COUNTRY_INFO!C25=0," ",COUNTRY_INFO!C25) -> Allada | D25: =IF(AND(COUNTRY_INFO!$T$9:$T$1000="T3 (ALB/MBD)",COUNTRY_INFO!$U$9:$U$1000="T3 (ALB/MBD)"), "T3 (ALB/MBD)", " ") ->  | J25: 0 | N25: 0
A26: =IF(COUNTRY_INFO!A26=0," ",COUNTRY_INFO!A26) -> Benin | B26: =IF(COUNTRY_INFO!B26=0," ",COUNTRY_INFO!B26) -> Atlantique | C26: =IF(COUNTRY_INFO!C26=0," ",COUNTRY_INFO!C26) -> Kpomassè | D26: =IF(AND(COUNTRY_INFO!$T$9:$T$1000="T3 (ALB/MBD)",COUNTRY_INFO!$U$9:$U$1000="T3 (ALB/MBD)"), "T3 (ALB/MBD)", " ") ->  | J26: 0 | N26: 0
A27: =IF(COUNTRY_INFO!A27=0," ",COUNTRY_INFO!A27) -> Benin | B27: =IF(COUNTRY_INFO!B27=0," ",COUNTRY_INFO!B27) -> Atlantique | C27: =IF(COUNTRY_INFO!C27=0," ",COUNTRY_INFO!C27) -> Ouidah | D27: =IF(AND(COUNTRY_INFO!$T$9:$T$1000="T3 (ALB/MBD)",COUNTRY_INFO!$U$9:$U$1000="T3 (ALB/MBD)"), "T3 (ALB/MBD)", " ") ->  | J27: 0 | N27: 0
A28: =IF(COUNTRY_INFO!A28=0," ",COUNTRY_INFO!A28) -> Benin | B28: =IF(COUNTRY_INFO!B28=0," ",COUNTRY_INFO!B28) -> Atlantique | C28: =IF(COUNTRY_INFO!C28=0," ",COUNTRY_INFO!C28) -> So-Ava | D28: =IF(AND(COUNTRY_INFO!$T$9:$T$1000="T3 (ALB/MBD)",COUNTRY_INFO!$U$9:$U$1000="T3 (ALB/MBD)"), "T3 (ALB/MBD)", " ") ->  | J28: 0 | N28: 0
A29: =IF(COUNTRY_INFO!A29=0," ",COUNTRY_INFO!A29) -> Benin | B29: =IF(COUNTRY_INFO!B29=0," ",COUNTRY_INFO!B29) -> Atlantique | C29: =IF(COUNTRY_INFO!C29=0," ",COUNTRY_INFO!C29) -> Toffo | D29: =IF(AND(COUNTRY_INFO!$T$9:$T$1000="T3 (ALB/MBD)",COUNTRY_INFO!$U$9:$U$1000="T3 (ALB/MBD)"), "T3 (ALB/MBD)", " ") ->  | J29: 0 | N29: 0
A30: =IF(COUNTRY_INFO!A30=0," ",COUNTRY_INFO!A30) -> Benin | B30: =IF(COUNTRY_INFO!B30=0," ",COUNTRY_INFO!B30) -> Atlantique | C30: =IF(COUNTRY_INFO!C30=0," ",COUNTRY_INFO!C30) -> Torri-Bossito | D30: =IF(AND(COUNTRY_INFO!$T$9:$T$1000="T3 (ALB/MBD)",COUNTRY_INFO!$U$9:$U$1000="T3 (ALB/MBD)"), "T3 (ALB/MBD)", " ") ->  | J30: 0 | N30: 0
A31: =IF(COUNTRY_INFO!A31=0," ",COUNTRY_INFO!A31) -> Benin | B31: =IF(COUNTRY_INFO!B31=0," ",COUNTRY_INFO!B31) -> Atlantique | C31: =IF(COUNTRY_INFO!C31=0," ",COUNTRY_INFO!C31) -> Zè | D31: =IF(AND(COUNTRY_INFO!$T$9:$T$1000="T3 (ALB/MBD)",COUNTRY_INFO!$U$9:$U$1000="T3 (ALB/MBD)"), "T3 (ALB/MBD)", " ") ->  | J31: 0 | N31: 0
A32: =IF(COUNTRY_INFO!A32=0," ",COUNTRY_INFO!A32) -> Benin | B32: =IF(COUNTRY_INFO!B32=0," ",COUNTRY_INFO!B32) -> Borgou | C32: =IF(COUNTRY_INFO!C32=0," ",COUNTRY_INFO!C32) -> Bembèrèkè | D32: =IF(AND(COUNTRY_INFO!$T$9:$T$1000="T3 (ALB/MBD)",COUNTRY_INFO!$U$9:$U$1000="T3 (ALB/MBD)"), "T3 (ALB/MBD)", " ") ->  | J32: 0 | N32: 0
A33: =IF(COUNTRY_INFO!A33=0," ",COUNTRY_INFO!A33) -> Benin | B33: =IF(COUNTRY_INFO!B33=0," ",COUNTRY_INFO!B33) -> Borgou | C33: =IF(COUNTRY_INFO!C33=0," ",COUNTRY_INFO!C33) -> Kalalé | D33: =IF(AND(COUNTRY_INFO!$T$9:$T$1000="T3 (ALB/MBD)",COUNTRY_INFO!$U$9:$U$1000="T3 (ALB/MBD)"), "T3 (ALB/MBD)", " ") ->  | J33: 0 | N33: 0
A34: =IF(COUNTRY_INFO!A34=0," ",COUNTRY_INFO!A34) -> Benin | B34: =IF(COUNTRY_INFO!B34=0," ",COUNTRY_INFO!B34) -> Borgou | C34: =IF(COUNTRY_INFO!C34=0," ",COUNTRY_INFO!C34) -> N'Dali | D34: =IF(AND(COUNTRY_INFO!$T$9:$T$1000="T3 (ALB/MBD)",COUNTRY_INFO!$U$9:$U$1000="T3 (ALB/MBD)"), "T3 (ALB/MBD)", " ") ->  | J34: 0 | N34: 0
A35: =IF(COUNTRY_INFO!A35=0," ",COUNTRY_INFO!A35) -> Benin | B35: =IF(COUNTRY_INFO!B35=0," ",COUNTRY_INFO!B35) -> Borgou | C35: =IF(COUNTRY_INFO!C35=0," ",COUNTRY_INFO!C35) -> Nikki | D35: =IF(AND(COUNTRY_INFO!$T$9:$T$1000="T3 (ALB/MBD)",COUNTRY_INFO!$U$9:$U$1000="T3 (ALB/MBD)"), "T3 (ALB/MBD)", " ") ->  | J35: 0 | N35: 0
A36: =IF(COUNTRY_INFO!A36=0," ",COUNTRY_INFO!A36) -> Benin | B36: =IF(COUNTRY_INFO!B36=0," ",COUNTRY_INFO!B36) -> Borgou | C36: =IF(COUNTRY_INFO!C36=0," ",COUNTRY_INFO!C36) -> Parakou | D36: =IF(AND(COUNTRY_INFO!$T$9:$T$1000="T3 (ALB/MBD)",COUNTRY_INFO!$U$9:$U$1000="T3 (ALB/MBD)"), "T3 (ALB/MBD)", " ") ->  | J36: 0 | N36: 0
A37: =IF(COUNTRY_INFO!A37=0," ",COUNTRY_INFO!A37) -> Benin | B37: =IF(COUNTRY_INFO!B37=0," ",COUNTRY_INFO!B37) -> Borgou | C37: =IF(COUNTRY_INFO!C37=0," ",COUNTRY_INFO!C37) -> Pèrèrè | D37: =IF(AND(COUNTRY_INFO!$T$9:$T$1000="T3 (ALB/MBD)",COUNTRY_INFO!$U$9:$U$1000="T3 (ALB/MBD)"), "T3 (ALB/MBD)", " ") ->  | J37: 0 | N37: 0
A38: =IF(COUNTRY_INFO!A38=0," ",COUNTRY_INFO!A38) -> Benin | B38: =IF(COUNTRY_INFO!B38=0," ",COUNTRY_INFO!B38) -> Borgou | C38: =IF(COUNTRY_INFO!C38=0," ",COUNTRY_INFO!C38) -> Sinendé | D38: =IF(AND(COUNTRY_INFO!$T$9:$T$1000="T3 (ALB/MBD)",COUNTRY_INFO!$U$9:$U$1000="T3 (ALB/MBD)"), "T3 (ALB/MBD)", " ") ->  | J38: 0 | N38: 0
A39: =IF(COUNTRY_INFO!A39=0," ",COUNTRY_INFO!A39) -> Benin | B39: =IF(COUNTRY_INFO!B39=0," ",COUNTRY_INFO!B39) -> Borgou | C39: =IF(COUNTRY_INFO!C39=0," ",COUNTRY_INFO!C39) -> Tchaourou | D39: =IF(AND(COUNTRY_INFO!$T$9:$T$1000="T3 (ALB/MBD)",COUNTRY_INFO!$U$9:$U$1000="T3 (ALB/MBD)"), "T3 (ALB/MBD)", " ") ->  | J39: 0 | N39: 0
A40: =IF(COUNTRY_INFO!A40=0," ",COUNTRY_INFO!A40) -> Benin | B40: =IF(COUNTRY_INFO!B40=0," ",COUNTRY_INFO!B40) -> Collines | C40: =IF(COUNTRY_INFO!C40=0," ",COUNTRY_INFO!C40) -> Bantè | D40: =IF(AND(COUNTRY_INFO!$T$9:$T$1000="T3 (ALB/MBD)",COUNTRY_INFO!$U$9:$U$1000="T3 (ALB/MBD)"), "T3 (ALB/MBD)", " ") ->  | J40: 0 | N40: 0
A41: =IF(COUNTRY_INFO!A41=0," ",COUNTRY_INFO!A41) -> Benin | B41: =IF(COUNTRY_INFO!B41=0," ",COUNTRY_INFO!B41) -> Collines | C41: =IF(COUNTRY_INFO!C41=0," ",COUNTRY_INFO!C41) -> Dassa-Zoumè | D41: =IF(AND(COUNTRY_INFO!$T$9:$T$1000="T3 (ALB/MBD)",COUNTRY_INFO!$U$9:$U$1000="T3 (ALB/MBD)"), "T3 (ALB/MBD)", " ") ->  | J41: 0 | N41: 0
A42: =IF(COUNTRY_INFO!A42=0," ",COUNTRY_INFO!A42) -> Benin | B42: =IF(COUNTRY_INFO!B42=0," ",COUNTRY_INFO!B42) -> Collines | C42: =IF(COUNTRY_INFO!C42=0," ",COUNTRY_INFO!C42) -> Glazoué | D42: =IF(AND(COUNTRY_INFO!$T$9:$T$1000="T3 (ALB/MBD)",COUNTRY_INFO!$U$9:$U$1000="T3 (ALB/MBD)"), "T3 (ALB/MBD)", " ") ->  | J42: 0 | N42: 0
A43: =IF(COUNTRY_INFO!A43=0," ",COUNTRY_INFO!A43) -> Benin | B43: =IF(COUNTRY_INFO!B43=0," ",COUNTRY_INFO!B43) -> Collines | C43: =IF(COUNTRY_INFO!C43=0," ",COUNTRY_INFO!C43) -> Ouèssè | D43: =IF(AND(COUNTRY_INFO!$T$9:$T$1000="T3 (ALB/MBD)",COUNTRY_INFO!$U$9:$U$1000="T3 (ALB/MBD)"), "T3 (ALB/MBD)", " ") ->  | J43: 0 | N43: 0
A44: =IF(COUNTRY_INFO!A44=0," ",COUNTRY_INFO!A44) -> Benin | B44: =IF(COUNTRY_INFO!B44=0," ",COUNTRY_INFO!B44) -> Collines | C44: =IF(COUNTRY_INFO!C44=0," ",COUNTRY_INFO!C44) -> Savalou | D44: =IF(AND(COUNTRY_INFO!$T$9:$T$1000="T3 (ALB/MBD)",COUNTRY_INFO!$U$9:$U$1000="T3 (ALB/MBD)"), "T3 (ALB/MBD)", " ") ->  | J44: 0 | N44: 0
A45: =IF(COUNTRY_INFO!A45=0," ",COUNTRY_INFO!A45) -> Benin | B45: =IF(COUNTRY_INFO!B45=0," ",COUNTRY_INFO!B45) -> Collines | C45: =IF(COUNTRY_INFO!C45=0," ",COUNTRY_INFO!C45) -> Savè | D45: =IF(AND(COUNTRY_INFO!$T$9:$T$1000="T3 (ALB/MBD)",COUNTRY_INFO!$U$9:$U$1000="T3 (ALB/MBD)"), "T3 (ALB/MBD)", " ") ->  | J45: 0 | N45: 0
A46: =IF(COUNTRY_INFO!A46=0," ",COUNTRY_INFO!A46) -> Benin | B46: =IF(COUNTRY_INFO!B46=0," ",COUNTRY_INFO!B46) -> Couffo | C46: =IF(COUNTRY_INFO!C46=0," ",COUNTRY_INFO!C46) -> Aplahoué | D46: =IF(AND(COUNTRY_INFO!$T$9:$T$1000="T3 (ALB/MBD)",COUNTRY_INFO!$U$9:$U$1000="T3 (ALB/MBD)"), "T3 (ALB/MBD)", " ") ->  | J46: 0 | N46: 0
A47: =IF(COUNTRY_INFO!A47=0," ",COUNTRY_INFO!A47) -> Benin | B47: =IF(COUNTRY_INFO!B47=0," ",COUNTRY_INFO!B47) -> Couffo | C47: =IF(COUNTRY_INFO!C47=0," ",COUNTRY_INFO!C47) -> Djakotomè | D47: =IF(AND(COUNTRY_INFO!$T$9:$T$1000="T3 (ALB/MBD)",COUNTRY_INFO!$U$9:$U$1000="T3 (ALB/MBD)"), "T3 (ALB/MBD)", " ") ->  | J47: 0 | N47: 0
A48: =IF(COUNTRY_INFO!A48=0," ",COUNTRY_INFO!A48) -> Benin | B48: =IF(COUNTRY_INFO!B48=0," ",COUNTRY_INFO!B48) -> Couffo | C48: =IF(COUNTRY_INFO!C48=0," ",COUNTRY_INFO!C48) -> Dogbo | D48: =IF(AND(COUNTRY_INFO!$T$9:$T$1000="T3 (ALB/MBD)",COUNTRY_INFO!$U$9:$U$1000="T3 (ALB/MBD)"), "T3 (ALB/MBD)", " ") ->  | J48: 0 | N48: 0
A49: =IF(COUNTRY_INFO!A49=0," ",COUNTRY_INFO!A49) -> Benin | B49: =IF(COUNTRY_INFO!B49=0," ",COUNTRY_INFO!B49) -> Couffo | C49: =IF(COUNTRY_INFO!C49=0," ",COUNTRY_INFO!C49) -> Klouékamè | D49: =IF(AND(COUNTRY_INFO!$T$9:$T$1000="T3 (ALB/MBD)",COUNTRY_INFO!$U$9:$U$1000="T3 (ALB/MBD)"), "T3 (ALB/MBD)", " ") ->  | J49: 0 | N49: 0
A50: =IF(COUNTRY_INFO!A50=0," ",COUNTRY_INFO!A50) -> Benin | B50: =IF(COUNTRY_INFO!B50=0," ",COUNTRY_INFO!B50) -> Couffo | C50: =IF(COUNTRY_INFO!C50=0," ",COUNTRY_INFO!C50) -> Lalo | D50: =IF(AND(COUNTRY_INFO!$T$9:$T$1000="T3 (ALB/MBD)",COUNTRY_INFO!$U$9:$U$1000="T3 (ALB/MBD)"), "T3 (ALB/MBD)", " ") ->  | J50: 0 | N50: 0
A51: =IF(COUNTRY_INFO!A51=0," ",COUNTRY_INFO!A51) -> Benin | B51: =IF(COUNTRY_INFO!B51=0," ",COUNTRY_INFO!B51) -> Couffo | C51: =IF(COUNTRY_INFO!C51=0," ",COUNTRY_INFO!C51) -> Toviklin | D51: =IF(AND(COUNTRY_INFO!$T$9:$T$1000="T3 (ALB/MBD)",COUNTRY_INFO!$U$9:$U$1000="T3 (ALB/MBD)"), "T3 (ALB/MBD)", " ") ->  | J51: 0 | N51: 0
A52: =IF(COUNTRY_INFO!A52=0," ",COUNTRY_INFO!A52) -> Benin | B52: =IF(COUNTRY_INFO!B52=0," ",COUNTRY_INFO!B52) -> Donga | C52: =IF(COUNTRY_INFO!C52=0," ",COUNTRY_INFO!C52) -> Bassila | D52: =IF(AND(COUNTRY_INFO!$T$9:$T$1000="T3 (ALB/MBD)",COUNTRY_INFO!$U$9:$U$1000="T3 (ALB/MBD)"), "T3 (ALB/MBD)", " ") ->  | J52: 0 | N52: 0
A53: =IF(COUNTRY_INFO!A53=0," ",COUNTRY_INFO!A53) -> Benin | B53: =IF(COUNTRY_INFO!B53=0," ",COUNTRY_INFO!B53) -> Donga | C53: =IF(COUNTRY_INFO!C53=0," ",COUNTRY_INFO!C53) -> Copargo | D53: =IF(AND(COUNTRY_INFO!$T$9:$T$1000="T3 (ALB/MBD)",COUNTRY_INFO!$U$9:$U$1000="T3 (ALB/MBD)"), "T3 (ALB/MBD)", " ") ->  | J53: 0 | N53: 0
A54: =IF(COUNTRY_INFO!A54=0," ",COUNTRY_INFO!A54) -> Benin | B54: =IF(COUNTRY_INFO!B54=0," ",COUNTRY_INFO!B54) -> Donga | C54: =IF(COUNTRY_INFO!C54=0," ",COUNTRY_INFO!C54) -> Djougou | D54: =IF(AND(COUNTRY_INFO!$T$9:$T$1000="T3 (ALB/MBD)",COUNTRY_INFO!$U$9:$U$1000="T3 (ALB/MBD)"), "T3 (ALB/MBD)", " ") ->  | J54: 0 | N54: 0
A55: =IF(COUNTRY_INFO!A55=0," ",COUNTRY_INFO!A55) -> Benin | B55: =IF(COUNTRY_INFO!B55=0," ",COUNTRY_INFO!B55) -> Donga | C55: =IF(COUNTRY_INFO!C55=0," ",COUNTRY_INFO!C55) -> Ouaké | D55: =IF(AND(COUNTRY_INFO!$T$9:$T$1000="T3 (ALB/MBD)",COUNTRY_INFO!$U$9:$U$1000="T3 (ALB/MBD)"), "T3 (ALB/MBD)", " ") ->  | J55: 0 | N55: 0
A56: =IF(COUNTRY_INFO!A56=0," ",COUNTRY_INFO!A56) -> Benin | B56: =IF(COUNTRY_INFO!B56=0," ",COUNTRY_INFO!B56) -> Littoral | C56: =IF(COUNTRY_INFO!C56=0," ",COUNTRY_INFO!C56) -> Cotonou | D56: =IF(AND(COUNTRY_INFO!$T$9:$T$1000="T3 (ALB/MBD)",COUNTRY_INFO!$U$9:$U$1000="T3 (ALB/MBD)"), "T3 (ALB/MBD)", " ") ->  | J56: 0 | N56: 0
A57: =IF(COUNTRY_INFO!A57=0," ",COUNTRY_INFO!A57) -> Benin | B57: =IF(COUNTRY_INFO!B57=0," ",COUNTRY_INFO!B57) -> Mono | C57: =IF(COUNTRY_INFO!C57=0," ",COUNTRY_INFO!C57) -> Athiémé | D57: =IF(AND(COUNTRY_INFO!$T$9:$T$1000="T3 (ALB/MBD)",COUNTRY_INFO!$U$9:$U$1000="T3 (ALB/MBD)"), "T3 (ALB/MBD)", " ") ->  | J57: 0 | N57: 0
A58: =IF(COUNTRY_INFO!A58=0," ",COUNTRY_INFO!A58) -> Benin | B58: =IF(COUNTRY_INFO!B58=0," ",COUNTRY_INFO!B58) -> Mono | C58: =IF(COUNTRY_INFO!C58=0," ",COUNTRY_INFO!C58) -> Bopa | D58: =IF(AND(COUNTRY_INFO!$T$9:$T$1000="T3 (ALB/MBD)",COUNTRY_INFO!$U$9:$U$1000="T3 (ALB/MBD)"), "T3 (ALB/MBD)", " ") ->  | J58: 0 | N58: 0
A59: =IF(COUNTRY_INFO!A59=0," ",COUNTRY_INFO!A59) -> Benin | B59: =IF(COUNTRY_INFO!B59=0," ",COUNTRY_INFO!B59) -> Mono | C59: =IF(COUNTRY_INFO!C59=0," ",COUNTRY_INFO!C59) -> Comé | D59: =IF(AND(COUNTRY_INFO!$T$9:$T$1000="T3 (ALB/MBD)",COUNTRY_INFO!$U$9:$U$1000="T3 (ALB/MBD)"), "T3 (ALB/MBD)", " ") ->  | J59: 0 | N59: 0
A60: =IF(COUNTRY_INFO!A60=0," ",COUNTRY_INFO!A60) -> Benin | B60: =IF(COUNTRY_INFO!B60=0," ",COUNTRY_INFO!B60) -> Mono | C60: =IF(COUNTRY_INFO!C60=0," ",COUNTRY_INFO!C60) -> Grand-Popo | D60: =IF(AND(COUNTRY_INFO!$T$9:$T$1000="T3 (ALB/MBD)",COUNTRY_INFO!$U$9:$U$1000="T3 (ALB/MBD)"), "T3 (ALB/MBD)", " ") ->  | J60: 0 | N60: 0
A61: =IF(COUNTRY_INFO!A61=0," ",COUNTRY_INFO!A61) -> Benin | B61: =IF(COUNTRY_INFO!B61=0," ",COUNTRY_INFO!B61) -> Mono | C61: =IF(COUNTRY_INFO!C61=0," ",COUNTRY_INFO!C61) -> Houéyogbé | D61: =IF(AND(COUNTRY_INFO!$T$9:$T$1000="T3 (ALB/MBD)",COUNTRY_INFO!$U$9:$U$1000="T3 (ALB/MBD)"), "T3 (ALB/MBD)", " ") ->  | J61: 0 | N61: 0
A62: =IF(COUNTRY_INFO!A62=0," ",COUNTRY_INFO!A62) -> Benin | B62: =IF(COUNTRY_INFO!B62=0," ",COUNTRY_INFO!B62) -> Mono | C62: =IF(COUNTRY_INFO!C62=0," ",COUNTRY_INFO!C62) -> Lokossa | D62: =IF(AND(COUNTRY_INFO!$T$9:$T$1000="T3 (ALB/MBD)",COUNTRY_INFO!$U$9:$U$1000="T3 (ALB/MBD)"), "T3 (ALB/MBD)", " ") ->  | J62: 0 | N62: 0
A63: =IF(COUNTRY_INFO!A63=0," ",COUNTRY_INFO!A63) -> Benin | B63: =IF(COUNTRY_INFO!B63=0," ",COUNTRY_INFO!B63) -> Oueme | C63: =IF(COUNTRY_INFO!C63=0," ",COUNTRY_INFO!C63) -> Adjarra | D63: =IF(AND(COUNTRY_INFO!$T$9:$T$1000="T3 (ALB/MBD)",COUNTRY_INFO!$U$9:$U$1000="T3 (ALB/MBD)"), "T3 (ALB/MBD)", " ") ->  | J63: 0 | N63: 0
A64: =IF(COUNTRY_INFO!A64=0," ",COUNTRY_INFO!A64) -> Benin | B64: =IF(COUNTRY_INFO!B64=0," ",COUNTRY_INFO!B64) -> Oueme | C64: =IF(COUNTRY_INFO!C64=0," ",COUNTRY_INFO!C64) -> Adjohoun | D64: =IF(AND(COUNTRY_INFO!$T$9:$T$1000="T3 (ALB/MBD)",COUNTRY_INFO!$U$9:$U$1000="T3 (ALB/MBD)"), "T3 (ALB/MBD)", " ") ->  | J64: 0 | N64: 0
A65: =IF(COUNTRY_INFO!A65=0," ",COUNTRY_INFO!A65) -> Benin | B65: =IF(COUNTRY_INFO!B65=0," ",COUNTRY_INFO!B65) -> Oueme | C65: =IF(COUNTRY_INFO!C65=0," ",COUNTRY_INFO!C65) -> Aguégués | D65: =IF(AND(COUNTRY_INFO!$T$9:$T$1000="T3 (ALB/MBD)",COUNTRY_INFO!$U$9:$U$1000="T3 (ALB/MBD)"), "T3 (ALB/MBD)", " ") ->  | J65: 0 | N65: 0
A66: =IF(COUNTRY_INFO!A66=0," ",COUNTRY_INFO!A66) -> Benin | B66: =IF(COUNTRY_INFO!B66=0," ",COUNTRY_INFO!B66) -> Oueme | C66: =IF(COUNTRY_INFO!C66=0," ",COUNTRY_INFO!C66) -> Akpro-Missérété | D66: =IF(AND(COUNTRY_INFO!$T$9:$T$1000="T3 (ALB/MBD)",COUNTRY_INFO!$U$9:$U$1000="T3 (ALB/MBD)"), "T3 (ALB/MBD)", " ") ->  | J66: 0 | N66: 0
A67: =IF(COUNTRY_INFO!A67=0," ",COUNTRY_INFO!A67) -> Benin | B67: =IF(COUNTRY_INFO!B67=0," ",COUNTRY_INFO!B67) -> Oueme | C67: =IF(COUNTRY_INFO!C67=0," ",COUNTRY_INFO!C67) -> Avrankou | D67: =IF(AND(COUNTRY_INFO!$T$9:$T$1000="T3 (ALB/MBD)",COUNTRY_INFO!$U$9:$U$1000="T3 (ALB/MBD)"), "T3 (ALB/MBD)", " ") ->  | J67: 0 | N67: 0
A68: =IF(COUNTRY_INFO!A68=0," ",COUNTRY_INFO!A68) -> Benin | B68: =IF(COUNTRY_INFO!B68=0," ",COUNTRY_INFO!B68) -> Oueme | C68: =IF(COUNTRY_INFO!C68=0," ",COUNTRY_INFO!C68) -> Bonou | D68: =IF(AND(COUNTRY_INFO!$T$9:$T$1000="T3 (ALB/MBD)",COUNTRY_INFO!$U$9:$U$1000="T3 (ALB/MBD)"), "T3 (ALB/MBD)", " ") ->  | J68: 0 | N68: 0
A69: =IF(COUNTRY_INFO!A69=0," ",COUNTRY_INFO!A69) -> Benin | B69: =IF(COUNTRY_INFO!B69=0," ",COUNTRY_INFO!B69) -> Oueme | C69: =IF(COUNTRY_INFO!C69=0," ",COUNTRY_INFO!C69) -> Dangbo | D69: =IF(AND(COUNTRY_INFO!$T$9:$T$1000="T3 (ALB/MBD)",COUNTRY_INFO!$U$9:$U$1000="T3 (ALB/MBD)"), "T3 (ALB/MBD)", " ") ->  | J69: 0 | N69: 0
A70: =IF(COUNTRY_INFO!A70=0," ",COUNTRY_INFO!A70) -> Benin | B70: =IF(COUNTRY_INFO!B70=0," ",COUNTRY_INFO!B70) -> Oueme | C70: =IF(COUNTRY_INFO!C70=0," ",COUNTRY_INFO!C70) -> Porto-Novo | D70: =IF(AND(COUNTRY_INFO!$T$9:$T$1000="T3 (ALB/MBD)",COUNTRY_INFO!$U$9:$U$1000="T3 (ALB/MBD)"), "T3 (ALB/MBD)", " ") ->  | J70: 0 | N70: 0
A71: =IF(COUNTRY_INFO!A71=0," ",COUNTRY_INFO!A71) -> Benin | B71: =IF(COUNTRY_INFO!B71=0," ",COUNTRY_INFO!B71) -> Oueme | C71: =IF(COUNTRY_INFO!C71=0," ",COUNTRY_INFO!C71) -> Sèmè-Kpodji | D71: =IF(AND(COUNTRY_INFO!$T$9:$T$1000="T3 (ALB/MBD)",COUNTRY_INFO!$U$9:$U$1000="T3 (ALB/MBD)"), "T3 (ALB/MBD)", " ") ->  | J71: 0 | N71: 0
A72: =IF(COUNTRY_INFO!A72=0," ",COUNTRY_INFO!A72) -> Benin | B72: =IF(COUNTRY_INFO!B72=0," ",COUNTRY_INFO!B72) -> Plateau | C72: =IF(COUNTRY_INFO!C72=0," ",COUNTRY_INFO!C72) -> Adja-Ouèrè | D72: =IF(AND(COUNTRY_INFO!$T$9:$T$1000="T3 (ALB/MBD)",COUNTRY_INFO!$U$9:$U$1000="T3 (ALB/MBD)"), "T3 (ALB/MBD)", " ") ->  | J72: 0 | N72: 0
A73: =IF(COUNTRY_INFO!A73=0," ",COUNTRY_INFO!A73) -> Benin | B73: =IF(COUNTRY_INFO!B73=0," ",COUNTRY_INFO!B73) -> Plateau | C73: =IF(COUNTRY_INFO!C73=0," ",COUNTRY_INFO!C73) -> Ifangni | D73: =IF(AND(COUNTRY_INFO!$T$9:$T$1000="T3 (ALB/MBD)",COUNTRY_INFO!$U$9:$U$1000="T3 (ALB/MBD)"), "T3 (ALB/MBD)", " ") ->  | J73: 0 | N73: 0
A74: =IF(COUNTRY_INFO!A74=0," ",COUNTRY_INFO!A74) -> Benin | B74: =IF(COUNTRY_INFO!B74=0," ",COUNTRY_INFO!B74) -> Plateau | C74: =IF(COUNTRY_INFO!C74=0," ",COUNTRY_INFO!C74) -> Kétou | D74: =IF(AND(COUNTRY_INFO!$T$9:$T$1000="T3 (ALB/MBD)",COUNTRY_INFO!$U$9:$U$1000="T3 (ALB/MBD)"), "T3 (ALB/MBD)", " ") ->  | J74: =SUM(G74:I74) -> 0 | N74: =SUM(K74:M74) -> 0 | O74: =IF(G74<>0, IF(K74/G74*100=0, "-", K74/G74*100), " ") ->  | P74: =IF(H74<>0, IF(L74/H74*100=0, "-", L74/H74*100), " ") ->  | Q74: =IF(I74<>0, IF(M74/I74*100=0, "-", M74/I74*100), " ") ->  | R74: =IF(J74<>0, IF(N74/J74*100=0, "-", N74/J74*100), " ") -> 
A75: =IF(COUNTRY_INFO!A75=0," ",COUNTRY_INFO!A75) -> Benin | B75: =IF(COUNTRY_INFO!B75=0," ",COUNTRY_INFO!B75) -> Plateau | C75: =IF(COUNTRY_INFO!C75=0," ",COUNTRY_INFO!C75) -> Pobè | D75: =IF(AND(COUNTRY_INFO!$T$9:$T$1000="T3 (ALB/MBD)",COUNTRY_INFO!$U$9:$U$1000="T3 (ALB/MBD)"), "T3 (ALB/MBD)", " ") ->  | J75: 0 | N75: 0
A76: =IF(COUNTRY_INFO!A76=0," ",COUNTRY_INFO!A76) -> Benin | B76: =IF(COUNTRY_INFO!B76=0," ",COUNTRY_INFO!B76) -> Plateau | C76: =IF(COUNTRY_INFO!C76=0," ",COUNTRY_INFO!C76) -> Sakété | D76: =IF(AND(COUNTRY_INFO!$T$9:$T$1000="T3 (ALB/MBD)",COUNTRY_INFO!$U$9:$U$1000="T3 (ALB/MBD)"), "T3 (ALB/MBD)", " ") ->  | J76: 0 | N76: 0
A77: =IF(COUNTRY_INFO!A77=0," ",COUNTRY_INFO!A77) -> Benin | B77: =IF(COUNTRY_INFO!B77=0," ",COUNTRY_INFO!B77) -> Zou | C77: =IF(COUNTRY_INFO!C77=0," ",COUNTRY_INFO!C77) -> Abomey | D77: =IF(AND(COUNTRY_INFO!$T$9:$T$1000="T3 (ALB/MBD)",COUNTRY_INFO!$U$9:$U$1000="T3 (ALB/MBD)"), "T3 (ALB/MBD)", " ") ->  | J77: 0 | N77: 0
A78: =IF(COUNTRY_INFO!A78=0," ",COUNTRY_INFO!A78) -> Benin | B78: =IF(COUNTRY_INFO!B78=0," ",COUNTRY_INFO!B78) -> Zou | C78: =IF(COUNTRY_INFO!C78=0," ",COUNTRY_INFO!C78) -> Agbangnizoun | D78: =IF(AND(COUNTRY_INFO!$T$9:$T$1000="T3 (ALB/MBD)",COUNTRY_INFO!$U$9:$U$1000="T3 (ALB/MBD)"), "T3 (ALB/MBD)", " ") ->  | J78: 0 | N78: 0
A79: =IF(COUNTRY_INFO!A79=0," ",COUNTRY_INFO!A79) -> Benin | B79: =IF(COUNTRY_INFO!B79=0," ",COUNTRY_INFO!B79) -> Zou | C79: =IF(COUNTRY_INFO!C79=0," ",COUNTRY_INFO!C79) -> Bohicon | D79: =IF(AND(COUNTRY_INFO!$T$9:$T$1000="T3 (ALB/MBD)",COUNTRY_INFO!$U$9:$U$1000="T3 (ALB/MBD)"), "T3 (ALB/MBD)", " ") ->  | J79: 0 | N79: 0
A80: =IF(COUNTRY_INFO!A80=0," ",COUNTRY_INFO!A80) -> Benin | B80: =IF(COUNTRY_INFO!B80=0," ",COUNTRY_INFO!B80) -> Zou | C80: =IF(COUNTRY_INFO!C80=0," ",COUNTRY_INFO!C80) -> Covè | D80: =IF(AND(COUNTRY_INFO!$T$9:$T$1000="T3 (ALB/MBD)",COUNTRY_INFO!$U$9:$U$1000="T3 (ALB/MBD)"), "T3 (ALB/MBD)", " ") ->  | J80: 0 | N80: 0
A81: =IF(COUNTRY_INFO!A81=0," ",COUNTRY_INFO!A81) -> Benin | B81: =IF(COUNTRY_INFO!B81=0," ",COUNTRY_INFO!B81) -> Zou | C81: =IF(COUNTRY_INFO!C81=0," ",COUNTRY_INFO!C81) -> Djidja | D81: =IF(AND(COUNTRY_INFO!$T$9:$T$1000="T3 (ALB/MBD)",COUNTRY_INFO!$U$9:$U$1000="T3 (ALB/MBD)"), "T3 (ALB/MBD)", " ") ->  | J81: 0 | N81: 0
A82: =IF(COUNTRY_INFO!A82=0," ",COUNTRY_INFO!A82) -> Benin | B82: =IF(COUNTRY_INFO!B82=0," ",COUNTRY_INFO!B82) -> Zou | C82: =IF(COUNTRY_INFO!C82=0," ",COUNTRY_INFO!C82) -> Ouinhi | D82: =IF(AND(COUNTRY_INFO!$T$9:$T$1000="T3 (ALB/MBD)",COUNTRY_INFO!$U$9:$U$1000="T3 (ALB/MBD)"), "T3 (ALB/MBD)", " ") ->  | J82: 0 | N82: 0
A83: =IF(COUNTRY_INFO!A83=0," ",COUNTRY_INFO!A83) -> Benin | B83: =IF(COUNTRY_INFO!B83=0," ",COUNTRY_INFO!B83) -> Zou | C83: =IF(COUNTRY_INFO!C83=0," ",COUNTRY_INFO!C83) -> Zagnanado | D83: =IF(AND(COUNTRY_INFO!$T$9:$T$1000="T3 (ALB/MBD)",COUNTRY_INFO!$U$9:$U$1000="T3 (ALB/MBD)"), "T3 (ALB/MBD)", " ") ->  | J83: 0 | N83: 0
A84: =IF(COUNTRY_INFO!A84=0," ",COUNTRY_INFO!A84) -> Benin | B84: =IF(COUNTRY_INFO!B84=0," ",COUNTRY_INFO!B84) -> Zou | C84: =IF(COUNTRY_INFO!C84=0," ",COUNTRY_INFO!C84) -> Za-Kpota | D84: =IF(AND(COUNTRY_INFO!$T$9:$T$1000="T3 (ALB/MBD)",COUNTRY_INFO!$U$9:$U$1000="T3 (ALB/MBD)"), "T3 (ALB/MBD)", " ") ->  | J84: 0 | N84: 0
A85: =IF(COUNTRY_INFO!A85=0," ",COUNTRY_INFO!A85) -> Benin | B85: =IF(COUNTRY_INFO!B85=0," ",COUNTRY_INFO!B85) -> Zou | C85: =IF(COUNTRY_INFO!C85=0," ",COUNTRY_INFO!C85) -> Zogbodomey | D85: =IF(AND(COUNTRY_INFO!$T$9:$T$1000="T3 (ALB/MBD)",COUNTRY_INFO!$U$9:$U$1000="T3 (ALB/MBD)"), "T3 (ALB/MBD)", " ") ->  | J85: 0 | N85: 0

Sheet DISTRICT
A1: Nombre d'individus traités
A2: Structure administrative, population traitée par groupe d'âge et sexe
A4: TOTAL | D4: =SUM(D$9:D$1000) -> 315128 | E4: =SUM(E$9:E$1000) -> 0 | F4: =SUM(F$9:F$1000) -> 0 | G4: =SUM(G$9:G$1000) -> 262386 | H4: =SUM(H$9:H$1000) -> 262386 | I4: =IF(D4>0, IF(H4/D4*100<>0, H4/D4*100, "-"),0) -> 83.26330888 | J4: =SUM(J$9:J$1000) -> 5599018 | K4: =SUM(K$9:K$1000) -> 0 | L4: =SUM(L$9:L$1000) -> 0 | M4: =SUM(M$9:M$1000) -> 4680398 | N4: =SUM(N$9:N$1000) -> 4571005 | O4: =IF(J4>0, IF(N4/J4*100<>0, N4/J4*100, "-"),0) -> 81.63940534 | P4: =SUM(P$9:P$1000) -> 2105464 | Q4: =SUM(Q$9:Q$1000) -> 0 | R4: =SUM(R$9:R$1000) -> 0 | S4: =SUM(S$9:S$1000) -> 1690054 | T4: =SUM(T$9:T$1000) -> 0 | V4: 1243719 | X4: =SUM(X$9:X$1000) -> 1243719 | Y4: =IF(P4>0, IF(X4/P4*100<>0, X4/P4*100, "-"),0) -> 59.07101712 | Z4: =SUM(Z$9:Z$1000) -> 2300011.06 | AA4: 0 | AB4: 0 | AC4: 944298 | AD4: 614559 | AF4: 0 | AH4: 614559 | AI4: =IF(Z4>0, IF(AH4/Z4*100<>0, AH4/Z4*100, "-"),0) -> 26.71982803
A6: Structure administrative du pays | D6: Population nécessitant la CP pour FL | E6: Population traitée pour la filariose lymphatique | J6: Population nécessitant la CP pour ONCHO | K6: Population traitée pour l'onchocercose | P6: Population nécessitant la CP pour STH | Q6: Population traitée pour les géohelminthiases | Z6: Population nécessitant la CP pour SCH | AA6: Population traitée pour la schistosomiase | AP6: =SUM(AP9:AP1000) -> 225736.9543 | AQ6: 880987.137 | AR6: 2331155.739 | AS6: 3182814.385 | AT6: =SUM(AT9:AT1000) -> 6620694.216 | AU6: =COUNTIF(AU9:AU1000,"Y") -> 34 | AV6: =SUM(AV9:AV1000) -> 0 | AW6: 2299296 | AX6: 2969344 | AY6: =SUM(AY9:AY1000) -> 5268640 | AZ6: 0 | BA6: 2049177.5 | BB6: 2969344 | BC6: 4944714.431 | BD6: =IF(AT6<>0,BC6/AT6,0) -> 0.7468573944
A7: Pays | B7: Région/Département | C7: District | E7: Masculine | F7: Féminine | G7: Total traité | H7: Total traité ayant besoin de CP | I7: (%) | K7: Masculine | L7: Féminine | M7: Total traité | N7: Total traité ayant besoin de CP | O7: (%) | Q7: Masculine | R7: Féminine | S7: Total traité | T7: EAPréS traité ayant besoin de CP | U7: EAPréS (%) | V7: EAS traité ayant besoin de CP | W7: EAS (%) | X7: Total traité ayant besoin de CP | Y7: (%) | AA7: Masculine | AB7: Féminine | AC7: Total traité | AD7: EAS traité ayant besoin de CP | AE7: EAS (%) | AF7: Adultes traité ayant besoin de CP | AG7: Adultes (%) | AH7: Total traité ayant besoin de CP | AI7: (%) | AK7: LF | AL7: ONCHO | AM7: STH | AN7: SCH-SAC | AO7: SCH_Adults | AP7: <1 | AQ7: PreSAC | AR7: SAC | AS7: Adults | AT7: Total | AU7: Dis | AV7: PreSAC | AW7: SAC | AX7: Adults | AY7: Total | AZ7: PreSAC | BA7: SAC | BB7: Adults | BC7: Total | BD7: Coverage
A9: =IF(COUNTRY_INFO!A9=0," ",COUNTRY_INFO!A9) -> Benin | B9: =IF(COUNTRY_INFO!B9=0," ",COUNTRY_INFO!B9) -> Alibori | C9: =IF(COUNTRY_INFO!C9=0," ",COUNTRY_INFO!C9) -> Banikoara | D9: =COUNTRY_INFO!L9 -> 0 | G9: =MAX('MDA1'!M9,'MDA2'!M9) -> 0 | H9: =IF(AND(COUNTRY_INFO!H9>0,COUNTRY_INFO!H9<4),IF(D9>MAX('MDA1'!M9,'MDA2'!M9),MAX('MDA1'!M9,'MDA2'!M9),D9),0) -> 0 | I9: =IF(AND(COUNTRY_INFO!H9>0,COUNTRY_INFO!H9<4), IF(G9/D9*100<>0, IF(G9/D9*100>100,100,G9/D9*100), "-"),0) -> 0 | J9: =COUNTRY_INFO!M9 -> 301522 | M9: =MAX('MDA1'!M9,MAX('MDA3'!I9,'MDA3'!L9)+MAX('MDA3'!J9,'MDA3'!M9)) -> 260321 | N9: =IF(AND(COUNTRY_INFO!I9>0,COUNTRY_INFO!I9<4),IF(J9>MAX('MDA1'!M9,MAX('MDA3'!I9,'MDA3'!L9)+MAX('MDA3'!J9,'MDA3'!M9)),MAX('MDA1'!M9,MAX('MDA3'!I9,'MDA3'!L9)+MAX('MDA3'!J9,'MDA3'!M9)),J9),0) -> 260321 | O9: =IF(AND(COUNTRY_INFO!I9>0,COUNTRY_INFO!I9<4), IF(M9/J9*100<>0, IF(M9/J9*100>100,100,M9/J9*100), "-"),0) -> 86.3356571 | P9: =COUNTRY_INFO!N9 -> 0 | S9: =SUM(MAX('MDA2'!J9, 'T1'!L9, MAX(T3_R1!K9, T3_R2!K9)), MAX('MDA1'!K9, 'MDA2'!K9, 'T1'!M9, MAX(T3_R1!L9, T3_R2!L9)), MAX('MDA1'!L9, 'MDA2'!L9, 'T1'!N9, MAX(T3_R1!M9, T3_R2!M9))) -> 0 | T9: =IF(AND(COUNTRY_INFO!J9>1,COUNTRY_INFO!J9<4),IF(COUNTRY_INFO!E9>MAX('MDA2'!J9,'T1'!L9,MAX(T3_R1!K9,T3_R2!K9)),MAX('MDA2'!J9,'T1'!L9,MAX(T3_R1!K9,T3_R2!K9)),COUNTRY_INFO!E9),0) -> 0 | U9: =IF(AND(COUNTRY_INFO!J9>1,COUNTRY_INFO!J9<4), IF(T9/COUNTRY_INFO!E9*100<>0, IF(T9/COUNTRY_INFO!E9*100>100,100,T9/COUNTRY_INFO!E9*100), "-"),0) -> 0 | V9: =IF(AND(COUNTRY_INFO!J9>1,COUNTRY_INFO!J9<4),IF(COUNTRY_INFO!F9>MAX('MDA1'!K9,'MDA2'!K9,'T1'!M9,MAX(T3_R1!L9,T3_R2!L9)),MAX('MDA1'!K9,'MDA2'!K9,'T1'!M9,MAX(T3_R1!L9,T3_R2!L9)),COUNTRY_INFO!F9),0) -> 0 | W9: =IF(AND(COUNTRY_INFO!J9>1,COUNTRY_INFO!J9<4), IF(V9/COUNTRY_INFO!F9*100<>0, IF(V9/COUNTRY_INFO!F9*100>100,100,V9/COUNTRY_INFO!F9*100), "-"),0) -> 0 | X9: =SUM(T9,V9) -> 0 | Y9: =IF(AND(COUNTRY_INFO!J9>1,COUNTRY_INFO!J9<4), IF(S9/P9*100<>0, IF(X9/P9*100>100,100,X9/P9*100), "-"),0) -> 0 | Z9: =COUNTRY_INFO!O9 -> 76532.2 | AC9: =MAX('T1'!L9,'T2'!J9)+MAX('T1'!M9,'T2'!K9)+MAX('T1'!N9,'T2'!L9) -> 0 | AD9: =IF(COUNTRY_INFO!K9=1,IF(COUNTRY_INFO!F9*0.33>MAX('T1'!M9,'T2'!K9),MAX('T1'!M9,'T2'!K9),COUNTRY_INFO!F9*0.33),IF(COUNTRY_INFO!K9=2,IF(COUNTRY_INFO!F9*0.5>MAX('T1'!M9,'T2'!K9),MAX('T1'!M9,'T2'!K9),COUNTRY_INFO!F9*0.5),IF(COUNTRY_INFO!K9=3,IF(COUNTRY_INFO!F9>MAX('T1'!M9,'T2'!K9),MAX('T1'!M9,'T2'!K9),COUNTRY_INFO!F9),0))) -> 0 | AE9: =IF(AND(COUNTRY_INFO!K9>0,COUNTRY_INFO!K9<4),IF(Z9>0,IF(COUNTRY_INFO!K9=1, AD9/(COUNTRY_INFO!F9*0.33)*100, IF(COUNTRY_INFO!K9=2, AD9/(COUNTRY_INFO!F9*0.5)*100, IF(COUNTRY_INFO!K9=3, AD9/COUNTRY_INFO!F9*100))),"-"),0) -> 0 | AF9: =IF(COUNTRY_INFO!K9=2,IF(COUNTRY_INFO!G9*0.2>MAX('T1'!N9,'T2'!L9),MAX('T1'!N9,'T2'!L9),COUNTRY_INFO!G9*0.2),IF(COUNTRY_INFO!K9=3,IF(COUNTRY_INFO!G9>MAX('T1'!N9,'T2'!L9),MAX('T1'!N9,'T2'!L9),COUNTRY_INFO!G9),0)) -> 0 | AG9: =IF(AND(COUNTRY_INFO!K9>0,COUNTRY_INFO!K9<4),IF(Z9>0,IF(COUNTRY_INFO!K9=1, 0, IF(COUNTRY_INFO!K9=2, AF9/(COUNTRY_INFO!G9*0.2)*100, IF(COUNTRY_INFO!K9=3, AF9/COUNTRY_INFO!G9*100))),"-"),0) -> 0 | AH9: =SUM(AD9,AF9) -> 0 | AI9: =IF(AND(COUNTRY_INFO!K9>0,COUNTRY_INFO!K9<4), IF(AC9/Z9*100<>0, IF(AH9/Z9*100>100,100,AH9/Z9*100), "-"),0) -> - | AK9: =IF(AND(D9<>0, D9<>"Inconnu",D9<>"Interrompu",D9<>"Non requis"),D9/COUNTRY_INFO!D9, 0) -> 0 | AL9: =IF(AND(J9<>0,J9<>"Inconnu",J9<>"Interrompu",J9<>"Non requis"),J9/COUNTRY_INFO!D9, 0) -> 1 | AM9: =IF(AND(P9<>0,P9<>"Inconnu",P9<>"Non requis"),P9/(COUNTRY_INFO!E9+COUNTRY_INFO!F9), 0) -> 0 | AN9: =IF(AND(Z9<>0,Z9<>"Inconnu",Z9<>"Non requis"),IF(COUNTRY_INFO!K9=1,1,IF(COUNTRY_INFO!K9=2,0.5*COUNTRY_INFO!F9/(0.5*COUNTRY_INFO!F9+0.2*COUNTRY_INFO!G9),IF(COUNTRY_INFO!K9=3,COUNTRY_INFO!F9/(COUNTRY_INFO!F9+COUNTRY_INFO!G9)))),0) -> 0.5850609286 | AO9: =IF(AND(Z9<>0,Z9<>"Inconnu",Z9<>"Non requis"),IF(COUNTRY_INFO!K9=1,0,IF(COUNTRY_INFO!K9=2,0.2*COUNTRY_INFO!G9/(0.5*COUNTRY_INFO!F9+0.2*COUNTRY_INFO!G9),IF(COUNTRY_INFO!K9=3,COUNTRY_INFO!G9/(COUNTRY_INFO!F9+COUNTRY_INFO!G9)))),0) -> 0.4149390714 | AP9: =MAX(COUNTRY_INFO!D9*AK9*PROFILE!$G$7,COUNTRY_INFO!D9*AL9*PROFILE!$G$7) -> 12060.84123 | AQ9: =MAX(COUNTRY_INFO!D9*AK9*PROFILE!$G$8,COUNTRY_INFO!D9*AL9*PROFILE!$G$8,COUNTRY_INFO!D9*AM9*PROFILE!$G$8) -> 41127.59429 | AR9: =MAX(COUNTRY_INFO!D9*AK9*PROFILE!$G$9,COUNTRY_INFO!D9*AL9*PROFILE!$G$9,COUNTRY_INFO!D9*AM9*PROFILE!$G$9,IF(AND(DISTRICT!Z9<>"Inconnu",Z9<>"Non requis"),COUNTRY_INFO!O9*DISTRICT!AN9,0)) -> 89552.03009 | AS9: =MAX(COUNTRY_INFO!D9*AK9*PROFILE!$G$10,COUNTRY_INFO!D9*AL9*PROFILE!$G$10,IF(AND(DISTRICT!Z9<>"Inconnu",Z9<>"Non requis"),COUNTRY_INFO!O9*DISTRICT!AO9,0)) -> 158781.5344 | AT9: =SUM(AP9:AS9) -> 301522 | AU9: =IF(COUNTIFS(AK9:AN9,">0")=0,0, IF(COUNTIFS(AK9:AN9,">0")<=IF(AND(OR(D9>=0,D9="Non requis",D9="Inconnu",D9="Interrompu"),D9>0,H9>0),1,0)+IF(AND(OR(J9>=0,J9="Non requis",J9="Inconnu",J9="Interrompu"),J9>0,N9>0),1,0)+IF(AND(OR(P9>=0,P9="Non requis",P9="Inconnu"),P9>0,X9>0),1,0)+IF(AND(OR(Z9>=0,Z9="Non requis",Z9="Inconnu"),Z9>0,AH9>0),1,0),"Y",0)) -> 0 | AV9: =MAX('MDA2'!J9,'T1'!L9,'T2'!J9,T3_R1!K9,T3_R2!K9) -> 0 | AW9: =MAX('MDA1'!K9,'MDA2'!K9,'MDA3'!I9,'MDA3'!L9,'T1'!M9,'T2'!K9,T3_R1!L9,T3_R2!L9) -> 88318 | AX9: =MAX('MDA1'!L9,'MDA2'!L9,'MDA3'!J9,'MDA3'!M9,'T1'!N9,'T2'!L9,T3_R1!M9,T3_R2!M9) -> 172003 | AY9: =SUM(AV9:AX9) -> 260321 | AZ9: =MAX('MDA2'!J9,T9) -> 0 | BA9: =MAX('MDA1'!K9,'MDA2'!K9,'MDA3'!I9,'MDA3'!L9,V9,AD9) -> 88318 | BB9: =MAX('MDA1'!L9,'MDA2'!L9,'MDA3'!J9,'MDA3'!M9,AF9) -> 172003 | BC9: =IF(AT9<SUM(AZ9:BB9), AT9,SUM(AZ9:BB9)) -> 260321 | BD9: =IF(AT9<>0,BC9/AT9*100,0) -> 86.3356571
A10: =IF(COUNTRY_INFO!A10=0," ",COUNTRY_INFO!A10) -> Benin | B10: =IF(COUNTRY_INFO!B10=0," ",COUNTRY_INFO!B10) -> Alibori | C10: =IF(COUNTRY_INFO!C10=0," ",COUNTRY_INFO!C10) -> Gogounou | D10: =COUNTRY_INFO!L10 -> 0 | G10: =MAX('MDA1'!M10,'MDA2'!M10) -> 0 | H10: =IF(AND(COUNTRY_INFO!H10>0,COUNTRY_INFO!H10<4),IF(D10>MAX('MDA1'!M10,'MDA2'!M10),MAX('MDA1'!M10,'MDA2'!M10),D10),0) -> 0 | I10: =IF(AND(COUNTRY_INFO!H10>0,COUNTRY_INFO!H10<4), IF(G10/D10*100<>0, IF(G10/D10*100>100,100,G10/D10*100), "-"),0) -> 0 | J10: =COUNTRY_INFO!M10 -> 121428 | M10: =MAX('MDA1'!M10,MAX('MDA3'!I10,'MDA3'!L10)+MAX('MDA3'!J10,'MDA3'!M10)) -> 86309 | N10: =IF(AND(COUNTRY_INFO!I10>0,COUNTRY_INFO!I10<4),IF(J10>MAX('MDA1'!M10,MAX('MDA3'!I10,'MDA3'!L10)+MAX('MDA3'!J10,'MDA3'!M10)),MAX('MDA1'!M10,MAX('MDA3'!I10,'MDA3'!L10)+MAX('MDA3'!J10,'MDA3'!M10)),J10),0) -> 86309 | O10: =IF(AND(COUNTRY_INFO!I10>0,COUNTRY_INFO!I10<4), IF(M10/J10*100<>0, IF(M10/J10*100>100,100,M10/J10*100), "-"),0) -> 71.07833449 | P10: =COUNTRY_INFO!N10 -> 52627 | S10: =SUM(MAX('MDA2'!J10, 'T1'!L10, MAX(T3_R1!K10, T3_R2!K10)), MAX('MDA1'!K10, 'MDA2'!K10, 'T1'!M10, MAX(T3_R1!L10, T3_R2!L10)), MAX('MDA1'!L10, 'MDA2'!L10, 'T1'!N10, MAX(T3_R1!M10, T3_R2!M10))) -> 45374 | T10: =IF(AND(COUNTRY_INFO!J10>1,COUNTRY_INFO!J10<4),IF(COUNTRY_INFO!E10>MAX('MDA2'!J10,'T1'!L10,MAX(T3_R1!K10,T3_R2!K10)),MAX('MDA2'!J10,'T1'!L10,MAX(T3_R1!K10,T3_R2!K10)),COUNTRY_INFO!E10),0) -> 0 | U10: =IF(AND(COUNTRY_INFO!J10>1,COUNTRY_INFO!J10<4), IF(T10/COUNTRY_INFO!E10*100<>0, IF(T10/COUNTRY_INFO!E10*100>100,100,T10/COUNTRY_INFO!E10*100), "-"),0) -> - | V10: =IF(AND(COUNTRY_INFO!J10>1,COUNTRY_INFO!J10<4),IF(COUNTRY_INFO!F10>MAX('MDA1'!K10,'MDA2'!K10,'T1'!M10,MAX(T3_R1!L10,T3_R2!L10)),MAX('MDA1'!K10,'MDA2'!K10,'T1'!M10,MAX(T3_R1!L10,T3_R2!L10)),COUNTRY_INFO!F10),0) -> 36064 | W10: =IF(AND(COUNTRY_INFO!J10>1,COUNTRY_INFO!J10<4), IF(V10/COUNTRY_INFO!F10*100<>0, IF(V10/COUNTRY_INFO!F10*100>100,100,V10/COUNTRY_INFO!F10*100), "-"),0) -> 100 | X10: =SUM(T10,V10) -> 36064 | Y10: =IF(AND(COUNTRY_INFO!J10>1,COUNTRY_INFO!J10<4), IF(S10/P10*100<>0, IF(X10/P10*100>100,100,X10/P10*100), "-"),0) -> 68.5275619 | Z10: =COUNTRY_INFO!O10 -> 11901.12 | AC10: =MAX('T1'!L10,'T2'!J10)+MAX('T1'!M10,'T2'!K10)+MAX('T1'!N10,'T2'!L10) -> 0 | AD10: =IF(COUNTRY_INFO!K10=1,IF(COUNTRY_INFO!F10*0.33>MAX('T1'!M10,'T2'!K10),MAX('T1'!M10,'T2'!K10),COUNTRY_INFO!F10*0.33),IF(COUNTRY_INFO!K10=2,IF(COUNTRY_INFO!F10*0.5>MAX('T1'!M10,'T2'!K10),MAX('T1'!M10,'T2'!K10),COUNTRY_INFO!F10*0.5),IF(COUNTRY_INFO!K10=3,IF(COUNTRY_INFO!F10>MAX('T1'!M10,'T2'!K10),MAX('T1'!M10,'T2'!K10),COUNTRY_INFO!F10),0))) -> 0 | AE10: =IF(AND(COUNTRY_INFO!K10>0,COUNTRY_INFO!K10<4),IF(Z10>0,IF(COUNTRY_INFO!K10=1, AD10/(COUNTRY_INFO!F10*0.33)*100, IF(COUNTRY_INFO!K10=2, AD10/(COUNTRY_INFO!F10*0.5)*100, IF(COUNTRY_INFO!K10=3, AD10/COUNTRY_INFO!F10*100))),"-"),0) -> 0 | AF10: =IF(COUNTRY_INFO!K10=2,IF(COUNTRY_INFO!G10*0.2>MAX('T1'!N10,'T2'!L10),MAX('T1'!N10,'T2'!L10),COUNTRY_INFO!G10*0.2),IF(COUNTRY_INFO!K10=3,IF(COUNTRY_INFO!G10>MAX('T1'!N10,'T2'!L10),MAX('T1'!N10,'T2'!L10),COUNTRY_INFO!G10),0)) -> 0 | AG10: =IF(AND(COUNTRY_INFO!K10>0,COUNTRY_INFO!K10<4),IF(Z10>0,IF(COUNTRY_INFO!K10=1, 0, IF(COUNTRY_INFO!K10=2, AF10/(COUNTRY_INFO!G10*0.2)*100, IF(COUNTRY_INFO!K10=3, AF10/COUNTRY_INFO!G10*100))),"-"),0) -> 0 | AH10: =SUM(AD10,AF10) -> 0 | AI10: =IF(AND(COUNTRY_INFO!K10>0,COUNTRY_INFO!K10<4), IF(AC10/Z10*100<>0, IF(AH10/Z10*100>100,100,AH10/Z10*100), "-"),0) -> - | AK10: =IF(AND(D10<>0, D10<>"Inconnu",D10<>"Interrompu",D10<>"Non requis"),D10/COUNTRY_INFO!D10, 0) -> 0 | AL10: =IF(AND(J10<>0,J10<>"Inconnu",J10<>"Interrompu",J10<>"Non requis"),J10/COUNTRY_INFO!D10, 0) -> 1 | AM10: =IF(AND(P10<>0,P10<>"Inconnu",P10<>"Non requis"),P10/(COUNTRY_INFO!E10+COUNTRY_INFO!F10), 0) -> 1 | AN10: =IF(AND(Z10<>0,Z10<>"Inconnu",Z10<>"Non requis"),IF(COUNTRY_INFO!K10=1,1,IF(COUNTRY_INFO!K10=2,0.5*COUNTRY_INFO!F10/(0.5*COUNTRY_INFO!F10+0.2*COUNTRY_INFO!G10),IF(COUNTRY_INFO!K10=3,COUNTRY_INFO!F10/(COUNTRY_INFO!F10+COUNTRY_INFO!G10)))),0) -> 1 | AO10: =IF(AND(Z10<>0,Z10<>"Inconnu",Z10<>"Non requis"),IF(COUNTRY_INFO!K10=1,0,IF(COUNTRY_INFO!K10=2,0.2*COUNTRY_INFO!G10/(0.5*COUNTRY_INFO!F10+0.2*COUNTRY_INFO!G10),IF(COUNTRY_INFO!K10=3,COUNTRY_INFO!G10/(COUNTRY_INFO!F10+COUNTRY_INFO!G10)))),0) -> 0 | AP10: =MAX(COUNTRY_INFO!D10*AK10*PROFILE!$G$7,COUNTRY_INFO!D10*AL10*PROFILE!$G$7) -> 4857.104386 | AQ10: =MAX(COUNTRY_INFO!D10*AK10*PROFILE!$G$8,COUNTRY_INFO!D10*AL10*PROFILE!$G$8,COUNTRY_INFO!D10*AM10*PROFILE!$G$8) -> 16562.77658 | AR10: =MAX(COUNTRY_INFO!D10*AK10*PROFILE!$G$9,COUNTRY_INFO!D10*AL10*PROFILE!$G$9,COUNTRY_INFO!D10*AM10*PROFILE!$G$9,IF(AND(DISTRICT!Z10<>"Inconnu",Z10<>"Non requis"),COUNTRY_INFO!O10*DISTRICT!AN10,0)) -> 36064.11443 | AS10: =MAX(COUNTRY_INFO!D10*AK10*PROFILE!$G$10,COUNTRY_INFO!D10*AL10*PROFILE!$G$10,IF(AND(DISTRICT!Z10<>"Inconnu",Z10<>"Non requis"),COUNTRY_INFO!O10*DISTRICT!AO10,0)) -> 63944.00461 | AT10: =SUM(AP10:AS10) -> 121428 | AU10: 0 | AV10: =MAX('MDA2'!J10,'T1'!L10,'T2'!J10,T3_R1!K10,T3_R2!K10) -> 0 | AW10: =MAX('MDA1'!K10,'MDA2'!K10,'MDA3'!I10,'MDA3'!L10,'T1'!M10,'T2'!K10,T3_R1!L10,T3_R2!L10) -> 45374 | AX10: =MAX('MDA1'!L10,'MDA2'!L10,'MDA3'!J10,'MDA3'!M10,'T1'!N10,'T2'!L10,T3_R1!M10,T3_R2!M10) -> 53380 | AY10: =SUM(AV10:AX10) -> 98754 | AZ10: =MAX('MDA2'!J10,T10) -> 0 | BA10: =MAX('MDA1'!K10,'MDA2'!K10,'MDA3'!I10,'MDA3'!L10,V10,AD10) -> 36064 | BB10: =MAX('MDA1'!L10,'MDA2'!L10,'MDA3'!J10,'MDA3'!M10,AF10) -> 53380 | BC10: 89444 | BD10: 73.66011134
